Workbook

Sheet Spans
A1: File: | B1: =Poles!J3 -> WYANDOTTE 1105 | G1: =Poles!I3 -> 102911105 | I1: =Trees!N3 -> 2019-12-19T12:17:11 | R1: User Inputs | S1: Formula | Y1: Long 1 | Z1: Lat 1 | AA1: Elev 1 | AC1: Long 2 | AD1: Lat 2 | AE1: Elev 2 | AG1: Elev 1 | AH1: Elev 2 | AI1: Pole1 Height | AJ1: Pole2 Height
A2: Threat Level | B2: # Spans | C2: (miles) | D2: Weight Factor | E2: Risk Score | F2: Tree≤6ft | H2: Table Group: | I2: 9 | J2: objectid | K2: latitude | L2: longitude | M2: HFTD | N2: bst_tag | O2: ast_tag | P2: span_tag | Q2: span_lgth | R2: Span Shape | S2: Span ID | T2: Tree Fails | U2: Strike Threat | V2: Wind Factor | W2: Tree≤6ft Count | X2: ≤6ft Threat | Y2: (°) | Z2: (°) | AA2: (m) | AC2: (°) | AD2: (°) | AE2: (m) | AG2: (ft) | AH2: (ft) | AI2: (ft) | AJ2: (ft) | AL2: "ft" to "m": | AM2: 0.3048 | AO2: "ft" to "mile": | AP2: =1/5280 -> 0.0001893939394
A3: 3 | B3: =COUNTIFS(U$3:U$100000,A3) -> 0 | C3: =SUMIF(U$3:U$100000,A3,Q$3:Q$100000)/5280 -> 0 | D3: 1 | E3: =B3/B$7*D3 -> 0 | F3: =COUNTIFS(X$3:X$100000,A3) -> 0 | H3: Span Shape | J3: 1 | K3: 39.57524 | L3: -121.5298 | M3: Tier 2-3 | N3: W12153001N3957527 | O3: W12152960N3957520 | P3: W12153001N3957527-W12152960N3957520 | Q3: 118.6 | R3: 2 | S3: =J3 -> 1 | T3: =COUNTIFS(TreeRange,S3,TreeFail,"Yes")*V3 -> 0 | U3: =IF(Q3<1,0,_xlfn.IFS(T3>15,3,T3>5,2,T3>0,1,T3=0,0)) -> 0 | V3: =Chk_wind($C$8,Y3,Z3,AC3,AD3) -> 1 | W3: =COUNTIFS(TreeRange,S3,TreeOffset,"Yes") -> 0 | X3: =IF(Q3<1,0,_xlfn.IFS(W3>15,3,W3>5,2,W3>0,1,W3=0,0)) -> 0 | Y3: =IFERROR(VLOOKUP($N3,PoleRange,3,FALSE),0) -> 0 | Z3: =IFERROR(VLOOKUP($N3,PoleRange,2,FALSE),0) -> 0 | AA3: =(AG3+AI3-1)*0.3048 -> -0.3048 | AC3: =IFERROR(VLOOKUP($O3,PoleRange,3,FALSE),0) -> 0 | AD3: =IFERROR(VLOOKUP($O3,PoleRange,2,FALSE),0) -> 0 | AE3: =(AH3+AJ3-1)*0.3048 -> -0.3048 | AG3: =IFERROR(VLOOKUP($N3,PoleRange,6,FALSE),0) -> 0 | AH3: =IFERROR(VLOOKUP($O3,PoleRange,6,FALSE),0) -> 0 | AI3: =IFERROR(VLOOKUP($N3,PoleRange,7,FALSE),0) -> 0 | AJ3: =IFERROR(VLOOKUP($O3,PoleRange,7,FALSE),0) -> 0
A4: 2 | B4: =COUNTIFS(U$3:U$100000,A4) -> 5 | C4: =SUMIF(U$3:U$100000,A4,Q$3:Q$100000)/5280 -> 0.2270454545 | D4: 0.75 | E4: =B4/B$7*D4 -> 0.02038043478 | F4: =COUNTIFS(X$3:X$100000,A4) -> 0 | H4: 2 | I4: Tangent | J4: 2 | K4: 39.586 | L4: -121.52543 | M4: Tier 2-3 | N4: W12152491N3958582 | O4: W12152594N3958619 | P4: W12152491N3958582-W12152594N3958619 | Q4: 319.3 | R4: 2 | S4: =J4 -> 2 | T4: =COUNTIFS(TreeRange,S4,TreeFail,"Yes")*V4 -> 0 | U4: =IF(Q4<1,0,_xlfn.IFS(T4>15,3,T4>5,2,T4>0,1,T4=0,0)) -> 0 | V4: =Chk_wind($C$8,Y4,Z4,AC4,AD4) -> 1 | W4: =COUNTIFS(TreeRange,S4,TreeOffset,"Yes") -> 0 | X4: =IF(Q4<1,0,_xlfn.IFS(W4>15,3,W4>5,2,W4>0,1,W4=0,0)) -> 0 | Y4: =IFERROR(VLOOKUP($N4,PoleRange,3,FALSE),0) -> 0 | Z4: =IFERROR(VLOOKUP($N4,PoleRange,2,FALSE),0) -> 0 | AA4: =(AG4+AI4-1)*0.3048 -> -0.3048 | AC4: =IFERROR(VLOOKUP($O4,PoleRange,3,FALSE),0) -> -121.52594 | AD4: =IFERROR(VLOOKUP($O4,PoleRange,2,FALSE),0) -> 39.58619 | AE4: =(AH4+AJ4-1)*0.3048 -> 377.73864 | AG4: =IFERROR(VLOOKUP($N4,PoleRange,6,FALSE),0) -> 0 | AH4: =IFERROR(VLOOKUP($O4,PoleRange,6,FALSE),0) -> 1211.7 | AI4: =IFERROR(VLOOKUP($N4,PoleRange,7,FALSE),0) -> 0 | AJ4: =IFERROR(VLOOKUP($O4,PoleRange,7,FALSE),0) -> 28.6
A5: 1 | B5: =COUNTIFS(U$3:U$100000,A5) -> 39 | C5: =SUMIF(U$3:U$100000,A5,Q$3:Q$100000)/5280 -> 1.541534091 | D5: 0.5 | E5: =B5/B$7*D5 -> 0.1059782609 | F5: =COUNTIFS(X$3:X$100000,A5) -> 5 | H5: 3 | I5: 45° Turn | J5: 3 | K5: 39.58643 | L5: -121.52624 | M5: Tier 2-3 | N5: W12152594N3958619 | O5: W12152653N3958667 | P5: W12152594N3958619-W12152653N3958667 | Q5: 242.8 | R5: 2 | S5: 3 | T5: =COUNTIFS(TreeRange,S5,TreeFail,"Yes")*V5 -> 0 | U5: 0 | V5: 1 | W5: =COUNTIFS(TreeRange,S5,TreeOffset,"Yes") -> 0 | X5: 0 | Y5: =IFERROR(VLOOKUP($N5,PoleRange,3,FALSE),0) -> -121.52594 | Z5: =IFERROR(VLOOKUP($N5,PoleRange,2,FALSE),0) -> 39.58619 | AA5: 377.73864 | AC5: =IFERROR(VLOOKUP($O5,PoleRange,3,FALSE),0) -> 0 | AD5: =IFERROR(VLOOKUP($O5,PoleRange,2,FALSE),0) -> 0 | AE5: -0.3048 | AG5: =IFERROR(VLOOKUP($N5,PoleRange,6,FALSE),0) -> 1211.7 | AH5: =IFERROR(VLOOKUP($O5,PoleRange,6,FALSE),0) -> 0 | AI5: =IFERROR(VLOOKUP($N5,PoleRange,7,FALSE),0) -> 28.6 | AJ5: =IFERROR(VLOOKUP($O5,PoleRange,7,FALSE),0) -> 0
A6: 0 | B6: =COUNTIFS(U$3:U$100000,A6) -> 140 | C6: =SUMIF(U$3:U$100000,A6,Q$3:Q$100000)/5280 -> 6.339810606 | D6: 0 | E6: =B6/B$7*D6 -> 0 | F6: =COUNTIFS(X$3:X$100000,A6) -> 179 | H6: 4 | I6: 90° Turn | J6: 4 | K6: 39.55006 | L6: -121.53778 | M6: Tier 2-3 | N6: W12153773N3955024 | O6: W12153784N3954988 | P6: W12153773N3955024-W12153784N3954988 | Q6: 135.5 | R6: 2 | S6: 4 | T6: =COUNTIFS(TreeRange,S6,TreeFail,"Yes")*V6 -> 0 | U6: 0 | V6: 1 | W6: =COUNTIFS(TreeRange,S6,TreeOffset,"Yes") -> 0 | X6: 0 | Y6: =IFERROR(VLOOKUP($N6,PoleRange,3,FALSE),0) -> -121.53773 | Z6: =IFERROR(VLOOKUP($N6,PoleRange,2,FALSE),0) -> 39.55024 | AA6: 112.65408 | AC6: =IFERROR(VLOOKUP($O6,PoleRange,3,FALSE),0) -> -121.53784 | AD6: =IFERROR(VLOOKUP($O6,PoleRange,2,FALSE),0) -> 39.54988 | AE6: 115.9764 | AG6: =IFERROR(VLOOKUP($N6,PoleRange,6,FALSE),0) -> 336.5 | AH6: =IFERROR(VLOOKUP($O6,PoleRange,6,FALSE),0) -> 344.1 | AI6: =IFERROR(VLOOKUP($N6,PoleRange,7,FALSE),0) -> 34.1 | AJ6: =IFERROR(VLOOKUP($O6,PoleRange,7,FALSE),0) -> 37.4
A7: Total: | B7: =SUM(B3:B6) -> 184 | C7: =SUM(C3:C6) -> 8.108390152 | E7: =SUM(E3:E6) -> 0.1263586957 | H7: 5 | I7: T-Tap | J7: 5 | K7: 39.55042 | L7: -121.53767 | M7: Tier 2-3 | N7: W12153773N3955024 | O7: W12153762N3955060 | P7: W12153773N3955024-W12153762N3955060 | Q7: 134.3 | R7: 2 | S7: 5 | T7: =COUNTIFS(TreeRange,S7,TreeFail,"Yes")*V7 -> 0 | U7: 0 | V7: 1 | W7: =COUNTIFS(TreeRange,S7,TreeOffset,"Yes") -> 0 | X7: 0 | Y7: =IFERROR(VLOOKUP($N7,PoleRange,3,FALSE),0) -> -121.53773 | Z7: =IFERROR(VLOOKUP($N7,PoleRange,2,FALSE),0) -> 39.55024 | AA7: 112.65408 | AC7: =IFERROR(VLOOKUP($O7,PoleRange,3,FALSE),0) -> -121.53762 | AD7: =IFERROR(VLOOKUP($O7,PoleRange,2,FALSE),0) -> 39.5506 | AE7: 110.55096 | AG7: =IFERROR(VLOOKUP($N7,PoleRange,6,FALSE),0) -> 336.5 | AH7: =IFERROR(VLOOKUP($O7,PoleRange,6,FALSE),0) -> 330.2 | AI7: =IFERROR(VLOOKUP($N7,PoleRange,7,FALSE),0) -> 34.1 | AJ7: =IFERROR(VLOOKUP($O7,PoleRange,7,FALSE),0) -> 33.5
B8: Dominant Wind Dir: | C8: -1 | D8: deg (-1 = Ignore wind effect) | H8: 6 | I8: X-Tap | J8: 6 | K8: 39.55089 | L8: -121.53753 | M8: Tier 2-3 | N8: W12153744N3955118 | O8: W12153762N3955060 | P8: W12153744N3955118-W12153762N3955060 | Q8: 218.6 | R8: 2 | S8: 6 | T8: =COUNTIFS(TreeRange,S8,TreeFail,"Yes")*V8 -> 0 | U8: 0 | V8: 1 | W8: =COUNTIFS(TreeRange,S8,TreeOffset,"Yes") -> 0 | X8: 0 | Y8: =IFERROR(VLOOKUP($N8,PoleRange,3,FALSE),0) -> 0 | Z8: =IFERROR(VLOOKUP($N8,PoleRange,2,FALSE),0) -> 0 | AA8: -0.3048 | AC8: =IFERROR(VLOOKUP($O8,PoleRange,3,FALSE),0) -> -121.53762 | AD8: =IFERROR(VLOOKUP($O8,PoleRange,2,FALSE),0) -> 39.5506 | AE8: 110.55096 | AG8: =IFERROR(VLOOKUP($N8,PoleRange,6,FALSE),0) -> 0 | AH8: =IFERROR(VLOOKUP($O8,PoleRange,6,FALSE),0) -> 330.2 | AI8: =IFERROR(VLOOKUP($N8,PoleRange,7,FALSE),0) -> 0 | AJ8: =IFERROR(VLOOKUP($O8,PoleRange,7,FALSE),0) -> 33.5
B9: KML Elevation: | C9: -1 | D9: (-1 = Use GL, # = Add to LiDAR) | J9: 7 | K9: 39.55091 | L9: -121.53711 | M9: Tier 2-3 | N9: W12153679N3955065 | O9: W12153744N3955118 | P9: W12153679N3955065-W12153744N3955118 | Q9: 265.8 | R9: 2 | S9: 7 | T9: =COUNTIFS(TreeRange,S9,TreeFail,"Yes")*V9 -> 0 | U9: 0 | V9: 1 | W9: =COUNTIFS(TreeRange,S9,TreeOffset,"Yes") -> 0 | X9: 0 | Y9: =IFERROR(VLOOKUP($N9,PoleRange,3,FALSE),0) -> 0 | Z9: =IFERROR(VLOOKUP($N9,PoleRange,2,FALSE),0) -> 0 | AA9: -0.3048 | AC9: =IFERROR(VLOOKUP($O9,PoleRange,3,FALSE),0) -> 0 | AD9: =IFERROR(VLOOKUP($O9,PoleRange,2,FALSE),0) -> 0 | AE9: -0.3048 | AG9: =IFERROR(VLOOKUP($N9,PoleRange,6,FALSE),0) -> 0 | AH9: =IFERROR(VLOOKUP($O9,PoleRange,6,FALSE),0) -> 0 | AI9: =IFERROR(VLOOKUP($N9,PoleRange,7,FALSE),0) -> 0 | AJ9: =IFERROR(VLOOKUP($O9,PoleRange,7,FALSE),0) -> 0
B10: Pole Height Adj: | C10: 0 | D10: ft (to raise allowable) | J10: 14 | K10: 39.51914 | L10: -121.54022 | M10: Tier 2-3 | N10: W12154021N3951938 | O10: W12154022N3951889 | P10: W12154021N3951938-W12154022N3951889 | Q10: 176.8 | R10: 2 | S10: 14 | T10: =COUNTIFS(TreeRange,S10,TreeFail,"Yes")*V10 -> 0 | U10: 0 | V10: 1 | W10: =COUNTIFS(TreeRange,S10,TreeOffset,"Yes") -> 0 | X10: 0 | Y10: =IFERROR(VLOOKUP($N10,PoleRange,3,FALSE),0) -> -121.54021 | Z10: =IFERROR(VLOOKUP($N10,PoleRange,2,FALSE),0) -> 39.51938 | AA10: 108.11256 | AC10: =IFERROR(VLOOKUP($O10,PoleRange,3,FALSE),0) -> -121.54022 | AD10: =IFERROR(VLOOKUP($O10,PoleRange,2,FALSE),0) -> 39.51889 | AE10: 107.442 | AG10: =IFERROR(VLOOKUP($N10,PoleRange,6,FALSE),0) -> 316.9 | AH10: =IFERROR(VLOOKUP($O10,PoleRange,6,FALSE),0) -> 307.5 | AI10: =IFERROR(VLOOKUP($N10,PoleRange,7,FALSE),0) -> 38.8 | AJ10: =IFERROR(VLOOKUP($O10,PoleRange,7,FALSE),0) -> 46
B11: Tier 2-3 Only? | C11: 1 | D11: (1=Yes, 0=No) | J11: 15 | K11: 39.51953 | L11: -121.54017 | M11: Tier 2-3 | N11: W12154021N3951938 | O11: W12154012N3951968 | P11: W12154021N3951938-W12154012N3951968 | Q11: 113 | R11: 2 | S11: 15 | T11: =COUNTIFS(TreeRange,S11,TreeFail,"Yes")*V11 -> 0 | U11: 0 | V11: 1 | W11: =COUNTIFS(TreeRange,S11,TreeOffset,"Yes") -> 0 | X11: 0 | Y11: =IFERROR(VLOOKUP($N11,PoleRange,3,FALSE),0) -> -121.54021 | Z11: =IFERROR(VLOOKUP($N11,PoleRange,2,FALSE),0) -> 39.51938 | AA11: 108.11256 | AC11: =IFERROR(VLOOKUP($O11,PoleRange,3,FALSE),0) -> -121.54012 | AD11: =IFERROR(VLOOKUP($O11,PoleRange,2,FALSE),0) -> 39.51968 | AE11: 109.36224 | AG11: =IFERROR(VLOOKUP($N11,PoleRange,6,FALSE),0) -> 316.9 | AH11: =IFERROR(VLOOKUP($O11,PoleRange,6,FALSE),0) -> 324.9 | AI11: =IFERROR(VLOOKUP($N11,PoleRange,7,FALSE),0) -> 38.8 | AJ11: =IFERROR(VLOOKUP($O11,PoleRange,7,FALSE),0) -> 34.9
A12: FEA Tables: | J12: 16 | K12: 39.51984 | L12: -121.53978 | M12: Tier 2-3 | N12: W12154012N3951968 | O12: W12153944N3952000 | P12: W12154012N3951968-W12153944N3952000 | Q12: 224.5 | R12: 2 | S12: 16 | T12: =COUNTIFS(TreeRange,S12,TreeFail,"Yes")*V12 -> 0 | U12: 0 | V12: 1 | W12: =COUNTIFS(TreeRange,S12,TreeOffset,"Yes") -> 0 | X12: 0 | Y12: =IFERROR(VLOOKUP($N12,PoleRange,3,FALSE),0) -> -121.54012 | Z12: =IFERROR(VLOOKUP($N12,PoleRange,2,FALSE),0) -> 39.51968 | AA12: 109.36224 | AC12: =IFERROR(VLOOKUP($O12,PoleRange,3,FALSE),0) -> -121.53944 | AD12: =IFERROR(VLOOKUP($O12,PoleRange,2,FALSE),0) -> 39.52 | AE12: 116.22024 | AG12: =IFERROR(VLOOKUP($N12,PoleRange,6,FALSE),0) -> 324.9 | AH12: =IFERROR(VLOOKUP($O12,PoleRange,6,FALSE),0) -> 337.5 | AI12: =IFERROR(VLOOKUP($N12,PoleRange,7,FALSE),0) -> 34.9 | AJ12: =IFERROR(VLOOKUP($O12,PoleRange,7,FALSE),0) -> 44.8
A13: 0 | B13: Zero Allowable | J13: 17 | K13: 39.52022 | L13: -121.53919 | M13: Tier 2-3 | N13: W12153944N3952000 | O13: W12153893N3952044 | P13: W12153944N3952000-W12153893N3952044 | Q13: 214.1 | R13: 2 | S13: 17 | T13: =COUNTIFS(TreeRange,S13,TreeFail,"Yes")*V13 -> 0 | U13: 0 | V13: 1 | W13: =COUNTIFS(TreeRange,S13,TreeOffset,"Yes") -> 0 | X13: 0 | Y13: =IFERROR(VLOOKUP($N13,PoleRange,3,FALSE),0) -> -121.53944 | Z13: =IFERROR(VLOOKUP($N13,PoleRange,2,FALSE),0) -> 39.52 | AA13: 116.22024 | AC13: =IFERROR(VLOOKUP($O13,PoleRange,3,FALSE),0) -> -121.53893 | AD13: =IFERROR(VLOOKUP($O13,PoleRange,2,FALSE),0) -> 39.52044 | AE13: 117.5004 | AG13: =IFERROR(VLOOKUP($N13,PoleRange,6,FALSE),0) -> 337.5 | AH13: =IFERROR(VLOOKUP($O13,PoleRange,6,FALSE),0) -> 348 | AI13: =IFERROR(VLOOKUP($N13,PoleRange,7,FALSE),0) -> 44.8 | AJ13: =IFERROR(VLOOKUP($O13,PoleRange,7,FALSE),0) -> 38.5
A14: 1 | B14: ='FEA Tables'!C2 -> 0 | J14: 18 | K14: 39.52069 | L14: -121.53875 | M14: Tier 2-3 | N14: W12153893N3952044 | O14: W12153857N3952094 | P14: W12153893N3952044-W12153857N3952094 | Q14: 211.3 | R14: 2 | S14: 18 | T14: =COUNTIFS(TreeRange,S14,TreeFail,"Yes")*V14 -> 0 | U14: 0 | V14: 1 | W14: =COUNTIFS(TreeRange,S14,TreeOffset,"Yes") -> 0 | X14: 0 | Y14: =IFERROR(VLOOKUP($N14,PoleRange,3,FALSE),0) -> -121.53893 | Z14: =IFERROR(VLOOKUP($N14,PoleRange,2,FALSE),0) -> 39.52044 | AA14: 117.5004 | AC14: =IFERROR(VLOOKUP($O14,PoleRange,3,FALSE),0) -> -121.53857 | AD14: =IFERROR(VLOOKUP($O14,PoleRange,2,FALSE),0) -> 39.52094 | AE14: 120.30456 | AG14: =IFERROR(VLOOKUP($N14,PoleRange,6,FALSE),0) -> 348 | AH14: =IFERROR(VLOOKUP($O14,PoleRange,6,FALSE),0) -> 356.3 | AI14: =IFERROR(VLOOKUP($N14,PoleRange,7,FALSE),0) -> 38.5 | AJ14: =IFERROR(VLOOKUP($O14,PoleRange,7,FALSE),0) -> 39.4
A15: 2 | B15: ='FEA Tables'!C16 -> 0 | J15: 19 | K15: 39.52121 | L15: -121.53845 | M15: Tier 2-3 | N15: W12153857N3952094 | O15: W12153833N3952149 | P15: W12153857N3952094-W12153833N3952149 | Q15: 208 | R15: 2 | S15: 19 | T15: =COUNTIFS(TreeRange,S15,TreeFail,"Yes")*V15 -> 0 | U15: 0 | V15: 1 | W15: =COUNTIFS(TreeRange,S15,TreeOffset,"Yes") -> 0 | X15: 0 | Y15: =IFERROR(VLOOKUP($N15,PoleRange,3,FALSE),0) -> -121.53857 | Z15: =IFERROR(VLOOKUP($N15,PoleRange,2,FALSE),0) -> 39.52094 | AA15: 120.30456 | AC15: =IFERROR(VLOOKUP($O15,PoleRange,3,FALSE),0) -> -121.53833 | AD15: =IFERROR(VLOOKUP($O15,PoleRange,2,FALSE),0) -> 39.52149 | AE15: 122.40768 | AG15: =IFERROR(VLOOKUP($N15,PoleRange,6,FALSE),0) -> 356.3 | AH15: =IFERROR(VLOOKUP($O15,PoleRange,6,FALSE),0) -> 363.4 | AI15: =IFERROR(VLOOKUP($N15,PoleRange,7,FALSE),0) -> 39.4 | AJ15: =IFERROR(VLOOKUP($O15,PoleRange,7,FALSE),0) -> 39.2
A16: 3 | B16: ='FEA Tables'!C30 -> 0 | J16: 20 | K16: 39.52177 | L16: -121.53823 | M16: Tier 2-3 | N16: W12153833N3952149 | O16: W12153812N3952205 | P16: W12153833N3952149-W12153812N3952205 | Q16: 215.3 | R16: 2 | S16: 20 | T16: =COUNTIFS(TreeRange,S16,TreeFail,"Yes")*V16 -> 0 | U16: 0 | V16: 1 | W16: =COUNTIFS(TreeRange,S16,TreeOffset,"Yes") -> 0 | X16: 0 | Y16: =IFERROR(VLOOKUP($N16,PoleRange,3,FALSE),0) -> -121.53833 | Z16: =IFERROR(VLOOKUP($N16,PoleRange,2,FALSE),0) -> 39.52149 | AA16: 122.40768 | AC16: =IFERROR(VLOOKUP($O16,PoleRange,3,FALSE),0) -> -121.53812 | AD16: =IFERROR(VLOOKUP($O16,PoleRange,2,FALSE),0) -> 39.52205 | AE16: 124.8156 | AG16: =IFERROR(VLOOKUP($N16,PoleRange,6,FALSE),0) -> 363.4 | AH16: =IFERROR(VLOOKUP($O16,PoleRange,6,FALSE),0) -> 370.9 | AI16: =IFERROR(VLOOKUP($N16,PoleRange,7,FALSE),0) -> 39.2 | AJ16: =IFERROR(VLOOKUP($O16,PoleRange,7,FALSE),0) -> 39.6
A17: 4 | B17: ='FEA Tables'!C44 -> 0 | J17: 21 | K17: 39.522 | L17: -121.53852 | M17: Tier 2-3 | N17: W12153891N3952195 | O17: W12153812N3952205 | P17: W12153891N3952195-W12153812N3952205 | Q17: 226.3 | R17: 2 | S17: 21 | T17: =COUNTIFS(TreeRange,S17,TreeFail,"Yes")*V17 -> 0 | U17: 0 | V17: 1 | W17: =COUNTIFS(TreeRange,S17,TreeOffset,"Yes") -> 0 | X17: 0 | Y17: =IFERROR(VLOOKUP($N17,PoleRange,3,FALSE),0) -> -121.53891 | Z17: =IFERROR(VLOOKUP($N17,PoleRange,2,FALSE),0) -> 39.52195 | AA17: 135.66648 | AC17: =IFERROR(VLOOKUP($O17,PoleRange,3,FALSE),0) -> -121.53812 | AD17: =IFERROR(VLOOKUP($O17,PoleRange,2,FALSE),0) -> 39.52205 | AE17: 124.8156 | AG17: =IFERROR(VLOOKUP($N17,PoleRange,6,FALSE),0) -> 411.3 | AH17: =IFERROR(VLOOKUP($O17,PoleRange,6,FALSE),0) -> 370.9 | AI17: =IFERROR(VLOOKUP($N17,PoleRange,7,FALSE),0) -> 34.8 | AJ17: =IFERROR(VLOOKUP($O17,PoleRange,7,FALSE),0) -> 39.6
A18: 5 | B18: ='FEA Tables'!C58 -> Composite, 1/0 ACSR XLPE, Douglas Fir | J18: 22 | K18: 39.52227 | L18: -121.53802 | M18: Tier 2-3 | N18: W12153812N3952205 | O18: W12153791N3952249 | P18: W12153812N3952205-W12153791N3952249 | Q18: 168.9 | R18: 2 | S18: 22 | T18: =COUNTIFS(TreeRange,S18,TreeFail,"Yes")*V18 -> 0 | U18: 0 | V18: 1 | W18: =COUNTIFS(TreeRange,S18,TreeOffset,"Yes") -> 0 | X18: 0 | Y18: =IFERROR(VLOOKUP($N18,PoleRange,3,FALSE),0) -> -121.53812 | Z18: =IFERROR(VLOOKUP($N18,PoleRange,2,FALSE),0) -> 39.52205 | AA18: 124.8156 | AC18: =IFERROR(VLOOKUP($O18,PoleRange,3,FALSE),0) -> 0 | AD18: =IFERROR(VLOOKUP($O18,PoleRange,2,FALSE),0) -> 0 | AE18: -0.3048 | AG18: =IFERROR(VLOOKUP($N18,PoleRange,6,FALSE),0) -> 370.9 | AH18: =IFERROR(VLOOKUP($O18,PoleRange,6,FALSE),0) -> 0 | AI18: =IFERROR(VLOOKUP($N18,PoleRange,7,FALSE),0) -> 39.6 | AJ18: =IFERROR(VLOOKUP($O18,PoleRange,7,FALSE),0) -> 0
A19: 6 | B19: ='FEA Tables'!C72 -> Composite, 1/0 ACSR XLPE, Pine | J19: 42 | K19: 39.52421 | L19: -121.53734 | M19: Tier 2-3 | N19: W12153751N3952386 | O19: W12153716N3952455 | P19: W12153751N3952386-W12153716N3952455 | Q19: 271.1 | R19: 2 | S19: 42 | T19: =COUNTIFS(TreeRange,S19,TreeFail,"Yes")*V19 -> 0 | U19: 0 | V19: 1 | W19: =COUNTIFS(TreeRange,S19,TreeOffset,"Yes") -> 0 | X19: 0 | Y19: =IFERROR(VLOOKUP($N19,PoleRange,3,FALSE),0) -> -121.53751 | Z19: =IFERROR(VLOOKUP($N19,PoleRange,2,FALSE),0) -> 39.52386 | AA19: 128.6256 | AC19: =IFERROR(VLOOKUP($O19,PoleRange,3,FALSE),0) -> -121.53716 | AD19: =IFERROR(VLOOKUP($O19,PoleRange,2,FALSE),0) -> 39.52455 | AE19: 127.58928 | AG19: =IFERROR(VLOOKUP($N19,PoleRange,6,FALSE),0) -> 384.2 | AH19: =IFERROR(VLOOKUP($O19,PoleRange,6,FALSE),0) -> 380 | AI19: =IFERROR(VLOOKUP($N19,PoleRange,7,FALSE),0) -> 38.8 | AJ19: =IFERROR(VLOOKUP($O19,PoleRange,7,FALSE),0) -> 39.6
A20: 7 | B20: ='FEA Tables'!C86 -> Composite, 1/0 ACSR XLPE, Oak | J20: 46 | K20: 39.52454 | L20: -121.51457 | M20: Tier 2-3 | N20: W12151456N3952437 | O20: W12151459N3952471 | P20: W12151456N3952437-W12151459N3952471 | Q20: 123.8 | R20: 2 | S20: 46 | T20: =COUNTIFS(TreeRange,S20,TreeFail,"Yes")*V20 -> 0 | U20: 0 | V20: 1 | W20: =COUNTIFS(TreeRange,S20,TreeOffset,"Yes") -> 0 | X20: 0 | Y20: =IFERROR(VLOOKUP($N20,PoleRange,3,FALSE),0) -> -121.51456 | Z20: =IFERROR(VLOOKUP($N20,PoleRange,2,FALSE),0) -> 39.52437 | AA20: 160.14192 | AC20: =IFERROR(VLOOKUP($O20,PoleRange,3,FALSE),0) -> -121.51459 | AD20: =IFERROR(VLOOKUP($O20,PoleRange,2,FALSE),0) -> 39.52471 | AE20: 160.87344 | AG20: =IFERROR(VLOOKUP($N20,PoleRange,6,FALSE),0) -> 488.1 | AH20: =IFERROR(VLOOKUP($O20,PoleRange,6,FALSE),0) -> 490.6 | AI20: =IFERROR(VLOOKUP($N20,PoleRange,7,FALSE),0) -> 38.3 | AJ20: =IFERROR(VLOOKUP($O20,PoleRange,7,FALSE),0) -> 38.2
A21: 8 | B21: ='FEA Tables'!C100 -> Composite, 1/0 ACSR XLPE, Blue Gum / Eucalyptus | J21: 48 | K21: 39.52463 | L21: -121.5373 | M21: Tier 2-3 | N21: W12153745N3952470 | O21: W12153716N3952455 | P21: W12153745N3952470-W12153716N3952455 | Q21: 97.1 | R21: 2 | S21: 48 | T21: =COUNTIFS(TreeRange,S21,TreeFail,"Yes")*V21 -> 0 | U21: 0 | V21: 1 | W21: =COUNTIFS(TreeRange,S21,TreeOffset,"Yes") -> 0 | X21: 0 | Y21: =IFERROR(VLOOKUP($N21,PoleRange,3,FALSE),0) -> -121.53745 | Z21: =IFERROR(VLOOKUP($N21,PoleRange,2,FALSE),0) -> 39.5247 | AA21: 121.64568 | AC21: =IFERROR(VLOOKUP($O21,PoleRange,3,FALSE),0) -> -121.53716 | AD21: =IFERROR(VLOOKUP($O21,PoleRange,2,FALSE),0) -> 39.52455 | AE21: 127.58928 | AG21: =IFERROR(VLOOKUP($N21,PoleRange,6,FALSE),0) -> 364.8 | AH21: =IFERROR(VLOOKUP($O21,PoleRange,6,FALSE),0) -> 380 | AI21: =IFERROR(VLOOKUP($N21,PoleRange,7,FALSE),0) -> 35.3 | AJ21: =IFERROR(VLOOKUP($O21,PoleRange,7,FALSE),0) -> 39.6
A22: 9 | B22: ='FEA Tables'!C114 -> Composite, 397.5 AAC XLPE, Douglas Fir | J22: 49 | K22: 39.52471 | L22: -121.53699 | M22: Tier 2-3 | N22: W12153716N3952455 | O22: W12153682N3952487 | P22: W12153716N3952455-W12153682N3952487 | Q22: 150.7 | R22: 2 | S22: 49 | T22: =COUNTIFS(TreeRange,S22,TreeFail,"Yes")*V22 -> 0 | U22: 0 | V22: 1 | W22: =COUNTIFS(TreeRange,S22,TreeOffset,"Yes") -> 0 | X22: 0 | Y22: =IFERROR(VLOOKUP($N22,PoleRange,3,FALSE),0) -> -121.53716 | Z22: =IFERROR(VLOOKUP($N22,PoleRange,2,FALSE),0) -> 39.52455 | AA22: 127.58928 | AC22: =IFERROR(VLOOKUP($O22,PoleRange,3,FALSE),0) -> -121.53682 | AD22: =IFERROR(VLOOKUP($O22,PoleRange,2,FALSE),0) -> 39.52487 | AE22: 126.43104 | AG22: =IFERROR(VLOOKUP($N22,PoleRange,6,FALSE),0) -> 380 | AH22: =IFERROR(VLOOKUP($O22,PoleRange,6,FALSE),0) -> 380 | AI22: =IFERROR(VLOOKUP($N22,PoleRange,7,FALSE),0) -> 39.6 | AJ22: =IFERROR(VLOOKUP($O22,PoleRange,7,FALSE),0) -> 35.8
A23: 10 | B23: ='FEA Tables'!C128 -> Composite, 397.5 AAC XLPE, Pine | J23: 50 | K23: 39.52487 | L23: -121.53777 | M23: Tier 2-3 | N23: W12153809N3952504 | O23: W12153745N3952470 | P23: W12153809N3952504-W12153745N3952470 | Q23: 218.6 | R23: 2 | S23: 50 | T23: =COUNTIFS(TreeRange,S23,TreeFail,"Yes")*V23 -> 0 | U23: 0 | V23: 1 | W23: =COUNTIFS(TreeRange,S23,TreeOffset,"Yes") -> 0 | X23: 0 | Y23: =IFERROR(VLOOKUP($N23,PoleRange,3,FALSE),0) -> -121.53809 | Z23: =IFERROR(VLOOKUP($N23,PoleRange,2,FALSE),0) -> 39.52504 | AA23: 115.27536 | AC23: =IFERROR(VLOOKUP($O23,PoleRange,3,FALSE),0) -> -121.53745 | AD23: =IFERROR(VLOOKUP($O23,PoleRange,2,FALSE),0) -> 39.5247 | AE23: 121.64568 | AG23: =IFERROR(VLOOKUP($N23,PoleRange,6,FALSE),0) -> 344.4 | AH23: =IFERROR(VLOOKUP($O23,PoleRange,6,FALSE),0) -> 364.8 | AI23: =IFERROR(VLOOKUP($N23,PoleRange,7,FALSE),0) -> 34.8 | AJ23: =IFERROR(VLOOKUP($O23,PoleRange,7,FALSE),0) -> 35.3
A24: 11 | B24: ='FEA Tables'!C142 -> Composite, 397.5 AAC XLPE, Oak | J24: 51 | K24: 39.52499 | L24: -121.53696 | M24: Tier 2-3 | N24: W12153709N3952512 | O24: W12153682N3952487 | P24: W12153709N3952512-W12153682N3952487 | Q24: 115.2 | R24: 2 | S24: 51 | T24: =COUNTIFS(TreeRange,S24,TreeFail,"Yes")*V24 -> 0 | U24: 0 | V24: 1 | W24: =COUNTIFS(TreeRange,S24,TreeOffset,"Yes") -> 0 | X24: 0 | Y24: =IFERROR(VLOOKUP($N24,PoleRange,3,FALSE),0) -> -121.53709 | Z24: =IFERROR(VLOOKUP($N24,PoleRange,2,FALSE),0) -> 39.52512 | AA24: 122.0724 | AC24: =IFERROR(VLOOKUP($O24,PoleRange,3,FALSE),0) -> -121.53682 | AD24: =IFERROR(VLOOKUP($O24,PoleRange,2,FALSE),0) -> 39.52487 | AE24: 126.43104 | AG24: =IFERROR(VLOOKUP($N24,PoleRange,6,FALSE),0) -> 366.7 | AH24: =IFERROR(VLOOKUP($O24,PoleRange,6,FALSE),0) -> 380 | AI24: =IFERROR(VLOOKUP($N24,PoleRange,7,FALSE),0) -> 34.8 | AJ24: =IFERROR(VLOOKUP($O24,PoleRange,7,FALSE),0) -> 35.8
A25: 12 | B25: ='FEA Tables'!C156 -> Composite, 397.5 AAC XLPE, Blue Gum / Eucalyptus | J25: 53 | K25: 39.52503 | L25: -121.52122 | M25: Tier 2-3 | N25: W12152123N3952539 | O25: W12152121N3952468 | P25: W12152123N3952539-W12152121N3952468 | Q25: 258.9 | R25: 2 | S25: 53 | T25: =COUNTIFS(TreeRange,S25,TreeFail,"Yes")*V25 -> 0 | U25: 0 | V25: 1 | W25: =COUNTIFS(TreeRange,S25,TreeOffset,"Yes") -> 0 | X25: 0 | Y25: =IFERROR(VLOOKUP($N25,PoleRange,3,FALSE),0) -> -121.52123 | Z25: =IFERROR(VLOOKUP($N25,PoleRange,2,FALSE),0) -> 39.52539 | AA25: 155.23464 | AC25: =IFERROR(VLOOKUP($O25,PoleRange,3,FALSE),0) -> 0 | AD25: =IFERROR(VLOOKUP($O25,PoleRange,2,FALSE),0) -> 0 | AE25: -0.3048 | AG25: =IFERROR(VLOOKUP($N25,PoleRange,6,FALSE),0) -> 477.3 | AH25: =IFERROR(VLOOKUP($O25,PoleRange,6,FALSE),0) -> 0 | AI25: =IFERROR(VLOOKUP($N25,PoleRange,7,FALSE),0) -> 33 | AJ25: =IFERROR(VLOOKUP($O25,PoleRange,7,FALSE),0) -> 0
A26: 13 | B26: ='FEA Tables'!C170 -> 0 | J26: 54 | K26: 39.52515 | L26: -121.5146 | M26: Tier 2-3 | N26: W12151461N3952559 | O26: W12151459N3952471 | P26: W12151461N3952559-W12151459N3952471 | Q26: 322.6 | R26: 2 | S26: 54 | T26: =COUNTIFS(TreeRange,S26,TreeFail,"Yes")*V26 -> 0 | U26: 0 | V26: 1 | W26: =COUNTIFS(TreeRange,S26,TreeOffset,"Yes") -> 0 | X26: 0 | Y26: =IFERROR(VLOOKUP($N26,PoleRange,3,FALSE),0) -> -121.51461 | Z26: =IFERROR(VLOOKUP($N26,PoleRange,2,FALSE),0) -> 39.52559 | AA26: 157.67304 | AC26: =IFERROR(VLOOKUP($O26,PoleRange,3,FALSE),0) -> -121.51459 | AD26: =IFERROR(VLOOKUP($O26,PoleRange,2,FALSE),0) -> 39.52471 | AE26: 160.87344 | AG26: =IFERROR(VLOOKUP($N26,PoleRange,6,FALSE),0) -> 480.9 | AH26: =IFERROR(VLOOKUP($O26,PoleRange,6,FALSE),0) -> 490.6 | AI26: =IFERROR(VLOOKUP($N26,PoleRange,7,FALSE),0) -> 37.4 | AJ26: =IFERROR(VLOOKUP($O26,PoleRange,7,FALSE),0) -> 38.2
A27: 14 | B27: ='FEA Tables'!C184 -> 0 | J27: 58 | K27: 39.5254 | L27: -121.53725 | M27: Tier 2-3 | N27: W12153709N3952512 | O27: W12153742N3952569 | P27: W12153709N3952512-W12153742N3952569 | Q27: 227.7 | R27: 2 | S27: 58 | T27: =COUNTIFS(TreeRange,S27,TreeFail,"Yes")*V27 -> 0 | U27: 0 | V27: 1 | W27: =COUNTIFS(TreeRange,S27,TreeOffset,"Yes") -> 0 | X27: 0 | Y27: =IFERROR(VLOOKUP($N27,PoleRange,3,FALSE),0) -> -121.53709 | Z27: =IFERROR(VLOOKUP($N27,PoleRange,2,FALSE),0) -> 39.52512 | AA27: 122.0724 | AC27: =IFERROR(VLOOKUP($O27,PoleRange,3,FALSE),0) -> -121.53742 | AD27: =IFERROR(VLOOKUP($O27,PoleRange,2,FALSE),0) -> 39.52569 | AE27: 117.25656 | AG27: =IFERROR(VLOOKUP($N27,PoleRange,6,FALSE),0) -> 366.7 | AH27: =IFERROR(VLOOKUP($O27,PoleRange,6,FALSE),0) -> 351.3 | AI27: =IFERROR(VLOOKUP($N27,PoleRange,7,FALSE),0) -> 34.8 | AJ27: =IFERROR(VLOOKUP($O27,PoleRange,7,FALSE),0) -> 34.4
A28: 15 | B28: ='FEA Tables'!C198 -> Composite, 715.5 AAC XLPE, Oak | J28: 64 | K28: 39.52576 | L28: -121.52123 | M28: Tier 2-3 | N28: W12152124N3952614 | O28: W12152123N3952539 | P28: W12152124N3952614-W12152123N3952539 | Q28: 274.6 | R28: 2 | S28: 64 | T28: =COUNTIFS(TreeRange,S28,TreeFail,"Yes")*V28 -> 0 | U28: 0 | V28: 1 | W28: =COUNTIFS(TreeRange,S28,TreeOffset,"Yes") -> 0 | X28: 0 | Y28: =IFERROR(VLOOKUP($N28,PoleRange,3,FALSE),0) -> -121.52124 | Z28: =IFERROR(VLOOKUP($N28,PoleRange,2,FALSE),0) -> 39.52614 | AA28: 157.49016 | AC28: =IFERROR(VLOOKUP($O28,PoleRange,3,FALSE),0) -> -121.52123 | AD28: =IFERROR(VLOOKUP($O28,PoleRange,2,FALSE),0) -> 39.52539 | AE28: 155.23464 | AG28: =IFERROR(VLOOKUP($N28,PoleRange,6,FALSE),0) -> 482.9 | AH28: =IFERROR(VLOOKUP($O28,PoleRange,6,FALSE),0) -> 477.3 | AI28: =IFERROR(VLOOKUP($N28,PoleRange,7,FALSE),0) -> 34.8 | AJ28: =IFERROR(VLOOKUP($O28,PoleRange,7,FALSE),0) -> 33
A29: 16 | B29: ='FEA Tables'!C212 -> 0 | J29: 65 | K29: 39.5259 | L29: -121.53754 | M29: Tier 2-3 | N29: W12153767N3952612 | O29: W12153742N3952569 | P29: W12153767N3952612-W12153742N3952569 | Q29: 172.4 | R29: 2 | S29: 65 | T29: =COUNTIFS(TreeRange,S29,TreeFail,"Yes")*V29 -> 1 | U29: 1 | V29: 1 | W29: =COUNTIFS(TreeRange,S29,TreeOffset,"Yes") -> 0 | X29: 0 | Y29: =IFERROR(VLOOKUP($N29,PoleRange,3,FALSE),0) -> -121.53767 | Z29: =IFERROR(VLOOKUP($N29,PoleRange,2,FALSE),0) -> 39.52612 | AA29: 116.18976 | AC29: =IFERROR(VLOOKUP($O29,PoleRange,3,FALSE),0) -> -121.53742 | AD29: =IFERROR(VLOOKUP($O29,PoleRange,2,FALSE),0) -> 39.52569 | AE29: 117.25656 | AG29: =IFERROR(VLOOKUP($N29,PoleRange,6,FALSE),0) -> 344.3 | AH29: =IFERROR(VLOOKUP($O29,PoleRange,6,FALSE),0) -> 351.3 | AI29: =IFERROR(VLOOKUP($N29,PoleRange,7,FALSE),0) -> 37.9 | AJ29: =IFERROR(VLOOKUP($O29,PoleRange,7,FALSE),0) -> 34.4
A30: 17 | B30: ='FEA Tables'!C226 -> 0 | J30: 66 | K30: 39.526 | L30: -121.5332 | M30: Tier 2-3 | N30: W12153345N3952585 | O30: W12153295N3952615 | P30: W12153345N3952585-W12153295N3952615 | Q30: 177.9 | R30: 2 | S30: 66 | T30: =COUNTIFS(TreeRange,S30,TreeFail,"Yes")*V30 -> 2 | U30: 1 | V30: 1 | W30: =COUNTIFS(TreeRange,S30,TreeOffset,"Yes") -> 0 | X30: 0 | Y30: =IFERROR(VLOOKUP($N30,PoleRange,3,FALSE),0) -> 0 | Z30: =IFERROR(VLOOKUP($N30,PoleRange,2,FALSE),0) -> 0 | AA30: -0.3048 | AC30: =IFERROR(VLOOKUP($O30,PoleRange,3,FALSE),0) -> -121.53295 | AD30: =IFERROR(VLOOKUP($O30,PoleRange,2,FALSE),0) -> 39.52615 | AE30: 132.16128 | AG30: =IFERROR(VLOOKUP($N30,PoleRange,6,FALSE),0) -> 0 | AH30: =IFERROR(VLOOKUP($O30,PoleRange,6,FALSE),0) -> 396.4 | AI30: =IFERROR(VLOOKUP($N30,PoleRange,7,FALSE),0) -> 0 | AJ30: =IFERROR(VLOOKUP($O30,PoleRange,7,FALSE),0) -> 38.2
A31: 18 | B31: ='FEA Tables'!C240 -> 0 | J31: 67 | K31: 39.52601 | L31: -121.51462 | M31: Tier 2-3 | N31: W12151461N3952559 | O31: W12151463N3952642 | P31: W12151461N3952559-W12151463N3952642 | Q31: 301.4 | R31: 2 | S31: 67 | T31: =COUNTIFS(TreeRange,S31,TreeFail,"Yes")*V31 -> 0 | U31: 0 | V31: 1 | W31: =COUNTIFS(TreeRange,S31,TreeOffset,"Yes") -> 0 | X31: 0 | Y31: =IFERROR(VLOOKUP($N31,PoleRange,3,FALSE),0) -> -121.51461 | Z31: =IFERROR(VLOOKUP($N31,PoleRange,2,FALSE),0) -> 39.52559 | AA31: 157.67304 | AC31: =IFERROR(VLOOKUP($O31,PoleRange,3,FALSE),0) -> -121.51463 | AD31: =IFERROR(VLOOKUP($O31,PoleRange,2,FALSE),0) -> 39.52642 | AE31: 154.86888 | AG31: =IFERROR(VLOOKUP($N31,PoleRange,6,FALSE),0) -> 480.9 | AH31: =IFERROR(VLOOKUP($O31,PoleRange,6,FALSE),0) -> 472.1 | AI31: =IFERROR(VLOOKUP($N31,PoleRange,7,FALSE),0) -> 37.4 | AJ31: =IFERROR(VLOOKUP($O31,PoleRange,7,FALSE),0) -> 37
A32: 19 | B32: ='FEA Tables'!C254 -> 0 | J32: 68 | K32: 39.52614 | L32: -121.52094 | M32: Tier 2-3 | N32: W12152124N3952614 | O32: W12152064N3952615 | P32: W12152124N3952614-W12152064N3952615 | Q32: 171 | R32: 2 | S32: 68 | T32: =COUNTIFS(TreeRange,S32,TreeFail,"Yes")*V32 -> 0 | U32: 0 | V32: 1 | W32: =COUNTIFS(TreeRange,S32,TreeOffset,"Yes") -> 0 | X32: 0 | Y32: =IFERROR(VLOOKUP($N32,PoleRange,3,FALSE),0) -> -121.52124 | Z32: =IFERROR(VLOOKUP($N32,PoleRange,2,FALSE),0) -> 39.52614 | AA32: 157.49016 | AC32: =IFERROR(VLOOKUP($O32,PoleRange,3,FALSE),0) -> -121.52064 | AD32: =IFERROR(VLOOKUP($O32,PoleRange,2,FALSE),0) -> 39.52615 | AE32: 156.02712 | AG32: =IFERROR(VLOOKUP($N32,PoleRange,6,FALSE),0) -> 482.9 | AH32: =IFERROR(VLOOKUP($O32,PoleRange,6,FALSE),0) -> 478.6 | AI32: =IFERROR(VLOOKUP($N32,PoleRange,7,FALSE),0) -> 34.8 | AJ32: =IFERROR(VLOOKUP($O32,PoleRange,7,FALSE),0) -> 34.3
A33: 20 | B33: ='FEA Tables'!C268 -> 0 | J33: 70 | K33: 39.52632 | L33: -121.53807 | M33: Tier 2-3 | N33: W12153767N3952612 | O33: W12153848N3952653 | P33: W12153767N3952612-W12153848N3952653 | Q33: 273 | R33: 2 | S33: 70 | T33: =COUNTIFS(TreeRange,S33,TreeFail,"Yes")*V33 -> 0 | U33: 0 | V33: 1 | W33: =COUNTIFS(TreeRange,S33,TreeOffset,"Yes") -> 0 | X33: 0 | Y33: =IFERROR(VLOOKUP($N33,PoleRange,3,FALSE),0) -> -121.53767 | Z33: =IFERROR(VLOOKUP($N33,PoleRange,2,FALSE),0) -> 39.52612 | AA33: 116.18976 | AC33: =IFERROR(VLOOKUP($O33,PoleRange,3,FALSE),0) -> -121.53848 | AD33: =IFERROR(VLOOKUP($O33,PoleRange,2,FALSE),0) -> 39.52653 | AE33: 109.54512 | AG33: =IFERROR(VLOOKUP($N33,PoleRange,6,FALSE),0) -> 344.3 | AH33: =IFERROR(VLOOKUP($O33,PoleRange,6,FALSE),0) -> 321.4 | AI33: =IFERROR(VLOOKUP($N33,PoleRange,7,FALSE),0) -> 37.9 | AJ33: =IFERROR(VLOOKUP($O33,PoleRange,7,FALSE),0) -> 39
A34: 21 | B34: ='FEA Tables'!C282 -> Wood, #6 Cu, Douglas Fir | J34: 71 | K34: 39.52635 | L34: -121.53259 | M34: Tier 2-3 | N34: W12153295N3952615 | O34: W12153224N3952655 | P34: W12153295N3952615-W12153224N3952655 | Q34: 249.1 | R34: 2 | S34: 71 | T34: =COUNTIFS(TreeRange,S34,TreeFail,"Yes")*V34 -> 0 | U34: 0 | V34: 1 | W34: =COUNTIFS(TreeRange,S34,TreeOffset,"Yes") -> 0 | X34: 0 | Y34: =IFERROR(VLOOKUP($N34,PoleRange,3,FALSE),0) -> -121.53295 | Z34: =IFERROR(VLOOKUP($N34,PoleRange,2,FALSE),0) -> 39.52615 | AA34: 132.16128 | AC34: =IFERROR(VLOOKUP($O34,PoleRange,3,FALSE),0) -> -121.53224 | AD34: =IFERROR(VLOOKUP($O34,PoleRange,2,FALSE),0) -> 39.52655 | AE34: 134.59968 | AG34: =IFERROR(VLOOKUP($N34,PoleRange,6,FALSE),0) -> 396.4 | AH34: =IFERROR(VLOOKUP($O34,PoleRange,6,FALSE),0) -> 399.3 | AI34: =IFERROR(VLOOKUP($N34,PoleRange,7,FALSE),0) -> 38.2 | AJ34: =IFERROR(VLOOKUP($O34,PoleRange,7,FALSE),0) -> 43.3
A35: 22 | B35: ='FEA Tables'!C296 -> Wood, #6 Cu, Pine | J35: 72 | K35: 39.52652 | L35: -121.53888 | M35: Tier 2-3 | N35: W12153928N3952652 | O35: W12153848N3952653 | P35: W12153928N3952652-W12153848N3952653 | Q35: 226.2 | R35: 2 | S35: 72 | T35: =COUNTIFS(TreeRange,S35,TreeFail,"Yes")*V35 -> 0 | U35: 0 | V35: 1 | W35: =COUNTIFS(TreeRange,S35,TreeOffset,"Yes") -> 0 | X35: 0 | Y35: =IFERROR(VLOOKUP($N35,PoleRange,3,FALSE),0) -> -121.53928 | Z35: =IFERROR(VLOOKUP($N35,PoleRange,2,FALSE),0) -> 39.52652 | AA35: 104.72928 | AC35: =IFERROR(VLOOKUP($O35,PoleRange,3,FALSE),0) -> -121.53848 | AD35: =IFERROR(VLOOKUP($O35,PoleRange,2,FALSE),0) -> 39.52653 | AE35: 109.54512 | AG35: =IFERROR(VLOOKUP($N35,PoleRange,6,FALSE),0) -> 306.2 | AH35: =IFERROR(VLOOKUP($O35,PoleRange,6,FALSE),0) -> 321.4 | AI35: =IFERROR(VLOOKUP($N35,PoleRange,7,FALSE),0) -> 38.4 | AJ35: =IFERROR(VLOOKUP($O35,PoleRange,7,FALSE),0) -> 39
A36: 23 | B36: ='FEA Tables'!C310 -> Wood, #6 Cu, Oak | J36: 73 | K36: 39.52666 | L36: -121.51448 | M36: Tier 2-3 | N36: W12151433N3952690 | O36: W12151463N3952642 | P36: W12151433N3952690-W12151463N3952642 | Q36: 191.5 | R36: 2 | S36: 73 | T36: =COUNTIFS(TreeRange,S36,TreeFail,"Yes")*V36 -> 0 | U36: 0 | V36: 1 | W36: =COUNTIFS(TreeRange,S36,TreeOffset,"Yes") -> 0 | X36: 0 | Y36: =IFERROR(VLOOKUP($N36,PoleRange,3,FALSE),0) -> -121.51433 | Z36: =IFERROR(VLOOKUP($N36,PoleRange,2,FALSE),0) -> 39.5269 | AA36: 155.72232 | AC36: =IFERROR(VLOOKUP($O36,PoleRange,3,FALSE),0) -> -121.51463 | AD36: =IFERROR(VLOOKUP($O36,PoleRange,2,FALSE),0) -> 39.52642 | AE36: 154.86888 | AG36: =IFERROR(VLOOKUP($N36,PoleRange,6,FALSE),0) -> 474.1 | AH36: =IFERROR(VLOOKUP($O36,PoleRange,6,FALSE),0) -> 472.1 | AI36: =IFERROR(VLOOKUP($N36,PoleRange,7,FALSE),0) -> 37.8 | AJ36: =IFERROR(VLOOKUP($O36,PoleRange,7,FALSE),0) -> 37
A37: 24 | B37: ='FEA Tables'!C324 -> Wood, #6 Cu, Blue Gum / Eucalyptus | J37: 74 | K37: 39.52672 | L37: -121.53536 | M37: Tier 2-3 | N37: W12153536N3952706 | O37: W12153535N3952637 | P37: W12153536N3952706-W12153535N3952637 | Q37: 252.3 | R37: 2 | S37: 74 | T37: =COUNTIFS(TreeRange,S37,TreeFail,"Yes")*V37 -> 2 | U37: 1 | V37: 1 | W37: =COUNTIFS(TreeRange,S37,TreeOffset,"Yes") -> 1 | X37: 1 | Y37: =IFERROR(VLOOKUP($N37,PoleRange,3,FALSE),0) -> -121.53536 | Z37: =IFERROR(VLOOKUP($N37,PoleRange,2,FALSE),0) -> 39.52706 | AA37: 117.16512 | AC37: =IFERROR(VLOOKUP($O37,PoleRange,3,FALSE),0) -> -121.53535 | AD37: =IFERROR(VLOOKUP($O37,PoleRange,2,FALSE),0) -> 39.52637 | AE37: 119.20728 | AG37: =IFERROR(VLOOKUP($N37,PoleRange,6,FALSE),0) -> 356 | AH37: =IFERROR(VLOOKUP($O37,PoleRange,6,FALSE),0) -> 356.8 | AI37: =IFERROR(VLOOKUP($N37,PoleRange,7,FALSE),0) -> 29.4 | AJ37: =IFERROR(VLOOKUP($O37,PoleRange,7,FALSE),0) -> 35.3
A38: 25 | B38: ='FEA Tables'!C338 -> Wood, 4 (6/1) ACSR, Douglas Fir | J38: 75 | K38: 39.52677 | L38: -121.53188 | M38: Tier 2-3 | N38: W12153224N3952655 | O38: W12153152N3952699 | P38: W12153224N3952655-W12153152N3952699 | Q38: 257.6 | R38: 2 | S38: 75 | T38: =COUNTIFS(TreeRange,S38,TreeFail,"Yes")*V38 -> 0 | U38: 0 | V38: 1 | W38: =COUNTIFS(TreeRange,S38,TreeOffset,"Yes") -> 0 | X38: 0 | Y38: =IFERROR(VLOOKUP($N38,PoleRange,3,FALSE),0) -> -121.53224 | Z38: =IFERROR(VLOOKUP($N38,PoleRange,2,FALSE),0) -> 39.52655 | AA38: 134.59968 | AC38: =IFERROR(VLOOKUP($O38,PoleRange,3,FALSE),0) -> -121.53152 | AD38: =IFERROR(VLOOKUP($O38,PoleRange,2,FALSE),0) -> 39.52699 | AE38: 132.95376 | AG38: =IFERROR(VLOOKUP($N38,PoleRange,6,FALSE),0) -> 399.3 | AH38: =IFERROR(VLOOKUP($O38,PoleRange,6,FALSE),0) -> 396.1 | AI38: =IFERROR(VLOOKUP($N38,PoleRange,7,FALSE),0) -> 43.3 | AJ38: =IFERROR(VLOOKUP($O38,PoleRange,7,FALSE),0) -> 41.1
A39: 26 | B39: ='FEA Tables'!C352 -> Wood, 4 (6/1) ACSR, Pine | J39: 76 | K39: 39.52712 | L39: -121.53134 | M39: Tier 2-3 | N39: W12153152N3952699 | O39: W12153116N3952725 | P39: W12153152N3952699-W12153116N3952725 | Q39: 139.7 | R39: 2 | S39: 76 | T39: =COUNTIFS(TreeRange,S39,TreeFail,"Yes")*V39 -> 0 | U39: 0 | V39: 1 | W39: =COUNTIFS(TreeRange,S39,TreeOffset,"Yes") -> 0 | X39: 0 | Y39: =IFERROR(VLOOKUP($N39,PoleRange,3,FALSE),0) -> -121.53152 | Z39: =IFERROR(VLOOKUP($N39,PoleRange,2,FALSE),0) -> 39.52699 | AA39: 132.95376 | AC39: =IFERROR(VLOOKUP($O39,PoleRange,3,FALSE),0) -> -121.53116 | AD39: =IFERROR(VLOOKUP($O39,PoleRange,2,FALSE),0) -> 39.52725 | AE39: 130.11912 | AG39: =IFERROR(VLOOKUP($N39,PoleRange,6,FALSE),0) -> 396.1 | AH39: =IFERROR(VLOOKUP($O39,PoleRange,6,FALSE),0) -> 389 | AI39: =IFERROR(VLOOKUP($N39,PoleRange,7,FALSE),0) -> 41.1 | AJ39: =IFERROR(VLOOKUP($O39,PoleRange,7,FALSE),0) -> 38.9
A40: 27 | B40: ='FEA Tables'!C366 -> Wood, 4 (6/1) ACSR, Oak | J40: 77 | K40: 39.52717 | L40: -121.51435 | M40: Tier 2-3 | N40: W12151437N3952744 | O40: W12151433N3952690 | P40: W12151437N3952744-W12151433N3952690 | Q40: 198.1 | R40: 2 | S40: 77 | T40: =COUNTIFS(TreeRange,S40,TreeFail,"Yes")*V40 -> 0 | U40: 0 | V40: 1 | W40: =COUNTIFS(TreeRange,S40,TreeOffset,"Yes") -> 0 | X40: 0 | Y40: =IFERROR(VLOOKUP($N40,PoleRange,3,FALSE),0) -> -121.51437 | Z40: =IFERROR(VLOOKUP($N40,PoleRange,2,FALSE),0) -> 39.52744 | AA40: 157.30728 | AC40: =IFERROR(VLOOKUP($O40,PoleRange,3,FALSE),0) -> -121.51433 | AD40: =IFERROR(VLOOKUP($O40,PoleRange,2,FALSE),0) -> 39.5269 | AE40: 155.72232 | AG40: =IFERROR(VLOOKUP($N40,PoleRange,6,FALSE),0) -> 479.4 | AH40: =IFERROR(VLOOKUP($O40,PoleRange,6,FALSE),0) -> 474.1 | AI40: =IFERROR(VLOOKUP($N40,PoleRange,7,FALSE),0) -> 37.7 | AJ40: =IFERROR(VLOOKUP($O40,PoleRange,7,FALSE),0) -> 37.8
A41: 28 | B41: ='FEA Tables'!C380 -> Wood, 4 (6/1) ACSR, Blue Gum / Eucalyptus | J41: 78 | K41: 39.52719 | L41: -121.53176 | M41: Tier 2-3 | N41: W12153200N3952739 | O41: W12153152N3952699 | P41: W12153200N3952739-W12153152N3952699 | Q41: 197.2 | R41: 2 | S41: 78 | T41: =COUNTIFS(TreeRange,S41,TreeFail,"Yes")*V41 -> 0 | U41: 0 | V41: 1 | W41: =COUNTIFS(TreeRange,S41,TreeOffset,"Yes") -> 0 | X41: 0 | Y41: =IFERROR(VLOOKUP($N41,PoleRange,3,FALSE),0) -> -121.532 | Z41: =IFERROR(VLOOKUP($N41,PoleRange,2,FALSE),0) -> 39.52739 | AA41: 129.78384 | AC41: =IFERROR(VLOOKUP($O41,PoleRange,3,FALSE),0) -> -121.53152 | AD41: =IFERROR(VLOOKUP($O41,PoleRange,2,FALSE),0) -> 39.52699 | AE41: 132.95376 | AG41: =IFERROR(VLOOKUP($N41,PoleRange,6,FALSE),0) -> 392.4 | AH41: =IFERROR(VLOOKUP($O41,PoleRange,6,FALSE),0) -> 396.1 | AI41: =IFERROR(VLOOKUP($N41,PoleRange,7,FALSE),0) -> 34.4 | AJ41: =IFERROR(VLOOKUP($O41,PoleRange,7,FALSE),0) -> 41.1
A42: 29 | B42: ='FEA Tables'!C394 -> Wood, 2 (7/1) ACSR, Douglas Fir | J42: 79 | K42: 39.52721 | L42: -121.52939 | M42: Tier 2-3 | N42: W12152971N3952716 | O42: W12152907N3952726 | P42: W12152971N3952716-W12152907N3952726 | Q42: 184.9 | R42: 2 | S42: 79 | T42: =COUNTIFS(TreeRange,S42,TreeFail,"Yes")*V42 -> 4 | U42: 1 | V42: 1 | W42: =COUNTIFS(TreeRange,S42,TreeOffset,"Yes") -> 0 | X42: 0 | Y42: =IFERROR(VLOOKUP($N42,PoleRange,3,FALSE),0) -> -121.52971 | Z42: =IFERROR(VLOOKUP($N42,PoleRange,2,FALSE),0) -> 39.52716 | AA42: 123.96216 | AC42: =IFERROR(VLOOKUP($O42,PoleRange,3,FALSE),0) -> -121.52907 | AD42: =IFERROR(VLOOKUP($O42,PoleRange,2,FALSE),0) -> 39.52726 | AE42: 126.1872 | AG42: =IFERROR(VLOOKUP($N42,PoleRange,6,FALSE),0) -> 373.5 | AH42: =IFERROR(VLOOKUP($O42,PoleRange,6,FALSE),0) -> 374.6 | AI42: =IFERROR(VLOOKUP($N42,PoleRange,7,FALSE),0) -> 34.2 | AJ42: =IFERROR(VLOOKUP($O42,PoleRange,7,FALSE),0) -> 40.4
A43: 30 | B43: ='FEA Tables'!C408 -> Wood, 2 (7/1) ACSR, Pine | J43: 80 | K43: 39.52724 | L43: -121.53012 | M43: Tier 2-3 | N43: W12153054N3952731 | O43: W12152971N3952716 | P43: W12153054N3952731-W12152971N3952716 | Q43: 238.5 | R43: 2 | S43: 80 | T43: =COUNTIFS(TreeRange,S43,TreeFail,"Yes")*V43 -> 0 | U43: 0 | V43: 1 | W43: =COUNTIFS(TreeRange,S43,TreeOffset,"Yes") -> 0 | X43: 0 | Y43: =IFERROR(VLOOKUP($N43,PoleRange,3,FALSE),0) -> -121.53054 | Z43: =IFERROR(VLOOKUP($N43,PoleRange,2,FALSE),0) -> 39.52731 | AA43: 127.22352 | AC43: =IFERROR(VLOOKUP($O43,PoleRange,3,FALSE),0) -> -121.52971 | AD43: =IFERROR(VLOOKUP($O43,PoleRange,2,FALSE),0) -> 39.52716 | AE43: 123.96216 | AG43: =IFERROR(VLOOKUP($N43,PoleRange,6,FALSE),0) -> 377.9 | AH43: =IFERROR(VLOOKUP($O43,PoleRange,6,FALSE),0) -> 373.5 | AI43: =IFERROR(VLOOKUP($N43,PoleRange,7,FALSE),0) -> 40.5 | AJ43: =IFERROR(VLOOKUP($O43,PoleRange,7,FALSE),0) -> 34.2
A44: 31 | B44: ='FEA Tables'!C422 -> Wood, 2 (7/1) ACSR, Oak | J44: 81 | K44: 39.52728 | L44: -121.53085 | M44: Tier 2-3 | N44: W12153116N3952725 | O44: W12153054N3952731 | P44: W12153116N3952725-W12153054N3952731 | Q44: 176.3 | R44: 2 | S44: 81 | T44: =COUNTIFS(TreeRange,S44,TreeFail,"Yes")*V44 -> 0 | U44: 0 | V44: 1 | W44: =COUNTIFS(TreeRange,S44,TreeOffset,"Yes") -> 0 | X44: 0 | Y44: =IFERROR(VLOOKUP($N44,PoleRange,3,FALSE),0) -> -121.53116 | Z44: =IFERROR(VLOOKUP($N44,PoleRange,2,FALSE),0) -> 39.52725 | AA44: 130.11912 | AC44: =IFERROR(VLOOKUP($O44,PoleRange,3,FALSE),0) -> -121.53054 | AD44: =IFERROR(VLOOKUP($O44,PoleRange,2,FALSE),0) -> 39.52731 | AE44: 127.22352 | AG44: =IFERROR(VLOOKUP($N44,PoleRange,6,FALSE),0) -> 389 | AH44: =IFERROR(VLOOKUP($O44,PoleRange,6,FALSE),0) -> 377.9 | AI44: =IFERROR(VLOOKUP($N44,PoleRange,7,FALSE),0) -> 38.9 | AJ44: =IFERROR(VLOOKUP($O44,PoleRange,7,FALSE),0) -> 40.5
A45: 32 | B45: ='FEA Tables'!C436 -> Wood, 2 (7/1) ACSR, Blue Gum / Eucalyptus | J45: 82 | K45: 39.5274 | L45: -121.53535 | M45: Tier 2-3 | N45: W12153536N3952706 | O45: W12153535N3952774 | P45: W12153536N3952706-W12153535N3952774 | Q45: 246.6 | R45: 2 | S45: 82 | T45: =COUNTIFS(TreeRange,S45,TreeFail,"Yes")*V45 -> 3 | U45: 1 | V45: 1 | W45: =COUNTIFS(TreeRange,S45,TreeOffset,"Yes") -> 0 | X45: 0 | Y45: =IFERROR(VLOOKUP($N45,PoleRange,3,FALSE),0) -> -121.53536 | Z45: =IFERROR(VLOOKUP($N45,PoleRange,2,FALSE),0) -> 39.52706 | AA45: 117.16512 | AC45: =IFERROR(VLOOKUP($O45,PoleRange,3,FALSE),0) -> -121.53535 | AD45: =IFERROR(VLOOKUP($O45,PoleRange,2,FALSE),0) -> 39.52774 | AE45: 124.78512 | AG45: =IFERROR(VLOOKUP($N45,PoleRange,6,FALSE),0) -> 356 | AH45: =IFERROR(VLOOKUP($O45,PoleRange,6,FALSE),0) -> 374.9 | AI45: =IFERROR(VLOOKUP($N45,PoleRange,7,FALSE),0) -> 29.4 | AJ45: =IFERROR(VLOOKUP($O45,PoleRange,7,FALSE),0) -> 35.5
A46: 33 | B46: ='FEA Tables'!C450 -> 0 | J46: 83 | K46: 39.5274 | L46: -121.53053 | M46: Tier 2-3 | N46: W12153052N3952749 | O46: W12153054N3952731 | P46: W12153052N3952749-W12153054N3952731 | Q46: 64.4 | R46: 2 | S46: 83 | T46: =COUNTIFS(TreeRange,S46,TreeFail,"Yes")*V46 -> 0 | U46: 0 | V46: 1 | W46: =COUNTIFS(TreeRange,S46,TreeOffset,"Yes") -> 0 | X46: 0 | Y46: =IFERROR(VLOOKUP($N46,PoleRange,3,FALSE),0) -> -121.53052 | Z46: =IFERROR(VLOOKUP($N46,PoleRange,2,FALSE),0) -> 39.52749 | AA46: 124.32792 | AC46: =IFERROR(VLOOKUP($O46,PoleRange,3,FALSE),0) -> -121.53054 | AD46: =IFERROR(VLOOKUP($O46,PoleRange,2,FALSE),0) -> 39.52731 | AE46: 127.22352 | AG46: =IFERROR(VLOOKUP($N46,PoleRange,6,FALSE),0) -> 374.6 | AH46: =IFERROR(VLOOKUP($O46,PoleRange,6,FALSE),0) -> 377.9 | AI46: =IFERROR(VLOOKUP($N46,PoleRange,7,FALSE),0) -> 34.3 | AJ46: =IFERROR(VLOOKUP($O46,PoleRange,7,FALSE),0) -> 40.5
A47: 34 | B47: ='FEA Tables'!C464 -> 0 | J47: 84 | K47: 39.5275 | L47: -121.52853 | M47: Tier 2-3 | N47: W12152907N3952726 | O47: W12152800N3952774 | P47: W12152907N3952726-W12152800N3952774 | Q47: 349.7 | R47: 2 | S47: 84 | T47: =COUNTIFS(TreeRange,S47,TreeFail,"Yes")*V47 -> 0 | U47: 0 | V47: 1 | W47: =COUNTIFS(TreeRange,S47,TreeOffset,"Yes") -> 0 | X47: 0 | Y47: =IFERROR(VLOOKUP($N47,PoleRange,3,FALSE),0) -> -121.52907 | Z47: =IFERROR(VLOOKUP($N47,PoleRange,2,FALSE),0) -> 39.52726 | AA47: 126.1872 | AC47: =IFERROR(VLOOKUP($O47,PoleRange,3,FALSE),0) -> -121.528 | AD47: =IFERROR(VLOOKUP($O47,PoleRange,2,FALSE),0) -> 39.52774 | AE47: 129.17424 | AG47: =IFERROR(VLOOKUP($N47,PoleRange,6,FALSE),0) -> 374.6 | AH47: =IFERROR(VLOOKUP($O47,PoleRange,6,FALSE),0) -> 384.1 | AI47: =IFERROR(VLOOKUP($N47,PoleRange,7,FALSE),0) -> 40.4 | AJ47: =IFERROR(VLOOKUP($O47,PoleRange,7,FALSE),0) -> 40.7
A48: 35 | B48: ='FEA Tables'!C478 -> 0 | J48: 85 | K48: 39.52764 | L48: -121.53202 | M48: Tier 2-3 | N48: W12153200N3952739 | O48: W12153203N3952790 | P48: W12153200N3952739-W12153203N3952790 | Q48: 186.2 | R48: 2 | S48: 85 | T48: =COUNTIFS(TreeRange,S48,TreeFail,"Yes")*V48 -> 0 | U48: 0 | V48: 1 | W48: =COUNTIFS(TreeRange,S48,TreeOffset,"Yes") -> 0 | X48: 0 | Y48: =IFERROR(VLOOKUP($N48,PoleRange,3,FALSE),0) -> -121.532 | Z48: =IFERROR(VLOOKUP($N48,PoleRange,2,FALSE),0) -> 39.52739 | AA48: 129.78384 | AC48: =IFERROR(VLOOKUP($O48,PoleRange,3,FALSE),0) -> -121.53203 | AD48: =IFERROR(VLOOKUP($O48,PoleRange,2,FALSE),0) -> 39.5279 | AE48: 136.30656 | AG48: =IFERROR(VLOOKUP($N48,PoleRange,6,FALSE),0) -> 392.4 | AH48: =IFERROR(VLOOKUP($O48,PoleRange,6,FALSE),0) -> 414.6 | AI48: =IFERROR(VLOOKUP($N48,PoleRange,7,FALSE),0) -> 34.4 | AJ48: =IFERROR(VLOOKUP($O48,PoleRange,7,FALSE),0) -> 33.6
A49: 36 | B49: ='FEA Tables'!C492 -> 0 | J49: 86 | K49: 39.52771 | L49: -121.51439 | M49: Tier 2-3 | N49: W12151441N3952799 | O49: W12151437N3952744 | P49: W12151441N3952799-W12151437N3952744 | Q49: 199.3 | R49: 2 | S49: 86 | T49: =COUNTIFS(TreeRange,S49,TreeFail,"Yes")*V49 -> 0 | U49: 0 | V49: 1 | W49: =COUNTIFS(TreeRange,S49,TreeOffset,"Yes") -> 0 | X49: 0 | Y49: =IFERROR(VLOOKUP($N49,PoleRange,3,FALSE),0) -> -121.51441 | Z49: =IFERROR(VLOOKUP($N49,PoleRange,2,FALSE),0) -> 39.52799 | AA49: 160.08096 | AC49: =IFERROR(VLOOKUP($O49,PoleRange,3,FALSE),0) -> -121.51437 | AD49: =IFERROR(VLOOKUP($O49,PoleRange,2,FALSE),0) -> 39.52744 | AE49: 157.30728 | AG49: =IFERROR(VLOOKUP($N49,PoleRange,6,FALSE),0) -> 487.4 | AH49: =IFERROR(VLOOKUP($O49,PoleRange,6,FALSE),0) -> 479.4 | AI49: =IFERROR(VLOOKUP($N49,PoleRange,7,FALSE),0) -> 38.8 | AJ49: =IFERROR(VLOOKUP($O49,PoleRange,7,FALSE),0) -> 37.7
A50: 37 | B50: ='FEA Tables'!C506 -> 0 | J50: 87 | K50: 39.52782 | L50: -121.53053 | M50: Tier 2-3 | N50: W12153052N3952749 | O50: W12153054N3952815 | P50: W12153052N3952749-W12153054N3952815 | Q50: 243.6 | R50: 2 | S50: 87 | T50: =COUNTIFS(TreeRange,S50,TreeFail,"Yes")*V50 -> 0 | U50: 0 | V50: 1 | W50: =COUNTIFS(TreeRange,S50,TreeOffset,"Yes") -> 0 | X50: 0 | Y50: =IFERROR(VLOOKUP($N50,PoleRange,3,FALSE),0) -> -121.53052 | Z50: =IFERROR(VLOOKUP($N50,PoleRange,2,FALSE),0) -> 39.52749 | AA50: 124.32792 | AC50: =IFERROR(VLOOKUP($O50,PoleRange,3,FALSE),0) -> -121.53054 | AD50: =IFERROR(VLOOKUP($O50,PoleRange,2,FALSE),0) -> 39.52815 | AE50: 132.80136 | AG50: =IFERROR(VLOOKUP($N50,PoleRange,6,FALSE),0) -> 374.6 | AH50: =IFERROR(VLOOKUP($O50,PoleRange,6,FALSE),0) -> 398 | AI50: =IFERROR(VLOOKUP($N50,PoleRange,7,FALSE),0) -> 34.3 | AJ50: =IFERROR(VLOOKUP($O50,PoleRange,7,FALSE),0) -> 38.7
A51: 38 | B51: ='FEA Tables'!C520 -> 0 | J51: 88 | K51: 39.5279 | L51: -121.53328 | M51: Tier 2-3 | N51: W12153385N3952791 | O51: W12153270N3952789 | P51: W12153385N3952791-W12153270N3952789 | Q51: 324.2 | R51: 2 | S51: 88 | T51: =COUNTIFS(TreeRange,S51,TreeFail,"Yes")*V51 -> 0 | U51: 0 | V51: 1 | W51: =COUNTIFS(TreeRange,S51,TreeOffset,"Yes") -> 0 | X51: 0 | Y51: =IFERROR(VLOOKUP($N51,PoleRange,3,FALSE),0) -> -121.53385 | Z51: =IFERROR(VLOOKUP($N51,PoleRange,2,FALSE),0) -> 39.52791 | AA51: 133.62432 | AC51: =IFERROR(VLOOKUP($O51,PoleRange,3,FALSE),0) -> -121.5327 | AD51: =IFERROR(VLOOKUP($O51,PoleRange,2,FALSE),0) -> 39.52789 | AE51: 135.81888 | AG51: =IFERROR(VLOOKUP($N51,PoleRange,6,FALSE),0) -> 401.8 | AH51: =IFERROR(VLOOKUP($O51,PoleRange,6,FALSE),0) -> 408.3 | AI51: =IFERROR(VLOOKUP($N51,PoleRange,7,FALSE),0) -> 37.6 | AJ51: =IFERROR(VLOOKUP($O51,PoleRange,7,FALSE),0) -> 38.3
A52: 39 | B52: ='FEA Tables'!C534 -> Wood, 715.5 AAC, Oak | J52: 89 | K52: 39.5279 | L52: -121.53237 | M52: Tier 2-3 | N52: W12153203N3952790 | O52: W12153270N3952789 | P52: W12153203N3952790-W12153270N3952789 | Q52: 189.1 | R52: 2 | S52: 89 | T52: =COUNTIFS(TreeRange,S52,TreeFail,"Yes")*V52 -> 2 | U52: 1 | V52: 1 | W52: =COUNTIFS(TreeRange,S52,TreeOffset,"Yes") -> 0 | X52: 0 | Y52: =IFERROR(VLOOKUP($N52,PoleRange,3,FALSE),0) -> -121.53203 | Z52: =IFERROR(VLOOKUP($N52,PoleRange,2,FALSE),0) -> 39.5279 | AA52: 136.30656 | AC52: =IFERROR(VLOOKUP($O52,PoleRange,3,FALSE),0) -> -121.5327 | AD52: =IFERROR(VLOOKUP($O52,PoleRange,2,FALSE),0) -> 39.52789 | AE52: 135.81888 | AG52: =IFERROR(VLOOKUP($N52,PoleRange,6,FALSE),0) -> 414.6 | AH52: =IFERROR(VLOOKUP($O52,PoleRange,6,FALSE),0) -> 408.3 | AI52: =IFERROR(VLOOKUP($N52,PoleRange,7,FALSE),0) -> 33.6 | AJ52: =IFERROR(VLOOKUP($O52,PoleRange,7,FALSE),0) -> 38.3
A53: 40 | B53: ='FEA Tables'!C548 -> Wood, 715.5 AAC, Blue Gum / Eucalyptus | J53: 90 | K53: 39.528 | L53: -121.52775 | M53: Tier 2-3 | N53: W12152800N3952774 | O53: W12152750N3952825 | P53: W12152800N3952774-W12152750N3952825 | Q53: 233.6 | R53: 2 | S53: 90 | T53: =COUNTIFS(TreeRange,S53,TreeFail,"Yes")*V53 -> 0 | U53: 0 | V53: 1 | W53: =COUNTIFS(TreeRange,S53,TreeOffset,"Yes") -> 0 | X53: 0 | Y53: =IFERROR(VLOOKUP($N53,PoleRange,3,FALSE),0) -> -121.528 | Z53: =IFERROR(VLOOKUP($N53,PoleRange,2,FALSE),0) -> 39.52774 | AA53: 129.17424 | AC53: =IFERROR(VLOOKUP($O53,PoleRange,3,FALSE),0) -> -121.5275 | AD53: =IFERROR(VLOOKUP($O53,PoleRange,2,FALSE),0) -> 39.52825 | AE53: 127.5588 | AG53: =IFERROR(VLOOKUP($N53,PoleRange,6,FALSE),0) -> 384.1 | AH53: =IFERROR(VLOOKUP($O53,PoleRange,6,FALSE),0) -> 384.3 | AI53: =IFERROR(VLOOKUP($N53,PoleRange,7,FALSE),0) -> 40.7 | AJ53: =IFERROR(VLOOKUP($O53,PoleRange,7,FALSE),0) -> 35.2
J54: 91 | K54: 39.52802 | L54: -121.53534 | M54: Tier 2-3 | N54: W12153534N3952830 | O54: W12153535N3952774 | P54: W12153534N3952830-W12153535N3952774 | Q54: 203.2 | R54: 2 | S54: 91 | T54: =COUNTIFS(TreeRange,S54,TreeFail,"Yes")*V54 -> 0 | U54: 0 | V54: 1 | W54: =COUNTIFS(TreeRange,S54,TreeOffset,"Yes") -> 0 | X54: 0 | Y54: =IFERROR(VLOOKUP($N54,PoleRange,3,FALSE),0) -> -121.53534 | Z54: =IFERROR(VLOOKUP($N54,PoleRange,2,FALSE),0) -> 39.5283 | AA54: 132.2832 | AC54: =IFERROR(VLOOKUP($O54,PoleRange,3,FALSE),0) -> -121.53535 | AD54: =IFERROR(VLOOKUP($O54,PoleRange,2,FALSE),0) -> 39.52774 | AE54: 124.78512 | AG54: =IFERROR(VLOOKUP($N54,PoleRange,6,FALSE),0) -> 399 | AH54: =IFERROR(VLOOKUP($O54,PoleRange,6,FALSE),0) -> 374.9 | AI54: =IFERROR(VLOOKUP($N54,PoleRange,7,FALSE),0) -> 36 | AJ54: =IFERROR(VLOOKUP($O54,PoleRange,7,FALSE),0) -> 35.5
J55: 92 | K55: 39.52818 | L55: -121.53204 | M55: Tier 2-3 | N55: W12153203N3952790 | O55: W12153205N3952846 | P55: W12153203N3952790-W12153205N3952846 | Q55: 203.9 | R55: 2 | S55: 92 | T55: =COUNTIFS(TreeRange,S55,TreeFail,"Yes")*V55 -> 0 | U55: 0 | V55: 1 | W55: =COUNTIFS(TreeRange,S55,TreeOffset,"Yes") -> 0 | X55: 0 | Y55: =IFERROR(VLOOKUP($N55,PoleRange,3,FALSE),0) -> -121.53203 | Z55: =IFERROR(VLOOKUP($N55,PoleRange,2,FALSE),0) -> 39.5279 | AA55: 136.30656 | AC55: =IFERROR(VLOOKUP($O55,PoleRange,3,FALSE),0) -> -121.53205 | AD55: =IFERROR(VLOOKUP($O55,PoleRange,2,FALSE),0) -> 39.52846 | AE55: 148.52904 | AG55: =IFERROR(VLOOKUP($N55,PoleRange,6,FALSE),0) -> 414.6 | AH55: =IFERROR(VLOOKUP($O55,PoleRange,6,FALSE),0) -> 453.8 | AI55: =IFERROR(VLOOKUP($N55,PoleRange,7,FALSE),0) -> 33.6 | AJ55: =IFERROR(VLOOKUP($O55,PoleRange,7,FALSE),0) -> 34.5
J56: 93 | K56: 39.52829 | L56: -121.51421 | M56: Tier 2-3 | N56: W12151401N3952860 | O56: W12151441N3952799 | P56: W12151401N3952860-W12151441N3952799 | Q56: 250.8 | R56: 2 | S56: 93 | T56: =COUNTIFS(TreeRange,S56,TreeFail,"Yes")*V56 -> 0 | U56: 0 | V56: 1 | W56: =COUNTIFS(TreeRange,S56,TreeOffset,"Yes") -> 0 | X56: 0 | Y56: =IFERROR(VLOOKUP($N56,PoleRange,3,FALSE),0) -> -121.51401 | Z56: =IFERROR(VLOOKUP($N56,PoleRange,2,FALSE),0) -> 39.5286 | AA56: 159.65424 | AC56: =IFERROR(VLOOKUP($O56,PoleRange,3,FALSE),0) -> -121.51441 | AD56: =IFERROR(VLOOKUP($O56,PoleRange,2,FALSE),0) -> 39.52799 | AE56: 160.08096 | AG56: =IFERROR(VLOOKUP($N56,PoleRange,6,FALSE),0) -> 487.5 | AH56: =IFERROR(VLOOKUP($O56,PoleRange,6,FALSE),0) -> 487.4 | AI56: =IFERROR(VLOOKUP($N56,PoleRange,7,FALSE),0) -> 37.3 | AJ56: =IFERROR(VLOOKUP($O56,PoleRange,7,FALSE),0) -> 38.8
J57: 94 | K57: 39.5283 | L57: -121.53515 | M57: Tier 2-3 | N57: W12153534N3952830 | O57: W12153496N3952831 | P57: W12153534N3952830-W12153496N3952831 | Q57: 105.4 | R57: 2 | S57: 94 | T57: =COUNTIFS(TreeRange,S57,TreeFail,"Yes")*V57 -> 0 | U57: 0 | V57: 1 | W57: =COUNTIFS(TreeRange,S57,TreeOffset,"Yes") -> 0 | X57: 0 | Y57: =IFERROR(VLOOKUP($N57,PoleRange,3,FALSE),0) -> -121.53534 | Z57: =IFERROR(VLOOKUP($N57,PoleRange,2,FALSE),0) -> 39.5283 | AA57: 132.2832 | AC57: =IFERROR(VLOOKUP($O57,PoleRange,3,FALSE),0) -> -121.53496 | AD57: =IFERROR(VLOOKUP($O57,PoleRange,2,FALSE),0) -> 39.52831 | AE57: 132.55752 | AG57: =IFERROR(VLOOKUP($N57,PoleRange,6,FALSE),0) -> 399 | AH57: =IFERROR(VLOOKUP($O57,PoleRange,6,FALSE),0) -> 402.1 | AI57: =IFERROR(VLOOKUP($N57,PoleRange,7,FALSE),0) -> 36 | AJ57: =IFERROR(VLOOKUP($O57,PoleRange,7,FALSE),0) -> 33.8
J58: 95 | K58: 39.52831 | L58: -121.53462 | M58: Tier 2-3 | N58: W12153427N3952831 | O58: W12153496N3952831 | P58: W12153427N3952831-W12153496N3952831 | Q58: 196.6 | R58: 2 | S58: 95 | T58: =COUNTIFS(TreeRange,S58,TreeFail,"Yes")*V58 -> 0 | U58: 0 | V58: 1 | W58: =COUNTIFS(TreeRange,S58,TreeOffset,"Yes") -> 0 | X58: 0 | Y58: =IFERROR(VLOOKUP($N58,PoleRange,3,FALSE),0) -> -121.53427 | Z58: =IFERROR(VLOOKUP($N58,PoleRange,2,FALSE),0) -> 39.52831 | AA58: 135.91032 | AC58: =IFERROR(VLOOKUP($O58,PoleRange,3,FALSE),0) -> -121.53496 | AD58: =IFERROR(VLOOKUP($O58,PoleRange,2,FALSE),0) -> 39.52831 | AE58: 132.55752 | AG58: =IFERROR(VLOOKUP($N58,PoleRange,6,FALSE),0) -> 413.8 | AH58: =IFERROR(VLOOKUP($O58,PoleRange,6,FALSE),0) -> 402.1 | AI58: =IFERROR(VLOOKUP($N58,PoleRange,7,FALSE),0) -> 33.1 | AJ58: =IFERROR(VLOOKUP($O58,PoleRange,7,FALSE),0) -> 33.8
J59: 96 | K59: 39.52831 | L59: -121.53403 | M59: Tier 2-3 | N59: W12153379N3952832 | O59: W12153427N3952831 | P59: W12153379N3952832-W12153427N3952831 | Q59: 134 | R59: 2 | S59: 96 | T59: =COUNTIFS(TreeRange,S59,TreeFail,"Yes")*V59 -> 0 | U59: 0 | V59: 1 | W59: =COUNTIFS(TreeRange,S59,TreeOffset,"Yes") -> 0 | X59: 0 | Y59: =IFERROR(VLOOKUP($N59,PoleRange,3,FALSE),0) -> -121.53379 | Z59: =IFERROR(VLOOKUP($N59,PoleRange,2,FALSE),0) -> 39.52832 | AA59: 137.86104 | AC59: =IFERROR(VLOOKUP($O59,PoleRange,3,FALSE),0) -> -121.53427 | AD59: =IFERROR(VLOOKUP($O59,PoleRange,2,FALSE),0) -> 39.52831 | AE59: 135.91032 | AG59: =IFERROR(VLOOKUP($N59,PoleRange,6,FALSE),0) -> 419.8 | AH59: =IFERROR(VLOOKUP($O59,PoleRange,6,FALSE),0) -> 413.8 | AI59: =IFERROR(VLOOKUP($N59,PoleRange,7,FALSE),0) -> 33.5 | AJ59: =IFERROR(VLOOKUP($O59,PoleRange,7,FALSE),0) -> 33.1
J60: 97 | K60: 39.52846 | L60: -121.53054 | M60: Tier 2-3 | N60: W12153054N3952815 | O60: W12153053N3952876 | P60: W12153054N3952815-W12153053N3952876 | Q60: 221.2 | R60: 2 | S60: 97 | T60: =COUNTIFS(TreeRange,S60,TreeFail,"Yes")*V60 -> 0 | U60: 0 | V60: 1 | W60: =COUNTIFS(TreeRange,S60,TreeOffset,"Yes") -> 0 | X60: 0 | Y60: =IFERROR(VLOOKUP($N60,PoleRange,3,FALSE),0) -> -121.53054 | Z60: =IFERROR(VLOOKUP($N60,PoleRange,2,FALSE),0) -> 39.52815 | AA60: 132.80136 | AC60: =IFERROR(VLOOKUP($O60,PoleRange,3,FALSE),0) -> -121.53053 | AD60: =IFERROR(VLOOKUP($O60,PoleRange,2,FALSE),0) -> 39.52876 | AE60: 139.11072 | AG60: =IFERROR(VLOOKUP($N60,PoleRange,6,FALSE),0) -> 398 | AH60: =IFERROR(VLOOKUP($O60,PoleRange,6,FALSE),0) -> 424.2 | AI60: =IFERROR(VLOOKUP($N60,PoleRange,7,FALSE),0) -> 38.7 | AJ60: =IFERROR(VLOOKUP($O60,PoleRange,7,FALSE),0) -> 33.2
J61: 98 | K61: 39.5285 | L61: -121.52715 | M61: Tier 2-3 | N61: W12152750N3952825 | O61: W12152680N3952875 | P61: W12152750N3952825-W12152680N3952875 | Q61: 268.4 | R61: 2 | S61: 98 | T61: =COUNTIFS(TreeRange,S61,TreeFail,"Yes")*V61 -> 0 | U61: 0 | V61: 1 | W61: =COUNTIFS(TreeRange,S61,TreeOffset,"Yes") -> 0 | X61: 0 | Y61: =IFERROR(VLOOKUP($N61,PoleRange,3,FALSE),0) -> -121.5275 | Z61: =IFERROR(VLOOKUP($N61,PoleRange,2,FALSE),0) -> 39.52825 | AA61: 127.5588 | AC61: =IFERROR(VLOOKUP($O61,PoleRange,3,FALSE),0) -> -121.5268 | AD61: =IFERROR(VLOOKUP($O61,PoleRange,2,FALSE),0) -> 39.52875 | AE61: 132.03936 | AG61: =IFERROR(VLOOKUP($N61,PoleRange,6,FALSE),0) -> 384.3 | AH61: =IFERROR(VLOOKUP($O61,PoleRange,6,FALSE),0) -> 398.8 | AI61: =IFERROR(VLOOKUP($N61,PoleRange,7,FALSE),0) -> 35.2 | AJ61: =IFERROR(VLOOKUP($O61,PoleRange,7,FALSE),0) -> 35.4
J62: 99 | K62: 39.52856 | L62: -121.53535 | M62: Tier 2-3 | N62: W12153534N3952830 | O62: W12153534N3952830 | P62: W12153534N3952830-W12153534N3952830 | Q62: 189.9 | R62: 2 | S62: 99 | T62: =COUNTIFS(TreeRange,S62,TreeFail,"Yes")*V62 -> 0 | U62: 0 | V62: 1 | W62: =COUNTIFS(TreeRange,S62,TreeOffset,"Yes") -> 0 | X62: 0 | Y62: =IFERROR(VLOOKUP($N62,PoleRange,3,FALSE),0) -> -121.53534 | Z62: =IFERROR(VLOOKUP($N62,PoleRange,2,FALSE),0) -> 39.5283 | AA62: 132.2832 | AC62: =IFERROR(VLOOKUP($O62,PoleRange,3,FALSE),0) -> -121.53534 | AD62: =IFERROR(VLOOKUP($O62,PoleRange,2,FALSE),0) -> 39.5283 | AE62: 132.2832 | AG62: =IFERROR(VLOOKUP($N62,PoleRange,6,FALSE),0) -> 399 | AH62: =IFERROR(VLOOKUP($O62,PoleRange,6,FALSE),0) -> 399 | AI62: =IFERROR(VLOOKUP($N62,PoleRange,7,FALSE),0) -> 36 | AJ62: =IFERROR(VLOOKUP($O62,PoleRange,7,FALSE),0) -> 36
J63: 100 | K63: 39.52861 | L63: -121.51863 | M63: Tier 2-3 | N63: W12151852N3952834 | O63: W12151873N3952887 | P63: W12151852N3952834-W12151873N3952887 | Q63: 200.8 | R63: 2 | S63: 100 | T63: =COUNTIFS(TreeRange,S63,TreeFail,"Yes")*V63 -> 0 | U63: 0 | V63: 1 | W63: =COUNTIFS(TreeRange,S63,TreeOffset,"Yes") -> 0 | X63: 0 | Y63: =IFERROR(VLOOKUP($N63,PoleRange,3,FALSE),0) -> -121.51852 | Z63: =IFERROR(VLOOKUP($N63,PoleRange,2,FALSE),0) -> 39.52834 | AA63: 150.08352 | AC63: =IFERROR(VLOOKUP($O63,PoleRange,3,FALSE),0) -> -121.51873 | AD63: =IFERROR(VLOOKUP($O63,PoleRange,2,FALSE),0) -> 39.52887 | AE63: 150.99792 | AG63: =IFERROR(VLOOKUP($N63,PoleRange,6,FALSE),0) -> 451.2 | AH63: =IFERROR(VLOOKUP($O63,PoleRange,6,FALSE),0) -> 457.6 | AI63: =IFERROR(VLOOKUP($N63,PoleRange,7,FALSE),0) -> 42.2 | AJ63: =IFERROR(VLOOKUP($O63,PoleRange,7,FALSE),0) -> 38.8
J64: 101 | K64: 39.52864 | L64: -121.53205 | M64: Tier 2-3 | N64: W12153205N3952846 | O64: W12153206N3952881 | P64: W12153205N3952846-W12153206N3952881 | Q64: 129.1 | R64: 2 | S64: 101 | T64: =COUNTIFS(TreeRange,S64,TreeFail,"Yes")*V64 -> 0 | U64: 0 | V64: 1 | W64: =COUNTIFS(TreeRange,S64,TreeOffset,"Yes") -> 0 | X64: 0 | Y64: =IFERROR(VLOOKUP($N64,PoleRange,3,FALSE),0) -> -121.53205 | Z64: =IFERROR(VLOOKUP($N64,PoleRange,2,FALSE),0) -> 39.52846 | AA64: 148.52904 | AC64: =IFERROR(VLOOKUP($O64,PoleRange,3,FALSE),0) -> -121.53206 | AD64: =IFERROR(VLOOKUP($O64,PoleRange,2,FALSE),0) -> 39.52881 | AE64: 158.9532 | AG64: =IFERROR(VLOOKUP($N64,PoleRange,6,FALSE),0) -> 453.8 | AH64: =IFERROR(VLOOKUP($O64,PoleRange,6,FALSE),0) -> 485.2 | AI64: =IFERROR(VLOOKUP($N64,PoleRange,7,FALSE),0) -> 34.5 | AJ64: =IFERROR(VLOOKUP($O64,PoleRange,7,FALSE),0) -> 37.3
J65: 102 | K65: 39.52882 | L65: -121.5348 | M65: Tier 2-3 | N65: W12153537N3952882 | O65: W12153422N3952882 | P65: W12153537N3952882-W12153422N3952882 | Q65: 324.4 | R65: 2 | S65: 102 | T65: =COUNTIFS(TreeRange,S65,TreeFail,"Yes")*V65 -> 0 | U65: 0 | V65: 1 | W65: =COUNTIFS(TreeRange,S65,TreeOffset,"Yes") -> 0 | X65: 0 | Y65: =IFERROR(VLOOKUP($N65,PoleRange,3,FALSE),0) -> -121.53537 | Z65: =IFERROR(VLOOKUP($N65,PoleRange,2,FALSE),0) -> 39.52882 | AA65: 132.46608 | AC65: =IFERROR(VLOOKUP($O65,PoleRange,3,FALSE),0) -> -121.53422 | AD65: =IFERROR(VLOOKUP($O65,PoleRange,2,FALSE),0) -> 39.52882 | AE65: 139.93368 | AG65: =IFERROR(VLOOKUP($N65,PoleRange,6,FALSE),0) -> 400 | AH65: =IFERROR(VLOOKUP($O65,PoleRange,6,FALSE),0) -> 421.3 | AI65: =IFERROR(VLOOKUP($N65,PoleRange,7,FALSE),0) -> 35.6 | AJ65: =IFERROR(VLOOKUP($O65,PoleRange,7,FALSE),0) -> 38.8
J66: 103 | K66: 39.52882 | L66: -121.53393 | M66: Tier 2-3 | N66: W12153363N3952882 | O66: W12153422N3952882 | P66: W12153363N3952882-W12153422N3952882 | Q66: 165.4 | R66: 2 | S66: 103 | T66: =COUNTIFS(TreeRange,S66,TreeFail,"Yes")*V66 -> 0 | U66: 0 | V66: 1 | W66: =COUNTIFS(TreeRange,S66,TreeOffset,"Yes") -> 0 | X66: 0 | Y66: =IFERROR(VLOOKUP($N66,PoleRange,3,FALSE),0) -> -121.53363 | Z66: =IFERROR(VLOOKUP($N66,PoleRange,2,FALSE),0) -> 39.52882 | AA66: 142.89024 | AC66: =IFERROR(VLOOKUP($O66,PoleRange,3,FALSE),0) -> -121.53422 | AD66: =IFERROR(VLOOKUP($O66,PoleRange,2,FALSE),0) -> 39.52882 | AE66: 139.93368 | AG66: =IFERROR(VLOOKUP($N66,PoleRange,6,FALSE),0) -> 431.7 | AH66: =IFERROR(VLOOKUP($O66,PoleRange,6,FALSE),0) -> 421.3 | AI66: =IFERROR(VLOOKUP($N66,PoleRange,7,FALSE),0) -> 38.1 | AJ66: =IFERROR(VLOOKUP($O66,PoleRange,7,FALSE),0) -> 38.8
J67: 104 | K67: 39.5289 | L67: -121.51892 | M67: Tier 2-3 | N67: W12151873N3952887 | O67: W12151911N3952893 | P67: W12151873N3952887-W12151911N3952893 | Q67: 108.3 | R67: 2 | S67: 104 | T67: =COUNTIFS(TreeRange,S67,TreeFail,"Yes")*V67 -> 0 | U67: 0 | V67: 1 | W67: =COUNTIFS(TreeRange,S67,TreeOffset,"Yes") -> 0 | X67: 0 | Y67: =IFERROR(VLOOKUP($N67,PoleRange,3,FALSE),0) -> -121.51873 | Z67: =IFERROR(VLOOKUP($N67,PoleRange,2,FALSE),0) -> 39.52887 | AA67: 150.99792 | AC67: =IFERROR(VLOOKUP($O67,PoleRange,3,FALSE),0) -> -121.51911 | AD67: =IFERROR(VLOOKUP($O67,PoleRange,2,FALSE),0) -> 39.52893 | AE67: 153.6192 | AG67: =IFERROR(VLOOKUP($N67,PoleRange,6,FALSE),0) -> 457.6 | AH67: =IFERROR(VLOOKUP($O67,PoleRange,6,FALSE),0) -> 461.8 | AI67: =IFERROR(VLOOKUP($N67,PoleRange,7,FALSE),0) -> 38.8 | AJ67: =IFERROR(VLOOKUP($O67,PoleRange,7,FALSE),0) -> 43.2
J68: 105 | K68: 39.52896 | L68: -121.52638 | M68: Tier 2-3 | N68: W12152680N3952875 | O68: W12152596N3952916 | P68: W12152680N3952875-W12152596N3952916 | Q68: 281 | R68: 2 | S68: =J68 -> 105 | T68: =COUNTIFS(TreeRange,S68,TreeFail,"Yes")*V68 -> 0 | U68: =IF(Q68<1,0,_xlfn.IFS(T68>15,3,T68>5,2,T68>0,1,T68=0,0)) -> 0 | V68: =Chk_wind($C$8,Y68,Z68,AC68,AD68) -> 1 | W68: =COUNTIFS(TreeRange,S68,TreeOffset,"Yes") -> 0 | X68: =IF(Q68<1,0,_xlfn.IFS(W68>15,3,W68>5,2,W68>0,1,W68=0,0)) -> 0 | Y68: =IFERROR(VLOOKUP($N68,PoleRange,3,FALSE),0) -> -121.5268 | Z68: =IFERROR(VLOOKUP($N68,PoleRange,2,FALSE),0) -> 39.52875 | AA68: =(AG68+AI68-1)*0.3048 -> 132.03936 | AC68: =IFERROR(VLOOKUP($O68,PoleRange,3,FALSE),0) -> -121.52596 | AD68: =IFERROR(VLOOKUP($O68,PoleRange,2,FALSE),0) -> 39.52916 | AE68: =(AH68+AJ68-1)*0.3048 -> 137.73912 | AG68: =IFERROR(VLOOKUP($N68,PoleRange,6,FALSE),0) -> 398.8 | AH68: =IFERROR(VLOOKUP($O68,PoleRange,6,FALSE),0) -> 413 | AI68: =IFERROR(VLOOKUP($N68,PoleRange,7,FALSE),0) -> 35.4 | AJ68: =IFERROR(VLOOKUP($O68,PoleRange,7,FALSE),0) -> 39.9
J69: 106 | K69: 39.52896 | L69: -121.52033 | M69: Tier 2-3 | N69: W12152053N3952877 | O69: W12152014N3952914 | P69: W12152053N3952877-W12152014N3952914 | Q69: 171.9 | R69: 2 | S69: 106 | T69: =COUNTIFS(TreeRange,S69,TreeFail,"Yes")*V69 -> 7 | U69: 2 | V69: 1 | W69: =COUNTIFS(TreeRange,S69,TreeOffset,"Yes") -> 0 | X69: 0 | Y69: =IFERROR(VLOOKUP($N69,PoleRange,3,FALSE),0) -> -121.52053 | Z69: =IFERROR(VLOOKUP($N69,PoleRange,2,FALSE),0) -> 39.52877 | AA69: 133.16712 | AC69: =IFERROR(VLOOKUP($O69,PoleRange,3,FALSE),0) -> -121.52014 | AD69: =IFERROR(VLOOKUP($O69,PoleRange,2,FALSE),0) -> 39.52914 | AE69: 130.97256 | AG69: =IFERROR(VLOOKUP($N69,PoleRange,6,FALSE),0) -> 400.3 | AH69: =IFERROR(VLOOKUP($O69,PoleRange,6,FALSE),0) -> 394.1 | AI69: =IFERROR(VLOOKUP($N69,PoleRange,7,FALSE),0) -> 37.6 | AJ69: =IFERROR(VLOOKUP($O69,PoleRange,7,FALSE),0) -> 36.6
J70: 107 | K70: 39.52909 | L70: -121.51923 | M70: Tier 2-3 | N70: W12151936N3952926 | O70: W12151911N3952893 | P70: W12151936N3952926-W12151911N3952893 | Q70: 141.4 | R70: 2 | S70: 107 | T70: =COUNTIFS(TreeRange,S70,TreeFail,"Yes")*V70 -> 1 | U70: 1 | V70: 1 | W70: =COUNTIFS(TreeRange,S70,TreeOffset,"Yes") -> 0 | X70: 0 | Y70: =IFERROR(VLOOKUP($N70,PoleRange,3,FALSE),0) -> -121.51936 | Z70: =IFERROR(VLOOKUP($N70,PoleRange,2,FALSE),0) -> 39.52926 | AA70: 145.96872 | AC70: =IFERROR(VLOOKUP($O70,PoleRange,3,FALSE),0) -> -121.51911 | AD70: =IFERROR(VLOOKUP($O70,PoleRange,2,FALSE),0) -> 39.52893 | AE70: 153.6192 | AG70: =IFERROR(VLOOKUP($N70,PoleRange,6,FALSE),0) -> 441.3 | AH70: =IFERROR(VLOOKUP($O70,PoleRange,6,FALSE),0) -> 461.8 | AI70: =IFERROR(VLOOKUP($N70,PoleRange,7,FALSE),0) -> 38.6 | AJ70: =IFERROR(VLOOKUP($O70,PoleRange,7,FALSE),0) -> 43.2
J71: 108 | K71: 39.5292 | L71: -121.51975 | M71: Tier 2-3 | N71: W12152014N3952914 | O71: W12151936N3952926 | P71: W12152014N3952914-W12151936N3952926 | Q71: 225.1 | R71: 2 | S71: 108 | T71: =COUNTIFS(TreeRange,S71,TreeFail,"Yes")*V71 -> 1 | U71: 1 | V71: 1 | W71: =COUNTIFS(TreeRange,S71,TreeOffset,"Yes") -> 0 | X71: 0 | Y71: =IFERROR(VLOOKUP($N71,PoleRange,3,FALSE),0) -> -121.52014 | Z71: =IFERROR(VLOOKUP($N71,PoleRange,2,FALSE),0) -> 39.52914 | AA71: 130.97256 | AC71: =IFERROR(VLOOKUP($O71,PoleRange,3,FALSE),0) -> -121.51936 | AD71: =IFERROR(VLOOKUP($O71,PoleRange,2,FALSE),0) -> 39.52926 | AE71: 145.96872 | AG71: =IFERROR(VLOOKUP($N71,PoleRange,6,FALSE),0) -> 394.1 | AH71: =IFERROR(VLOOKUP($O71,PoleRange,6,FALSE),0) -> 441.3 | AI71: =IFERROR(VLOOKUP($N71,PoleRange,7,FALSE),0) -> 36.6 | AJ71: =IFERROR(VLOOKUP($O71,PoleRange,7,FALSE),0) -> 38.6
J72: 109 | K72: 39.52927 | L72: -121.53206 | M72: Tier 2-3 | N72: W12153206N3952972 | O72: W12153206N3952881 | P72: W12153206N3952972-W12153206N3952881 | Q72: 332.2 | R72: 2 | S72: 109 | T72: =COUNTIFS(TreeRange,S72,TreeFail,"Yes")*V72 -> 0 | U72: 0 | V72: 1 | W72: =COUNTIFS(TreeRange,S72,TreeOffset,"Yes") -> 0 | X72: 0 | Y72: =IFERROR(VLOOKUP($N72,PoleRange,3,FALSE),0) -> -121.53206 | Z72: =IFERROR(VLOOKUP($N72,PoleRange,2,FALSE),0) -> 39.52972 | AA72: 141.67104 | AC72: =IFERROR(VLOOKUP($O72,PoleRange,3,FALSE),0) -> -121.53206 | AD72: =IFERROR(VLOOKUP($O72,PoleRange,2,FALSE),0) -> 39.52881 | AE72: 158.9532 | AG72: =IFERROR(VLOOKUP($N72,PoleRange,6,FALSE),0) -> 435.7 | AH72: =IFERROR(VLOOKUP($O72,PoleRange,6,FALSE),0) -> 485.2 | AI72: =IFERROR(VLOOKUP($N72,PoleRange,7,FALSE),0) -> 30.1 | AJ72: =IFERROR(VLOOKUP($O72,PoleRange,7,FALSE),0) -> 37.3
J73: 110 | K73: 39.52932 | L73: -121.52552 | M73: Tier 2-3 | N73: W12152596N3952916 | O73: W12152508N3952949 | P73: W12152596N3952916-W12152508N3952949 | Q73: 273.5 | R73: 2 | S73: 110 | T73: =COUNTIFS(TreeRange,S73,TreeFail,"Yes")*V73 -> 0 | U73: 0 | V73: 1 | W73: =COUNTIFS(TreeRange,S73,TreeOffset,"Yes") -> 0 | X73: 0 | Y73: =IFERROR(VLOOKUP($N73,PoleRange,3,FALSE),0) -> -121.52596 | Z73: =IFERROR(VLOOKUP($N73,PoleRange,2,FALSE),0) -> 39.52916 | AA73: 137.73912 | AC73: =IFERROR(VLOOKUP($O73,PoleRange,3,FALSE),0) -> -121.52508 | AD73: =IFERROR(VLOOKUP($O73,PoleRange,2,FALSE),0) -> 39.52949 | AE73: 141.51864 | AG73: =IFERROR(VLOOKUP($N73,PoleRange,6,FALSE),0) -> 413 | AH73: =IFERROR(VLOOKUP($O73,PoleRange,6,FALSE),0) -> 422 | AI73: =IFERROR(VLOOKUP($N73,PoleRange,7,FALSE),0) -> 39.9 | AJ73: =IFERROR(VLOOKUP($O73,PoleRange,7,FALSE),0) -> 43.3
J74: 111 | K74: 39.52933 | L74: -121.53537 | M74: Tier 2-3 | N74: W12153538N3952985 | O74: W12153537N3952882 | P74: W12153538N3952985-W12153537N3952882 | Q74: 374.9 | R74: 2 | S74: 111 | T74: =COUNTIFS(TreeRange,S74,TreeFail,"Yes")*V74 -> 0 | U74: 0 | V74: 1 | W74: =COUNTIFS(TreeRange,S74,TreeOffset,"Yes") -> 0 | X74: 0 | Y74: =IFERROR(VLOOKUP($N74,PoleRange,3,FALSE),0) -> -121.53538 | Z74: =IFERROR(VLOOKUP($N74,PoleRange,2,FALSE),0) -> 39.52985 | AA74: 138.9888 | AC74: =IFERROR(VLOOKUP($O74,PoleRange,3,FALSE),0) -> -121.53537 | AD74: =IFERROR(VLOOKUP($O74,PoleRange,2,FALSE),0) -> 39.52882 | AE74: 132.46608 | AG74: =IFERROR(VLOOKUP($N74,PoleRange,6,FALSE),0) -> 417.6 | AH74: =IFERROR(VLOOKUP($O74,PoleRange,6,FALSE),0) -> 400 | AI74: =IFERROR(VLOOKUP($N74,PoleRange,7,FALSE),0) -> 39.4 | AJ74: =IFERROR(VLOOKUP($O74,PoleRange,7,FALSE),0) -> 35.6
J75: 112 | K75: 39.52945 | L75: -121.52599 | M75: Tier 2-3 | N75: W12152603N3952974 | O75: W12152596N3952916 | P75: W12152603N3952974-W12152596N3952916 | Q75: 210.2 | R75: 2 | S75: 112 | T75: =COUNTIFS(TreeRange,S75,TreeFail,"Yes")*V75 -> 0 | U75: 0 | V75: 1 | W75: =COUNTIFS(TreeRange,S75,TreeOffset,"Yes") -> 0 | X75: 0 | Y75: =IFERROR(VLOOKUP($N75,PoleRange,3,FALSE),0) -> -121.52603 | Z75: =IFERROR(VLOOKUP($N75,PoleRange,2,FALSE),0) -> 39.52974 | AA75: 122.0724 | AC75: =IFERROR(VLOOKUP($O75,PoleRange,3,FALSE),0) -> -121.52596 | AD75: =IFERROR(VLOOKUP($O75,PoleRange,2,FALSE),0) -> 39.52916 | AE75: 137.73912 | AG75: =IFERROR(VLOOKUP($N75,PoleRange,6,FALSE),0) -> 371.3 | AH75: =IFERROR(VLOOKUP($O75,PoleRange,6,FALSE),0) -> 413 | AI75: =IFERROR(VLOOKUP($N75,PoleRange,7,FALSE),0) -> 30.2 | AJ75: =IFERROR(VLOOKUP($O75,PoleRange,7,FALSE),0) -> 39.9
J76: 113 | K76: 39.5295 | L76: -121.53131 | M76: Tier 2-3 | N76: W12153133N3952927 | O76: W12153130N3952973 | P76: W12153133N3952927-W12153130N3952973 | Q76: 167.4 | R76: 2 | S76: 113 | T76: =COUNTIFS(TreeRange,S76,TreeFail,"Yes")*V76 -> 0 | U76: 0 | V76: 1 | W76: =COUNTIFS(TreeRange,S76,TreeOffset,"Yes") -> 0 | X76: 0 | Y76: =IFERROR(VLOOKUP($N76,PoleRange,3,FALSE),0) -> -121.53133 | Z76: =IFERROR(VLOOKUP($N76,PoleRange,2,FALSE),0) -> 39.52927 | AA76: 150.51024 | AC76: =IFERROR(VLOOKUP($O76,PoleRange,3,FALSE),0) -> -121.5313 | AD76: =IFERROR(VLOOKUP($O76,PoleRange,2,FALSE),0) -> 39.52973 | AE76: 148.52904 | AG76: =IFERROR(VLOOKUP($N76,PoleRange,6,FALSE),0) -> 460.9 | AH76: =IFERROR(VLOOKUP($O76,PoleRange,6,FALSE),0) -> 453.1 | AI76: =IFERROR(VLOOKUP($N76,PoleRange,7,FALSE),0) -> 33.9 | AJ76: =IFERROR(VLOOKUP($O76,PoleRange,7,FALSE),0) -> 35.2
J77: 114 | K77: 39.52954 | L77: -121.52461 | M77: Tier 2-3 | N77: W12152508N3952949 | O77: W12152414N3952959 | P77: W12152508N3952949-W12152414N3952959 | Q77: 267.5 | R77: 2 | S77: 114 | T77: =COUNTIFS(TreeRange,S77,TreeFail,"Yes")*V77 -> 1 | U77: 1 | V77: 1 | W77: =COUNTIFS(TreeRange,S77,TreeOffset,"Yes") -> 0 | X77: 0 | Y77: =IFERROR(VLOOKUP($N77,PoleRange,3,FALSE),0) -> -121.52508 | Z77: =IFERROR(VLOOKUP($N77,PoleRange,2,FALSE),0) -> 39.52949 | AA77: 141.51864 | AC77: =IFERROR(VLOOKUP($O77,PoleRange,3,FALSE),0) -> -121.52414 | AD77: =IFERROR(VLOOKUP($O77,PoleRange,2,FALSE),0) -> 39.52959 | AE77: 140.54328 | AG77: =IFERROR(VLOOKUP($N77,PoleRange,6,FALSE),0) -> 422 | AH77: =IFERROR(VLOOKUP($O77,PoleRange,6,FALSE),0) -> 422.2 | AI77: =IFERROR(VLOOKUP($N77,PoleRange,7,FALSE),0) -> 43.3 | AJ77: =IFERROR(VLOOKUP($O77,PoleRange,7,FALSE),0) -> 39.9
J78: 115 | K78: 39.52962 | L78: -121.52382 | M78: Tier 2-3 | N78: W12152414N3952959 | O78: W12152351N3952966 | P78: W12152414N3952959-W12152351N3952966 | Q78: 181.7 | R78: 2 | S78: 115 | T78: =COUNTIFS(TreeRange,S78,TreeFail,"Yes")*V78 -> 0 | U78: 0 | V78: 1 | W78: =COUNTIFS(TreeRange,S78,TreeOffset,"Yes") -> 0 | X78: 0 | Y78: =IFERROR(VLOOKUP($N78,PoleRange,3,FALSE),0) -> -121.52414 | Z78: =IFERROR(VLOOKUP($N78,PoleRange,2,FALSE),0) -> 39.52959 | AA78: 140.54328 | AC78: =IFERROR(VLOOKUP($O78,PoleRange,3,FALSE),0) -> -121.52351 | AD78: =IFERROR(VLOOKUP($O78,PoleRange,2,FALSE),0) -> 39.52966 | AE78: 140.45184 | AG78: =IFERROR(VLOOKUP($N78,PoleRange,6,FALSE),0) -> 422.2 | AH78: =IFERROR(VLOOKUP($O78,PoleRange,6,FALSE),0) -> 422.2 | AI78: =IFERROR(VLOOKUP($N78,PoleRange,7,FALSE),0) -> 39.9 | AJ78: =IFERROR(VLOOKUP($O78,PoleRange,7,FALSE),0) -> 39.6
J79: 116 | K79: 39.52972 | L79: -121.53312 | M79: Tier 2-3 | N79: W12153284N3952973 | O79: W12153340N3952972 | P79: W12153284N3952973-W12153340N3952972 | Q79: 156.2 | R79: 2 | S79: 116 | T79: =COUNTIFS(TreeRange,S79,TreeFail,"Yes")*V79 -> 0 | U79: 0 | V79: 1 | W79: =COUNTIFS(TreeRange,S79,TreeOffset,"Yes") -> 0 | X79: 0 | Y79: =IFERROR(VLOOKUP($N79,PoleRange,3,FALSE),0) -> -121.53284 | Z79: =IFERROR(VLOOKUP($N79,PoleRange,2,FALSE),0) -> 39.52973 | AA79: 138.65352 | AC79: =IFERROR(VLOOKUP($O79,PoleRange,3,FALSE),0) -> -121.5334 | AD79: =IFERROR(VLOOKUP($O79,PoleRange,2,FALSE),0) -> 39.52972 | AE79: 135.72744 | AG79: =IFERROR(VLOOKUP($N79,PoleRange,6,FALSE),0) -> 416.2 | AH79: =IFERROR(VLOOKUP($O79,PoleRange,6,FALSE),0) -> 408.4 | AI79: =IFERROR(VLOOKUP($N79,PoleRange,7,FALSE),0) -> 39.7 | AJ79: =IFERROR(VLOOKUP($O79,PoleRange,7,FALSE),0) -> 37.9
J80: 117 | K80: 39.52972 | L80: -121.53028 | M80: Tier 2-3 | N80: W12153068N3952972 | O80: W12152988N3952972 | P80: W12153068N3952972-W12152988N3952972 | Q80: 225.7 | R80: 2 | S80: 117 | T80: =COUNTIFS(TreeRange,S80,TreeFail,"Yes")*V80 -> 2 | U80: 1 | V80: 1 | W80: =COUNTIFS(TreeRange,S80,TreeOffset,"Yes") -> 0 | X80: 0 | Y80: =IFERROR(VLOOKUP($N80,PoleRange,3,FALSE),0) -> -121.53068 | Z80: =IFERROR(VLOOKUP($N80,PoleRange,2,FALSE),0) -> 39.52972 | AA80: 150.05304 | AC80: =IFERROR(VLOOKUP($O80,PoleRange,3,FALSE),0) -> -121.52988 | AD80: =IFERROR(VLOOKUP($O80,PoleRange,2,FALSE),0) -> 39.52972 | AE80: 144.44472 | AG80: =IFERROR(VLOOKUP($N80,PoleRange,6,FALSE),0) -> 455.6 | AH80: =IFERROR(VLOOKUP($O80,PoleRange,6,FALSE),0) -> 436 | AI80: =IFERROR(VLOOKUP($N80,PoleRange,7,FALSE),0) -> 37.7 | AJ80: =IFERROR(VLOOKUP($O80,PoleRange,7,FALSE),0) -> 38.9
J81: 118 | K81: 39.52973 | L81: -121.53245 | M81: Tier 2-3 | N81: W12153284N3952973 | O81: W12153206N3952972 | P81: W12153284N3952973-W12153206N3952972 | Q81: 221.5 | R81: 2 | S81: 118 | T81: =COUNTIFS(TreeRange,S81,TreeFail,"Yes")*V81 -> 0 | U81: 0 | V81: 1 | W81: =COUNTIFS(TreeRange,S81,TreeOffset,"Yes") -> 0 | X81: 0 | Y81: =IFERROR(VLOOKUP($N81,PoleRange,3,FALSE),0) -> -121.53284 | Z81: =IFERROR(VLOOKUP($N81,PoleRange,2,FALSE),0) -> 39.52973 | AA81: 138.65352 | AC81: =IFERROR(VLOOKUP($O81,PoleRange,3,FALSE),0) -> -121.53206 | AD81: =IFERROR(VLOOKUP($O81,PoleRange,2,FALSE),0) -> 39.52972 | AE81: 141.67104 | AG81: =IFERROR(VLOOKUP($N81,PoleRange,6,FALSE),0) -> 416.2 | AH81: =IFERROR(VLOOKUP($O81,PoleRange,6,FALSE),0) -> 435.7 | AI81: =IFERROR(VLOOKUP($N81,PoleRange,7,FALSE),0) -> 39.7 | AJ81: =IFERROR(VLOOKUP($O81,PoleRange,7,FALSE),0) -> 30.1
J82: 119 | K82: 39.52973 | L82: -121.53168 | M82: Tier 2-3 | N82: W12153206N3952972 | O82: W12153130N3952973 | P82: W12153206N3952972-W12153130N3952973 | Q82: 214 | R82: 2 | S82: 119 | T82: =COUNTIFS(TreeRange,S82,TreeFail,"Yes")*V82 -> 0 | U82: 0 | V82: 1 | W82: =COUNTIFS(TreeRange,S82,TreeOffset,"Yes") -> 0 | X82: 0 | Y82: =IFERROR(VLOOKUP($N82,PoleRange,3,FALSE),0) -> -121.53206 | Z82: =IFERROR(VLOOKUP($N82,PoleRange,2,FALSE),0) -> 39.52972 | AA82: 141.67104 | AC82: =IFERROR(VLOOKUP($O82,PoleRange,3,FALSE),0) -> -121.5313 | AD82: =IFERROR(VLOOKUP($O82,PoleRange,2,FALSE),0) -> 39.52973 | AE82: 148.52904 | AG82: =IFERROR(VLOOKUP($N82,PoleRange,6,FALSE),0) -> 435.7 | AH82: =IFERROR(VLOOKUP($O82,PoleRange,6,FALSE),0) -> 453.1 | AI82: =IFERROR(VLOOKUP($N82,PoleRange,7,FALSE),0) -> 30.1 | AJ82: =IFERROR(VLOOKUP($O82,PoleRange,7,FALSE),0) -> 35.2
J83: 120 | K83: 39.52973 | L83: -121.53099 | M83: Tier 2-3 | N83: W12153130N3952973 | O83: W12153068N3952972 | P83: W12153130N3952973-W12153068N3952972 | Q83: 175.2 | R83: 2 | S83: 120 | T83: =COUNTIFS(TreeRange,S83,TreeFail,"Yes")*V83 -> 0 | U83: 0 | V83: 1 | W83: =COUNTIFS(TreeRange,S83,TreeOffset,"Yes") -> 0 | X83: 0 | Y83: =IFERROR(VLOOKUP($N83,PoleRange,3,FALSE),0) -> -121.5313 | Z83: =IFERROR(VLOOKUP($N83,PoleRange,2,FALSE),0) -> 39.52973 | AA83: 148.52904 | AC83: =IFERROR(VLOOKUP($O83,PoleRange,3,FALSE),0) -> -121.53068 | AD83: =IFERROR(VLOOKUP($O83,PoleRange,2,FALSE),0) -> 39.52972 | AE83: 150.05304 | AG83: =IFERROR(VLOOKUP($N83,PoleRange,6,FALSE),0) -> 453.1 | AH83: =IFERROR(VLOOKUP($O83,PoleRange,6,FALSE),0) -> 455.6 | AI83: =IFERROR(VLOOKUP($N83,PoleRange,7,FALSE),0) -> 35.2 | AJ83: =IFERROR(VLOOKUP($O83,PoleRange,7,FALSE),0) -> 37.7
J84: 121 | K84: 39.52974 | L84: -121.51971 | M84: Tier 2-3 | N84: W12152005N3953021 | O84: W12151936N3952926 | P84: W12152005N3953021-W12151936N3952926 | Q84: 398 | R84: 2 | S84: 121 | T84: =COUNTIFS(TreeRange,S84,TreeFail,"Yes")*V84 -> 1 | U84: 1 | V84: 1 | W84: =COUNTIFS(TreeRange,S84,TreeOffset,"Yes") -> 0 | X84: 0 | Y84: =IFERROR(VLOOKUP($N84,PoleRange,3,FALSE),0) -> -121.52005 | Z84: =IFERROR(VLOOKUP($N84,PoleRange,2,FALSE),0) -> 39.53021 | AA84: 126.21768 | AC84: =IFERROR(VLOOKUP($O84,PoleRange,3,FALSE),0) -> -121.51936 | AD84: =IFERROR(VLOOKUP($O84,PoleRange,2,FALSE),0) -> 39.52926 | AE84: 145.96872 | AG84: =IFERROR(VLOOKUP($N84,PoleRange,6,FALSE),0) -> 373.7 | AH84: =IFERROR(VLOOKUP($O84,PoleRange,6,FALSE),0) -> 441.3 | AI84: =IFERROR(VLOOKUP($N84,PoleRange,7,FALSE),0) -> 41.4 | AJ84: =IFERROR(VLOOKUP($O84,PoleRange,7,FALSE),0) -> 38.6
J85: 122 | K85: 39.52979 | L85: -121.52317 | M85: Tier 2-3 | N85: W12152351N3952966 | O85: W12152284N3952992 | P85: W12152351N3952966-W12152284N3952992 | Q85: 210.7 | R85: 2 | S85: 122 | T85: =COUNTIFS(TreeRange,S85,TreeFail,"Yes")*V85 -> 0 | U85: 0 | V85: 1 | W85: =COUNTIFS(TreeRange,S85,TreeOffset,"Yes") -> 0 | X85: 0 | Y85: =IFERROR(VLOOKUP($N85,PoleRange,3,FALSE),0) -> -121.52351 | Z85: =IFERROR(VLOOKUP($N85,PoleRange,2,FALSE),0) -> 39.52966 | AA85: 140.45184 | AC85: =IFERROR(VLOOKUP($O85,PoleRange,3,FALSE),0) -> -121.52284 | AD85: =IFERROR(VLOOKUP($O85,PoleRange,2,FALSE),0) -> 39.52992 | AE85: 142.67688 | AG85: =IFERROR(VLOOKUP($N85,PoleRange,6,FALSE),0) -> 422.2 | AH85: =IFERROR(VLOOKUP($O85,PoleRange,6,FALSE),0) -> 426.2 | AI85: =IFERROR(VLOOKUP($N85,PoleRange,7,FALSE),0) -> 39.6 | AJ85: =IFERROR(VLOOKUP($O85,PoleRange,7,FALSE),0) -> 42.9
J86: 123 | K86: 39.5299 | L86: -121.52091 | M86: Tier 2-3 | N86: W12152091N3953014 | O86: W12152091N3952965 | P86: W12152091N3953014-W12152091N3952965 | Q86: 178.3 | R86: 2 | S86: 123 | T86: =COUNTIFS(TreeRange,S86,TreeFail,"Yes")*V86 -> 1 | U86: 1 | V86: 1 | W86: =COUNTIFS(TreeRange,S86,TreeOffset,"Yes") -> 0 | X86: 0 | Y86: =IFERROR(VLOOKUP($N86,PoleRange,3,FALSE),0) -> -121.52091 | Z86: =IFERROR(VLOOKUP($N86,PoleRange,2,FALSE),0) -> 39.53014 | AA86: 127.49784 | AC86: =IFERROR(VLOOKUP($O86,PoleRange,3,FALSE),0) -> -121.52091 | AD86: =IFERROR(VLOOKUP($O86,PoleRange,2,FALSE),0) -> 39.52965 | AE86: 131.88696 | AG86: =IFERROR(VLOOKUP($N86,PoleRange,6,FALSE),0) -> 384 | AH86: =IFERROR(VLOOKUP($O86,PoleRange,6,FALSE),0) -> 393.8 | AI86: =IFERROR(VLOOKUP($N86,PoleRange,7,FALSE),0) -> 35.3 | AJ86: =IFERROR(VLOOKUP($O86,PoleRange,7,FALSE),0) -> 39.9
J87: 124 | K87: 39.52995 | L87: -121.53206 | M87: Tier 2-3 | N87: W12153206N3952972 | O87: W12153206N3953018 | P87: W12153206N3952972-W12153206N3953018 | Q87: 166.3 | R87: 2 | S87: 124 | T87: =COUNTIFS(TreeRange,S87,TreeFail,"Yes")*V87 -> 0 | U87: 0 | V87: 1 | W87: =COUNTIFS(TreeRange,S87,TreeOffset,"Yes") -> 0 | X87: 0 | Y87: =IFERROR(VLOOKUP($N87,PoleRange,3,FALSE),0) -> -121.53206 | Z87: =IFERROR(VLOOKUP($N87,PoleRange,2,FALSE),0) -> 39.52972 | AA87: 141.67104 | AC87: =IFERROR(VLOOKUP($O87,PoleRange,3,FALSE),0) -> -121.53206 | AD87: =IFERROR(VLOOKUP($O87,PoleRange,2,FALSE),0) -> 39.53018 | AE87: 145.60296 | AG87: =IFERROR(VLOOKUP($N87,PoleRange,6,FALSE),0) -> 435.7 | AH87: =IFERROR(VLOOKUP($O87,PoleRange,6,FALSE),0) -> 444.3 | AI87: =IFERROR(VLOOKUP($N87,PoleRange,7,FALSE),0) -> 30.1 | AJ87: =IFERROR(VLOOKUP($O87,PoleRange,7,FALSE),0) -> 34.4
J88: 125 | K88: 39.53002 | L88: -121.52234 | M88: Tier 2-3 | N88: W12152184N3953012 | O88: W12152284N3952992 | P88: W12152184N3953012-W12152284N3952992 | Q88: 290.1 | R88: 2 | S88: 125 | T88: =COUNTIFS(TreeRange,S88,TreeFail,"Yes")*V88 -> 0 | U88: 0 | V88: 1 | W88: =COUNTIFS(TreeRange,S88,TreeOffset,"Yes") -> 0 | X88: 0 | Y88: =IFERROR(VLOOKUP($N88,PoleRange,3,FALSE),0) -> -121.52184 | Z88: =IFERROR(VLOOKUP($N88,PoleRange,2,FALSE),0) -> 39.53012 | AA88: 135.42264 | AC88: =IFERROR(VLOOKUP($O88,PoleRange,3,FALSE),0) -> -121.52284 | AD88: =IFERROR(VLOOKUP($O88,PoleRange,2,FALSE),0) -> 39.52992 | AE88: 142.67688 | AG88: =IFERROR(VLOOKUP($N88,PoleRange,6,FALSE),0) -> 406 | AH88: =IFERROR(VLOOKUP($O88,PoleRange,6,FALSE),0) -> 426.2 | AI88: =IFERROR(VLOOKUP($N88,PoleRange,7,FALSE),0) -> 39.3 | AJ88: =IFERROR(VLOOKUP($O88,PoleRange,7,FALSE),0) -> 42.9
J89: 126 | K89: 39.53013 | L89: -121.52138 | M89: Tier 2-3 | N89: W12152091N3953014 | O89: W12152184N3953012 | P89: W12152091N3953014-W12152184N3953012 | Q89: 264.5 | R89: 2 | S89: 126 | T89: =COUNTIFS(TreeRange,S89,TreeFail,"Yes")*V89 -> 0 | U89: 0 | V89: 1 | W89: =COUNTIFS(TreeRange,S89,TreeOffset,"Yes") -> 0 | X89: 0 | Y89: =IFERROR(VLOOKUP($N89,PoleRange,3,FALSE),0) -> -121.52091 | Z89: =IFERROR(VLOOKUP($N89,PoleRange,2,FALSE),0) -> 39.53014 | AA89: 127.49784 | AC89: =IFERROR(VLOOKUP($O89,PoleRange,3,FALSE),0) -> -121.52184 | AD89: =IFERROR(VLOOKUP($O89,PoleRange,2,FALSE),0) -> 39.53012 | AE89: 135.42264 | AG89: =IFERROR(VLOOKUP($N89,PoleRange,6,FALSE),0) -> 384 | AH89: =IFERROR(VLOOKUP($O89,PoleRange,6,FALSE),0) -> 406 | AI89: =IFERROR(VLOOKUP($N89,PoleRange,7,FALSE),0) -> 35.3 | AJ89: =IFERROR(VLOOKUP($O89,PoleRange,7,FALSE),0) -> 39.3
J90: 127 | K90: 39.53018 | L90: -121.52048 | M90: Tier 2-3 | N90: W12152005N3953021 | O90: W12152091N3953014 | P90: W12152005N3953021-W12152091N3953014 | Q90: 241.7 | R90: 2 | S90: 127 | T90: =COUNTIFS(TreeRange,S90,TreeFail,"Yes")*V90 -> 2 | U90: 1 | V90: 1 | W90: =COUNTIFS(TreeRange,S90,TreeOffset,"Yes") -> 0 | X90: 0 | Y90: =IFERROR(VLOOKUP($N90,PoleRange,3,FALSE),0) -> -121.52005 | Z90: =IFERROR(VLOOKUP($N90,PoleRange,2,FALSE),0) -> 39.53021 | AA90: 126.21768 | AC90: =IFERROR(VLOOKUP($O90,PoleRange,3,FALSE),0) -> -121.52091 | AD90: =IFERROR(VLOOKUP($O90,PoleRange,2,FALSE),0) -> 39.53014 | AE90: 127.49784 | AG90: =IFERROR(VLOOKUP($N90,PoleRange,6,FALSE),0) -> 373.7 | AH90: =IFERROR(VLOOKUP($O90,PoleRange,6,FALSE),0) -> 384 | AI90: =IFERROR(VLOOKUP($N90,PoleRange,7,FALSE),0) -> 41.4 | AJ90: =IFERROR(VLOOKUP($O90,PoleRange,7,FALSE),0) -> 35.3
J91: 128 | K91: 39.53019 | L91: -121.52603 | M91: Tier 2-3 | N91: W12152603N3953064 | O91: W12152603N3952974 | P91: W12152603N3953064-W12152603N3952974 | Q91: 329.1 | R91: 2 | S91: 128 | T91: =COUNTIFS(TreeRange,S91,TreeFail,"Yes")*V91 -> 0 | U91: 0 | V91: 1 | W91: =COUNTIFS(TreeRange,S91,TreeOffset,"Yes") -> 0 | X91: 0 | Y91: =IFERROR(VLOOKUP($N91,PoleRange,3,FALSE),0) -> -121.52603 | Z91: =IFERROR(VLOOKUP($N91,PoleRange,2,FALSE),0) -> 39.53064 | AA91: 111.8616 | AC91: =IFERROR(VLOOKUP($O91,PoleRange,3,FALSE),0) -> -121.52603 | AD91: =IFERROR(VLOOKUP($O91,PoleRange,2,FALSE),0) -> 39.52974 | AE91: 122.0724 | AG91: =IFERROR(VLOOKUP($N91,PoleRange,6,FALSE),0) -> 337.6 | AH91: =IFERROR(VLOOKUP($O91,PoleRange,6,FALSE),0) -> 371.3 | AI91: =IFERROR(VLOOKUP($N91,PoleRange,7,FALSE),0) -> 30.4 | AJ91: =IFERROR(VLOOKUP($O91,PoleRange,7,FALSE),0) -> 30.2
J92: 129 | K92: 39.53024 | L92: -121.53538 | M92: Tier 2-3 | N92: W12153538N3952985 | O92: W12153538N3953063 | P92: W12153538N3952985-W12153538N3953063 | Q92: 283.3 | R92: 2 | S92: 129 | T92: =COUNTIFS(TreeRange,S92,TreeFail,"Yes")*V92 -> 0 | U92: 0 | V92: 1 | W92: =COUNTIFS(TreeRange,S92,TreeOffset,"Yes") -> 0 | X92: 0 | Y92: =IFERROR(VLOOKUP($N92,PoleRange,3,FALSE),0) -> -121.53538 | Z92: =IFERROR(VLOOKUP($N92,PoleRange,2,FALSE),0) -> 39.52985 | AA92: 138.9888 | AC92: =IFERROR(VLOOKUP($O92,PoleRange,3,FALSE),0) -> -121.53538 | AD92: =IFERROR(VLOOKUP($O92,PoleRange,2,FALSE),0) -> 39.53063 | AE92: 128.83896 | AG92: =IFERROR(VLOOKUP($N92,PoleRange,6,FALSE),0) -> 417.6 | AH92: =IFERROR(VLOOKUP($O92,PoleRange,6,FALSE),0) -> 389.5 | AI92: =IFERROR(VLOOKUP($N92,PoleRange,7,FALSE),0) -> 39.4 | AJ92: =IFERROR(VLOOKUP($O92,PoleRange,7,FALSE),0) -> 34.2
J93: 130 | K93: 39.53033 | L93: -121.53206 | M93: Tier 2-3 | N93: W12153206N3953018 | O93: W12153206N3953048 | P93: W12153206N3953018-W12153206N3953048 | Q93: 109.5 | R93: 2 | S93: 130 | T93: =COUNTIFS(TreeRange,S93,TreeFail,"Yes")*V93 -> 0 | U93: 0 | V93: 1 | W93: =COUNTIFS(TreeRange,S93,TreeOffset,"Yes") -> 0 | X93: 0 | Y93: =IFERROR(VLOOKUP($N93,PoleRange,3,FALSE),0) -> -121.53206 | Z93: =IFERROR(VLOOKUP($N93,PoleRange,2,FALSE),0) -> 39.53018 | AA93: 145.60296 | AC93: =IFERROR(VLOOKUP($O93,PoleRange,3,FALSE),0) -> -121.53206 | AD93: =IFERROR(VLOOKUP($O93,PoleRange,2,FALSE),0) -> 39.53048 | AE93: 145.05432 | AG93: =IFERROR(VLOOKUP($N93,PoleRange,6,FALSE),0) -> 444.3 | AH93: =IFERROR(VLOOKUP($O93,PoleRange,6,FALSE),0) -> 441.5 | AI93: =IFERROR(VLOOKUP($N93,PoleRange,7,FALSE),0) -> 34.4 | AJ93: =IFERROR(VLOOKUP($O93,PoleRange,7,FALSE),0) -> 35.4
J94: 131 | K94: 39.53047 | L94: -121.53339 | M94: Tier 2-3 | N94: W12153323N3953048 | O94: W12153355N3953046 | P94: W12153323N3953048-W12153355N3953046 | Q94: 90.6 | R94: 2 | S94: 131 | T94: =COUNTIFS(TreeRange,S94,TreeFail,"Yes")*V94 -> 0 | U94: 0 | V94: 1 | W94: =COUNTIFS(TreeRange,S94,TreeOffset,"Yes") -> 0 | X94: 0 | Y94: =IFERROR(VLOOKUP($N94,PoleRange,3,FALSE),0) -> -121.53323 | Z94: =IFERROR(VLOOKUP($N94,PoleRange,2,FALSE),0) -> 39.53048 | AA94: 133.31952 | AC94: =IFERROR(VLOOKUP($O94,PoleRange,3,FALSE),0) -> -121.53355 | AD94: =IFERROR(VLOOKUP($O94,PoleRange,2,FALSE),0) -> 39.53046 | AE94: 134.63016 | AG94: =IFERROR(VLOOKUP($N94,PoleRange,6,FALSE),0) -> 405.2 | AH94: =IFERROR(VLOOKUP($O94,PoleRange,6,FALSE),0) -> 408.6 | AI94: =IFERROR(VLOOKUP($N94,PoleRange,7,FALSE),0) -> 33.2 | AJ94: =IFERROR(VLOOKUP($O94,PoleRange,7,FALSE),0) -> 34.1
J95: 132 | K95: 39.53048 | L95: -121.53296 | M95: Tier 2-3 | N95: W12153269N3953048 | O95: W12153323N3953048 | P95: W12153269N3953048-W12153323N3953048 | Q95: 153.8 | R95: 2 | S95: 132 | T95: =COUNTIFS(TreeRange,S95,TreeFail,"Yes")*V95 -> 3 | U95: 1 | V95: 1 | W95: =COUNTIFS(TreeRange,S95,TreeOffset,"Yes") -> 0 | X95: 0 | Y95: =IFERROR(VLOOKUP($N95,PoleRange,3,FALSE),0) -> -121.53269 | Z95: =IFERROR(VLOOKUP($N95,PoleRange,2,FALSE),0) -> 39.53048 | AA95: 139.56792 | AC95: =IFERROR(VLOOKUP($O95,PoleRange,3,FALSE),0) -> -121.53323 | AD95: =IFERROR(VLOOKUP($O95,PoleRange,2,FALSE),0) -> 39.53048 | AE95: 133.31952 | AG95: =IFERROR(VLOOKUP($N95,PoleRange,6,FALSE),0) -> 423.6 | AH95: =IFERROR(VLOOKUP($O95,PoleRange,6,FALSE),0) -> 405.2 | AI95: =IFERROR(VLOOKUP($N95,PoleRange,7,FALSE),0) -> 35.3 | AJ95: =IFERROR(VLOOKUP($O95,PoleRange,7,FALSE),0) -> 33.2
J96: 133 | K96: 39.53048 | L96: -121.53238 | M96: Tier 2-3 | N96: W12153269N3953048 | O96: W12153206N3953048 | P96: W12153269N3953048-W12153206N3953048 | Q96: 176.5 | R96: 2 | S96: 133 | T96: =COUNTIFS(TreeRange,S96,TreeFail,"Yes")*V96 -> 1 | U96: 1 | V96: 1 | W96: =COUNTIFS(TreeRange,S96,TreeOffset,"Yes") -> 0 | X96: 0 | Y96: =IFERROR(VLOOKUP($N96,PoleRange,3,FALSE),0) -> -121.53269 | Z96: =IFERROR(VLOOKUP($N96,PoleRange,2,FALSE),0) -> 39.53048 | AA96: 139.56792 | AC96: =IFERROR(VLOOKUP($O96,PoleRange,3,FALSE),0) -> -121.53206 | AD96: =IFERROR(VLOOKUP($O96,PoleRange,2,FALSE),0) -> 39.53048 | AE96: 145.05432 | AG96: =IFERROR(VLOOKUP($N96,PoleRange,6,FALSE),0) -> 423.6 | AH96: =IFERROR(VLOOKUP($O96,PoleRange,6,FALSE),0) -> 441.5 | AI96: =IFERROR(VLOOKUP($N96,PoleRange,7,FALSE),0) -> 35.3 | AJ96: =IFERROR(VLOOKUP($O96,PoleRange,7,FALSE),0) -> 35.4
J97: 134 | K97: 39.53048 | L97: -121.53181 | M97: Tier 2-3 | N97: W12153157N3953048 | O97: W12153206N3953048 | P97: W12153157N3953048-W12153206N3953048 | Q97: 140.1 | R97: 2 | S97: 134 | T97: =COUNTIFS(TreeRange,S97,TreeFail,"Yes")*V97 -> 0 | U97: 0 | V97: 1 | W97: =COUNTIFS(TreeRange,S97,TreeOffset,"Yes") -> 0 | X97: 0 | Y97: =IFERROR(VLOOKUP($N97,PoleRange,3,FALSE),0) -> -121.53157 | Z97: =IFERROR(VLOOKUP($N97,PoleRange,2,FALSE),0) -> 39.53048 | AA97: 146.54784 | AC97: =IFERROR(VLOOKUP($O97,PoleRange,3,FALSE),0) -> -121.53206 | AD97: =IFERROR(VLOOKUP($O97,PoleRange,2,FALSE),0) -> 39.53048 | AE97: 145.05432 | AG97: =IFERROR(VLOOKUP($N97,PoleRange,6,FALSE),0) -> 447.1 | AH97: =IFERROR(VLOOKUP($O97,PoleRange,6,FALSE),0) -> 441.5 | AI97: =IFERROR(VLOOKUP($N97,PoleRange,7,FALSE),0) -> 34.7 | AJ97: =IFERROR(VLOOKUP($O97,PoleRange,7,FALSE),0) -> 35.4
J98: 135 | K98: 39.53048 | L98: -121.53134 | M98: Tier 2-3 | N98: W12153157N3953048 | O98: W12153111N3953048 | P98: W12153157N3953048-W12153111N3953048 | Q98: 128.8 | R98: 2 | S98: 135 | T98: =COUNTIFS(TreeRange,S98,TreeFail,"Yes")*V98 -> 0 | U98: 0 | V98: 1 | W98: =COUNTIFS(TreeRange,S98,TreeOffset,"Yes") -> 0 | X98: 0 | Y98: =IFERROR(VLOOKUP($N98,PoleRange,3,FALSE),0) -> -121.53157 | Z98: =IFERROR(VLOOKUP($N98,PoleRange,2,FALSE),0) -> 39.53048 | AA98: 146.54784 | AC98: =IFERROR(VLOOKUP($O98,PoleRange,3,FALSE),0) -> -121.53111 | AD98: =IFERROR(VLOOKUP($O98,PoleRange,2,FALSE),0) -> 39.53048 | AE98: 146.24304 | AG98: =IFERROR(VLOOKUP($N98,PoleRange,6,FALSE),0) -> 447.1 | AH98: =IFERROR(VLOOKUP($O98,PoleRange,6,FALSE),0) -> 451 | AI98: =IFERROR(VLOOKUP($N98,PoleRange,7,FALSE),0) -> 34.7 | AJ98: =IFERROR(VLOOKUP($O98,PoleRange,7,FALSE),0) -> 29.8
J99: 136 | K99: 39.53055 | L99: -121.51964 | M99: Tier 2-3 | N99: W12152005N3953021 | O99: W12151923N3953089 | P99: W12152005N3953021-W12151923N3953089 | Q99: 336.9 | R99: 2 | S99: 136 | T99: =COUNTIFS(TreeRange,S99,TreeFail,"Yes")*V99 -> 2 | U99: 1 | V99: 1 | W99: =COUNTIFS(TreeRange,S99,TreeOffset,"Yes") -> 0 | X99: 0 | Y99: =IFERROR(VLOOKUP($N99,PoleRange,3,FALSE),0) -> -121.52005 | Z99: =IFERROR(VLOOKUP($N99,PoleRange,2,FALSE),0) -> 39.53021 | AA99: 126.21768 | AC99: =IFERROR(VLOOKUP($O99,PoleRange,3,FALSE),0) -> -121.51923 | AD99: =IFERROR(VLOOKUP($O99,PoleRange,2,FALSE),0) -> 39.53089 | AE99: 120.18264 | AG99: =IFERROR(VLOOKUP($N99,PoleRange,6,FALSE),0) -> 373.7 | AH99: =IFERROR(VLOOKUP($O99,PoleRange,6,FALSE),0) -> 361.4 | AI99: =IFERROR(VLOOKUP($N99,PoleRange,7,FALSE),0) -> 41.4 | AJ99: =IFERROR(VLOOKUP($O99,PoleRange,7,FALSE),0) -> 33.9
J100: 137 | K100: 39.53063 | L100: -121.53875 | M100: Tier 2-3 | N100: W12153843N3953063 | O100: W12153908N3953063 | P100: W12153843N3953063-W12153908N3953063 | Q100: 182.3 | R100: 2 | S100: 137 | T100: =COUNTIFS(TreeRange,S100,TreeFail,"Yes")*V100 -> 0 | U100: 0 | V100: 1 | W100: =COUNTIFS(TreeRange,S100,TreeOffset,"Yes") -> 0 | X100: 0 | Y100: =IFERROR(VLOOKUP($N100,PoleRange,3,FALSE),0) -> -121.53843 | Z100: =IFERROR(VLOOKUP($N100,PoleRange,2,FALSE),0) -> 39.53063 | AA100: 111.00816 | AC100: =IFERROR(VLOOKUP($O100,PoleRange,3,FALSE),0) -> -121.53908 | AD100: =IFERROR(VLOOKUP($O100,PoleRange,2,FALSE),0) -> 39.53063 | AE100: 112.89792 | AG100: =IFERROR(VLOOKUP($N100,PoleRange,6,FALSE),0) -> 334.5 | AH100: =IFERROR(VLOOKUP($O100,PoleRange,6,FALSE),0) -> 335.3 | AI100: =IFERROR(VLOOKUP($N100,PoleRange,7,FALSE),0) -> 30.7 | AJ100: =IFERROR(VLOOKUP($O100,PoleRange,7,FALSE),0) -> 36.1
J101: 138 | K101: 39.53063 | L101: -121.53807 | M101: Tier 2-3 | N101: W12153843N3953063 | O101: W12153771N3953063 | P101: W12153843N3953063-W12153771N3953063 | Q101: 203.2 | R101: 2 | S101: 138 | T101: =COUNTIFS(TreeRange,S101,TreeFail,"Yes")*V101 -> 0 | U101: 0 | V101: 1 | W101: =COUNTIFS(TreeRange,S101,TreeOffset,"Yes") -> 0 | X101: 0 | Y101: =IFERROR(VLOOKUP($N101,PoleRange,3,FALSE),0) -> -121.53843 | Z101: =IFERROR(VLOOKUP($N101,PoleRange,2,FALSE),0) -> 39.53063 | AA101: 111.00816 | AC101: =IFERROR(VLOOKUP($O101,PoleRange,3,FALSE),0) -> -121.53771 | AD101: =IFERROR(VLOOKUP($O101,PoleRange,2,FALSE),0) -> 39.53063 | AE101: 109.33176 | AG101: =IFERROR(VLOOKUP($N101,PoleRange,6,FALSE),0) -> 334.5 | AH101: =IFERROR(VLOOKUP($O101,PoleRange,6,FALSE),0) -> 324.5 | AI101: =IFERROR(VLOOKUP($N101,PoleRange,7,FALSE),0) -> 30.7 | AJ101: =IFERROR(VLOOKUP($O101,PoleRange,7,FALSE),0) -> 35.2
J102: 139 | K102: 39.53063 | L102: -121.53713 | M102: Tier 2-3 | N102: W12153655N3953063 | O102: W12153771N3953063 | P102: W12153655N3953063-W12153771N3953063 | Q102: 328.2 | R102: 2 | S102: 139 | T102: =COUNTIFS(TreeRange,S102,TreeFail,"Yes")*V102 -> 0 | U102: 0 | V102: 1 | W102: =COUNTIFS(TreeRange,S102,TreeOffset,"Yes") -> 0 | X102: 0 | Y102: =IFERROR(VLOOKUP($N102,PoleRange,3,FALSE),0) -> -121.53655 | Z102: =IFERROR(VLOOKUP($N102,PoleRange,2,FALSE),0) -> 39.53063 | AA102: 116.03736 | AC102: =IFERROR(VLOOKUP($O102,PoleRange,3,FALSE),0) -> -121.53771 | AD102: =IFERROR(VLOOKUP($O102,PoleRange,2,FALSE),0) -> 39.53063 | AE102: 109.33176 | AG102: =IFERROR(VLOOKUP($N102,PoleRange,6,FALSE),0) -> 346.9 | AH102: =IFERROR(VLOOKUP($O102,PoleRange,6,FALSE),0) -> 324.5 | AI102: =IFERROR(VLOOKUP($N102,PoleRange,7,FALSE),0) -> 34.8 | AJ102: =IFERROR(VLOOKUP($O102,PoleRange,7,FALSE),0) -> 35.2
J103: 140 | K103: 39.53063 | L103: -121.53596 | M103: Tier 2-3 | N103: W12153655N3953063 | O103: W12153538N3953063 | P103: W12153655N3953063-W12153538N3953063 | Q103: 329.2 | R103: 2 | S103: 140 | T103: =COUNTIFS(TreeRange,S103,TreeFail,"Yes")*V103 -> 0 | U103: 0 | V103: 1 | W103: =COUNTIFS(TreeRange,S103,TreeOffset,"Yes") -> 0 | X103: 0 | Y103: =IFERROR(VLOOKUP($N103,PoleRange,3,FALSE),0) -> -121.53655 | Z103: =IFERROR(VLOOKUP($N103,PoleRange,2,FALSE),0) -> 39.53063 | AA103: 116.03736 | AC103: =IFERROR(VLOOKUP($O103,PoleRange,3,FALSE),0) -> -121.53538 | AD103: =IFERROR(VLOOKUP($O103,PoleRange,2,FALSE),0) -> 39.53063 | AE103: 128.83896 | AG103: =IFERROR(VLOOKUP($N103,PoleRange,6,FALSE),0) -> 346.9 | AH103: =IFERROR(VLOOKUP($O103,PoleRange,6,FALSE),0) -> 389.5 | AI103: =IFERROR(VLOOKUP($N103,PoleRange,7,FALSE),0) -> 34.8 | AJ103: =IFERROR(VLOOKUP($O103,PoleRange,7,FALSE),0) -> 34.2
J104: 141 | K104: 39.53072 | L104: -121.53206 | M104: Tier 2-3 | N104: W12153207N3953097 | O104: W12153206N3953048 | P104: W12153207N3953097-W12153206N3953048 | Q104: 177.2 | R104: 2 | S104: 141 | T104: =COUNTIFS(TreeRange,S104,TreeFail,"Yes")*V104 -> 2 | U104: 1 | V104: 1 | W104: =COUNTIFS(TreeRange,S104,TreeOffset,"Yes") -> 0 | X104: 0 | Y104: =IFERROR(VLOOKUP($N104,PoleRange,3,FALSE),0) -> -121.53207 | Z104: =IFERROR(VLOOKUP($N104,PoleRange,2,FALSE),0) -> 39.53097 | AA104: 141.67104 | AC104: =IFERROR(VLOOKUP($O104,PoleRange,3,FALSE),0) -> -121.53206 | AD104: =IFERROR(VLOOKUP($O104,PoleRange,2,FALSE),0) -> 39.53048 | AE104: 145.05432 | AG104: =IFERROR(VLOOKUP($N104,PoleRange,6,FALSE),0) -> 435.4 | AH104: =IFERROR(VLOOKUP($O104,PoleRange,6,FALSE),0) -> 441.5 | AI104: =IFERROR(VLOOKUP($N104,PoleRange,7,FALSE),0) -> 30.4 | AJ104: =IFERROR(VLOOKUP($O104,PoleRange,7,FALSE),0) -> 35.4
J105: 142 | K105: 39.53076 | L105: -121.53323 | M105: Tier 2-3 | N105: W12153322N3953104 | O105: W12153323N3953048 | P105: W12153322N3953104-W12153323N3953048 | Q105: 201.2 | R105: 2 | S105: 142 | T105: =COUNTIFS(TreeRange,S105,TreeFail,"Yes")*V105 -> 0 | U105: 0 | V105: 1 | W105: =COUNTIFS(TreeRange,S105,TreeOffset,"Yes") -> 0 | X105: 0 | Y105: =IFERROR(VLOOKUP($N105,PoleRange,3,FALSE),0) -> -121.53322 | Z105: =IFERROR(VLOOKUP($N105,PoleRange,2,FALSE),0) -> 39.53104 | AA105: 136.79424 | AC105: =IFERROR(VLOOKUP($O105,PoleRange,3,FALSE),0) -> -121.53323 | AD105: =IFERROR(VLOOKUP($O105,PoleRange,2,FALSE),0) -> 39.53048 | AE105: 133.31952 | AG105: =IFERROR(VLOOKUP($N105,PoleRange,6,FALSE),0) -> 415.2 | AH105: =IFERROR(VLOOKUP($O105,PoleRange,6,FALSE),0) -> 405.2 | AI105: =IFERROR(VLOOKUP($N105,PoleRange,7,FALSE),0) -> 34.6 | AJ105: =IFERROR(VLOOKUP($O105,PoleRange,7,FALSE),0) -> 33.2
J106: 143 | K106: 39.53083 | L106: -121.53907 | M106: Tier 2-3 | N106: W12153908N3953063 | O106: W12153907N3953103 | P106: W12153908N3953063-W12153907N3953103 | Q106: 147.7 | R106: 2 | S106: 143 | T106: =COUNTIFS(TreeRange,S106,TreeFail,"Yes")*V106 -> 1 | U106: 1 | V106: 1 | W106: =COUNTIFS(TreeRange,S106,TreeOffset,"Yes") -> 0 | X106: 0 | Y106: =IFERROR(VLOOKUP($N106,PoleRange,3,FALSE),0) -> -121.53908 | Z106: =IFERROR(VLOOKUP($N106,PoleRange,2,FALSE),0) -> 39.53063 | AA106: 112.89792 | AC106: =IFERROR(VLOOKUP($O106,PoleRange,3,FALSE),0) -> -121.53907 | AD106: =IFERROR(VLOOKUP($O106,PoleRange,2,FALSE),0) -> 39.53103 | AE106: 115.18392 | AG106: =IFERROR(VLOOKUP($N106,PoleRange,6,FALSE),0) -> 335.3 | AH106: =IFERROR(VLOOKUP($O106,PoleRange,6,FALSE),0) -> 348.8 | AI106: =IFERROR(VLOOKUP($N106,PoleRange,7,FALSE),0) -> 36.1 | AJ106: =IFERROR(VLOOKUP($O106,PoleRange,7,FALSE),0) -> 30.1
J107: 144 | K107: 39.53083 | L107: -121.53654 | M107: Tier 2-3 | N107: W12153655N3953063 | O107: W12153654N3953103 | P107: W12153655N3953063-W12153654N3953103 | Q107: 148 | R107: 2 | S107: 144 | T107: =COUNTIFS(TreeRange,S107,TreeFail,"Yes")*V107 -> 1 | U107: 1 | V107: 1 | W107: =COUNTIFS(TreeRange,S107,TreeOffset,"Yes") -> 0 | X107: 0 | Y107: =IFERROR(VLOOKUP($N107,PoleRange,3,FALSE),0) -> -121.53655 | Z107: =IFERROR(VLOOKUP($N107,PoleRange,2,FALSE),0) -> 39.53063 | AA107: 116.03736 | AC107: =IFERROR(VLOOKUP($O107,PoleRange,3,FALSE),0) -> -121.53654 | AD107: =IFERROR(VLOOKUP($O107,PoleRange,2,FALSE),0) -> 39.53103 | AE107: 114.84864 | AG107: =IFERROR(VLOOKUP($N107,PoleRange,6,FALSE),0) -> 346.9 | AH107: =IFERROR(VLOOKUP($O107,PoleRange,6,FALSE),0) -> 339.6 | AI107: =IFERROR(VLOOKUP($N107,PoleRange,7,FALSE),0) -> 34.8 | AJ107: =IFERROR(VLOOKUP($O107,PoleRange,7,FALSE),0) -> 38.2
J108: 145 | K108: 39.531 | L108: -121.51895 | M108: Tier 2-3 | N108: W12151923N3953089 | O108: W12151868N3953111 | P108: W12151923N3953089-W12151868N3953111 | Q108: 177.6 | R108: 2 | S108: 145 | T108: =COUNTIFS(TreeRange,S108,TreeFail,"Yes")*V108 -> 1 | U108: 1 | V108: 1 | W108: =COUNTIFS(TreeRange,S108,TreeOffset,"Yes") -> 0 | X108: 0 | Y108: =IFERROR(VLOOKUP($N108,PoleRange,3,FALSE),0) -> -121.51923 | Z108: =IFERROR(VLOOKUP($N108,PoleRange,2,FALSE),0) -> 39.53089 | AA108: 120.18264 | AC108: =IFERROR(VLOOKUP($O108,PoleRange,3,FALSE),0) -> -121.51868 | AD108: =IFERROR(VLOOKUP($O108,PoleRange,2,FALSE),0) -> 39.53111 | AE108: 119.7864 | AG108: =IFERROR(VLOOKUP($N108,PoleRange,6,FALSE),0) -> 361.4 | AH108: =IFERROR(VLOOKUP($O108,PoleRange,6,FALSE),0) -> 358.7 | AI108: =IFERROR(VLOOKUP($N108,PoleRange,7,FALSE),0) -> 33.9 | AJ108: =IFERROR(VLOOKUP($O108,PoleRange,7,FALSE),0) -> 35.3
J109: 146 | K109: 39.53101 | L109: -121.52604 | M109: Tier 2-3 | N109: W12152604N3953139 | O109: W12152603N3953064 | P109: W12152604N3953139-W12152603N3953064 | Q109: 273.2 | R109: 2 | S109: 146 | T109: =COUNTIFS(TreeRange,S109,TreeFail,"Yes")*V109 -> 0 | U109: 0 | V109: 1 | W109: =COUNTIFS(TreeRange,S109,TreeOffset,"Yes") -> 0 | X109: 0 | Y109: =IFERROR(VLOOKUP($N109,PoleRange,3,FALSE),0) -> -121.52604 | Z109: =IFERROR(VLOOKUP($N109,PoleRange,2,FALSE),0) -> 39.53139 | AA109: 112.65408 | AC109: =IFERROR(VLOOKUP($O109,PoleRange,3,FALSE),0) -> -121.52603 | AD109: =IFERROR(VLOOKUP($O109,PoleRange,2,FALSE),0) -> 39.53064 | AE109: 111.8616 | AG109: =IFERROR(VLOOKUP($N109,PoleRange,6,FALSE),0) -> 335.5 | AH109: =IFERROR(VLOOKUP($O109,PoleRange,6,FALSE),0) -> 337.6 | AI109: =IFERROR(VLOOKUP($N109,PoleRange,7,FALSE),0) -> 35.1 | AJ109: =IFERROR(VLOOKUP($O109,PoleRange,7,FALSE),0) -> 30.4
J110: 147 | K110: 39.53121 | L110: -121.51916 | M110: Tier 2-3 | N110: W12151909N3953154 | O110: W12151923N3953089 | P110: W12151909N3953154-W12151923N3953089 | Q110: 240 | R110: 2 | S110: 147 | T110: =COUNTIFS(TreeRange,S110,TreeFail,"Yes")*V110 -> 0 | U110: 0 | V110: 1 | W110: =COUNTIFS(TreeRange,S110,TreeOffset,"Yes") -> 0 | X110: 0 | Y110: =IFERROR(VLOOKUP($N110,PoleRange,3,FALSE),0) -> -121.51909 | Z110: =IFERROR(VLOOKUP($N110,PoleRange,2,FALSE),0) -> 39.53154 | AA110: 121.88952 | AC110: =IFERROR(VLOOKUP($O110,PoleRange,3,FALSE),0) -> -121.51923 | AD110: =IFERROR(VLOOKUP($O110,PoleRange,2,FALSE),0) -> 39.53089 | AE110: 120.18264 | AG110: =IFERROR(VLOOKUP($N110,PoleRange,6,FALSE),0) -> 364.9 | AH110: =IFERROR(VLOOKUP($O110,PoleRange,6,FALSE),0) -> 361.4 | AI110: =IFERROR(VLOOKUP($N110,PoleRange,7,FALSE),0) -> 36 | AJ110: =IFERROR(VLOOKUP($O110,PoleRange,7,FALSE),0) -> 33.9
J111: 148 | K111: 39.53125 | L111: -121.53206 | M111: Tier 2-3 | N111: W12153207N3953097 | O111: W12153206N3953153 | P111: W12153207N3953097-W12153206N3953153 | Q111: 205.3 | R111: 2 | S111: 148 | T111: =COUNTIFS(TreeRange,S111,TreeFail,"Yes")*V111 -> 0 | U111: 0 | V111: 1 | W111: =COUNTIFS(TreeRange,S111,TreeOffset,"Yes") -> 1 | X111: 1 | Y111: =IFERROR(VLOOKUP($N111,PoleRange,3,FALSE),0) -> -121.53207 | Z111: =IFERROR(VLOOKUP($N111,PoleRange,2,FALSE),0) -> 39.53097 | AA111: 141.67104 | AC111: =IFERROR(VLOOKUP($O111,PoleRange,3,FALSE),0) -> -121.53206 | AD111: =IFERROR(VLOOKUP($O111,PoleRange,2,FALSE),0) -> 39.53153 | AE111: 142.43304 | AG111: =IFERROR(VLOOKUP($N111,PoleRange,6,FALSE),0) -> 435.4 | AH111: =IFERROR(VLOOKUP($O111,PoleRange,6,FALSE),0) -> 437.6 | AI111: =IFERROR(VLOOKUP($N111,PoleRange,7,FALSE),0) -> 30.4 | AJ111: =IFERROR(VLOOKUP($O111,PoleRange,7,FALSE),0) -> 30.7
J112: 149 | K112: 39.53127 | L112: -121.54072 | M112: Tier 2-3 | N112: W12154060N3953123 | O112: W12154084N3953131 | P112: W12154060N3953123-W12154084N3953131 | Q112: 72.1 | R112: 2 | S112: 149 | T112: =COUNTIFS(TreeRange,S112,TreeFail,"Yes")*V112 -> 0 | U112: 0 | V112: 1 | W112: =COUNTIFS(TreeRange,S112,TreeOffset,"Yes") -> 0 | X112: 0 | Y112: =IFERROR(VLOOKUP($N112,PoleRange,3,FALSE),0) -> -121.5406 | Z112: =IFERROR(VLOOKUP($N112,PoleRange,2,FALSE),0) -> 39.53123 | AA112: 106.19232 | AC112: =IFERROR(VLOOKUP($O112,PoleRange,3,FALSE),0) -> -121.54084 | AD112: =IFERROR(VLOOKUP($O112,PoleRange,2,FALSE),0) -> 39.53131 | AE112: 100.46208 | AG112: =IFERROR(VLOOKUP($N112,PoleRange,6,FALSE),0) -> 319.9 | AH112: =IFERROR(VLOOKUP($O112,PoleRange,6,FALSE),0) -> 297.2 | AI112: =IFERROR(VLOOKUP($N112,PoleRange,7,FALSE),0) -> 29.5 | AJ112: =IFERROR(VLOOKUP($O112,PoleRange,7,FALSE),0) -> 33.4
J113: 150 | K113: 39.53127 | L113: -121.53907 | M113: Tier 2-3 | N113: W12153907N3953103 | O113: W12153907N3953151 | P113: W12153907N3953103-W12153907N3953151 | Q113: 174.9 | R113: 2 | S113: 150 | T113: =COUNTIFS(TreeRange,S113,TreeFail,"Yes")*V113 -> 0 | U113: 0 | V113: 1 | W113: =COUNTIFS(TreeRange,S113,TreeOffset,"Yes") -> 1 | X113: 1 | Y113: =IFERROR(VLOOKUP($N113,PoleRange,3,FALSE),0) -> -121.53907 | Z113: =IFERROR(VLOOKUP($N113,PoleRange,2,FALSE),0) -> 39.53103 | AA113: 115.18392 | AC113: =IFERROR(VLOOKUP($O113,PoleRange,3,FALSE),0) -> -121.53907 | AD113: =IFERROR(VLOOKUP($O113,PoleRange,2,FALSE),0) -> 39.53151 | AE113: 120.63984 | AG113: =IFERROR(VLOOKUP($N113,PoleRange,6,FALSE),0) -> 348.8 | AH113: =IFERROR(VLOOKUP($O113,PoleRange,6,FALSE),0) -> 359 | AI113: =IFERROR(VLOOKUP($N113,PoleRange,7,FALSE),0) -> 30.1 | AJ113: =IFERROR(VLOOKUP($O113,PoleRange,7,FALSE),0) -> 37.8
J114: 151 | K114: 39.53128 | L114: -121.53654 | M114: Tier 2-3 | N114: W12153654N3953154 | O114: W12153654N3953103 | P114: W12153654N3953154-W12153654N3953103 | Q114: 182.7 | R114: 2 | S114: 151 | T114: =COUNTIFS(TreeRange,S114,TreeFail,"Yes")*V114 -> 0 | U114: 0 | V114: 1 | W114: =COUNTIFS(TreeRange,S114,TreeOffset,"Yes") -> 0 | X114: 0 | Y114: =IFERROR(VLOOKUP($N114,PoleRange,3,FALSE),0) -> -121.53654 | Z114: =IFERROR(VLOOKUP($N114,PoleRange,2,FALSE),0) -> 39.53154 | AA114: 113.75136 | AC114: =IFERROR(VLOOKUP($O114,PoleRange,3,FALSE),0) -> -121.53654 | AD114: =IFERROR(VLOOKUP($O114,PoleRange,2,FALSE),0) -> 39.53103 | AE114: 114.84864 | AG114: =IFERROR(VLOOKUP($N114,PoleRange,6,FALSE),0) -> 339.9 | AH114: =IFERROR(VLOOKUP($O114,PoleRange,6,FALSE),0) -> 339.6 | AI114: =IFERROR(VLOOKUP($N114,PoleRange,7,FALSE),0) -> 34.3 | AJ114: =IFERROR(VLOOKUP($O114,PoleRange,7,FALSE),0) -> 38.2
J115: 152 | K115: 39.53129 | L115: -121.54041 | M115: Tier 2-3 | N115: W12154060N3953123 | O115: W12154021N3953134 | P115: W12154060N3953123-W12154021N3953134 | Q115: 118.6 | R115: 2 | S115: 152 | T115: =COUNTIFS(TreeRange,S115,TreeFail,"Yes")*V115 -> 0 | U115: 0 | V115: 1 | W115: =COUNTIFS(TreeRange,S115,TreeOffset,"Yes") -> 0 | X115: 0 | Y115: =IFERROR(VLOOKUP($N115,PoleRange,3,FALSE),0) -> -121.5406 | Z115: =IFERROR(VLOOKUP($N115,PoleRange,2,FALSE),0) -> 39.53123 | AA115: 106.19232 | AC115: =IFERROR(VLOOKUP($O115,PoleRange,3,FALSE),0) -> -121.54021 | AD115: =IFERROR(VLOOKUP($O115,PoleRange,2,FALSE),0) -> 39.53134 | AE115: 109.2708 | AG115: =IFERROR(VLOOKUP($N115,PoleRange,6,FALSE),0) -> 319.9 | AH115: =IFERROR(VLOOKUP($O115,PoleRange,6,FALSE),0) -> 330.6 | AI115: =IFERROR(VLOOKUP($N115,PoleRange,7,FALSE),0) -> 29.5 | AJ115: =IFERROR(VLOOKUP($O115,PoleRange,7,FALSE),0) -> 28.9
J116: 153 | K116: 39.53134 | L116: -121.51845 | M116: Tier 2-3 | N116: W12151822N3953157 | O116: W12151868N3953111 | P116: W12151822N3953157-W12151868N3953111 | Q116: 210.9 | R116: 2 | S116: 153 | T116: =COUNTIFS(TreeRange,S116,TreeFail,"Yes")*V116 -> 0 | U116: 0 | V116: 1 | W116: =COUNTIFS(TreeRange,S116,TreeOffset,"Yes") -> 0 | X116: 0 | Y116: =IFERROR(VLOOKUP($N116,PoleRange,3,FALSE),0) -> -121.51822 | Z116: =IFERROR(VLOOKUP($N116,PoleRange,2,FALSE),0) -> 39.53157 | AA116: 117.89664 | AC116: =IFERROR(VLOOKUP($O116,PoleRange,3,FALSE),0) -> -121.51868 | AD116: =IFERROR(VLOOKUP($O116,PoleRange,2,FALSE),0) -> 39.53111 | AE116: 119.7864 | AG116: =IFERROR(VLOOKUP($N116,PoleRange,6,FALSE),0) -> 344.1 | AH116: =IFERROR(VLOOKUP($O116,PoleRange,6,FALSE),0) -> 358.7 | AI116: =IFERROR(VLOOKUP($N116,PoleRange,7,FALSE),0) -> 43.7 | AJ116: =IFERROR(VLOOKUP($O116,PoleRange,7,FALSE),0) -> 35.3
J117: 154 | K117: 39.53143 | L117: -121.53993 | M117: Tier 2-3 | N117: W12153966N3953151 | O117: W12154021N3953134 | P117: W12153966N3953151-W12154021N3953134 | Q117: 168.2 | R117: 2 | S117: 154 | T117: =COUNTIFS(TreeRange,S117,TreeFail,"Yes")*V117 -> 2 | U117: 1 | V117: 1 | W117: =COUNTIFS(TreeRange,S117,TreeOffset,"Yes") -> 1 | X117: 1 | Y117: =IFERROR(VLOOKUP($N117,PoleRange,3,FALSE),0) -> -121.53966 | Z117: =IFERROR(VLOOKUP($N117,PoleRange,2,FALSE),0) -> 39.53151 | AA117: 116.22024 | AC117: =IFERROR(VLOOKUP($O117,PoleRange,3,FALSE),0) -> -121.54021 | AD117: =IFERROR(VLOOKUP($O117,PoleRange,2,FALSE),0) -> 39.53134 | AE117: 109.2708 | AG117: =IFERROR(VLOOKUP($N117,PoleRange,6,FALSE),0) -> 343.7 | AH117: =IFERROR(VLOOKUP($O117,PoleRange,6,FALSE),0) -> 330.6 | AI117: =IFERROR(VLOOKUP($N117,PoleRange,7,FALSE),0) -> 38.6 | AJ117: =IFERROR(VLOOKUP($O117,PoleRange,7,FALSE),0) -> 28.9
J118: 155 | K118: 39.53151 | L118: -121.53936 | M118: Tier 2-3 | N118: W12153966N3953151 | O118: W12153907N3953151 | P118: W12153966N3953151-W12153907N3953151 | Q118: 165.5 | R118: 2 | S118: 155 | T118: =COUNTIFS(TreeRange,S118,TreeFail,"Yes")*V118 -> 0 | U118: 0 | V118: 1 | W118: =COUNTIFS(TreeRange,S118,TreeOffset,"Yes") -> 0 | X118: 0 | Y118: =IFERROR(VLOOKUP($N118,PoleRange,3,FALSE),0) -> -121.53966 | Z118: =IFERROR(VLOOKUP($N118,PoleRange,2,FALSE),0) -> 39.53151 | AA118: 116.22024 | AC118: =IFERROR(VLOOKUP($O118,PoleRange,3,FALSE),0) -> -121.53907 | AD118: =IFERROR(VLOOKUP($O118,PoleRange,2,FALSE),0) -> 39.53151 | AE118: 120.63984 | AG118: =IFERROR(VLOOKUP($N118,PoleRange,6,FALSE),0) -> 343.7 | AH118: =IFERROR(VLOOKUP($O118,PoleRange,6,FALSE),0) -> 359 | AI118: =IFERROR(VLOOKUP($N118,PoleRange,7,FALSE),0) -> 38.6 | AJ118: =IFERROR(VLOOKUP($O118,PoleRange,7,FALSE),0) -> 37.8
J119: 156 | K119: 39.53153 | L119: -121.53233 | M119: Tier 2-3 | N119: W12153261N3953152 | O119: W12153206N3953153 | P119: W12153261N3953152-W12153206N3953153 | Q119: 152.7 | R119: 2 | S119: 156 | T119: =COUNTIFS(TreeRange,S119,TreeFail,"Yes")*V119 -> 0 | U119: 0 | V119: 1 | W119: =COUNTIFS(TreeRange,S119,TreeOffset,"Yes") -> 0 | X119: 0 | Y119: =IFERROR(VLOOKUP($N119,PoleRange,3,FALSE),0) -> -121.53261 | Z119: =IFERROR(VLOOKUP($N119,PoleRange,2,FALSE),0) -> 39.53152 | AA119: 141.97584 | AC119: =IFERROR(VLOOKUP($O119,PoleRange,3,FALSE),0) -> -121.53206 | AD119: =IFERROR(VLOOKUP($O119,PoleRange,2,FALSE),0) -> 39.53153 | AE119: 142.43304 | AG119: =IFERROR(VLOOKUP($N119,PoleRange,6,FALSE),0) -> 428 | AH119: =IFERROR(VLOOKUP($O119,PoleRange,6,FALSE),0) -> 437.6 | AI119: =IFERROR(VLOOKUP($N119,PoleRange,7,FALSE),0) -> 38.8 | AJ119: =IFERROR(VLOOKUP($O119,PoleRange,7,FALSE),0) -> 30.7
J120: 157 | K120: 39.53154 | L120: -121.53673 | M120: Tier 2-3 | N120: W12153654N3953154 | O120: W12153692N3953153 | P120: W12153654N3953154-W12153692N3953153 | Q120: 107.8 | R120: 2 | S120: 157 | T120: =COUNTIFS(TreeRange,S120,TreeFail,"Yes")*V120 -> 0 | U120: 0 | V120: 1 | W120: =COUNTIFS(TreeRange,S120,TreeOffset,"Yes") -> 0 | X120: 0 | Y120: =IFERROR(VLOOKUP($N120,PoleRange,3,FALSE),0) -> -121.53654 | Z120: =IFERROR(VLOOKUP($N120,PoleRange,2,FALSE),0) -> 39.53154 | AA120: 113.75136 | AC120: =IFERROR(VLOOKUP($O120,PoleRange,3,FALSE),0) -> -121.53692 | AD120: =IFERROR(VLOOKUP($O120,PoleRange,2,FALSE),0) -> 39.53153 | AE120: 113.87328 | AG120: =IFERROR(VLOOKUP($N120,PoleRange,6,FALSE),0) -> 339.9 | AH120: =IFERROR(VLOOKUP($O120,PoleRange,6,FALSE),0) -> 337 | AI120: =IFERROR(VLOOKUP($N120,PoleRange,7,FALSE),0) -> 34.3 | AJ120: =IFERROR(VLOOKUP($O120,PoleRange,7,FALSE),0) -> 37.6
J121: 158 | K121: 39.53154 | L121: -121.53619 | M121: Tier 2-3 | N121: W12153654N3953154 | O121: W12153585N3953154 | P121: W12153654N3953154-W12153585N3953154 | Q121: 195.2 | R121: 2 | S121: 158 | T121: =COUNTIFS(TreeRange,S121,TreeFail,"Yes")*V121 -> 0 | U121: 0 | V121: 1 | W121: =COUNTIFS(TreeRange,S121,TreeOffset,"Yes") -> 0 | X121: 0 | Y121: =IFERROR(VLOOKUP($N121,PoleRange,3,FALSE),0) -> -121.53654 | Z121: =IFERROR(VLOOKUP($N121,PoleRange,2,FALSE),0) -> 39.53154 | AA121: 113.75136 | AC121: =IFERROR(VLOOKUP($O121,PoleRange,3,FALSE),0) -> -121.53585 | AD121: =IFERROR(VLOOKUP($O121,PoleRange,2,FALSE),0) -> 39.53154 | AE121: 120.18264 | AG121: =IFERROR(VLOOKUP($N121,PoleRange,6,FALSE),0) -> 339.9 | AH121: =IFERROR(VLOOKUP($O121,PoleRange,6,FALSE),0) -> 355.9 | AI121: =IFERROR(VLOOKUP($N121,PoleRange,7,FALSE),0) -> 34.3 | AJ121: =IFERROR(VLOOKUP($O121,PoleRange,7,FALSE),0) -> 39.4
J122: 159 | K122: 39.53154 | L122: -121.53177 | M122: Tier 2-3 | N122: W12153147N3953155 | O122: W12153206N3953153 | P122: W12153147N3953155-W12153206N3953153 | Q122: 167.7 | R122: 2 | S122: 159 | T122: =COUNTIFS(TreeRange,S122,TreeFail,"Yes")*V122 -> 0 | U122: 0 | V122: 1 | W122: =COUNTIFS(TreeRange,S122,TreeOffset,"Yes") -> 0 | X122: 0 | Y122: =IFERROR(VLOOKUP($N122,PoleRange,3,FALSE),0) -> -121.53147 | Z122: =IFERROR(VLOOKUP($N122,PoleRange,2,FALSE),0) -> 39.53155 | AA122: 144.35328 | AC122: =IFERROR(VLOOKUP($O122,PoleRange,3,FALSE),0) -> -121.53206 | AD122: =IFERROR(VLOOKUP($O122,PoleRange,2,FALSE),0) -> 39.53153 | AE122: 142.43304 | AG122: =IFERROR(VLOOKUP($N122,PoleRange,6,FALSE),0) -> 444.7 | AH122: =IFERROR(VLOOKUP($O122,PoleRange,6,FALSE),0) -> 437.6 | AI122: =IFERROR(VLOOKUP($N122,PoleRange,7,FALSE),0) -> 29.9 | AJ122: =IFERROR(VLOOKUP($O122,PoleRange,7,FALSE),0) -> 30.7
J123: 160 | K123: 39.53159 | L123: -121.51794 | M123: Tier 2-3 | N123: W12151765N3953162 | O123: W12151822N3953157 | P123: W12151765N3953162-W12151822N3953157 | Q123: 161.3 | R123: 2 | S123: 160 | T123: =COUNTIFS(TreeRange,S123,TreeFail,"Yes")*V123 -> 1 | U123: 1 | V123: 1 | W123: =COUNTIFS(TreeRange,S123,TreeOffset,"Yes") -> 0 | X123: 0 | Y123: =IFERROR(VLOOKUP($N123,PoleRange,3,FALSE),0) -> -121.51765 | Z123: =IFERROR(VLOOKUP($N123,PoleRange,2,FALSE),0) -> 39.53162 | AA123: 116.37264 | AC123: =IFERROR(VLOOKUP($O123,PoleRange,3,FALSE),0) -> -121.51822 | AD123: =IFERROR(VLOOKUP($O123,PoleRange,2,FALSE),0) -> 39.53157 | AE123: 117.89664 | AG123: =IFERROR(VLOOKUP($N123,PoleRange,6,FALSE),0) -> 342.7 | AH123: =IFERROR(VLOOKUP($O123,PoleRange,6,FALSE),0) -> 344.1 | AI123: =IFERROR(VLOOKUP($N123,PoleRange,7,FALSE),0) -> 40.1 | AJ123: =IFERROR(VLOOKUP($O123,PoleRange,7,FALSE),0) -> 43.7
J124: 161 | K124: 39.53171 | L124: -121.52605 | M124: Tier 2-3 | N124: W12152606N3953202 | O124: W12152604N3953139 | P124: W12152606N3953202-W12152604N3953139 | Q124: 231.2 | R124: 2 | S124: 161 | T124: =COUNTIFS(TreeRange,S124,TreeFail,"Yes")*V124 -> 0 | U124: 0 | V124: 1 | W124: =COUNTIFS(TreeRange,S124,TreeOffset,"Yes") -> 0 | X124: 0 | Y124: =IFERROR(VLOOKUP($N124,PoleRange,3,FALSE),0) -> -121.52606 | Z124: =IFERROR(VLOOKUP($N124,PoleRange,2,FALSE),0) -> 39.53202 | AA124: 115.9764 | AC124: =IFERROR(VLOOKUP($O124,PoleRange,3,FALSE),0) -> -121.52604 | AD124: =IFERROR(VLOOKUP($O124,PoleRange,2,FALSE),0) -> 39.53139 | AE124: 112.65408 | AG124: =IFERROR(VLOOKUP($N124,PoleRange,6,FALSE),0) -> 343.3 | AH124: =IFERROR(VLOOKUP($O124,PoleRange,6,FALSE),0) -> 335.5 | AI124: =IFERROR(VLOOKUP($N124,PoleRange,7,FALSE),0) -> 38.2 | AJ124: =IFERROR(VLOOKUP($O124,PoleRange,7,FALSE),0) -> 35.1
J125: 162 | K125: 39.53172 | L125: -121.54085 | M125: Tier 2-3 | N125: W12154084N3953131 | O125: W12154086N3953214 | P125: W12154084N3953131-W12154086N3953214 | Q125: 302.6 | R125: 2 | S125: 162 | T125: =COUNTIFS(TreeRange,S125,TreeFail,"Yes")*V125 -> 2 | U125: 1 | V125: 1 | W125: =COUNTIFS(TreeRange,S125,TreeOffset,"Yes") -> 0 | X125: 0 | Y125: =IFERROR(VLOOKUP($N125,PoleRange,3,FALSE),0) -> -121.54084 | Z125: =IFERROR(VLOOKUP($N125,PoleRange,2,FALSE),0) -> 39.53131 | AA125: 100.46208 | AC125: =IFERROR(VLOOKUP($O125,PoleRange,3,FALSE),0) -> -121.54086 | AD125: =IFERROR(VLOOKUP($O125,PoleRange,2,FALSE),0) -> 39.53214 | AE125: 95.89008 | AG125: =IFERROR(VLOOKUP($N125,PoleRange,6,FALSE),0) -> 297.2 | AH125: =IFERROR(VLOOKUP($O125,PoleRange,6,FALSE),0) -> 280.7 | AI125: =IFERROR(VLOOKUP($N125,PoleRange,7,FALSE),0) -> 33.4 | AJ125: =IFERROR(VLOOKUP($O125,PoleRange,7,FALSE),0) -> 34.9
J126: 163 | K126: 39.53172 | L126: -121.53907 | M126: Tier 2-3 | N126: W12153907N3953151 | O126: W12153907N3953193 | P126: W12153907N3953151-W12153907N3953193 | Q126: 153.2 | R126: 2 | S126: 163 | T126: =COUNTIFS(TreeRange,S126,TreeFail,"Yes")*V126 -> 0 | U126: 0 | V126: 1 | W126: =COUNTIFS(TreeRange,S126,TreeOffset,"Yes") -> 0 | X126: 0 | Y126: =IFERROR(VLOOKUP($N126,PoleRange,3,FALSE),0) -> -121.53907 | Z126: =IFERROR(VLOOKUP($N126,PoleRange,2,FALSE),0) -> 39.53151 | AA126: 120.63984 | AC126: =IFERROR(VLOOKUP($O126,PoleRange,3,FALSE),0) -> -121.53907 | AD126: =IFERROR(VLOOKUP($O126,PoleRange,2,FALSE),0) -> 39.53193 | AE126: 117.22608 | AG126: =IFERROR(VLOOKUP($N126,PoleRange,6,FALSE),0) -> 359 | AH126: =IFERROR(VLOOKUP($O126,PoleRange,6,FALSE),0) -> 351.2 | AI126: =IFERROR(VLOOKUP($N126,PoleRange,7,FALSE),0) -> 37.8 | AJ126: =IFERROR(VLOOKUP($O126,PoleRange,7,FALSE),0) -> 34.4
J127: 164 | K127: 39.53172 | L127: -121.53206 | M127: Tier 2-3 | N127: W12153206N3953192 | O127: W12153206N3953153 | P127: W12153206N3953192-W12153206N3953153 | Q127: 140.6 | R127: 2 | S127: 164 | T127: =COUNTIFS(TreeRange,S127,TreeFail,"Yes")*V127 -> 2 | U127: 1 | V127: 1 | W127: =COUNTIFS(TreeRange,S127,TreeOffset,"Yes") -> 0 | X127: 0 | Y127: =IFERROR(VLOOKUP($N127,PoleRange,3,FALSE),0) -> -121.53206 | Z127: =IFERROR(VLOOKUP($N127,PoleRange,2,FALSE),0) -> 39.53192 | AA127: 144.71904 | AC127: =IFERROR(VLOOKUP($O127,PoleRange,3,FALSE),0) -> -121.53206 | AD127: =IFERROR(VLOOKUP($O127,PoleRange,2,FALSE),0) -> 39.53153 | AE127: 142.43304 | AG127: =IFERROR(VLOOKUP($N127,PoleRange,6,FALSE),0) -> 440.1 | AH127: =IFERROR(VLOOKUP($O127,PoleRange,6,FALSE),0) -> 437.6 | AI127: =IFERROR(VLOOKUP($N127,PoleRange,7,FALSE),0) -> 35.7 | AJ127: =IFERROR(VLOOKUP($O127,PoleRange,7,FALSE),0) -> 30.7
J128: 165 | K128: 39.53182 | L128: -121.53654 | M128: Tier 2-3 | N128: W12153655N3953211 | O128: W12153654N3953154 | P128: W12153655N3953211-W12153654N3953154 | Q128: 209.6 | R128: 2 | S128: 165 | T128: =COUNTIFS(TreeRange,S128,TreeFail,"Yes")*V128 -> 0 | U128: 0 | V128: 1 | W128: =COUNTIFS(TreeRange,S128,TreeOffset,"Yes") -> 0 | X128: 0 | Y128: =IFERROR(VLOOKUP($N128,PoleRange,3,FALSE),0) -> -121.53655 | Z128: =IFERROR(VLOOKUP($N128,PoleRange,2,FALSE),0) -> 39.53211 | AA128: 116.95176 | AC128: =IFERROR(VLOOKUP($O128,PoleRange,3,FALSE),0) -> -121.53654 | AD128: =IFERROR(VLOOKUP($O128,PoleRange,2,FALSE),0) -> 39.53154 | AE128: 113.75136 | AG128: =IFERROR(VLOOKUP($N128,PoleRange,6,FALSE),0) -> 351.1 | AH128: =IFERROR(VLOOKUP($O128,PoleRange,6,FALSE),0) -> 339.9 | AI128: =IFERROR(VLOOKUP($N128,PoleRange,7,FALSE),0) -> 33.6 | AJ128: =IFERROR(VLOOKUP($O128,PoleRange,7,FALSE),0) -> 34.3
J129: 166 | K129: 39.53203 | L129: -121.53419 | M129: Tier 2-3 | N129: W12153419N3953235 | O129: W12153419N3953172 | P129: W12153419N3953235-W12153419N3953172 | Q129: 228.3 | R129: 2 | S129: 166 | T129: =COUNTIFS(TreeRange,S129,TreeFail,"Yes")*V129 -> 4 | U129: 1 | V129: 1 | W129: =COUNTIFS(TreeRange,S129,TreeOffset,"Yes") -> 0 | X129: 0 | Y129: =IFERROR(VLOOKUP($N129,PoleRange,3,FALSE),0) -> -121.53419 | Z129: =IFERROR(VLOOKUP($N129,PoleRange,2,FALSE),0) -> 39.53235 | AA129: 124.69368 | AC129: =IFERROR(VLOOKUP($O129,PoleRange,3,FALSE),0) -> -121.53419 | AD129: =IFERROR(VLOOKUP($O129,PoleRange,2,FALSE),0) -> 39.53172 | AE129: 126.27864 | AG129: =IFERROR(VLOOKUP($N129,PoleRange,6,FALSE),0) -> 372.1 | AH129: =IFERROR(VLOOKUP($O129,PoleRange,6,FALSE),0) -> 375.8 | AI129: =IFERROR(VLOOKUP($N129,PoleRange,7,FALSE),0) -> 38 | AJ129: =IFERROR(VLOOKUP($O129,PoleRange,7,FALSE),0) -> 39.5
J130: 167 | K130: 39.53218 | L130: -121.53906 | M130: Tier 2-3 | N130: W12153907N3953193 | O130: W12153905N3953243 | P130: W12153907N3953193-W12153905N3953243 | Q130: 182.3 | R130: 2 | S130: 167 | T130: =COUNTIFS(TreeRange,S130,TreeFail,"Yes")*V130 -> 0 | U130: 0 | V130: 1 | W130: =COUNTIFS(TreeRange,S130,TreeOffset,"Yes") -> 0 | X130: 0 | Y130: =IFERROR(VLOOKUP($N130,PoleRange,3,FALSE),0) -> -121.53907 | Z130: =IFERROR(VLOOKUP($N130,PoleRange,2,FALSE),0) -> 39.53193 | AA130: 117.22608 | AC130: =IFERROR(VLOOKUP($O130,PoleRange,3,FALSE),0) -> -121.53905 | AD130: =IFERROR(VLOOKUP($O130,PoleRange,2,FALSE),0) -> 39.53243 | AE130: 109.94136 | AG130: =IFERROR(VLOOKUP($N130,PoleRange,6,FALSE),0) -> 351.2 | AH130: =IFERROR(VLOOKUP($O130,PoleRange,6,FALSE),0) -> 327.3 | AI130: =IFERROR(VLOOKUP($N130,PoleRange,7,FALSE),0) -> 34.4 | AJ130: =IFERROR(VLOOKUP($O130,PoleRange,7,FALSE),0) -> 34.4
J131: 168 | K131: 39.53219 | L131: -121.53206 | M131: Tier 2-3 | N131: W12153206N3953192 | O131: W12153205N3953245 | P131: W12153206N3953192-W12153205N3953245 | Q131: 195.5 | R131: 2 | S131: 168 | T131: =COUNTIFS(TreeRange,S131,TreeFail,"Yes")*V131 -> 1 | U131: 1 | V131: 1 | W131: =COUNTIFS(TreeRange,S131,TreeOffset,"Yes") -> 0 | X131: 0 | Y131: =IFERROR(VLOOKUP($N131,PoleRange,3,FALSE),0) -> -121.53206 | Z131: =IFERROR(VLOOKUP($N131,PoleRange,2,FALSE),0) -> 39.53192 | AA131: 144.71904 | AC131: =IFERROR(VLOOKUP($O131,PoleRange,3,FALSE),0) -> -121.53205 | AD131: =IFERROR(VLOOKUP($O131,PoleRange,2,FALSE),0) -> 39.53245 | AE131: 144.68856 | AG131: =IFERROR(VLOOKUP($N131,PoleRange,6,FALSE),0) -> 440.1 | AH131: =IFERROR(VLOOKUP($O131,PoleRange,6,FALSE),0) -> 441.3 | AI131: =IFERROR(VLOOKUP($N131,PoleRange,7,FALSE),0) -> 35.7 | AJ131: =IFERROR(VLOOKUP($O131,PoleRange,7,FALSE),0) -> 34.4
J132: 169 | K132: 39.53219 | L132: -121.52606 | M132: Tier 2-3 | N132: W12152605N3953235 | O132: W12152606N3953202 | P132: W12152605N3953235-W12152606N3953202 | Q132: 119.9 | R132: 2 | S132: =J132 -> 169 | T132: =COUNTIFS(TreeRange,S132,TreeFail,"Yes")*V132 -> 0 | U132: =IF(Q132<1,0,_xlfn.IFS(T132>15,3,T132>5,2,T132>0,1,T132=0,0)) -> 0 | V132: =Chk_wind($C$8,Y132,Z132,AC132,AD132) -> 1 | W132: =COUNTIFS(TreeRange,S132,TreeOffset,"Yes") -> 0 | X132: =IF(Q132<1,0,_xlfn.IFS(W132>15,3,W132>5,2,W132>0,1,W132=0,0)) -> 0 | Y132: =IFERROR(VLOOKUP($N132,PoleRange,3,FALSE),0) -> -121.52605 | Z132: =IFERROR(VLOOKUP($N132,PoleRange,2,FALSE),0) -> 39.53235 | AA132: =(AG132+AI132-1)*0.3048 -> 115.3668 | AC132: =IFERROR(VLOOKUP($O132,PoleRange,3,FALSE),0) -> -121.52606 | AD132: =IFERROR(VLOOKUP($O132,PoleRange,2,FALSE),0) -> 39.53202 | AE132: =(AH132+AJ132-1)*0.3048 -> 115.9764 | AG132: =IFERROR(VLOOKUP($N132,PoleRange,6,FALSE),0) -> 343.8 | AH132: =IFERROR(VLOOKUP($O132,PoleRange,6,FALSE),0) -> 343.3 | AI132: =IFERROR(VLOOKUP($N132,PoleRange,7,FALSE),0) -> 35.7 | AJ132: =IFERROR(VLOOKUP($O132,PoleRange,7,FALSE),0) -> 38.2
J133: 170 | K133: 39.53228 | L133: -121.53655 | M133: Tier 2-3 | N133: W12153655N3953245 | O133: W12153655N3953211 | P133: W12153655N3953245-W12153655N3953211 | Q133: 121.8 | R133: 2 | S133: 170 | T133: =COUNTIFS(TreeRange,S133,TreeFail,"Yes")*V133 -> 0 | U133: 0 | V133: 1 | W133: =COUNTIFS(TreeRange,S133,TreeOffset,"Yes") -> 0 | X133: 0 | Y133: =IFERROR(VLOOKUP($N133,PoleRange,3,FALSE),0) -> -121.53655 | Z133: =IFERROR(VLOOKUP($N133,PoleRange,2,FALSE),0) -> 39.53245 | AA133: 119.634 | AC133: =IFERROR(VLOOKUP($O133,PoleRange,3,FALSE),0) -> -121.53655 | AD133: =IFERROR(VLOOKUP($O133,PoleRange,2,FALSE),0) -> 39.53211 | AE133: 116.95176 | AG133: =IFERROR(VLOOKUP($N133,PoleRange,6,FALSE),0) -> 354.9 | AH133: =IFERROR(VLOOKUP($O133,PoleRange,6,FALSE),0) -> 351.1 | AI133: =IFERROR(VLOOKUP($N133,PoleRange,7,FALSE),0) -> 38.6 | AJ133: =IFERROR(VLOOKUP($O133,PoleRange,7,FALSE),0) -> 33.6
J134: 171 | K134: 39.5323 | L134: -121.536 | M134: Tier 2-3 | N134: W12153644N3953230 | O134: W12153557N3953230 | P134: W12153644N3953230-W12153557N3953230 | Q134: 246.2 | R134: 2 | S134: 171 | T134: =COUNTIFS(TreeRange,S134,TreeFail,"Yes")*V134 -> 0 | U134: 0 | V134: 1 | W134: =COUNTIFS(TreeRange,S134,TreeOffset,"Yes") -> 0 | X134: 0 | Y134: =IFERROR(VLOOKUP($N134,PoleRange,3,FALSE),0) -> -121.53644 | Z134: =IFERROR(VLOOKUP($N134,PoleRange,2,FALSE),0) -> 39.5323 | AA134: 118.35384 | AC134: =IFERROR(VLOOKUP($O134,PoleRange,3,FALSE),0) -> -121.53557 | AD134: =IFERROR(VLOOKUP($O134,PoleRange,2,FALSE),0) -> 39.5323 | AE134: 120.0912 | AG134: =IFERROR(VLOOKUP($N134,PoleRange,6,FALSE),0) -> 355.5 | AH134: =IFERROR(VLOOKUP($O134,PoleRange,6,FALSE),0) -> 362.9 | AI134: =IFERROR(VLOOKUP($N134,PoleRange,7,FALSE),0) -> 33.8 | AJ134: =IFERROR(VLOOKUP($O134,PoleRange,7,FALSE),0) -> 32.1
J135: 172 | K135: 39.53232 | L135: -121.53488 | M135: Tier 2-3 | N135: W12153419N3953235 | O135: W12153557N3953230 | P135: W12153419N3953235-W12153557N3953230 | Q135: 388.6 | R135: 2 | S135: 172 | T135: =COUNTIFS(TreeRange,S135,TreeFail,"Yes")*V135 -> 0 | U135: 0 | V135: 1 | W135: =COUNTIFS(TreeRange,S135,TreeOffset,"Yes") -> 0 | X135: 0 | Y135: =IFERROR(VLOOKUP($N135,PoleRange,3,FALSE),0) -> -121.53419 | Z135: =IFERROR(VLOOKUP($N135,PoleRange,2,FALSE),0) -> 39.53235 | AA135: 124.69368 | AC135: =IFERROR(VLOOKUP($O135,PoleRange,3,FALSE),0) -> -121.53557 | AD135: =IFERROR(VLOOKUP($O135,PoleRange,2,FALSE),0) -> 39.5323 | AE135: 120.0912 | AG135: =IFERROR(VLOOKUP($N135,PoleRange,6,FALSE),0) -> 372.1 | AH135: =IFERROR(VLOOKUP($O135,PoleRange,6,FALSE),0) -> 362.9 | AI135: =IFERROR(VLOOKUP($N135,PoleRange,7,FALSE),0) -> 38 | AJ135: =IFERROR(VLOOKUP($O135,PoleRange,7,FALSE),0) -> 32.1
J136: 173 | K136: 39.53237 | L136: -121.53649 | M136: Tier 2-3 | N136: W12153644N3953230 | O136: W12153655N3953245 | P136: W12153644N3953230-W12153655N3953245 | Q136: 61.7 | R136: 2 | S136: 173 | T136: =COUNTIFS(TreeRange,S136,TreeFail,"Yes")*V136 -> 0 | U136: 0 | V136: 1 | W136: =COUNTIFS(TreeRange,S136,TreeOffset,"Yes") -> 0 | X136: 0 | Y136: =IFERROR(VLOOKUP($N136,PoleRange,3,FALSE),0) -> -121.53644 | Z136: =IFERROR(VLOOKUP($N136,PoleRange,2,FALSE),0) -> 39.5323 | AA136: 118.35384 | AC136: =IFERROR(VLOOKUP($O136,PoleRange,3,FALSE),0) -> -121.53655 | AD136: =IFERROR(VLOOKUP($O136,PoleRange,2,FALSE),0) -> 39.53245 | AE136: 119.634 | AG136: =IFERROR(VLOOKUP($N136,PoleRange,6,FALSE),0) -> 355.5 | AH136: =IFERROR(VLOOKUP($O136,PoleRange,6,FALSE),0) -> 354.9 | AI136: =IFERROR(VLOOKUP($N136,PoleRange,7,FALSE),0) -> 33.8 | AJ136: =IFERROR(VLOOKUP($O136,PoleRange,7,FALSE),0) -> 38.6
J137: 174 | K137: 39.53242 | L137: -121.53161 | M137: Tier 2-3 | N137: W12153117N3953239 | O137: W12153205N3953245 | P137: W12153117N3953239-W12153205N3953245 | Q137: 250.2 | R137: 2 | S137: 174 | T137: =COUNTIFS(TreeRange,S137,TreeFail,"Yes")*V137 -> 2 | U137: 1 | V137: 1 | W137: =COUNTIFS(TreeRange,S137,TreeOffset,"Yes") -> 0 | X137: 0 | Y137: =IFERROR(VLOOKUP($N137,PoleRange,3,FALSE),0) -> -121.53117 | Z137: =IFERROR(VLOOKUP($N137,PoleRange,2,FALSE),0) -> 39.53239 | AA137: 150.93696 | AC137: =IFERROR(VLOOKUP($O137,PoleRange,3,FALSE),0) -> -121.53205 | AD137: =IFERROR(VLOOKUP($O137,PoleRange,2,FALSE),0) -> 39.53245 | AE137: 144.68856 | AG137: =IFERROR(VLOOKUP($N137,PoleRange,6,FALSE),0) -> 456.5 | AH137: =IFERROR(VLOOKUP($O137,PoleRange,6,FALSE),0) -> 441.3 | AI137: =IFERROR(VLOOKUP($N137,PoleRange,7,FALSE),0) -> 39.7 | AJ137: =IFERROR(VLOOKUP($O137,PoleRange,7,FALSE),0) -> 34.4
J138: 175 | K138: 39.53243 | L138: -121.53934 | M138: Tier 2-3 | N138: W12153963N3953242 | O138: W12153905N3953243 | P138: W12153963N3953242-W12153905N3953243 | Q138: 161.3 | R138: 2 | S138: 175 | T138: =COUNTIFS(TreeRange,S138,TreeFail,"Yes")*V138 -> 0 | U138: 0 | V138: 1 | W138: =COUNTIFS(TreeRange,S138,TreeOffset,"Yes") -> 0 | X138: 0 | Y138: =IFERROR(VLOOKUP($N138,PoleRange,3,FALSE),0) -> -121.53963 | Z138: =IFERROR(VLOOKUP($N138,PoleRange,2,FALSE),0) -> 39.53242 | AA138: 105.70464 | AC138: =IFERROR(VLOOKUP($O138,PoleRange,3,FALSE),0) -> -121.53905 | AD138: =IFERROR(VLOOKUP($O138,PoleRange,2,FALSE),0) -> 39.53243 | AE138: 109.94136 | AG138: =IFERROR(VLOOKUP($N138,PoleRange,6,FALSE),0) -> 315.2 | AH138: =IFERROR(VLOOKUP($O138,PoleRange,6,FALSE),0) -> 327.3 | AI138: =IFERROR(VLOOKUP($N138,PoleRange,7,FALSE),0) -> 32.6 | AJ138: =IFERROR(VLOOKUP($O138,PoleRange,7,FALSE),0) -> 34.4
J139: 176 | K139: 39.53244 | L139: -121.53858 | M139: Tier 2-3 | N139: W12153810N3953244 | O139: W12153905N3953243 | P139: W12153810N3953244-W12153905N3953243 | Q139: 270.1 | R139: 2 | S139: 176 | T139: =COUNTIFS(TreeRange,S139,TreeFail,"Yes")*V139 -> 9 | U139: 2 | V139: 1 | W139: =COUNTIFS(TreeRange,S139,TreeOffset,"Yes") -> 4 | X139: 1 | Y139: =IFERROR(VLOOKUP($N139,PoleRange,3,FALSE),0) -> -121.5381 | Z139: =IFERROR(VLOOKUP($N139,PoleRange,2,FALSE),0) -> 39.53244 | AA139: 119.57304 | AC139: =IFERROR(VLOOKUP($O139,PoleRange,3,FALSE),0) -> -121.53905 | AD139: =IFERROR(VLOOKUP($O139,PoleRange,2,FALSE),0) -> 39.53243 | AE139: 109.94136 | AG139: =IFERROR(VLOOKUP($N139,PoleRange,6,FALSE),0) -> 359.9 | AH139: =IFERROR(VLOOKUP($O139,PoleRange,6,FALSE),0) -> 327.3 | AI139: =IFERROR(VLOOKUP($N139,PoleRange,7,FALSE),0) -> 33.4 | AJ139: =IFERROR(VLOOKUP($O139,PoleRange,7,FALSE),0) -> 34.4
J140: 177 | K140: 39.53249 | L140: -121.54079 | M140: Tier 2-3 | N140: W12154086N3953214 | O140: W12154073N3953285 | P140: W12154086N3953214-W12154073N3953285 | Q140: 261 | R140: 2 | S140: 177 | T140: =COUNTIFS(TreeRange,S140,TreeFail,"Yes")*V140 -> 0 | U140: 0 | V140: 1 | W140: =COUNTIFS(TreeRange,S140,TreeOffset,"Yes") -> 0 | X140: 0 | Y140: =IFERROR(VLOOKUP($N140,PoleRange,3,FALSE),0) -> -121.54086 | Z140: =IFERROR(VLOOKUP($N140,PoleRange,2,FALSE),0) -> 39.53214 | AA140: 95.89008 | AC140: =IFERROR(VLOOKUP($O140,PoleRange,3,FALSE),0) -> -121.54073 | AD140: =IFERROR(VLOOKUP($O140,PoleRange,2,FALSE),0) -> 39.53285 | AE140: 99.30384 | AG140: =IFERROR(VLOOKUP($N140,PoleRange,6,FALSE),0) -> 280.7 | AH140: =IFERROR(VLOOKUP($O140,PoleRange,6,FALSE),0) -> 293.9 | AI140: =IFERROR(VLOOKUP($N140,PoleRange,7,FALSE),0) -> 34.9 | AJ140: =IFERROR(VLOOKUP($O140,PoleRange,7,FALSE),0) -> 32.9
J141: 178 | K141: 39.5326 | L141: -121.52605 | M141: Tier 2-3 | N141: W12152605N3953235 | O141: W12152605N3953285 | P141: W12152605N3953235-W12152605N3953285 | Q141: 180.3 | R141: 2 | S141: 178 | T141: =COUNTIFS(TreeRange,S141,TreeFail,"Yes")*V141 -> 1 | U141: 1 | V141: 1 | W141: =COUNTIFS(TreeRange,S141,TreeOffset,"Yes") -> 0 | X141: 0 | Y141: =IFERROR(VLOOKUP($N141,PoleRange,3,FALSE),0) -> -121.52605 | Z141: =IFERROR(VLOOKUP($N141,PoleRange,2,FALSE),0) -> 39.53235 | AA141: 115.3668 | AC141: =IFERROR(VLOOKUP($O141,PoleRange,3,FALSE),0) -> -121.52605 | AD141: =IFERROR(VLOOKUP($O141,PoleRange,2,FALSE),0) -> 39.53285 | AE141: 113.65992 | AG141: =IFERROR(VLOOKUP($N141,PoleRange,6,FALSE),0) -> 343.8 | AH141: =IFERROR(VLOOKUP($O141,PoleRange,6,FALSE),0) -> 335.2 | AI141: =IFERROR(VLOOKUP($N141,PoleRange,7,FALSE),0) -> 35.7 | AJ141: =IFERROR(VLOOKUP($O141,PoleRange,7,FALSE),0) -> 38.7
J142: 179 | K142: 39.53263 | L142: -121.53906 | M142: Tier 2-3 | N142: W12153905N3953243 | O142: W12153906N3953282 | P142: W12153905N3953243-W12153906N3953282 | Q142: 140.4 | R142: 2 | S142: 179 | T142: =COUNTIFS(TreeRange,S142,TreeFail,"Yes")*V142 -> 0 | U142: 0 | V142: 1 | W142: =COUNTIFS(TreeRange,S142,TreeOffset,"Yes") -> 0 | X142: 0 | Y142: =IFERROR(VLOOKUP($N142,PoleRange,3,FALSE),0) -> -121.53905 | Z142: =IFERROR(VLOOKUP($N142,PoleRange,2,FALSE),0) -> 39.53243 | AA142: 109.94136 | AC142: =IFERROR(VLOOKUP($O142,PoleRange,3,FALSE),0) -> -121.53906 | AD142: =IFERROR(VLOOKUP($O142,PoleRange,2,FALSE),0) -> 39.53282 | AE142: 104.75976 | AG142: =IFERROR(VLOOKUP($N142,PoleRange,6,FALSE),0) -> 327.3 | AH142: =IFERROR(VLOOKUP($O142,PoleRange,6,FALSE),0) -> 311.6 | AI142: =IFERROR(VLOOKUP($N142,PoleRange,7,FALSE),0) -> 34.4 | AJ142: =IFERROR(VLOOKUP($O142,PoleRange,7,FALSE),0) -> 33.1
J143: 180 | K143: 39.53264 | L143: -121.53655 | M143: Tier 2-3 | N143: W12153655N3953245 | O143: W12153655N3953283 | P143: W12153655N3953245-W12153655N3953283 | Q143: 141.5 | R143: 2 | S143: 180 | T143: =COUNTIFS(TreeRange,S143,TreeFail,"Yes")*V143 -> 0 | U143: 0 | V143: 1 | W143: =COUNTIFS(TreeRange,S143,TreeOffset,"Yes") -> 0 | X143: 0 | Y143: =IFERROR(VLOOKUP($N143,PoleRange,3,FALSE),0) -> -121.53655 | Z143: =IFERROR(VLOOKUP($N143,PoleRange,2,FALSE),0) -> 39.53245 | AA143: 119.634 | AC143: =IFERROR(VLOOKUP($O143,PoleRange,3,FALSE),0) -> -121.53655 | AD143: =IFERROR(VLOOKUP($O143,PoleRange,2,FALSE),0) -> 39.53283 | AE143: 117.0432 | AG143: =IFERROR(VLOOKUP($N143,PoleRange,6,FALSE),0) -> 354.9 | AH143: =IFERROR(VLOOKUP($O143,PoleRange,6,FALSE),0) -> 350.5 | AI143: =IFERROR(VLOOKUP($N143,PoleRange,7,FALSE),0) -> 38.6 | AJ143: =IFERROR(VLOOKUP($O143,PoleRange,7,FALSE),0) -> 34.5
J144: 181 | K144: 39.53265 | L144: -121.53205 | M144: Tier 2-3 | N144: W12153205N3953245 | O144: W12153205N3953285 | P144: W12153205N3953245-W12153205N3953285 | Q144: 144.6 | R144: 2 | S144: 181 | T144: =COUNTIFS(TreeRange,S144,TreeFail,"Yes")*V144 -> 0 | U144: 0 | V144: 1 | W144: =COUNTIFS(TreeRange,S144,TreeOffset,"Yes") -> 0 | X144: 0 | Y144: =IFERROR(VLOOKUP($N144,PoleRange,3,FALSE),0) -> -121.53205 | Z144: =IFERROR(VLOOKUP($N144,PoleRange,2,FALSE),0) -> 39.53245 | AA144: 144.68856 | AC144: =IFERROR(VLOOKUP($O144,PoleRange,3,FALSE),0) -> -121.53205 | AD144: =IFERROR(VLOOKUP($O144,PoleRange,2,FALSE),0) -> 39.53285 | AE144: 140.26896 | AG144: =IFERROR(VLOOKUP($N144,PoleRange,6,FALSE),0) -> 441.3 | AH144: =IFERROR(VLOOKUP($O144,PoleRange,6,FALSE),0) -> 421.5 | AI144: =IFERROR(VLOOKUP($N144,PoleRange,7,FALSE),0) -> 34.4 | AJ144: =IFERROR(VLOOKUP($O144,PoleRange,7,FALSE),0) -> 39.7
J145: 182 | K145: 39.53267 | L145: -121.5342 | M145: Tier 2-3 | N145: W12153421N3953300 | O145: W12153419N3953235 | P145: W12153421N3953300-W12153419N3953235 | Q145: 237.3 | R145: 2 | S145: 182 | T145: =COUNTIFS(TreeRange,S145,TreeFail,"Yes")*V145 -> 0 | U145: 0 | V145: 1 | W145: =COUNTIFS(TreeRange,S145,TreeOffset,"Yes") -> 0 | X145: 0 | Y145: =IFERROR(VLOOKUP($N145,PoleRange,3,FALSE),0) -> -121.53421 | Z145: =IFERROR(VLOOKUP($N145,PoleRange,2,FALSE),0) -> 39.533 | AA145: 132.83184 | AC145: =IFERROR(VLOOKUP($O145,PoleRange,3,FALSE),0) -> -121.53419 | AD145: =IFERROR(VLOOKUP($O145,PoleRange,2,FALSE),0) -> 39.53235 | AE145: 124.69368 | AG145: =IFERROR(VLOOKUP($N145,PoleRange,6,FALSE),0) -> 398.5 | AH145: =IFERROR(VLOOKUP($O145,PoleRange,6,FALSE),0) -> 372.1 | AI145: =IFERROR(VLOOKUP($N145,PoleRange,7,FALSE),0) -> 38.3 | AJ145: =IFERROR(VLOOKUP($O145,PoleRange,7,FALSE),0) -> 38
J146: 183 | K146: 39.53281 | L146: -121.53877 | M146: Tier 2-3 | N146: W12153848N3953281 | O146: W12153906N3953282 | P146: W12153848N3953281-W12153906N3953282 | Q146: 163.8 | R146: 2 | S146: 183 | T146: =COUNTIFS(TreeRange,S146,TreeFail,"Yes")*V146 -> 6 | U146: 2 | V146: 1 | W146: =COUNTIFS(TreeRange,S146,TreeOffset,"Yes") -> 0 | X146: 0 | Y146: =IFERROR(VLOOKUP($N146,PoleRange,3,FALSE),0) -> -121.53848 | Z146: =IFERROR(VLOOKUP($N146,PoleRange,2,FALSE),0) -> 39.53281 | AA146: 108.14304 | AC146: =IFERROR(VLOOKUP($O146,PoleRange,3,FALSE),0) -> -121.53906 | AD146: =IFERROR(VLOOKUP($O146,PoleRange,2,FALSE),0) -> 39.53282 | AE146: 104.75976 | AG146: =IFERROR(VLOOKUP($N146,PoleRange,6,FALSE),0) -> 321.7 | AH146: =IFERROR(VLOOKUP($O146,PoleRange,6,FALSE),0) -> 311.6 | AI146: =IFERROR(VLOOKUP($N146,PoleRange,7,FALSE),0) -> 34.1 | AJ146: =IFERROR(VLOOKUP($O146,PoleRange,7,FALSE),0) -> 33.1
J147: 184 | K147: 39.53282 | L147: -121.53925 | M147: Tier 2-3 | N147: W12153944N3953282 | O147: W12153906N3953282 | P147: W12153944N3953282-W12153906N3953282 | Q147: 108.2 | R147: 2 | S147: 184 | T147: =COUNTIFS(TreeRange,S147,TreeFail,"Yes")*V147 -> 0 | U147: 0 | V147: 1 | W147: =COUNTIFS(TreeRange,S147,TreeOffset,"Yes") -> 0 | X147: 0 | Y147: =IFERROR(VLOOKUP($N147,PoleRange,3,FALSE),0) -> -121.53944 | Z147: =IFERROR(VLOOKUP($N147,PoleRange,2,FALSE),0) -> 39.53282 | AA147: 101.8032 | AC147: =IFERROR(VLOOKUP($O147,PoleRange,3,FALSE),0) -> -121.53906 | AD147: =IFERROR(VLOOKUP($O147,PoleRange,2,FALSE),0) -> 39.53282 | AE147: 104.75976 | AG147: =IFERROR(VLOOKUP($N147,PoleRange,6,FALSE),0) -> 301.8 | AH147: =IFERROR(VLOOKUP($O147,PoleRange,6,FALSE),0) -> 311.6 | AI147: =IFERROR(VLOOKUP($N147,PoleRange,7,FALSE),0) -> 33.2 | AJ147: =IFERROR(VLOOKUP($O147,PoleRange,7,FALSE),0) -> 33.1
J148: 185 | K148: 39.53284 | L148: -121.53684 | M148: Tier 2-3 | N148: W12153655N3953283 | O148: W12153713N3953284 | P148: W12153655N3953283-W12153713N3953284 | Q148: 163.4 | R148: 2 | S148: 185 | T148: =COUNTIFS(TreeRange,S148,TreeFail,"Yes")*V148 -> 0 | U148: 0 | V148: 1 | W148: =COUNTIFS(TreeRange,S148,TreeOffset,"Yes") -> 0 | X148: 0 | Y148: =IFERROR(VLOOKUP($N148,PoleRange,3,FALSE),0) -> -121.53655 | Z148: =IFERROR(VLOOKUP($N148,PoleRange,2,FALSE),0) -> 39.53283 | AA148: 117.0432 | AC148: =IFERROR(VLOOKUP($O148,PoleRange,3,FALSE),0) -> -121.53713 | AD148: =IFERROR(VLOOKUP($O148,PoleRange,2,FALSE),0) -> 39.53284 | AE148: 116.40312 | AG148: =IFERROR(VLOOKUP($N148,PoleRange,6,FALSE),0) -> 350.5 | AH148: =IFERROR(VLOOKUP($O148,PoleRange,6,FALSE),0) -> 347.9 | AI148: =IFERROR(VLOOKUP($N148,PoleRange,7,FALSE),0) -> 34.5 | AJ148: =IFERROR(VLOOKUP($O148,PoleRange,7,FALSE),0) -> 35
J149: 186 | K149: 39.53284 | L149: -121.53162 | M149: Tier 2-3 | N149: W12153118N3953282 | O149: W12153205N3953285 | P149: W12153118N3953282-W12153205N3953285 | Q149: 244.6 | R149: 2 | S149: 186 | T149: =COUNTIFS(TreeRange,S149,TreeFail,"Yes")*V149 -> 0 | U149: 0 | V149: 1 | W149: =COUNTIFS(TreeRange,S149,TreeOffset,"Yes") -> 0 | X149: 0 | Y149: =IFERROR(VLOOKUP($N149,PoleRange,3,FALSE),0) -> -121.53118 | Z149: =IFERROR(VLOOKUP($N149,PoleRange,2,FALSE),0) -> 39.53282 | AA149: 145.14576 | AC149: =IFERROR(VLOOKUP($O149,PoleRange,3,FALSE),0) -> -121.53205 | AD149: =IFERROR(VLOOKUP($O149,PoleRange,2,FALSE),0) -> 39.53285 | AE149: 140.26896 | AG149: =IFERROR(VLOOKUP($N149,PoleRange,6,FALSE),0) -> 447.8 | AH149: =IFERROR(VLOOKUP($O149,PoleRange,6,FALSE),0) -> 421.5 | AI149: =IFERROR(VLOOKUP($N149,PoleRange,7,FALSE),0) -> 29.4 | AJ149: =IFERROR(VLOOKUP($O149,PoleRange,7,FALSE),0) -> 39.7
J150: 187 | K150: 39.53306 | L150: -121.5408 | M150: Tier 2-3 | N150: W12154087N3953327 | O150: W12154073N3953285 | P150: W12154087N3953327-W12154073N3953285 | Q150: 159.9 | R150: 2 | S150: 187 | T150: =COUNTIFS(TreeRange,S150,TreeFail,"Yes")*V150 -> 2 | U150: 1 | V150: 1 | W150: =COUNTIFS(TreeRange,S150,TreeOffset,"Yes") -> 0 | X150: 0 | Y150: =IFERROR(VLOOKUP($N150,PoleRange,3,FALSE),0) -> -121.54087 | Z150: =IFERROR(VLOOKUP($N150,PoleRange,2,FALSE),0) -> 39.53327 | AA150: 99.5172 | AC150: =IFERROR(VLOOKUP($O150,PoleRange,3,FALSE),0) -> -121.54073 | AD150: =IFERROR(VLOOKUP($O150,PoleRange,2,FALSE),0) -> 39.53285 | AE150: 99.30384 | AG150: =IFERROR(VLOOKUP($N150,PoleRange,6,FALSE),0) -> 292.9 | AH150: =IFERROR(VLOOKUP($O150,PoleRange,6,FALSE),0) -> 293.9 | AI150: =IFERROR(VLOOKUP($N150,PoleRange,7,FALSE),0) -> 34.6 | AJ150: =IFERROR(VLOOKUP($O150,PoleRange,7,FALSE),0) -> 32.9
J151: 188 | K151: 39.5336 | L151: -121.54118 | M151: Tier 2-3 | N151: W12154149N3953393 | O151: W12154087N3953327 | P151: W12154149N3953393-W12154087N3953327 | Q151: 296 | R151: 2 | S151: 188 | T151: =COUNTIFS(TreeRange,S151,TreeFail,"Yes")*V151 -> 1 | U151: 1 | V151: 1 | W151: =COUNTIFS(TreeRange,S151,TreeOffset,"Yes") -> 0 | X151: 0 | Y151: =IFERROR(VLOOKUP($N151,PoleRange,3,FALSE),0) -> -121.54149 | Z151: =IFERROR(VLOOKUP($N151,PoleRange,2,FALSE),0) -> 39.53393 | AA151: 93.726 | AC151: =IFERROR(VLOOKUP($O151,PoleRange,3,FALSE),0) -> -121.54087 | AD151: =IFERROR(VLOOKUP($O151,PoleRange,2,FALSE),0) -> 39.53327 | AE151: 99.5172 | AG151: =IFERROR(VLOOKUP($N151,PoleRange,6,FALSE),0) -> 274.7 | AH151: =IFERROR(VLOOKUP($O151,PoleRange,6,FALSE),0) -> 292.9 | AI151: =IFERROR(VLOOKUP($N151,PoleRange,7,FALSE),0) -> 33.8 | AJ151: =IFERROR(VLOOKUP($O151,PoleRange,7,FALSE),0) -> 34.6
J152: 189 | K152: 39.53409 | L152: -121.54164 | M152: Tier 2-3 | N152: W12154179N3953424 | O152: W12154149N3953393 | P152: W12154179N3953424-W12154149N3953393 | Q152: 142.5 | R152: 2 | S152: 189 | T152: =COUNTIFS(TreeRange,S152,TreeFail,"Yes")*V152 -> 2 | U152: 1 | V152: 1 | W152: =COUNTIFS(TreeRange,S152,TreeOffset,"Yes") -> 0 | X152: 0 | Y152: =IFERROR(VLOOKUP($N152,PoleRange,3,FALSE),0) -> -121.54179 | Z152: =IFERROR(VLOOKUP($N152,PoleRange,2,FALSE),0) -> 39.53424 | AA152: 95.7072 | AC152: =IFERROR(VLOOKUP($O152,PoleRange,3,FALSE),0) -> -121.54149 | AD152: =IFERROR(VLOOKUP($O152,PoleRange,2,FALSE),0) -> 39.53393 | AE152: 93.726 | AG152: =IFERROR(VLOOKUP($N152,PoleRange,6,FALSE),0) -> 282 | AH152: =IFERROR(VLOOKUP($O152,PoleRange,6,FALSE),0) -> 274.7 | AI152: =IFERROR(VLOOKUP($N152,PoleRange,7,FALSE),0) -> 33 | AJ152: =IFERROR(VLOOKUP($O152,PoleRange,7,FALSE),0) -> 33.8
J153: 190 | K153: 39.5344 | L153: -121.54196 | M153: Tier 2-3 | N153: W12154179N3953424 | O153: W12154214N3953455 | P153: W12154179N3953424-W12154214N3953455 | Q153: 149.3 | R153: 2 | S153: 190 | T153: =COUNTIFS(TreeRange,S153,TreeFail,"Yes")*V153 -> 4 | U153: 1 | V153: 1 | W153: =COUNTIFS(TreeRange,S153,TreeOffset,"Yes") -> 0 | X153: 0 | Y153: =IFERROR(VLOOKUP($N153,PoleRange,3,FALSE),0) -> -121.54179 | Z153: =IFERROR(VLOOKUP($N153,PoleRange,2,FALSE),0) -> 39.53424 | AA153: 95.7072 | AC153: =IFERROR(VLOOKUP($O153,PoleRange,3,FALSE),0) -> -121.54214 | AD153: =IFERROR(VLOOKUP($O153,PoleRange,2,FALSE),0) -> 39.53455 | AE153: 92.44584 | AG153: =IFERROR(VLOOKUP($N153,PoleRange,6,FALSE),0) -> 282 | AH153: =IFERROR(VLOOKUP($O153,PoleRange,6,FALSE),0) -> 270.5 | AI153: =IFERROR(VLOOKUP($N153,PoleRange,7,FALSE),0) -> 33 | AJ153: =IFERROR(VLOOKUP($O153,PoleRange,7,FALSE),0) -> 33.8
J154: 191 | K154: 39.53487 | L154: -121.54222 | M154: Tier 2-3 | N154: W12154230N3953520 | O154: W12154214N3953455 | P154: W12154230N3953520-W12154214N3953455 | Q154: 240.6 | R154: 2 | S154: 191 | T154: =COUNTIFS(TreeRange,S154,TreeFail,"Yes")*V154 -> 0 | U154: 0 | V154: 1 | W154: =COUNTIFS(TreeRange,S154,TreeOffset,"Yes") -> 0 | X154: 0 | Y154: =IFERROR(VLOOKUP($N154,PoleRange,3,FALSE),0) -> -121.5423 | Z154: =IFERROR(VLOOKUP($N154,PoleRange,2,FALSE),0) -> 39.5352 | AA154: 92.17152 | AC154: =IFERROR(VLOOKUP($O154,PoleRange,3,FALSE),0) -> -121.54214 | AD154: =IFERROR(VLOOKUP($O154,PoleRange,2,FALSE),0) -> 39.53455 | AE154: 92.44584 | AG154: =IFERROR(VLOOKUP($N154,PoleRange,6,FALSE),0) -> 270.2 | AH154: =IFERROR(VLOOKUP($O154,PoleRange,6,FALSE),0) -> 270.5 | AI154: =IFERROR(VLOOKUP($N154,PoleRange,7,FALSE),0) -> 33.2 | AJ154: =IFERROR(VLOOKUP($O154,PoleRange,7,FALSE),0) -> 33.8
J155: 192 | K155: 39.53545 | L155: -121.54236 | M155: Tier 2-3 | N155: W12154230N3953520 | O155: W12154242N3953570 | P155: W12154230N3953520-W12154242N3953570 | Q155: 184.9 | R155: 2 | S155: 192 | T155: =COUNTIFS(TreeRange,S155,TreeFail,"Yes")*V155 -> 1 | U155: 1 | V155: 1 | W155: =COUNTIFS(TreeRange,S155,TreeOffset,"Yes") -> 0 | X155: 0 | Y155: =IFERROR(VLOOKUP($N155,PoleRange,3,FALSE),0) -> -121.5423 | Z155: =IFERROR(VLOOKUP($N155,PoleRange,2,FALSE),0) -> 39.5352 | AA155: 92.17152 | AC155: =IFERROR(VLOOKUP($O155,PoleRange,3,FALSE),0) -> -121.54242 | AD155: =IFERROR(VLOOKUP($O155,PoleRange,2,FALSE),0) -> 39.5357 | AE155: 91.37904 | AG155: =IFERROR(VLOOKUP($N155,PoleRange,6,FALSE),0) -> 270.2 | AH155: =IFERROR(VLOOKUP($O155,PoleRange,6,FALSE),0) -> 266.3 | AI155: =IFERROR(VLOOKUP($N155,PoleRange,7,FALSE),0) -> 33.2 | AJ155: =IFERROR(VLOOKUP($O155,PoleRange,7,FALSE),0) -> 34.5
J156: 193 | K156: 39.53581 | L156: -121.54249 | M156: Tier 2-3 | N156: W12154242N3953570 | O156: W12154256N3953592 | P156: W12154242N3953570-W12154256N3953592 | Q156: 92.3 | R156: 2 | S156: 193 | T156: =COUNTIFS(TreeRange,S156,TreeFail,"Yes")*V156 -> 2 | U156: 1 | V156: 1 | W156: =COUNTIFS(TreeRange,S156,TreeOffset,"Yes") -> 0 | X156: 0 | Y156: =IFERROR(VLOOKUP($N156,PoleRange,3,FALSE),0) -> -121.54242 | Z156: =IFERROR(VLOOKUP($N156,PoleRange,2,FALSE),0) -> 39.5357 | AA156: 91.37904 | AC156: =IFERROR(VLOOKUP($O156,PoleRange,3,FALSE),0) -> -121.54256 | AD156: =IFERROR(VLOOKUP($O156,PoleRange,2,FALSE),0) -> 39.53592 | AE156: 86.44128 | AG156: =IFERROR(VLOOKUP($N156,PoleRange,6,FALSE),0) -> 266.3 | AH156: =IFERROR(VLOOKUP($O156,PoleRange,6,FALSE),0) -> 245.6 | AI156: =IFERROR(VLOOKUP($N156,PoleRange,7,FALSE),0) -> 34.5 | AJ156: =IFERROR(VLOOKUP($O156,PoleRange,7,FALSE),0) -> 39
J157: 194 | K157: 39.53626 | L157: -121.54255 | M157: Tier 2-3 | N157: W12154256N3953592 | O157: W12154253N3953660 | P157: W12154256N3953592-W12154253N3953660 | Q157: 247.6 | R157: 2 | S157: 194 | T157: =COUNTIFS(TreeRange,S157,TreeFail,"Yes")*V157 -> 3 | U157: 1 | V157: 1 | W157: =COUNTIFS(TreeRange,S157,TreeOffset,"Yes") -> 0 | X157: 0 | Y157: =IFERROR(VLOOKUP($N157,PoleRange,3,FALSE),0) -> -121.54256 | Z157: =IFERROR(VLOOKUP($N157,PoleRange,2,FALSE),0) -> 39.53592 | AA157: 86.44128 | AC157: =IFERROR(VLOOKUP($O157,PoleRange,3,FALSE),0) -> -121.54253 | AD157: =IFERROR(VLOOKUP($O157,PoleRange,2,FALSE),0) -> 39.5366 | AE157: 83.6676 | AG157: =IFERROR(VLOOKUP($N157,PoleRange,6,FALSE),0) -> 245.6 | AH157: =IFERROR(VLOOKUP($O157,PoleRange,6,FALSE),0) -> 241.4 | AI157: =IFERROR(VLOOKUP($N157,PoleRange,7,FALSE),0) -> 39 | AJ157: =IFERROR(VLOOKUP($O157,PoleRange,7,FALSE),0) -> 34.1
J158: 195 | K158: 39.53709 | L158: -121.54252 | M158: Tier 2-3 | N158: W12154250N3953758 | O158: W12154253N3953660 | P158: W12154250N3953758-W12154253N3953660 | Q158: 355.9 | R158: 2 | S158: 195 | T158: =COUNTIFS(TreeRange,S158,TreeFail,"Yes")*V158 -> 4 | U158: 1 | V158: 1 | W158: =COUNTIFS(TreeRange,S158,TreeOffset,"Yes") -> 0 | X158: 0 | Y158: =IFERROR(VLOOKUP($N158,PoleRange,3,FALSE),0) -> -121.5425 | Z158: =IFERROR(VLOOKUP($N158,PoleRange,2,FALSE),0) -> 39.53758 | AA158: 83.48472 | AC158: =IFERROR(VLOOKUP($O158,PoleRange,3,FALSE),0) -> -121.54253 | AD158: =IFERROR(VLOOKUP($O158,PoleRange,2,FALSE),0) -> 39.5366 | AE158: 83.6676 | AG158: =IFERROR(VLOOKUP($N158,PoleRange,6,FALSE),0) -> 238.5 | AH158: =IFERROR(VLOOKUP($O158,PoleRange,6,FALSE),0) -> 241.4 | AI158: =IFERROR(VLOOKUP($N158,PoleRange,7,FALSE),0) -> 36.4 | AJ158: =IFERROR(VLOOKUP($O158,PoleRange,7,FALSE),0) -> 34.1
J159: 196 | K159: 39.53808 | L159: -121.54251 | M159: Tier 2-3 | N159: W12154250N3953758 | O159: W12154252N3953857 | P159: W12154250N3953758-W12154252N3953857 | Q159: 362 | R159: 2 | S159: 196 | T159: =COUNTIFS(TreeRange,S159,TreeFail,"Yes")*V159 -> 8 | U159: 2 | V159: 1 | W159: =COUNTIFS(TreeRange,S159,TreeOffset,"Yes") -> 0 | X159: 0 | Y159: =IFERROR(VLOOKUP($N159,PoleRange,3,FALSE),0) -> -121.5425 | Z159: =IFERROR(VLOOKUP($N159,PoleRange,2,FALSE),0) -> 39.53758 | AA159: 83.48472 | AC159: =IFERROR(VLOOKUP($O159,PoleRange,3,FALSE),0) -> -121.54252 | AD159: =IFERROR(VLOOKUP($O159,PoleRange,2,FALSE),0) -> 39.53857 | AE159: 81.65592 | AG159: =IFERROR(VLOOKUP($N159,PoleRange,6,FALSE),0) -> 238.5 | AH159: =IFERROR(VLOOKUP($O159,PoleRange,6,FALSE),0) -> 234.7 | AI159: =IFERROR(VLOOKUP($N159,PoleRange,7,FALSE),0) -> 36.4 | AJ159: =IFERROR(VLOOKUP($O159,PoleRange,7,FALSE),0) -> 34.2
J160: 197 | K160: 39.53891 | L160: -121.54257 | M160: Tier 2-3 | N160: W12154263N3953924 | O160: W12154252N3953857 | P160: W12154263N3953924-W12154252N3953857 | Q160: 244.7 | R160: 2 | S160: 197 | T160: =COUNTIFS(TreeRange,S160,TreeFail,"Yes")*V160 -> 3 | U160: 1 | V160: 1 | W160: =COUNTIFS(TreeRange,S160,TreeOffset,"Yes") -> 0 | X160: 0 | Y160: =IFERROR(VLOOKUP($N160,PoleRange,3,FALSE),0) -> -121.54263 | Z160: =IFERROR(VLOOKUP($N160,PoleRange,2,FALSE),0) -> 39.53924 | AA160: 81.04632 | AC160: =IFERROR(VLOOKUP($O160,PoleRange,3,FALSE),0) -> -121.54252 | AD160: =IFERROR(VLOOKUP($O160,PoleRange,2,FALSE),0) -> 39.53857 | AE160: 81.65592 | AG160: =IFERROR(VLOOKUP($N160,PoleRange,6,FALSE),0) -> 234.9 | AH160: =IFERROR(VLOOKUP($O160,PoleRange,6,FALSE),0) -> 234.7 | AI160: =IFERROR(VLOOKUP($N160,PoleRange,7,FALSE),0) -> 32 | AJ160: =IFERROR(VLOOKUP($O160,PoleRange,7,FALSE),0) -> 34.2
J161: 198 | K161: 39.53956 | L161: -121.54262 | M161: Tier 2-3 | N161: W12154263N3953924 | O161: W12154261N3953987 | P161: W12154263N3953924-W12154261N3953987 | Q161: 231 | R161: 2 | S161: 198 | T161: =COUNTIFS(TreeRange,S161,TreeFail,"Yes")*V161 -> 6 | U161: 2 | V161: 1 | W161: =COUNTIFS(TreeRange,S161,TreeOffset,"Yes") -> 0 | X161: 0 | Y161: =IFERROR(VLOOKUP($N161,PoleRange,3,FALSE),0) -> -121.54263 | Z161: =IFERROR(VLOOKUP($N161,PoleRange,2,FALSE),0) -> 39.53924 | AA161: 81.04632 | AC161: =IFERROR(VLOOKUP($O161,PoleRange,3,FALSE),0) -> -121.54261 | AD161: =IFERROR(VLOOKUP($O161,PoleRange,2,FALSE),0) -> 39.53987 | AE161: 81.3816 | AG161: =IFERROR(VLOOKUP($N161,PoleRange,6,FALSE),0) -> 234.9 | AH161: =IFERROR(VLOOKUP($O161,PoleRange,6,FALSE),0) -> 235.1 | AI161: =IFERROR(VLOOKUP($N161,PoleRange,7,FALSE),0) -> 32 | AJ161: =IFERROR(VLOOKUP($O161,PoleRange,7,FALSE),0) -> 32.9
J162: 199 | K162: 39.54027 | L162: -121.5426 | M162: Tier 2-3 | N162: W12154261N3953987 | O162: W12154258N3954066 | P162: W12154261N3953987-W12154258N3954066 | Q162: 286.7 | R162: 2 | S162: 199 | T162: =COUNTIFS(TreeRange,S162,TreeFail,"Yes")*V162 -> 4 | U162: 1 | V162: 1 | W162: =COUNTIFS(TreeRange,S162,TreeOffset,"Yes") -> 0 | X162: 0 | Y162: =IFERROR(VLOOKUP($N162,PoleRange,3,FALSE),0) -> -121.54261 | Z162: =IFERROR(VLOOKUP($N162,PoleRange,2,FALSE),0) -> 39.53987 | AA162: 81.3816 | AC162: =IFERROR(VLOOKUP($O162,PoleRange,3,FALSE),0) -> -121.54258 | AD162: =IFERROR(VLOOKUP($O162,PoleRange,2,FALSE),0) -> 39.54066 | AE162: 82.02168 | AG162: =IFERROR(VLOOKUP($N162,PoleRange,6,FALSE),0) -> 235.1 | AH162: =IFERROR(VLOOKUP($O162,PoleRange,6,FALSE),0) -> 235.6 | AI162: =IFERROR(VLOOKUP($N162,PoleRange,7,FALSE),0) -> 32.9 | AJ162: =IFERROR(VLOOKUP($O162,PoleRange,7,FALSE),0) -> 34.5
J163: 200 | K163: 39.54084 | L163: -121.54254 | M163: Tier 2-3 | N163: W12154258N3954066 | O163: W12154249N3954102 | P163: W12154258N3954066-W12154249N3954102 | Q163: 133.9 | R163: 2 | S163: 200 | T163: =COUNTIFS(TreeRange,S163,TreeFail,"Yes")*V163 -> 1 | U163: 1 | V163: 1 | W163: =COUNTIFS(TreeRange,S163,TreeOffset,"Yes") -> 0 | X163: 0 | Y163: =IFERROR(VLOOKUP($N163,PoleRange,3,FALSE),0) -> -121.54258 | Z163: =IFERROR(VLOOKUP($N163,PoleRange,2,FALSE),0) -> 39.54066 | AA163: 82.02168 | AC163: =IFERROR(VLOOKUP($O163,PoleRange,3,FALSE),0) -> -121.54249 | AD163: =IFERROR(VLOOKUP($O163,PoleRange,2,FALSE),0) -> 39.54102 | AE163: 81.93024 | AG163: =IFERROR(VLOOKUP($N163,PoleRange,6,FALSE),0) -> 235.6 | AH163: =IFERROR(VLOOKUP($O163,PoleRange,6,FALSE),0) -> 236.3 | AI163: =IFERROR(VLOOKUP($N163,PoleRange,7,FALSE),0) -> 34.5 | AJ163: =IFERROR(VLOOKUP($O163,PoleRange,7,FALSE),0) -> 33.5
J164: 201 | K164: 39.54144 | L164: -121.54227 | M164: Tier 2-3 | N164: W12154249N3954102 | O164: W12154206N3954186 | P164: W12154249N3954102-W12154206N3954186 | Q164: 330.6 | R164: 2 | S164: 201 | T164: =COUNTIFS(TreeRange,S164,TreeFail,"Yes")*V164 -> 0 | U164: 0 | V164: 1 | W164: =COUNTIFS(TreeRange,S164,TreeOffset,"Yes") -> 0 | X164: 0 | Y164: =IFERROR(VLOOKUP($N164,PoleRange,3,FALSE),0) -> -121.54249 | Z164: =IFERROR(VLOOKUP($N164,PoleRange,2,FALSE),0) -> 39.54102 | AA164: 81.93024 | AC164: =IFERROR(VLOOKUP($O164,PoleRange,3,FALSE),0) -> -121.54206 | AD164: =IFERROR(VLOOKUP($O164,PoleRange,2,FALSE),0) -> 39.54186 | AE164: 84.09432 | AG164: =IFERROR(VLOOKUP($N164,PoleRange,6,FALSE),0) -> 236.3 | AH164: =IFERROR(VLOOKUP($O164,PoleRange,6,FALSE),0) -> 242.8 | AI164: =IFERROR(VLOOKUP($N164,PoleRange,7,FALSE),0) -> 33.5 | AJ164: =IFERROR(VLOOKUP($O164,PoleRange,7,FALSE),0) -> 34.1
J165: 202 | K165: 39.65094 | L165: -121.50786 | M165: Tier 2-3 | N165: W12150790N3965077 | O165: W12150782N3965112 | P165: W12150790N3965077-W12150782N3965112 | Q165: 130.9 | R165: 2 | S165: 202 | T165: =COUNTIFS(TreeRange,S165,TreeFail,"Yes")*V165 -> 0 | U165: 0 | V165: 1 | W165: =COUNTIFS(TreeRange,S165,TreeOffset,"Yes") -> 0 | X165: 0 | Y165: =IFERROR(VLOOKUP($N165,PoleRange,3,FALSE),0) -> -121.5079 | Z165: =IFERROR(VLOOKUP($N165,PoleRange,2,FALSE),0) -> 39.65077 | AA165: 485.6988 | AC165: =IFERROR(VLOOKUP($O165,PoleRange,3,FALSE),0) -> -121.50782 | AD165: =IFERROR(VLOOKUP($O165,PoleRange,2,FALSE),0) -> 39.65112 | AE165: 475.488 | AG165: =IFERROR(VLOOKUP($N165,PoleRange,6,FALSE),0) -> 1522.9 | AH165: =IFERROR(VLOOKUP($O165,PoleRange,6,FALSE),0) -> 1521.5 | AI165: =IFERROR(VLOOKUP($N165,PoleRange,7,FALSE),0) -> 71.6 | AJ165: =IFERROR(VLOOKUP($O165,PoleRange,7,FALSE),0) -> 39.5
J166: 203 | K166: 39.65129 | L166: -121.50773 | M166: Tier 2-3 | N166: W12150782N3965112 | O166: W12150764N3965146 | P166: W12150782N3965112-W12150764N3965146 | Q166: 135.3 | R166: 2 | S166: 203 | T166: =COUNTIFS(TreeRange,S166,TreeFail,"Yes")*V166 -> 0 | U166: 0 | V166: 1 | W166: =COUNTIFS(TreeRange,S166,TreeOffset,"Yes") -> 0 | X166: 0 | Y166: =IFERROR(VLOOKUP($N166,PoleRange,3,FALSE),0) -> -121.50782 | Z166: =IFERROR(VLOOKUP($N166,PoleRange,2,FALSE),0) -> 39.65112 | AA166: 475.488 | AC166: =IFERROR(VLOOKUP($O166,PoleRange,3,FALSE),0) -> -121.50764 | AD166: =IFERROR(VLOOKUP($O166,PoleRange,2,FALSE),0) -> 39.65146 | AE166: 475.82328 | AG166: =IFERROR(VLOOKUP($N166,PoleRange,6,FALSE),0) -> 1521.5 | AH166: =IFERROR(VLOOKUP($O166,PoleRange,6,FALSE),0) -> 1529.3 | AI166: =IFERROR(VLOOKUP($N166,PoleRange,7,FALSE),0) -> 39.5 | AJ166: =IFERROR(VLOOKUP($O166,PoleRange,7,FALSE),0) -> 32.8
J167: 204 | K167: 39.65166 | L167: -121.50753 | M167: Tier 2-3 | N167: W12150764N3965146 | O167: W12150742N3965186 | P167: W12150764N3965146-W12150742N3965186 | Q167: 157.9 | R167: 2 | S167: 204 | T167: =COUNTIFS(TreeRange,S167,TreeFail,"Yes")*V167 -> 0 | U167: 0 | V167: 1 | W167: =COUNTIFS(TreeRange,S167,TreeOffset,"Yes") -> 0 | X167: 0 | Y167: =IFERROR(VLOOKUP($N167,PoleRange,3,FALSE),0) -> -121.50764 | Z167: =IFERROR(VLOOKUP($N167,PoleRange,2,FALSE),0) -> 39.65146 | AA167: 475.82328 | AC167: =IFERROR(VLOOKUP($O167,PoleRange,3,FALSE),0) -> -121.50742 | AD167: =IFERROR(VLOOKUP($O167,PoleRange,2,FALSE),0) -> 39.65186 | AE167: 482.16312 | AG167: =IFERROR(VLOOKUP($N167,PoleRange,6,FALSE),0) -> 1529.3 | AH167: =IFERROR(VLOOKUP($O167,PoleRange,6,FALSE),0) -> 1533.5 | AI167: =IFERROR(VLOOKUP($N167,PoleRange,7,FALSE),0) -> 32.8 | AJ167: =IFERROR(VLOOKUP($O167,PoleRange,7,FALSE),0) -> 49.4
J168: 205 | K168: 39.6533 | L168: -121.50701 | M168: Tier 2-3 | N168: W12150660N3965474 | O168: W12150742N3965186 | P168: W12150660N3965474-W12150742N3965186 | Q168: 1075.2 | R168: 2 | S168: 205 | T168: =COUNTIFS(TreeRange,S168,TreeFail,"Yes")*V168 -> 0 | U168: 0 | V168: 1 | W168: =COUNTIFS(TreeRange,S168,TreeOffset,"Yes") -> 0 | X168: 0 | Y168: =IFERROR(VLOOKUP($N168,PoleRange,3,FALSE),0) -> -121.5066 | Z168: =IFERROR(VLOOKUP($N168,PoleRange,2,FALSE),0) -> 39.65474 | AA168: 478.04832 | AC168: =IFERROR(VLOOKUP($O168,PoleRange,3,FALSE),0) -> -121.50742 | AD168: =IFERROR(VLOOKUP($O168,PoleRange,2,FALSE),0) -> 39.65186 | AE168: 482.16312 | AG168: =IFERROR(VLOOKUP($N168,PoleRange,6,FALSE),0) -> 1524.1 | AH168: =IFERROR(VLOOKUP($O168,PoleRange,6,FALSE),0) -> 1533.5 | AI168: =IFERROR(VLOOKUP($N168,PoleRange,7,FALSE),0) -> 45.3 | AJ168: =IFERROR(VLOOKUP($O168,PoleRange,7,FALSE),0) -> 49.4
J169: 206 | K169: 39.65504 | L169: -121.50651 | M169: Tier 2-3 | N169: W12150660N3965474 | O169: W12150643N3965533 | P169: W12150660N3965474-W12150643N3965533 | Q169: 217.9 | R169: 2 | S169: 206 | T169: =COUNTIFS(TreeRange,S169,TreeFail,"Yes")*V169 -> 0 | U169: 0 | V169: 1 | W169: =COUNTIFS(TreeRange,S169,TreeOffset,"Yes") -> 0 | X169: 0 | Y169: =IFERROR(VLOOKUP($N169,PoleRange,3,FALSE),0) -> -121.5066 | Z169: =IFERROR(VLOOKUP($N169,PoleRange,2,FALSE),0) -> 39.65474 | AA169: 478.04832 | AC169: =IFERROR(VLOOKUP($O169,PoleRange,3,FALSE),0) -> -121.50643 | AD169: =IFERROR(VLOOKUP($O169,PoleRange,2,FALSE),0) -> 39.65533 | AE169: 476.49384 | AG169: =IFERROR(VLOOKUP($N169,PoleRange,6,FALSE),0) -> 1524.1 | AH169: =IFERROR(VLOOKUP($O169,PoleRange,6,FALSE),0) -> 1520.1 | AI169: =IFERROR(VLOOKUP($N169,PoleRange,7,FALSE),0) -> 45.3 | AJ169: =IFERROR(VLOOKUP($O169,PoleRange,7,FALSE),0) -> 44.2
J170: 207 | K170: 39.65597 | L170: -121.50624 | M170: Tier 2-3 | N170: W12150643N3965533 | O170: W12150604N3965661 | P170: W12150643N3965533-W12150604N3965661 | Q170: 479.1 | R170: 2 | S170: 207 | T170: =COUNTIFS(TreeRange,S170,TreeFail,"Yes")*V170 -> 0 | U170: 0 | V170: 1 | W170: =COUNTIFS(TreeRange,S170,TreeOffset,"Yes") -> 0 | X170: 0 | Y170: =IFERROR(VLOOKUP($N170,PoleRange,3,FALSE),0) -> -121.50643 | Z170: =IFERROR(VLOOKUP($N170,PoleRange,2,FALSE),0) -> 39.65533 | AA170: 476.49384 | AC170: =IFERROR(VLOOKUP($O170,PoleRange,3,FALSE),0) -> -121.50604 | AD170: =IFERROR(VLOOKUP($O170,PoleRange,2,FALSE),0) -> 39.65661 | AE170: 456.22464 | AG170: =IFERROR(VLOOKUP($N170,PoleRange,6,FALSE),0) -> 1520.1 | AH170: =IFERROR(VLOOKUP($O170,PoleRange,6,FALSE),0) -> 1448.5 | AI170: =IFERROR(VLOOKUP($N170,PoleRange,7,FALSE),0) -> 44.2 | AJ170: =IFERROR(VLOOKUP($O170,PoleRange,7,FALSE),0) -> 49.3
J171: 208 | K171: 39.65731 | L171: -121.50582 | M171: Tier 2-3 | N171: W12150604N3965661 | O171: W12150561N3965801 | P171: W12150604N3965661-W12150561N3965801 | Q171: 523.8 | R171: 2 | S171: 208 | T171: =COUNTIFS(TreeRange,S171,TreeFail,"Yes")*V171 -> 0 | U171: 0 | V171: 1 | W171: =COUNTIFS(TreeRange,S171,TreeOffset,"Yes") -> 0 | X171: 0 | Y171: =IFERROR(VLOOKUP($N171,PoleRange,3,FALSE),0) -> -121.50604 | Z171: =IFERROR(VLOOKUP($N171,PoleRange,2,FALSE),0) -> 39.65661 | AA171: 456.22464 | AC171: =IFERROR(VLOOKUP($O171,PoleRange,3,FALSE),0) -> -121.50561 | AD171: =IFERROR(VLOOKUP($O171,PoleRange,2,FALSE),0) -> 39.65801 | AE171: 422.94048 | AG171: =IFERROR(VLOOKUP($N171,PoleRange,6,FALSE),0) -> 1448.5 | AH171: =IFERROR(VLOOKUP($O171,PoleRange,6,FALSE),0) -> 1340.1 | AI171: =IFERROR(VLOOKUP($N171,PoleRange,7,FALSE),0) -> 49.3 | AJ171: =IFERROR(VLOOKUP($O171,PoleRange,7,FALSE),0) -> 48.5
J172: 209 | K172: 39.65832 | L172: -121.50553 | M172: Tier 2-3 | N172: W12150561N3965801 | O172: W12150545N3965863 | P172: W12150561N3965801-W12150545N3965863 | Q172: 230 | R172: 2 | S172: 209 | T172: =COUNTIFS(TreeRange,S172,TreeFail,"Yes")*V172 -> 0 | U172: 0 | V172: 1 | W172: =COUNTIFS(TreeRange,S172,TreeOffset,"Yes") -> 0 | X172: 0 | Y172: =IFERROR(VLOOKUP($N172,PoleRange,3,FALSE),0) -> -121.50561 | Z172: =IFERROR(VLOOKUP($N172,PoleRange,2,FALSE),0) -> 39.65801 | AA172: 422.94048 | AC172: =IFERROR(VLOOKUP($O172,PoleRange,3,FALSE),0) -> -121.50545 | AD172: =IFERROR(VLOOKUP($O172,PoleRange,2,FALSE),0) -> 39.65863 | AE172: 400.90344 | AG172: =IFERROR(VLOOKUP($N172,PoleRange,6,FALSE),0) -> 1340.1 | AH172: =IFERROR(VLOOKUP($O172,PoleRange,6,FALSE),0) -> 1271.5 | AI172: =IFERROR(VLOOKUP($N172,PoleRange,7,FALSE),0) -> 48.5 | AJ172: =IFERROR(VLOOKUP($O172,PoleRange,7,FALSE),0) -> 44.8
J173: 210 | K173: 39.66082 | L173: -121.50456 | M173: Tier 2-3 | N173: W12150368N3966300 | O173: W12150545N3965863 | P173: W12150368N3966300-W12150545N3965863 | Q173: 1670.8 | R173: 2 | S173: 210 | T173: =COUNTIFS(TreeRange,S173,TreeFail,"Yes")*V173 -> 0 | U173: 0 | V173: 1 | W173: =COUNTIFS(TreeRange,S173,TreeOffset,"Yes") -> 0 | X173: 0 | Y173: =IFERROR(VLOOKUP($N173,PoleRange,3,FALSE),0) -> -121.50368 | Z173: =IFERROR(VLOOKUP($N173,PoleRange,2,FALSE),0) -> 39.663 | AA173: 443.24016 | AC173: =IFERROR(VLOOKUP($O173,PoleRange,3,FALSE),0) -> -121.50545 | AD173: =IFERROR(VLOOKUP($O173,PoleRange,2,FALSE),0) -> 39.65863 | AE173: 400.90344 | AG173: =IFERROR(VLOOKUP($N173,PoleRange,6,FALSE),0) -> 1403.4 | AH173: =IFERROR(VLOOKUP($O173,PoleRange,6,FALSE),0) -> 1271.5 | AI173: =IFERROR(VLOOKUP($N173,PoleRange,7,FALSE),0) -> 51.8 | AJ173: =IFERROR(VLOOKUP($O173,PoleRange,7,FALSE),0) -> 44.8
J174: 211 | K174: 39.66371 | L174: -121.50317 | M174: Tier 2-3 | N174: W12150368N3966300 | O174: W12150267N3966441 | P174: W12150368N3966300-W12150267N3966441 | Q174: 586 | R174: 2 | S174: 211 | T174: =COUNTIFS(TreeRange,S174,TreeFail,"Yes")*V174 -> 0 | U174: 0 | V174: 1 | W174: =COUNTIFS(TreeRange,S174,TreeOffset,"Yes") -> 0 | X174: 0 | Y174: =IFERROR(VLOOKUP($N174,PoleRange,3,FALSE),0) -> -121.50368 | Z174: =IFERROR(VLOOKUP($N174,PoleRange,2,FALSE),0) -> 39.663 | AA174: 443.24016 | AC174: =IFERROR(VLOOKUP($O174,PoleRange,3,FALSE),0) -> -121.50267 | AD174: =IFERROR(VLOOKUP($O174,PoleRange,2,FALSE),0) -> 39.66441 | AE174: 372.13032 | AG174: =IFERROR(VLOOKUP($N174,PoleRange,6,FALSE),0) -> 1403.4 | AH174: =IFERROR(VLOOKUP($O174,PoleRange,6,FALSE),0) -> 1166.5 | AI174: =IFERROR(VLOOKUP($N174,PoleRange,7,FALSE),0) -> 51.8 | AJ174: =IFERROR(VLOOKUP($O174,PoleRange,7,FALSE),0) -> 55.4
J175: 212 | K175: 39.66534 | L175: -121.50196 | M175: Tier 2-3 | N175: W12150124N3966627 | O175: W12150267N3966441 | P175: W12150124N3966627-W12150267N3966441 | Q175: 787.4 | R175: 2 | S175: 212 | T175: =COUNTIFS(TreeRange,S175,TreeFail,"Yes")*V175 -> 0 | U175: 0 | V175: 1 | W175: =COUNTIFS(TreeRange,S175,TreeOffset,"Yes") -> 0 | X175: 0 | Y175: =IFERROR(VLOOKUP($N175,PoleRange,3,FALSE),0) -> -121.50124 | Z175: =IFERROR(VLOOKUP($N175,PoleRange,2,FALSE),0) -> 39.66627 | AA175: 312.17616 | AC175: =IFERROR(VLOOKUP($O175,PoleRange,3,FALSE),0) -> -121.50267 | AD175: =IFERROR(VLOOKUP($O175,PoleRange,2,FALSE),0) -> 39.66441 | AE175: 372.13032 | AG175: =IFERROR(VLOOKUP($N175,PoleRange,6,FALSE),0) -> 981 | AH175: =IFERROR(VLOOKUP($O175,PoleRange,6,FALSE),0) -> 1166.5 | AI175: =IFERROR(VLOOKUP($N175,PoleRange,7,FALSE),0) -> 44.2 | AJ175: =IFERROR(VLOOKUP($O175,PoleRange,7,FALSE),0) -> 55.4
J176: 214 | K176: 39.67049 | L176: -121.49713 | M176: Tier 2-3 | N176: W12149727N3967099 | O176: W12149700N3966999 | P176: W12149727N3967099-W12149700N3966999 | Q176: 373.9 | R176: 2 | S176: 214 | T176: =COUNTIFS(TreeRange,S176,TreeFail,"Yes")*V176 -> 0 | U176: 0 | V176: 1 | W176: =COUNTIFS(TreeRange,S176,TreeOffset,"Yes") -> 0 | X176: 0 | Y176: =IFERROR(VLOOKUP($N176,PoleRange,3,FALSE),0) -> -121.49727 | Z176: =IFERROR(VLOOKUP($N176,PoleRange,2,FALSE),0) -> 39.67099 | AA176: 357.59136 | AC176: =IFERROR(VLOOKUP($O176,PoleRange,3,FALSE),0) -> -121.497 | AD176: =IFERROR(VLOOKUP($O176,PoleRange,2,FALSE),0) -> 39.66999 | AE176: 335.4324 | AG176: =IFERROR(VLOOKUP($N176,PoleRange,6,FALSE),0) -> 1134.3 | AH176: =IFERROR(VLOOKUP($O176,PoleRange,6,FALSE),0) -> 1060.9 | AI176: =IFERROR(VLOOKUP($N176,PoleRange,7,FALSE),0) -> 39.9 | AJ176: =IFERROR(VLOOKUP($O176,PoleRange,7,FALSE),0) -> 40.6
J177: 215 | K177: 39.67132 | L177: -121.49735 | M177: Tier 2-3 | N177: W12149727N3967099 | O177: W12149742N3967166 | P177: W12149727N3967099-W12149742N3967166 | Q177: 246.3 | R177: 2 | S177: 215 | T177: =COUNTIFS(TreeRange,S177,TreeFail,"Yes")*V177 -> 0 | U177: 0 | V177: 1 | W177: =COUNTIFS(TreeRange,S177,TreeOffset,"Yes") -> 0 | X177: 0 | Y177: =IFERROR(VLOOKUP($N177,PoleRange,3,FALSE),0) -> -121.49727 | Z177: =IFERROR(VLOOKUP($N177,PoleRange,2,FALSE),0) -> 39.67099 | AA177: 357.59136 | AC177: =IFERROR(VLOOKUP($O177,PoleRange,3,FALSE),0) -> -121.49742 | AD177: =IFERROR(VLOOKUP($O177,PoleRange,2,FALSE),0) -> 39.67166 | AE177: 365.05896 | AG177: =IFERROR(VLOOKUP($N177,PoleRange,6,FALSE),0) -> 1134.3 | AH177: =IFERROR(VLOOKUP($O177,PoleRange,6,FALSE),0) -> 1168.6 | AI177: =IFERROR(VLOOKUP($N177,PoleRange,7,FALSE),0) -> 39.9 | AJ177: =IFERROR(VLOOKUP($O177,PoleRange,7,FALSE),0) -> 30.1
J178: 216 | K178: 39.67192 | L178: -121.49749 | M178: Tier 2-3 | N178: W12149742N3967166 | O178: W12149755N3967217 | P178: W12149742N3967166-W12149755N3967217 | Q178: 191.4 | R178: 2 | S178: 216 | T178: =COUNTIFS(TreeRange,S178,TreeFail,"Yes")*V178 -> 0 | U178: 0 | V178: 1 | W178: =COUNTIFS(TreeRange,S178,TreeOffset,"Yes") -> 0 | X178: 0 | Y178: =IFERROR(VLOOKUP($N178,PoleRange,3,FALSE),0) -> -121.49742 | Z178: =IFERROR(VLOOKUP($N178,PoleRange,2,FALSE),0) -> 39.67166 | AA178: 365.05896 | AC178: =IFERROR(VLOOKUP($O178,PoleRange,3,FALSE),0) -> -121.49755 | AD178: =IFERROR(VLOOKUP($O178,PoleRange,2,FALSE),0) -> 39.67217 | AE178: 375.02592 | AG178: =IFERROR(VLOOKUP($N178,PoleRange,6,FALSE),0) -> 1168.6 | AH178: =IFERROR(VLOOKUP($O178,PoleRange,6,FALSE),0) -> 1198.4 | AI178: =IFERROR(VLOOKUP($N178,PoleRange,7,FALSE),0) -> 30.1 | AJ178: =IFERROR(VLOOKUP($O178,PoleRange,7,FALSE),0) -> 33
J179: 217 | K179: 39.67282 | L179: -121.49707 | M179: Tier 2-3 | N179: W12149755N3967217 | O179: W12149658N3967347 | P179: W12149755N3967217-W12149658N3967347 | Q179: 546.4 | R179: 2 | S179: 217 | T179: =COUNTIFS(TreeRange,S179,TreeFail,"Yes")*V179 -> 0 | U179: 0 | V179: 1 | W179: =COUNTIFS(TreeRange,S179,TreeOffset,"Yes") -> 0 | X179: 0 | Y179: =IFERROR(VLOOKUP($N179,PoleRange,3,FALSE),0) -> -121.49755 | Z179: =IFERROR(VLOOKUP($N179,PoleRange,2,FALSE),0) -> 39.67217 | AA179: 375.02592 | AC179: =IFERROR(VLOOKUP($O179,PoleRange,3,FALSE),0) -> -121.49658 | AD179: =IFERROR(VLOOKUP($O179,PoleRange,2,FALSE),0) -> 39.67347 | AE179: 385.05384 | AG179: =IFERROR(VLOOKUP($N179,PoleRange,6,FALSE),0) -> 1198.4 | AH179: =IFERROR(VLOOKUP($O179,PoleRange,6,FALSE),0) -> 1224.5 | AI179: =IFERROR(VLOOKUP($N179,PoleRange,7,FALSE),0) -> 33 | AJ179: =IFERROR(VLOOKUP($O179,PoleRange,7,FALSE),0) -> 39.8
J180: 218 | K180: 39.6738 | L180: -121.49624 | M180: Tier 2-3 | N180: W12149590N3967413 | O180: W12149658N3967347 | P180: W12149590N3967413-W12149658N3967347 | Q180: 308.5 | R180: 2 | S180: 218 | T180: =COUNTIFS(TreeRange,S180,TreeFail,"Yes")*V180 -> 0 | U180: 0 | V180: 1 | W180: =COUNTIFS(TreeRange,S180,TreeOffset,"Yes") -> 0 | X180: 0 | Y180: =IFERROR(VLOOKUP($N180,PoleRange,3,FALSE),0) -> -121.4959 | Z180: =IFERROR(VLOOKUP($N180,PoleRange,2,FALSE),0) -> 39.67413 | AA180: 401.69592 | AC180: =IFERROR(VLOOKUP($O180,PoleRange,3,FALSE),0) -> -121.49658 | AD180: =IFERROR(VLOOKUP($O180,PoleRange,2,FALSE),0) -> 39.67347 | AE180: 385.05384 | AG180: =IFERROR(VLOOKUP($N180,PoleRange,6,FALSE),0) -> 1281 | AH180: =IFERROR(VLOOKUP($O180,PoleRange,6,FALSE),0) -> 1224.5 | AI180: =IFERROR(VLOOKUP($N180,PoleRange,7,FALSE),0) -> 37.9 | AJ180: =IFERROR(VLOOKUP($O180,PoleRange,7,FALSE),0) -> 39.8
J181: 219 | K181: 39.67524 | L181: -121.49478 | M181: Tier 2-3 | N181: W12149366N3967635 | O181: W12149590N3967413 | P181: W12149366N3967635-W12149590N3967413 | Q181: 1024.1 | R181: 2 | S181: 219 | T181: =COUNTIFS(TreeRange,S181,TreeFail,"Yes")*V181 -> 0 | U181: 0 | V181: 1 | W181: =COUNTIFS(TreeRange,S181,TreeOffset,"Yes") -> 0 | X181: 0 | Y181: =IFERROR(VLOOKUP($N181,PoleRange,3,FALSE),0) -> -121.49366 | Z181: =IFERROR(VLOOKUP($N181,PoleRange,2,FALSE),0) -> 39.67635 | AA181: 430.8348 | AC181: =IFERROR(VLOOKUP($O181,PoleRange,3,FALSE),0) -> -121.4959 | AD181: =IFERROR(VLOOKUP($O181,PoleRange,2,FALSE),0) -> 39.67413 | AE181: 401.69592 | AG181: =IFERROR(VLOOKUP($N181,PoleRange,6,FALSE),0) -> 1375.7 | AH181: =IFERROR(VLOOKUP($O181,PoleRange,6,FALSE),0) -> 1281 | AI181: =IFERROR(VLOOKUP($N181,PoleRange,7,FALSE),0) -> 38.8 | AJ181: =IFERROR(VLOOKUP($O181,PoleRange,7,FALSE),0) -> 37.9
J182: 220 | K182: 39.67647 | L182: -121.49344 | M182: Tier 2-3 | N182: W12149366N3967635 | O182: W12149322N3967660 | P182: W12149366N3967635-W12149322N3967660 | Q182: 153.3 | R182: 2 | S182: 220 | T182: =COUNTIFS(TreeRange,S182,TreeFail,"Yes")*V182 -> 0 | U182: 0 | V182: 1 | W182: =COUNTIFS(TreeRange,S182,TreeOffset,"Yes") -> 0 | X182: 0 | Y182: =IFERROR(VLOOKUP($N182,PoleRange,3,FALSE),0) -> -121.49366 | Z182: =IFERROR(VLOOKUP($N182,PoleRange,2,FALSE),0) -> 39.67635 | AA182: 430.8348 | AC182: =IFERROR(VLOOKUP($O182,PoleRange,3,FALSE),0) -> -121.49322 | AD182: =IFERROR(VLOOKUP($O182,PoleRange,2,FALSE),0) -> 39.6766 | AE182: 425.89704 | AG182: =IFERROR(VLOOKUP($N182,PoleRange,6,FALSE),0) -> 1375.7 | AH182: =IFERROR(VLOOKUP($O182,PoleRange,6,FALSE),0) -> 1357.5 | AI182: =IFERROR(VLOOKUP($N182,PoleRange,7,FALSE),0) -> 38.8 | AJ182: =IFERROR(VLOOKUP($O182,PoleRange,7,FALSE),0) -> 40.8
J183: 221 | K183: 39.67687 | L183: -121.49281 | M183: Tier 2-3 | N183: W12149322N3967660 | O183: W12149240N3967714 | P183: W12149322N3967660-W12149240N3967714 | Q183: 304.1 | R183: 2 | S183: 221 | T183: =COUNTIFS(TreeRange,S183,TreeFail,"Yes")*V183 -> 0 | U183: 0 | V183: 1 | W183: =COUNTIFS(TreeRange,S183,TreeOffset,"Yes") -> 0 | X183: 0 | Y183: =IFERROR(VLOOKUP($N183,PoleRange,3,FALSE),0) -> -121.49322 | Z183: =IFERROR(VLOOKUP($N183,PoleRange,2,FALSE),0) -> 39.6766 | AA183: 425.89704 | AC183: =IFERROR(VLOOKUP($O183,PoleRange,3,FALSE),0) -> -121.4924 | AD183: =IFERROR(VLOOKUP($O183,PoleRange,2,FALSE),0) -> 39.67714 | AE183: 407.27376 | AG183: =IFERROR(VLOOKUP($N183,PoleRange,6,FALSE),0) -> 1357.5 | AH183: =IFERROR(VLOOKUP($O183,PoleRange,6,FALSE),0) -> 1288.7 | AI183: =IFERROR(VLOOKUP($N183,PoleRange,7,FALSE),0) -> 40.8 | AJ183: =IFERROR(VLOOKUP($O183,PoleRange,7,FALSE),0) -> 48.5
J184: 222 | K184: 39.67721 | L184: -121.4923 | M184: Tier 2-3 | N184: W12149240N3967714 | O184: W12149219N3967729 | P184: W12149240N3967714-W12149219N3967729 | Q184: 78.7 | R184: 2 | S184: 222 | T184: =COUNTIFS(TreeRange,S184,TreeFail,"Yes")*V184 -> 0 | U184: 0 | V184: 1 | W184: =COUNTIFS(TreeRange,S184,TreeOffset,"Yes") -> 0 | X184: 0 | Y184: =IFERROR(VLOOKUP($N184,PoleRange,3,FALSE),0) -> -121.4924 | Z184: =IFERROR(VLOOKUP($N184,PoleRange,2,FALSE),0) -> 39.67714 | AA184: 407.27376 | AC184: =IFERROR(VLOOKUP($O184,PoleRange,3,FALSE),0) -> -121.49219 | AD184: =IFERROR(VLOOKUP($O184,PoleRange,2,FALSE),0) -> 39.67729 | AE184: 402.6408 | AG184: =IFERROR(VLOOKUP($N184,PoleRange,6,FALSE),0) -> 1288.7 | AH184: =IFERROR(VLOOKUP($O184,PoleRange,6,FALSE),0) -> 1280.8 | AI184: =IFERROR(VLOOKUP($N184,PoleRange,7,FALSE),0) -> 48.5 | AJ184: =IFERROR(VLOOKUP($O184,PoleRange,7,FALSE),0) -> 41.2
J185: 223 | K185: 39.6773 | L185: -121.49217 | M185: Tier 2-3 | N185: W12149219N3967729 | O185: W12149215N3967731 | P185: W12149219N3967729-W12149215N3967731 | Q185: 13.9 | R185: 2 | S185: 223 | T185: =COUNTIFS(TreeRange,S185,TreeFail,"Yes")*V185 -> 0 | U185: 0 | V185: 1 | W185: =COUNTIFS(TreeRange,S185,TreeOffset,"Yes") -> 0 | X185: 0 | Y185: =IFERROR(VLOOKUP($N185,PoleRange,3,FALSE),0) -> -121.49219 | Z185: =IFERROR(VLOOKUP($N185,PoleRange,2,FALSE),0) -> 39.67729 | AA185: 402.6408 | AC185: =IFERROR(VLOOKUP($O185,PoleRange,3,FALSE),0) -> -121.49215 | AD185: =IFERROR(VLOOKUP($O185,PoleRange,2,FALSE),0) -> 39.67731 | AE185: 402.15312 | AG185: =IFERROR(VLOOKUP($N185,PoleRange,6,FALSE),0) -> 1280.8 | AH185: =IFERROR(VLOOKUP($O185,PoleRange,6,FALSE),0) -> 1282.5 | AI185: =IFERROR(VLOOKUP($N185,PoleRange,7,FALSE),0) -> 41.2 | AJ185: =IFERROR(VLOOKUP($O185,PoleRange,7,FALSE),0) -> 37.9
J186: 224 | K186: 39.67737 | L186: -121.49207 | M186: Tier 2-3 | N186: W12149215N3967731 | O186: W12149198N3967742 | P186: W12149215N3967731-W12149198N3967742 | Q186: 64.4 | R186: 2 | S186: 224 | T186: =COUNTIFS(TreeRange,S186,TreeFail,"Yes")*V186 -> 0 | U186: 0 | V186: 1 | W186: =COUNTIFS(TreeRange,S186,TreeOffset,"Yes") -> 0 | X186: 0 | Y186: =IFERROR(VLOOKUP($N186,PoleRange,3,FALSE),0) -> -121.49215 | Z186: =IFERROR(VLOOKUP($N186,PoleRange,2,FALSE),0) -> 39.67731 | AA186: 402.15312 | AC186: =IFERROR(VLOOKUP($O186,PoleRange,3,FALSE),0) -> 0 | AD186: =IFERROR(VLOOKUP($O186,PoleRange,2,FALSE),0) -> 0 | AE186: -0.3048 | AG186: =IFERROR(VLOOKUP($N186,PoleRange,6,FALSE),0) -> 1282.5 | AH186: =IFERROR(VLOOKUP($O186,PoleRange,6,FALSE),0) -> 0 | AI186: =IFERROR(VLOOKUP($N186,PoleRange,7,FALSE),0) -> 37.9 | AJ186: =IFERROR(VLOOKUP($O186,PoleRange,7,FALSE),0) -> 0

Sheet Poles
A2: objectid | B2: str_geotag | C2: latitude | D2: longitude | E2: x_coordinate | F2: y_coordinate | G2: elevation | H2: height | I2: line_id | J2: line_name | K2: HFTD
A3: 1 | B3: W12149215N3967731 | C3: 39.67731 | D3: -121.49215 | E3: 6704608.29 | F3: 2373091.8 | G3: 1282.5 | H3: 37.9 | I3: 102911105 | J3: WYANDOTTE 1105 | K3: Tier 2-3
A4: 2 | B4: W12149219N3967729 | C4: 39.67729 | D4: -121.49219 | E4: 6704597.44 | F4: 2373083.1 | G4: 1280.8 | H4: 41.2 | I4: 102911105 | J4: WYANDOTTE 1105 | K4: Tier 2-3
A5: 3 | B5: W12149240N3967714 | C5: 39.67714 | D5: -121.4924 | E5: 6704538.79 | F5: 2373030.65 | G5: 1288.7 | H5: 48.5 | I5: 102911105 | J5: WYANDOTTE 1105 | K5: Tier 2-3
A6: 4 | B6: W12149322N3967660 | C6: 39.6766 | D6: -121.49322 | E6: 6704310.15 | F6: 2372830.12 | G6: 1357.5 | H6: 40.8 | I6: 102911105 | J6: WYANDOTTE 1105 | K6: Tier 2-3
A7: 5 | B7: W12149366N3967635 | C7: 39.67635 | D7: -121.49366 | E7: 6704185.78 | F7: 2372740.41 | G7: 1375.7 | H7: 38.8 | I7: 102911105 | J7: WYANDOTTE 1105 | K7: Tier 2-3
A8: 6 | B8: W12149590N3967413 | C8: 39.67413 | D8: -121.4959 | E8: 6703561.92 | F8: 2371928.32 | G8: 1281 | H8: 37.9 | I8: 102911105 | J8: WYANDOTTE 1105 | K8: Tier 2-3
A9: 7 | B9: W12149658N3967347 | C9: 39.67347 | D9: -121.49658 | E9: 6703369.31 | F9: 2371687.38 | G9: 1224.5 | H9: 39.8 | I9: 102911105 | J9: WYANDOTTE 1105 | K9: Tier 2-3
A10: 8 | B10: W12149700N3966999 | C10: 39.66999 | D10: -121.497 | E10: 6703260.57 | F10: 2370416.79 | G10: 1060.9 | H10: 40.6 | I10: 102911105 | J10: WYANDOTTE 1105 | K10: Tier 2-3
A11: 9 | B11: W12149727N3967099 | C11: 39.67099 | D11: -121.49727 | E11: 6703180.06 | F11: 2370781.95 | G11: 1134.3 | H11: 39.9 | I11: 102911105 | J11: WYANDOTTE 1105 | K11: Tier 2-3
A12: 10 | B12: W12149742N3967166 | C12: 39.67166 | D12: -121.49742 | E12: 6703136.3 | F12: 2371024.38 | G12: 1168.6 | H12: 30.1 | I12: 102911105 | J12: WYANDOTTE 1105 | K12: Tier 2-3
A13: 11 | B13: W12149755N3967217 | C13: 39.67217 | D13: -121.49755 | E13: 6703099.54 | F13: 2371212.21 | G13: 1198.4 | H13: 33 | I13: 102911105 | J13: WYANDOTTE 1105 | K13: Tier 2-3
A14: 12 | B14: W12150124N3966627 | C14: 39.66627 | D14: -121.50124 | E14: 6702072.04 | F14: 2369057.39 | G14: 981 | H14: 44.2 | I14: 102911105 | J14: WYANDOTTE 1105 | K14: Tier 2-3
A15: 13 | B15: W12150267N3966441 | C15: 39.66441 | D15: -121.50267 | E15: 6701674.51 | F15: 2368377.72 | G15: 1166.5 | H15: 55.4 | I15: 102911105 | J15: WYANDOTTE 1105 | K15: Tier 2-3
A16: 14 | B16: W12150368N3966300 | C16: 39.663 | D16: -121.50368 | E16: 6701394.19 | F16: 2367863.1 | G16: 1403.4 | H16: 51.8 | I16: 102911105 | J16: WYANDOTTE 1105 | K16: Tier 2-3
A17: 15 | B17: W12150545N3965863 | C17: 39.65863 | D17: -121.50545 | E17: 6700903.39 | F17: 2366266 | G17: 1271.5 | H17: 44.8 | I17: 102911105 | J17: WYANDOTTE 1105 | K17: Tier 2-3
A18: 16 | B18: W12150561N3965801 | C18: 39.65801 | D18: -121.50561 | E18: 6700860.48 | F18: 2366040 | G18: 1340.1 | H18: 48.5 | I18: 102911105 | J18: WYANDOTTE 1105 | K18: Tier 2-3
A19: 17 | B19: W12150604N3965661 | C19: 39.65661 | D19: -121.50604 | E19: 6700740.3 | F19: 2365530.15 | G19: 1448.5 | H19: 49.3 | I19: 102911105 | J19: WYANDOTTE 1105 | K19: Tier 2-3
A20: 18 | B20: W12150643N3965533 | C20: 39.65533 | D20: -121.50643 | E20: 6700633.7 | F20: 2365063.03 | G20: 1520.1 | H20: 44.2 | I20: 102911105 | J20: WYANDOTTE 1105 | K20: Tier 2-3
A21: 19 | B21: W12150660N3965474 | C21: 39.65474 | D21: -121.5066 | E21: 6700588.46 | F21: 2364849.91 | G21: 1524.1 | H21: 45.3 | I21: 102911105 | J21: WYANDOTTE 1105 | K21: Tier 2-3
A22: 20 | B22: W12150742N3965186 | C22: 39.65186 | D22: -121.50742 | E22: 6700363.02 | F22: 2363798.61 | G22: 1533.5 | H22: 49.4 | I22: 102911105 | J22: WYANDOTTE 1105 | K22: Tier 2-3
A23: 21 | B23: W12150764N3965146 | C23: 39.65146 | D23: -121.50764 | E23: 6700300.2 | F23: 2363653.73 | G23: 1529.3 | H23: 32.8 | I23: 102911105 | J23: WYANDOTTE 1105 | K23: Tier 2-3
A24: 22 | B24: W12150782N3965112 | C24: 39.65112 | D24: -121.50782 | E24: 6700249.6 | F24: 2363528.23 | G24: 1521.5 | H24: 39.5 | I24: 102911105 | J24: WYANDOTTE 1105 | K24: Tier 2-3
A25: 23 | B25: W12150790N3965077 | C25: 39.65077 | D25: -121.5079 | E25: 6700228.34 | F25: 2363399.09 | G25: 1522.9 | H25: 71.6 | I25: 102911105 | J25: WYANDOTTE 1105 | K25: Tier 2-3
A26: 30 | B26: W12151401N3952860 | C26: 39.5286 | D26: -121.51401 | E26: 6698745.17 | F26: 2318892.06 | G26: 487.5 | H26: 37.3 | I26: 102911105 | J26: WYANDOTTE 1105 | K26: Tier 2-3
A27: 31 | B27: W12151433N3952690 | C27: 39.5269 | D27: -121.51433 | E27: 6698658.42 | F27: 2318270.78 | G27: 474.1 | H27: 37.8 | I27: 102911105 | J27: WYANDOTTE 1105 | K27: Tier 2-3
A28: 32 | B28: W12151437N3952744 | C28: 39.52744 | D28: -121.51437 | E28: 6698646 | F28: 2318468.46 | G28: 479.4 | H28: 37.7 | I28: 102911105 | J28: WYANDOTTE 1105 | K28: Tier 2-3
A29: 33 | B29: W12151441N3952799 | C29: 39.52799 | D29: -121.51441 | E29: 6698633.54 | F29: 2318667.41 | G29: 487.4 | H29: 38.8 | I29: 102911105 | J29: WYANDOTTE 1105 | K29: Tier 2-3
A30: 35 | B30: W12151456N3952437 | C30: 39.52437 | D30: -121.51456 | E30: 6698600.52 | F30: 2317350.29 | G30: 488.1 | H30: 38.3 | I30: 102911105 | J30: WYANDOTTE 1105 | K30: Tier 2-3
A31: 36 | B31: W12151459N3952471 | C31: 39.52471 | D31: -121.51459 | E31: 6698590.07 | F31: 2317473.67 | G31: 490.6 | H31: 38.2 | I31: 102911105 | J31: WYANDOTTE 1105 | K31: Tier 2-3
A32: 37 | B32: W12151461N3952559 | C32: 39.52559 | D32: -121.51461 | E32: 6698583.55 | F32: 2317796.21 | G32: 480.9 | H32: 37.4 | I32: 102911105 | J32: WYANDOTTE 1105 | K32: Tier 2-3
A33: 38 | B33: W12151463N3952642 | C33: 39.52642 | D33: -121.51463 | E33: 6698576.7 | F33: 2318097.55 | G33: 472.1 | H33: 37 | I33: 102911105 | J33: WYANDOTTE 1105 | K33: Tier 2-3
A34: 46 | B34: W12151765N3953162 | C34: 39.53162 | D34: -121.51765 | E34: 6697713.7 | F34: 2319985.55 | G34: 342.7 | H34: 40.1 | I34: 102911105 | J34: WYANDOTTE 1105 | K34: Tier 2-3
A35: 47 | B35: W12151822N3953157 | C35: 39.53157 | D35: -121.51822 | E35: 6697553.48 | F35: 2319967.33 | G35: 344.1 | H35: 43.7 | I35: 102911105 | J35: WYANDOTTE 1105 | K35: Tier 2-3
A36: 48 | B36: W12151852N3952834 | C36: 39.52834 | D36: -121.51852 | E36: 6697473.88 | F36: 2318791.13 | G36: 451.2 | H36: 42.2 | I36: 102911105 | J36: WYANDOTTE 1105 | K36: Tier 2-3
A37: 49 | B37: W12151868N3953111 | C37: 39.53111 | D37: -121.51868 | E37: 6697425.72 | F37: 2319799.53 | G37: 358.7 | H37: 35.3 | I37: 102911105 | J37: WYANDOTTE 1105 | K37: Tier 2-3
A38: 50 | B38: W12151873N3952887 | C38: 39.52887 | D38: -121.51873 | E38: 6697414.06 | F38: 2318982.84 | G38: 457.6 | H38: 38.8 | I38: 102911105 | J38: WYANDOTTE 1105 | K38: Tier 2-3
A39: 51 | B39: W12151909N3953154 | C39: 39.53154 | D39: -121.51909 | E39: 6697307.09 | F39: 2319953.56 | G39: 364.9 | H39: 36 | I39: 102911105 | J39: WYANDOTTE 1105 | K39: Tier 2-3
A40: 52 | B40: W12151911N3952893 | C40: 39.52893 | D40: -121.51911 | E40: 6697307.69 | F40: 2319003.3 | G40: 461.8 | H40: 43.2 | I40: 102911105 | J40: WYANDOTTE 1105 | K40: Tier 2-3
A41: 53 | B41: W12151923N3953089 | C41: 39.53089 | D41: -121.51923 | E41: 6697268.6 | F41: 2319716.71 | G41: 361.4 | H41: 33.9 | I41: 102911105 | J41: WYANDOTTE 1105 | K41: Tier 2-3
A42: 54 | B42: W12151936N3952926 | C42: 39.52926 | D42: -121.51936 | E42: 6697236.33 | F42: 2319125.38 | G42: 441.3 | H42: 38.6 | I42: 102911105 | J42: WYANDOTTE 1105 | K42: Tier 2-3
A43: 55 | B43: W12152005N3953021 | C43: 39.53021 | D43: -121.52005 | E43: 6697038.44 | F43: 2319470.73 | G43: 373.7 | H43: 41.4 | I43: 102911105 | J43: WYANDOTTE 1105 | K43: Tier 2-3
A44: 56 | B44: W12152014N3952914 | C44: 39.52914 | D44: -121.52014 | E44: 6697016.12 | F44: 2319078.87 | G44: 394.1 | H44: 36.6 | I44: 102911105 | J44: WYANDOTTE 1105 | K44: Tier 2-3
A45: 57 | B45: W12152053N3952877 | C45: 39.52877 | D45: -121.52053 | E45: 6696907.43 | F45: 2318945.64 | G45: 400.3 | H45: 37.6 | I45: 102911105 | J45: WYANDOTTE 1105 | K45: Tier 2-3
A46: 58 | B46: W12152064N3952615 | C46: 39.52615 | D46: -121.52064 | E46: 6696882.02 | F46: 2317987.91 | G46: 478.6 | H46: 34.3 | I46: 102911105 | J46: WYANDOTTE 1105 | K46: Tier 2-3
A47: 59 | B47: W12152091N3952965 | C47: 39.52965 | D47: -121.52091 | E47: 6696797.4 | F47: 2319265.84 | G47: 393.8 | H47: 39.9 | I47: 102911105 | J47: WYANDOTTE 1105 | K47: Tier 2-3
A48: 60 | B48: W12152091N3953014 | C48: 39.53014 | D48: -121.52091 | E48: 6696798.18 | F48: 2319444.14 | G48: 384 | H48: 35.3 | I48: 102911105 | J48: WYANDOTTE 1105 | K48: Tier 2-3
A49: 62 | B49: W12152123N3952539 | C49: 39.52539 | D49: -121.52123 | E49: 6696717.2 | F49: 2317710.47 | G49: 477.3 | H49: 33 | I49: 102911105 | J49: WYANDOTTE 1105 | K49: Tier 2-3
A50: 63 | B50: W12152124N3952614 | C50: 39.52614 | D50: -121.52124 | E50: 6696711.01 | F50: 2317985.04 | G50: 482.9 | H50: 34.8 | I50: 102911105 | J50: WYANDOTTE 1105 | K50: Tier 2-3
A51: 64 | B51: W12152184N3953012 | C51: 39.53012 | D51: -121.52184 | E51: 6696533.86 | F51: 2319434.74 | G51: 406 | H51: 39.3 | I51: 102911105 | J51: WYANDOTTE 1105 | K51: Tier 2-3
A52: 66 | B52: W12152284N3952992 | C52: 39.52992 | D52: -121.52284 | E52: 6696253.91 | F52: 2319358.81 | G52: 426.2 | H52: 42.9 | I52: 102911105 | J52: WYANDOTTE 1105 | K52: Tier 2-3
A53: 68 | B53: W12152351N3952966 | C53: 39.52966 | D53: -121.52351 | E53: 6696066.05 | F53: 2319263.31 | G53: 422.2 | H53: 39.6 | I53: 102911105 | J53: WYANDOTTE 1105 | K53: Tier 2-3
A54: 69 | B54: W12152414N3952959 | C54: 39.52959 | D54: -121.52414 | E54: 6695886.44 | F54: 2319235.96 | G54: 422.2 | H54: 39.9 | I54: 102911105 | J54: WYANDOTTE 1105 | K54: Tier 2-3
A55: 70 | B55: W12152508N3952949 | C55: 39.52949 | D55: -121.52508 | E55: 6695621.69 | F55: 2319197.93 | G55: 422 | H55: 43.3 | I55: 102911105 | J55: WYANDOTTE 1105 | K55: Tier 2-3
A56: 71 | B56: W12152594N3958619 | C56: 39.58619 | D56: -121.52594 | E56: 6695271.31 | F56: 2339849.21 | G56: 1211.7 | H56: 28.6 | I56: 102911105 | J56: WYANDOTTE 1105 | K56: Tier 2-3
A57: 72 | B57: W12152596N3952916 | C57: 39.52916 | D57: -121.52596 | E57: 6695375.48 | F57: 2319078.85 | G57: 413 | H57: 39.9 | I57: 102911105 | J57: WYANDOTTE 1105 | K57: Tier 2-3
A58: 73 | B58: W12152603N3952974 | C58: 39.52974 | D58: -121.52603 | E58: 6695353.99 | F58: 2319287.92 | G58: 371.3 | H58: 30.2 | I58: 102911105 | J58: WYANDOTTE 1105 | K58: Tier 2-3
A59: 74 | B59: W12152603N3953064 | C59: 39.53064 | D59: -121.52603 | E59: 6695351.43 | F59: 2319617.04 | G59: 337.6 | H59: 30.4 | I59: 102911105 | J59: WYANDOTTE 1105 | K59: Tier 2-3
A60: 75 | B60: W12152604N3953139 | C60: 39.53139 | D60: -121.52604 | E60: 6695348.17 | F60: 2319890.2 | G60: 335.5 | H60: 35.1 | I60: 102911105 | J60: WYANDOTTE 1105 | K60: Tier 2-3
A61: 76 | B61: W12152605N3953235 | C61: 39.53235 | D61: -121.52605 | E61: 6695342.62 | F61: 2320241.19 | G61: 343.8 | H61: 35.7 | I61: 102911105 | J61: WYANDOTTE 1105 | K61: Tier 2-3
A62: 77 | B62: W12152605N3953285 | C62: 39.53285 | D62: -121.52605 | E62: 6695341.77 | F62: 2320421.45 | G62: 335.2 | H62: 38.7 | I62: 102911105 | J62: WYANDOTTE 1105 | K62: Tier 2-3
A63: 78 | B63: W12152606N3953202 | C63: 39.53202 | D63: -121.52606 | E63: 6695340.68 | F63: 2320121.31 | G63: 343.3 | H63: 38.2 | I63: 102911105 | J63: WYANDOTTE 1105 | K63: Tier 2-3
A64: 79 | B64: W12152680N3952875 | C64: 39.52875 | D64: -121.5268 | E64: 6695137.69 | F64: 2318929.15 | G64: 398.8 | H64: 35.4 | I64: 102911105 | J64: WYANDOTTE 1105 | K64: Tier 2-3
A65: 80 | B65: W12152750N3952825 | C65: 39.52825 | D65: -121.5275 | E65: 6694942.41 | F65: 2318745.06 | G65: 384.3 | H65: 35.2 | I65: 102911105 | J65: WYANDOTTE 1105 | K65: Tier 2-3
A66: 81 | B66: W12152800N3952774 | C66: 39.52774 | D66: -121.528 | E66: 6694803.11 | F66: 2318557.56 | G66: 384.1 | H66: 40.7 | I66: 102911105 | J66: WYANDOTTE 1105 | K66: Tier 2-3
A67: 82 | B67: W12152907N3952726 | C67: 39.52726 | D67: -121.52907 | E67: 6694501.53 | F67: 2318380.5 | G67: 374.6 | H67: 40.4 | I67: 102911105 | J67: WYANDOTTE 1105 | K67: Tier 2-3
A68: 83 | B68: W12152971N3952716 | C68: 39.52716 | D68: -121.52971 | E68: 6694320.06 | F68: 2318345.25 | G68: 373.5 | H68: 34.2 | I68: 102911105 | J68: WYANDOTTE 1105 | K68: Tier 2-3
A69: 84 | B69: W12152988N3952972 | C69: 39.52972 | D69: -121.52988 | E69: 6694268.47 | F69: 2319277.15 | G69: 436 | H69: 38.9 | I69: 102911105 | J69: WYANDOTTE 1105 | K69: Tier 2-3
A70: 85 | B70: W12153052N3952749 | C70: 39.52749 | D70: -121.53052 | E70: 6694092.42 | F70: 2318461.47 | G70: 374.6 | H70: 34.3 | I70: 102911105 | J70: WYANDOTTE 1105 | K70: Tier 2-3
A71: 86 | B71: W12153053N3952876 | C71: 39.52876 | D71: -121.53053 | E71: 6694085.28 | F71: 2318926.13 | G71: 424.2 | H71: 33.2 | I71: 102911105 | J71: WYANDOTTE 1105 | K71: Tier 2-3
A72: 87 | B72: W12153054N3952731 | C72: 39.52731 | D72: -121.53054 | E72: 6694087.31 | F72: 2318397.3 | G72: 377.9 | H72: 40.5 | I72: 102911105 | J72: WYANDOTTE 1105 | K72: Tier 2-3
A73: 88 | B73: W12153054N3952815 | C73: 39.52815 | D73: -121.53054 | E73: 6694083.72 | F73: 2318704.92 | G73: 398 | H73: 38.7 | I73: 102911105 | J73: WYANDOTTE 1105 | K73: Tier 2-3
A74: 89 | B74: W12153068N3952972 | C74: 39.52972 | D74: -121.53068 | E74: 6694042.79 | F74: 2319276.93 | G74: 455.6 | H74: 37.7 | I74: 102911105 | J74: WYANDOTTE 1105 | K74: Tier 2-3
A75: 90 | B75: W12153111N3953048 | C75: 39.53048 | D75: -121.53111 | E75: 6693919.88 | F75: 2319553.12 | G75: 451 | H75: 29.8 | I75: 102911105 | J75: WYANDOTTE 1105 | K75: Tier 2-3
A76: 91 | B76: W12153116N3952725 | C76: 39.52725 | D76: -121.53116 | E76: 6693912.39 | F76: 2318375.16 | G76: 389 | H76: 38.9 | I76: 102911105 | J76: WYANDOTTE 1105 | K76: Tier 2-3
A77: 92 | B77: W12153117N3953239 | C77: 39.53239 | D77: -121.53117 | E77: 6693899.11 | F77: 2320245.36 | G77: 456.5 | H77: 39.7 | I77: 102911105 | J77: WYANDOTTE 1105 | K77: Tier 2-3
A78: 93 | B78: W12153118N3953282 | C78: 39.53282 | D78: -121.53118 | E78: 6693894.33 | F78: 2320405.31 | G78: 447.8 | H78: 29.4 | I78: 102911105 | J78: WYANDOTTE 1105 | K78: Tier 2-3
A79: 94 | B79: W12153130N3952973 | C79: 39.52973 | D79: -121.5313 | E79: 6693867.61 | F79: 2319276.64 | G79: 453.1 | H79: 35.2 | I79: 102911105 | J79: WYANDOTTE 1105 | K79: Tier 2-3
A80: 95 | B80: W12153133N3952927 | C80: 39.52927 | D80: -121.53133 | E80: 6693860.85 | F80: 2319109.42 | G80: 460.9 | H80: 33.9 | I80: 102911105 | J80: WYANDOTTE 1105 | K80: Tier 2-3
A81: 96 | B81: W12153147N3953155 | C81: 39.53155 | D81: -121.53147 | E81: 6693816.21 | F81: 2319939.77 | G81: 444.7 | H81: 29.9 | I81: 102911105 | J81: WYANDOTTE 1105 | K81: Tier 2-3
A82: 97 | B82: W12153152N3952699 | C82: 39.52699 | D82: -121.53152 | E82: 6693809.39 | F82: 2318280.84 | G82: 396.1 | H82: 41.1 | I82: 102911105 | J82: WYANDOTTE 1105 | K82: Tier 2-3
A83: 98 | B83: W12153157N3953048 | C83: 39.53048 | D83: -121.53157 | E83: 6693791.13 | F83: 2319551.76 | G83: 447.1 | H83: 34.7 | I83: 102911105 | J83: WYANDOTTE 1105 | K83: Tier 2-3
A84: 99 | B84: W12153200N3952739 | C84: 39.52739 | D84: -121.532 | E84: 6693673.57 | F84: 2318423.83 | G84: 392.4 | H84: 34.4 | I84: 102911105 | J84: WYANDOTTE 1105 | K84: Tier 2-3
A85: 100 | B85: W12153203N3952790 | C85: 39.5279 | D85: -121.53203 | E85: 6693664.23 | F85: 2318609.8 | G85: 414.6 | H85: 33.6 | I85: 102911105 | J85: WYANDOTTE 1105 | K85: Tier 2-3
A86: 101 | B86: W12153205N3952846 | C86: 39.52846 | D86: -121.53205 | E86: 6693659.63 | F86: 2318813.64 | G86: 453.8 | H86: 34.5 | I86: 102911105 | J86: WYANDOTTE 1105 | K86: Tier 2-3
A87: 102 | B87: W12153205N3953245 | C87: 39.53245 | D87: -121.53205 | E87: 6693650.05 | F87: 2320269.25 | G87: 441.3 | H87: 34.4 | I87: 102911105 | J87: WYANDOTTE 1105 | K87: Tier 2-3
A88: 103 | B88: W12153205N3953285 | C88: 39.53285 | D88: -121.53205 | E88: 6693649.92 | F88: 2320413.89 | G88: 421.5 | H88: 39.7 | I88: 102911105 | J88: WYANDOTTE 1105 | K88: Tier 2-3
A89: 104 | B89: W12153206N3952881 | C89: 39.52881 | D89: -121.53206 | E89: 6693655.04 | F89: 2318942.63 | G89: 485.2 | H89: 37.3 | I89: 102911105 | J89: WYANDOTTE 1105 | K89: Tier 2-3
A90: 105 | B90: W12153206N3952972 | C90: 39.52972 | D90: -121.53206 | E90: 6693653.64 | F90: 2319274.81 | G90: 435.7 | H90: 30.1 | I90: 102911105 | J90: WYANDOTTE 1105 | K90: Tier 2-3
A91: 106 | B91: W12153206N3953018 | C91: 39.53018 | D91: -121.53206 | E91: 6693651.8 | F91: 2319441.12 | G91: 444.3 | H91: 34.4 | I91: 102911105 | J91: WYANDOTTE 1105 | K91: Tier 2-3
A92: 107 | B92: W12153206N3953048 | C92: 39.53048 | D92: -121.53206 | E92: 6693651.07 | F92: 2319550.64 | G92: 441.5 | H92: 35.4 | I92: 102911105 | J92: WYANDOTTE 1105 | K92: Tier 2-3
A93: 108 | B93: W12153206N3953153 | C93: 39.53153 | D93: -121.53206 | E93: 6693648.65 | F93: 2319933.12 | G93: 437.6 | H93: 30.7 | I93: 102911105 | J93: WYANDOTTE 1105 | K93: Tier 2-3
A94: 109 | B94: W12153206N3953192 | C94: 39.53192 | D94: -121.53206 | E94: 6693648.01 | F94: 2320073.75 | G94: 440.1 | H94: 35.7 | I94: 102911105 | J94: WYANDOTTE 1105 | K94: Tier 2-3
A95: 110 | B95: W12153207N3953097 | C95: 39.53097 | D95: -121.53207 | E95: 6693649.19 | F95: 2319727.83 | G95: 435.4 | H95: 30.4 | I95: 102911105 | J95: WYANDOTTE 1105 | K95: Tier 2-3
A96: 111 | B96: W12153224N3952655 | C96: 39.52655 | D96: -121.53224 | E96: 6693609.27 | F96: 2318118.67 | G96: 399.3 | H96: 43.3 | I96: 102911105 | J96: WYANDOTTE 1105 | K96: Tier 2-3
A97: 112 | B97: W12153261N3953152 | C97: 39.53152 | D97: -121.53261 | E97: 6693495.99 | F97: 2319928.11 | G97: 428 | H97: 38.8 | I97: 102911105 | J97: WYANDOTTE 1105 | K97: Tier 2-3
A98: 113 | B98: W12153269N3953048 | C98: 39.53048 | D98: -121.53269 | E98: 6693474.61 | F98: 2319549.62 | G98: 423.6 | H98: 35.3 | I98: 102911105 | J98: WYANDOTTE 1105 | K98: Tier 2-3
A99: 114 | B99: W12153270N3952789 | C99: 39.52789 | D99: -121.5327 | E99: 6693475.14 | F99: 2318607.37 | G99: 408.3 | H99: 38.3 | I99: 102911105 | J99: WYANDOTTE 1105 | K99: Tier 2-3
A100: 116 | B100: W12153284N3952973 | C100: 39.52973 | D100: -121.53284 | E100: 6693432.14 | F100: 2319274.37 | G100: 416.2 | H100: 39.7 | I100: 102911105 | J100: WYANDOTTE 1105 | K100: Tier 2-3
A101: 117 | B101: W12153295N3952615 | C101: 39.52615 | D101: -121.53295 | E101: 6693409.57 | F101: 2317969.83 | G101: 396.4 | H101: 38.2 | I101: 102911105 | J101: WYANDOTTE 1105 | K101: Tier 2-3
A102: 119 | B102: W12153322N3953104 | C102: 39.53104 | D102: -121.53322 | E102: 6693322.73 | F102: 2319750.78 | G102: 415.2 | H102: 34.6 | I102: 102911105 | J102: WYANDOTTE 1105 | K102: Tier 2-3
A103: 120 | B103: W12153323N3953048 | C103: 39.53048 | D103: -121.53323 | E103: 6693320.81 | F103: 2319549.56 | G103: 405.2 | H103: 33.2 | I103: 102911105 | J103: WYANDOTTE 1105 | K103: Tier 2-3
A104: 121 | B104: W12153340N3952972 | C104: 39.52972 | D104: -121.5334 | E104: 6693276.01 | F104: 2319271.38 | G104: 408.4 | H104: 37.9 | I104: 102911105 | J104: WYANDOTTE 1105 | K104: Tier 2-3
A105: 123 | B105: W12153355N3953046 | C105: 39.53046 | D105: -121.53355 | E105: 6693230.86 | F105: 2319539.01 | G105: 408.6 | H105: 34.1 | I105: 102911105 | J105: WYANDOTTE 1105 | K105: Tier 2-3
A106: 124 | B106: W12153363N3952882 | C106: 39.52882 | D106: -121.53363 | E106: 6693210.81 | F106: 2318942.64 | G106: 431.7 | H106: 38.1 | I106: 102911105 | J106: WYANDOTTE 1105 | K106: Tier 2-3
A107: 125 | B107: W12153379N3952832 | C107: 39.52832 | D107: -121.53379 | E107: 6693167.1 | F107: 2318759.9 | G107: 419.8 | H107: 33.5 | I107: 102911105 | J107: WYANDOTTE 1105 | K107: Tier 2-3
A108: 126 | B108: W12153385N3952791 | C108: 39.52791 | D108: -121.53385 | E108: 6693150.97 | F108: 2318610.51 | G108: 401.8 | H108: 37.6 | I108: 102911105 | J108: WYANDOTTE 1105 | K108: Tier 2-3
A109: 128 | B109: W12153419N3953172 | C109: 39.53172 | D109: -121.53419 | E109: 6693047.56 | F109: 2319998.32 | G109: 375.8 | H109: 39.5 | I109: 102911105 | J109: WYANDOTTE 1105 | K109: Tier 2-3
A110: 129 | B110: W12153419N3953235 | C110: 39.53235 | D110: -121.53419 | E110: 6693047.04 | F110: 2320226.63 | G110: 372.1 | H110: 38 | I110: 102911105 | J110: WYANDOTTE 1105 | K110: Tier 2-3
A111: 130 | B111: W12153421N3953300 | C111: 39.533 | D111: -121.53421 | E111: 6693039.33 | F111: 2320463.82 | G111: 398.5 | H111: 38.3 | I111: 102911105 | J111: WYANDOTTE 1105 | K111: Tier 2-3
A112: 131 | B112: W12153422N3952882 | C112: 39.52882 | D112: -121.53422 | E112: 6693045.45 | F112: 2318940.59 | G112: 421.3 | H112: 38.8 | I112: 102911105 | J112: WYANDOTTE 1105 | K112: Tier 2-3
A113: 132 | B113: W12153427N3952831 | C113: 39.52831 | D113: -121.53427 | E113: 6693033.17 | F113: 2318755.86 | G113: 413.8 | H113: 33.1 | I113: 102911105 | J113: WYANDOTTE 1105 | K113: Tier 2-3
A114: 134 | B114: W12153496N3952831 | C114: 39.52831 | D114: -121.53496 | E114: 6692836.58 | F114: 2318753.69 | G114: 402.1 | H114: 33.8 | I114: 102911105 | J114: WYANDOTTE 1105 | K114: Tier 2-3
A115: 136 | B115: W12153534N3952830 | C115: 39.5283 | D115: -121.53534 | E115: 6692731.21 | F115: 2318750.24 | G115: 399 | H115: 36 | I115: 102911105 | J115: WYANDOTTE 1105 | K115: Tier 2-3
A116: 137 | B116: W12153535N3952637 | C116: 39.52637 | D116: -121.53535 | E116: 6692730.68 | F116: 2318048.23 | G116: 356.8 | H116: 35.3 | I116: 102911105 | J116: WYANDOTTE 1105 | K116: Tier 2-3
A117: 138 | B117: W12153535N3952774 | C117: 39.52774 | D117: -121.53535 | E117: 6692729.99 | F117: 2318547.06 | G117: 374.9 | H117: 35.5 | I117: 102911105 | J117: WYANDOTTE 1105 | K117: Tier 2-3
A118: 139 | B118: W12153536N3952706 | C118: 39.52706 | D118: -121.53536 | E118: 6692727.81 | F118: 2318300.49 | G118: 356 | H118: 29.4 | I118: 102911105 | J118: WYANDOTTE 1105 | K118: Tier 2-3
A119: 142 | B119: W12153537N3952882 | C119: 39.52882 | D119: -121.53537 | E119: 6692721.05 | F119: 2318939.84 | G119: 400 | H119: 35.6 | I119: 102911105 | J119: WYANDOTTE 1105 | K119: Tier 2-3
A120: 143 | B120: W12153538N3952985 | C120: 39.52985 | D120: -121.53538 | E120: 6692717.86 | F120: 2319314.78 | G120: 417.6 | H120: 39.4 | I120: 102911105 | J120: WYANDOTTE 1105 | K120: Tier 2-3
A121: 144 | B121: W12153538N3953063 | C121: 39.53063 | D121: -121.53538 | E121: 6692715.37 | F121: 2319598.11 | G121: 389.5 | H121: 34.2 | I121: 102911105 | J121: WYANDOTTE 1105 | K121: Tier 2-3
A122: 145 | B122: W12153557N3953230 | C122: 39.5323 | D122: -121.53557 | E122: 6692659.01 | F122: 2320206.36 | G122: 362.9 | H122: 32.1 | I122: 102911105 | J122: WYANDOTTE 1105 | K122: Tier 2-3
A123: 147 | B123: W12153585N3953154 | C123: 39.53154 | D123: -121.53585 | E123: 6692582.18 | F123: 2319929.25 | G123: 355.9 | H123: 39.4 | I123: 102911105 | J123: WYANDOTTE 1105 | K123: Tier 2-3
A124: 151 | B124: W12153644N3953230 | C124: 39.5323 | D124: -121.53644 | E124: 6692412.78 | F124: 2320205.43 | G124: 355.5 | H124: 33.8 | I124: 102911105 | J124: WYANDOTTE 1105 | K124: Tier 2-3
A125: 152 | B125: W12153654N3953103 | C125: 39.53103 | D125: -121.53654 | E125: 6692386.19 | F125: 2319745.33 | G125: 339.6 | H125: 38.2 | I125: 102911105 | J125: WYANDOTTE 1105 | K125: Tier 2-3
A126: 153 | B126: W12153654N3953154 | C126: 39.53154 | D126: -121.53654 | E126: 6692386.95 | F126: 2319928 | G126: 339.9 | H126: 34.3 | I126: 102911105 | J126: WYANDOTTE 1105 | K126: Tier 2-3
A127: 154 | B127: W12153655N3953063 | C127: 39.53063 | D127: -121.53655 | E127: 6692386.15 | F127: 2319597.37 | G127: 346.9 | H127: 34.8 | I127: 102911105 | J127: WYANDOTTE 1105 | K127: Tier 2-3
A128: 155 | B128: W12153655N3953211 | C128: 39.53211 | D128: -121.53655 | E128: 6692383.45 | F128: 2320137.57 | G128: 351.1 | H128: 33.6 | I128: 102911105 | J128: WYANDOTTE 1105 | K128: Tier 2-3
A129: 156 | B129: W12153655N3953245 | C129: 39.53245 | D129: -121.53655 | E129: 6692382.72 | F129: 2320259.33 | G129: 354.9 | H129: 38.6 | I129: 102911105 | J129: WYANDOTTE 1105 | K129: Tier 2-3
A130: 157 | B130: W12153655N3953283 | C130: 39.53283 | D130: -121.53655 | E130: 6692380.65 | F130: 2320400.86 | G130: 350.5 | H130: 34.5 | I130: 102911105 | J130: WYANDOTTE 1105 | K130: Tier 2-3
A131: 158 | B131: W12153682N3952487 | C131: 39.52487 | D131: -121.53682 | E131: 6692318.42 | F131: 2317501.51 | G131: 380 | H131: 35.8 | I131: 102911105 | J131: WYANDOTTE 1105 | K131: Tier 2-3
A132: 159 | B132: W12153692N3953153 | C132: 39.53153 | D132: -121.53692 | E132: 6692279.12 | F132: 2319927.23 | G132: 337 | H132: 37.6 | I132: 102911105 | J132: WYANDOTTE 1105 | K132: Tier 2-3
A133: 161 | B133: W12153709N3952512 | C133: 39.52512 | D133: -121.53709 | E133: 6692243.06 | F133: 2317588.69 | G133: 366.7 | H133: 34.8 | I133: 102911105 | J133: WYANDOTTE 1105 | K133: Tier 2-3
A134: 162 | B134: W12153713N3953284 | C134: 39.53284 | D134: -121.53713 | E134: 6692217.22 | F134: 2320402.58 | G134: 347.9 | H134: 35 | I134: 102911105 | J134: WYANDOTTE 1105 | K134: Tier 2-3
A135: 163 | B135: W12153716N3952455 | C135: 39.52455 | D135: -121.53716 | E135: 6692223.7 | F135: 2317384.33 | G135: 380 | H135: 39.6 | I135: 102911105 | J135: WYANDOTTE 1105 | K135: Tier 2-3
A136: 164 | B136: W12153742N3952569 | C136: 39.52569 | D136: -121.53742 | E136: 6692149.67 | F136: 2317796.35 | G136: 351.3 | H136: 34.4 | I136: 102911105 | J136: WYANDOTTE 1105 | K136: Tier 2-3
A137: 165 | B137: W12153745N3952470 | C137: 39.5247 | D137: -121.53745 | E137: 6692142.81 | F137: 2317438.04 | G137: 364.8 | H137: 35.3 | I137: 102911105 | J137: WYANDOTTE 1105 | K137: Tier 2-3
A138: 166 | B138: W12153751N3952386 | C138: 39.52386 | D138: -121.53751 | E138: 6692125.61 | F138: 2317131.56 | G138: 384.2 | H138: 38.8 | I138: 102911105 | J138: WYANDOTTE 1105 | K138: Tier 2-3
A139: 168 | B139: W12153762N3955060 | C139: 39.5506 | D139: -121.53762 | E139: 6692046.98 | F139: 2326869.49 | G139: 330.2 | H139: 33.5 | I139: 102911105 | J139: WYANDOTTE 1105 | K139: Tier 2-3
A140: 169 | B140: W12153767N3952612 | C140: 39.52612 | D140: -121.53767 | E140: 6692078.64 | F140: 2317953.48 | G140: 344.3 | H140: 37.9 | I140: 102911105 | J140: WYANDOTTE 1105 | K140: Tier 2-3
A141: 170 | B141: W12153771N3953063 | C141: 39.53063 | D141: -121.53771 | E141: 6692057.96 | F141: 2319595.37 | G141: 324.5 | H141: 35.2 | I141: 102911105 | J141: WYANDOTTE 1105 | K141: Tier 2-3
A142: 171 | B142: W12153773N3955024 | C142: 39.55024 | D142: -121.53773 | E142: 6692015.95 | F142: 2326738.79 | G142: 336.5 | H142: 34.1 | I142: 102911105 | J142: WYANDOTTE 1105 | K142: Tier 2-3
A143: 173 | B143: W12153784N3954988 | C143: 39.54988 | D143: -121.53784 | E143: 6691986.91 | F143: 2326606.46 | G143: 344.1 | H143: 37.4 | I143: 102911105 | J143: WYANDOTTE 1105 | K143: Tier 2-3
A144: 175 | B144: W12153809N3952504 | C144: 39.52504 | D144: -121.53809 | E144: 6691960.9 | F144: 2317559.25 | G144: 344.4 | H144: 34.8 | I144: 102911105 | J144: WYANDOTTE 1105 | K144: Tier 2-3
A145: 176 | B145: W12153810N3953244 | C145: 39.53244 | D145: -121.5381 | E145: 6691945.58 | F145: 2320256.7 | G145: 359.9 | H145: 33.4 | I145: 102911105 | J145: WYANDOTTE 1105 | K145: Tier 2-3
A146: 177 | B146: W12153812N3952205 | C146: 39.52205 | D146: -121.53812 | E146: 6691957.68 | F146: 2316472.27 | G146: 370.9 | H146: 39.6 | I146: 102911105 | J146: WYANDOTTE 1105 | K146: Tier 2-3
A147: 178 | B147: W12153833N3952149 | C147: 39.52149 | D147: -121.53833 | E147: 6691899.69 | F147: 2316264.94 | G147: 363.4 | H147: 39.2 | I147: 102911105 | J147: WYANDOTTE 1105 | K147: Tier 2-3
A148: 179 | B148: W12153843N3953063 | C148: 39.53063 | D148: -121.53843 | E148: 6691854.76 | F148: 2319596.2 | G148: 334.5 | H148: 30.7 | I148: 102911105 | J148: WYANDOTTE 1105 | K148: Tier 2-3
A149: 180 | B149: W12153848N3952653 | C149: 39.52653 | D149: -121.53848 | E149: 6691848.73 | F149: 2318100.78 | G149: 321.4 | H149: 39 | I149: 102911105 | J149: WYANDOTTE 1105 | K149: Tier 2-3
A150: 181 | B150: W12153848N3953281 | C150: 39.53281 | D150: -121.53848 | E150: 6691837.9 | F150: 2320388.38 | G150: 321.7 | H150: 34.1 | I150: 102911105 | J150: WYANDOTTE 1105 | K150: Tier 2-3
A151: 182 | B151: W12153857N3952094 | C151: 39.52094 | D151: -121.53857 | E151: 6691834.4 | F151: 2316067.44 | G151: 356.3 | H151: 39.4 | I151: 102911105 | J151: WYANDOTTE 1105 | K151: Tier 2-3
A152: 183 | B152: W12153891N3952195 | C152: 39.52195 | D152: -121.53891 | E152: 6691734.65 | F152: 2316434.09 | G152: 411.3 | H152: 34.8 | I152: 102911105 | J152: WYANDOTTE 1105 | K152: Tier 2-3
A153: 184 | B153: W12153893N3952044 | C153: 39.52044 | D153: -121.53893 | E153: 6691731.78 | F153: 2315882.76 | G153: 348 | H153: 38.5 | I153: 102911105 | J153: WYANDOTTE 1105 | K153: Tier 2-3
A154: 185 | B154: W12153905N3953243 | C154: 39.53243 | D154: -121.53905 | E154: 6691675.49 | F154: 2320251.25 | G154: 327.3 | H154: 34.4 | I154: 102911105 | J154: WYANDOTTE 1105 | K154: Tier 2-3
A155: 186 | B155: W12153906N3953282 | C155: 39.53282 | D155: -121.53906 | E155: 6691674.15 | F155: 2320391.66 | G155: 311.6 | H155: 33.1 | I155: 102911105 | J155: WYANDOTTE 1105 | K155: Tier 2-3
A156: 187 | B156: W12153907N3953103 | C156: 39.53103 | D156: -121.53907 | E156: 6691673.06 | F156: 2319740.79 | G156: 348.8 | H156: 30.1 | I156: 102911105 | J156: WYANDOTTE 1105 | K156: Tier 2-3
A157: 188 | B157: W12153907N3953151 | C157: 39.53151 | D157: -121.53907 | E157: 6691672.76 | F157: 2319915.7 | G157: 359 | H157: 37.8 | I157: 102911105 | J157: WYANDOTTE 1105 | K157: Tier 2-3
A158: 189 | B158: W12153907N3953193 | C158: 39.53193 | D158: -121.53907 | E158: 6691673.17 | F158: 2320068.94 | G158: 351.2 | H158: 34.4 | I158: 102911105 | J158: WYANDOTTE 1105 | K158: Tier 2-3
A159: 190 | B159: W12153908N3953063 | C159: 39.53063 | D159: -121.53908 | E159: 6691672.48 | F159: 2319593.05 | G159: 335.3 | H159: 36.1 | I159: 102911105 | J159: WYANDOTTE 1105 | K159: Tier 2-3
A160: 191 | B160: W12153928N3952652 | C160: 39.52652 | D160: -121.53928 | E160: 6691622.55 | F160: 2318097.01 | G160: 306.2 | H160: 38.4 | I160: 102911105 | J160: WYANDOTTE 1105 | K160: Tier 2-3
A161: 192 | B161: W12153944N3952000 | C161: 39.52 | D161: -121.53944 | E161: 6691589.96 | F161: 2315722.4 | G161: 337.5 | H161: 44.8 | I161: 102911105 | J161: WYANDOTTE 1105 | K161: Tier 2-3
A162: 193 | B162: W12153944N3953282 | C162: 39.53282 | D162: -121.53944 | E162: 6691565.99 | F162: 2320391.8 | G162: 301.8 | H162: 33.2 | I162: 102911105 | J162: WYANDOTTE 1105 | K162: Tier 2-3
A163: 194 | B163: W12153963N3953242 | C163: 39.53242 | D163: -121.53963 | E163: 6691514.29 | F163: 2320246.06 | G163: 315.2 | H163: 32.6 | I163: 102911105 | J163: WYANDOTTE 1105 | K163: Tier 2-3
A164: 195 | B164: W12153966N3953151 | C164: 39.53151 | D164: -121.53966 | E164: 6691507.23 | F164: 2319914.86 | G164: 343.7 | H164: 38.6 | I164: 102911105 | J164: WYANDOTTE 1105 | K164: Tier 2-3
A165: 197 | B165: W12154012N3951968 | C165: 39.51968 | D165: -121.54012 | E165: 6691398.61 | F165: 2315605.05 | G165: 324.9 | H165: 34.9 | I165: 102911105 | J165: WYANDOTTE 1105 | K165: Tier 2-3
A166: 198 | B166: W12154021N3951938 | C166: 39.51938 | D166: -121.54021 | E166: 6691373.02 | F166: 2315495 | G166: 316.9 | H166: 38.8 | I166: 102911105 | J166: WYANDOTTE 1105 | K166: Tier 2-3
A167: 199 | B167: W12154021N3953134 | C167: 39.53134 | D167: -121.54021 | E167: 6691350.83 | F167: 2319852.88 | G167: 330.6 | H167: 28.9 | I167: 102911105 | J167: WYANDOTTE 1105 | K167: Tier 2-3
A168: 202 | B168: W12154022N3951889 | C168: 39.51889 | D168: -121.54022 | E168: 6691370.27 | F168: 2315318.22 | G168: 307.5 | H168: 46 | I168: 102911105 | J168: WYANDOTTE 1105 | K168: Tier 2-3
A169: 205 | B169: W12154060N3953123 | C169: 39.53123 | D169: -121.5406 | E169: 6691240.34 | F169: 2319809.66 | G169: 319.9 | H169: 29.5 | I169: 102911105 | J169: WYANDOTTE 1105 | K169: Tier 2-3
A170: 207 | B170: W12154073N3953285 | C170: 39.53285 | D170: -121.54073 | E170: 6691203.12 | F170: 2320399.69 | G170: 293.9 | H170: 32.9 | I170: 102911105 | J170: WYANDOTTE 1105 | K170: Tier 2-3
A171: 208 | B171: W12154084N3953131 | C171: 39.53131 | D171: -121.54084 | E171: 6691174.45 | F171: 2319838.83 | G171: 297.2 | H171: 33.4 | I171: 102911105 | J171: WYANDOTTE 1105 | K171: Tier 2-3
A172: 209 | B172: W12154086N3953214 | C172: 39.53214 | D172: -121.54086 | E172: 6691166.6 | F172: 2320141.3 | G172: 280.7 | H172: 34.9 | I172: 102911105 | J172: WYANDOTTE 1105 | K172: Tier 2-3
A173: 210 | B173: W12154087N3953327 | C173: 39.53327 | D173: -121.54087 | E173: 6691162.88 | F173: 2320554.44 | G173: 292.9 | H173: 34.6 | I173: 102911105 | J173: WYANDOTTE 1105 | K173: Tier 2-3
A174: 211 | B174: W12154149N3953393 | C174: 39.53393 | D174: -121.54149 | E174: 6690986.16 | F174: 2320791.94 | G174: 274.7 | H174: 33.8 | I174: 102911105 | J174: WYANDOTTE 1105 | K174: Tier 2-3
A175: 212 | B175: W12154179N3953424 | C175: 39.53424 | D175: -121.54179 | E175: 6690901.78 | F175: 2320906.73 | G175: 282 | H175: 33 | I175: 102911105 | J175: WYANDOTTE 1105 | K175: Tier 2-3
A176: 213 | B176: W12154206N3954186 | C176: 39.54186 | D176: -121.54206 | E176: 6690811.31 | F176: 2323682.38 | G176: 242.8 | H176: 34.1 | I176: 102911105 | J176: WYANDOTTE 1105 | K176: Tier 2-3
A177: 214 | B177: W12154214N3953455 | C177: 39.53455 | D177: -121.54214 | E177: 6690801.05 | F177: 2321016.98 | G177: 270.5 | H177: 33.8 | I177: 102911105 | J177: WYANDOTTE 1105 | K177: Tier 2-3
A178: 215 | B178: W12154230N3953520 | C178: 39.5352 | D178: -121.5423 | E178: 6690754.53 | F178: 2321253 | G178: 270.2 | H178: 33.2 | I178: 102911105 | J178: WYANDOTTE 1105 | K178: Tier 2-3
A179: 216 | B179: W12154242N3953570 | C179: 39.5357 | D179: -121.54242 | E179: 6690720.67 | F179: 2321434.8 | G179: 266.3 | H179: 34.5 | I179: 102911105 | J179: WYANDOTTE 1105 | K179: Tier 2-3
A180: 217 | B180: W12154249N3954102 | C180: 39.54102 | D180: -121.54249 | E180: 6690691.37 | F180: 2323374.31 | G180: 236.3 | H180: 33.5 | I180: 102911105 | J180: WYANDOTTE 1105 | K180: Tier 2-3
A181: 218 | B181: W12154250N3953758 | C181: 39.53758 | D181: -121.5425 | E181: 6690694.88 | F181: 2322121.19 | G181: 238.5 | H181: 36.4 | I181: 102911105 | J181: WYANDOTTE 1105 | K181: Tier 2-3
A182: 219 | B182: W12154252N3953857 | C182: 39.53857 | D182: -121.54252 | E182: 6690687.25 | F182: 2322483.07 | G182: 234.7 | H182: 34.2 | I182: 102911105 | J182: WYANDOTTE 1105 | K182: Tier 2-3
A183: 220 | B183: W12154253N3953660 | C183: 39.5366 | D183: -121.54253 | E183: 6690686.24 | F183: 2321765.43 | G183: 241.4 | H183: 34.1 | I183: 102911105 | J183: WYANDOTTE 1105 | K183: Tier 2-3
A184: 221 | B184: W12154256N3953592 | C184: 39.53592 | D184: -121.54256 | E184: 6690680.52 | F184: 2321517.9 | G184: 245.6 | H184: 39 | I184: 102911105 | J184: WYANDOTTE 1105 | K184: Tier 2-3
A185: 222 | B185: W12154258N3954066 | C185: 39.54066 | D185: -121.54258 | E185: 6690664.73 | F185: 2323243.09 | G185: 235.6 | H185: 34.5 | I185: 102911105 | J185: WYANDOTTE 1105 | K185: Tier 2-3
A186: 223 | B186: W12154261N3953987 | C186: 39.53987 | D186: -121.54261 | E186: 6690659.99 | F186: 2322956.41 | G186: 235.1 | H186: 32.9 | I186: 102911105 | J186: WYANDOTTE 1105 | K186: Tier 2-3
A187: 224 | B187: W12154263N3953924 | C187: 39.53924 | D187: -121.54263 | E187: 6690653.88 | F187: 2322725.52 | G187: 234.9 | H187: 32 | I187: 102911105 | J187: WYANDOTTE 1105 | K187: Tier 2-3

Sheet Trees
O1: VLOOKUP
A2: ObjectID | B2: TreeID | C2: Latitude | D2: Longitude | E2: Height | F2: Offset | G2: Dist2Wire | H2: Top3Species | I2: PrimarySpecies | J2: Overstrike | K2: SpanTag | L2: HFTD | M2: Fall-In | N2: AcqDate | O2: Span ID | P2: Span Length | Q2: Shape | R2: FEA Table | S2: Allowable | T2: Tree Fail? | U2: Offset≤6ft?
A3: 4 | B3: W12152541N3958608 | C3: 39.58608 | D3: -121.52541 | E3: 48 | F3: 24.7 | G3: 9.2 | H3: [GrayPine, ValleyOak, PonderosaPine] | I3: GrayPine | J3: -15.2 | K3: W12152491N3958582-W12152594N3958619 | L3: Tier 2-3 | M3: YES | N3: 2019-12-19T12:17:11 | O3: =VLOOKUP($K3,SpanRange,4,FALSE) -> 2 | P3: =VLOOKUP($K3,SpanRange,2,FALSE) -> 319.3 | Q3: =VLOOKUP($K3,SpanRange,3,FALSE) -> 2 | R3: =Find_Table(Spans!$I$2,I3) -> 10 | S3: =IF(R3=0,Spans!$C$10,VLOOKUP(P3,INDIRECT("Table"&R3),Q3,TRUE)) -> 36 | T3: =IFERROR(IF((-1)*J3>S3,"Yes","No"),"No Match") -> No | U3: =IF(F3<=6,"Yes","No") -> No
A4: 11 | B4: W12152557N3958612 | C4: 39.58612 | D4: -121.52557 | E4: 49.5 | F4: 19.2 | G4: 6.6 | H4: [PonderosaPine, CoastalLiveOak, GrayPine] | I4: PonderosaPine | J4: -20.8 | K4: W12152491N3958582-W12152594N3958619 | L4: Tier 2-3 | M4: YES | N4: 2019-12-19T12:17:11 | O4: =VLOOKUP($K4,SpanRange,4,FALSE) -> 2 | P4: =VLOOKUP($K4,SpanRange,2,FALSE) -> 319.3 | Q4: =VLOOKUP($K4,SpanRange,3,FALSE) -> 2 | R4: =Find_Table(Spans!$I$2,I4) -> 10 | S4: =IF(R4=0,Spans!$C$10,VLOOKUP(P4,INDIRECT("Table"&R4),Q4,TRUE)) -> 36 | T4: =IFERROR(IF((-1)*J4>S4,"Yes","No"),"No Match") -> No | U4: =IF(F4<=6,"Yes","No") -> No
A5: 14 | B5: W12152537N3958602 | C5: 39.58602 | D5: -121.52537 | E5: 40.6 | F5: 11.4 | G5: 9.3 | H5: [GrayPine, PonderosaPine, CoastalLiveOak] | I5: GrayPine | J5: -15.6 | K5: W12152491N3958582-W12152594N3958619 | L5: Tier 2-3 | M5: YES | N5: 2019-12-19T12:17:11 | O5: =VLOOKUP($K5,SpanRange,4,FALSE) -> 2 | P5: =VLOOKUP($K5,SpanRange,2,FALSE) -> 319.3 | Q5: =VLOOKUP($K5,SpanRange,3,FALSE) -> 2 | R5: =Find_Table(Spans!$I$2,I5) -> 10 | S5: =IF(R5=0,Spans!$C$10,VLOOKUP(P5,INDIRECT("Table"&R5),Q5,TRUE)) -> 36 | T5: No | U5: No
A6: 22 | B6: W12153781N3955027 | C6: 39.55027 | D6: -121.53781 | E6: 50.6 | F6: 23.4 | G6: 9.3 | H6: [Other, GrayPine, CoastalLiveOak] | I6: Other | J6: -5.4 | K6: W12153773N3955024-W12153762N3955060 | L6: Tier 2-3 | M6: YES | N6: 2019-11-16T22:51:32 | O6: =VLOOKUP($K6,SpanRange,4,FALSE) -> 5 | P6: =VLOOKUP($K6,SpanRange,2,FALSE) -> 134.3 | Q6: =VLOOKUP($K6,SpanRange,3,FALSE) -> 2 | R6: =Find_Table(Spans!$I$2,I6) -> 11 | S6: =IF(R6=0,Spans!$C$10,VLOOKUP(P6,INDIRECT("Table"&R6),Q6,TRUE)) -> 30 | T6: No | U6: No
A7: 25 | B7: W12153800N3954976 | C7: 39.54976 | D7: -121.538 | E7: 47.5 | F7: 24 | G7: 8.2 | H7: [Other, ValleyOak, CoastalLiveOak] | I7: Other | J7: -4.7 | K7: W12153784N3954988-W12154111N3954914 | L7: Tier 2-3 | M7: YES | N7: 2019-11-16T22:51:32 | O7: =VLOOKUP($K7,SpanRange,4,FALSE) ->  | P7: =VLOOKUP($K7,SpanRange,2,FALSE) ->  | Q7: =VLOOKUP($K7,SpanRange,3,FALSE) ->  | R7: =Find_Table(Spans!$I$2,I7) -> 11 | S7: =IF(R7=0,Spans!$C$10,VLOOKUP(P7,INDIRECT("Table"&R7),Q7,TRUE)) ->  | T7: No Match | U7: No
A8: 27 | B8: W12153774N3954996 | C8: 39.54996 | D8: -121.53774 | E8: 37.9 | F8: 17.2 | G8: 10.4 | H8: [MontereyPine, CoastalLiveOak, Other] | I8: MontereyPine | J8: -6 | K8: W12153773N3955024-W12153784N3954988 | L8: Tier 2-3 | M8: YES | N8: 2019-11-16T22:51:32 | O8: =VLOOKUP($K8,SpanRange,4,FALSE) -> 4 | P8: =VLOOKUP($K8,SpanRange,2,FALSE) -> 135.5 | Q8: =VLOOKUP($K8,SpanRange,3,FALSE) -> 2 | R8: =Find_Table(Spans!$I$2,I8) -> 10 | S8: =IF(R8=0,Spans!$C$10,VLOOKUP(P8,INDIRECT("Table"&R8),Q8,TRUE)) -> 21 | T8: No | U8: No
A9: 28 | B9: W12153801N3954989 | C9: 39.54989 | D9: -121.53801 | E9: 45.1 | F9: 16 | G9: 7.2 | H9: [Other, GrayPine, BlackOak] | I9: Other | J9: -3.5 | K9: W12153784N3954988-W12154111N3954914 | L9: Tier 2-3 | M9: YES | N9: 2019-11-16T22:51:32 | O9: =VLOOKUP($K9,SpanRange,4,FALSE) ->  | P9: =VLOOKUP($K9,SpanRange,2,FALSE) ->  | Q9: =VLOOKUP($K9,SpanRange,3,FALSE) ->  | R9: =Find_Table(Spans!$I$2,I9) -> 11 | S9: =IF(R9=0,Spans!$C$10,VLOOKUP(P9,INDIRECT("Table"&R9),Q9,TRUE)) ->  | T9: No Match | U9: No
A10: 33 | B10: W12153768N3955075 | C10: 39.55075 | D10: -121.53768 | E10: 50.2 | F10: 29.4 | G10: 7.7 | H10: [CoastalLiveOak, GrayPine, DouglasFir] | I10: CoastalLiveOak | J10: -2.2 | K10: W12153744N3955118-W12153762N3955060 | L10: Tier 2-3 | M10: YES | N10: 2019-11-16T22:51:32 | O10: =VLOOKUP($K10,SpanRange,4,FALSE) -> 6 | P10: =VLOOKUP($K10,SpanRange,2,FALSE) -> 218.6 | Q10: =VLOOKUP($K10,SpanRange,3,FALSE) -> 2 | R10: =Find_Table(Spans!$I$2,I10) -> 11 | S10: =IF(R10=0,Spans!$C$10,VLOOKUP(P10,INDIRECT("Table"&R10),Q10,TRUE)) -> 30 | T10: No | U10: No
A11: 37 | B11: W12153784N3955014 | C11: 39.55014 | D11: -121.53784 | E11: 40.7 | F11: 19.9 | G11: 12.3 | H11: [CoastalLiveOak, Other, GrayPine] | I11: CoastalLiveOak | J11: -4.7 | K11: W12153773N3955024-W12153784N3954988 | L11: Tier 2-3 | M11: YES | N11: 2019-11-16T22:51:32 | O11: =VLOOKUP($K11,SpanRange,4,FALSE) -> 4 | P11: =VLOOKUP($K11,SpanRange,2,FALSE) -> 135.5 | Q11: =VLOOKUP($K11,SpanRange,3,FALSE) -> 2 | R11: =Find_Table(Spans!$I$2,I11) -> 11 | S11: =IF(R11=0,Spans!$C$10,VLOOKUP(P11,INDIRECT("Table"&R11),Q11,TRUE)) -> 30 | T11: No | U11: No
A12: 39 | B12: W12153795N3954980 | C12: 39.5498 | D12: -121.53795 | E12: 42.7 | F12: 15.7 | G12: 9.7 | H12: [CoastalLiveOak, Other, DouglasFir] | I12: CoastalLiveOak | J12: -4.4 | K12: W12153784N3954988-W12154111N3954914 | L12: Tier 2-3 | M12: YES | N12: 2019-11-16T22:51:32 | O12: =VLOOKUP($K12,SpanRange,4,FALSE) ->  | P12: =VLOOKUP($K12,SpanRange,2,FALSE) ->  | Q12: =VLOOKUP($K12,SpanRange,3,FALSE) ->  | R12: =Find_Table(Spans!$I$2,I12) -> 11 | S12: =IF(R12=0,Spans!$C$10,VLOOKUP(P12,INDIRECT("Table"&R12),Q12,TRUE)) ->  | T12: No Match | U12: No
A13: 41 | B13: W12153771N3955065 | C13: 39.55065 | D13: -121.53771 | E13: 64.3 | F13: 28.9 | G13: 4.9 | H13: [DouglasFir, CoastalLiveOak, Other] | I13: DouglasFir | J13: -9.4 | K13: W12153744N3955118-W12153762N3955060 | L13: Tier 2-3 | M13: YES | N13: 2019-11-16T22:51:32 | O13: =VLOOKUP($K13,SpanRange,4,FALSE) -> 6 | P13: =VLOOKUP($K13,SpanRange,2,FALSE) -> 218.6 | Q13: =VLOOKUP($K13,SpanRange,3,FALSE) -> 2 | R13: =Find_Table(Spans!$I$2,I13) -> 9 | S13: =IF(R13=0,Spans!$C$10,VLOOKUP(P13,INDIRECT("Table"&R13),Q13,TRUE)) -> 26 | T13: No | U13: No
A14: 45 | B14: W12153778N3955046 | C14: 39.55046 | D14: -121.53778 | E14: 84.2 | F14: 30.5 | G14: 6.1 | H14: [Other, CoastalLiveOak, BlackOak] | I14: Other | J14: -25.5 | K14: W12153773N3955024-W12153762N3955060 | L14: Tier 2-3 | M14: YES | N14: 2019-11-16T22:51:32 | O14: =VLOOKUP($K14,SpanRange,4,FALSE) -> 5 | P14: =VLOOKUP($K14,SpanRange,2,FALSE) -> 134.3 | Q14: =VLOOKUP($K14,SpanRange,3,FALSE) -> 2 | R14: =Find_Table(Spans!$I$2,I14) -> 11 | S14: =IF(R14=0,Spans!$C$10,VLOOKUP(P14,INDIRECT("Table"&R14),Q14,TRUE)) -> 30 | T14: No | U14: No
A15: 46 | B15: W12153793N3954993 | C15: 39.54993 | D15: -121.53793 | E15: 44.9 | F15: 24.4 | G15: 8.8 | H15: [Other, CoastalLiveOak, BlackOak] | I15: Other | J15: -1 | K15: W12153784N3954988-W12154111N3954914 | L15: Tier 2-3 | M15: YES | N15: 2019-11-16T22:51:32 | O15: =VLOOKUP($K15,SpanRange,4,FALSE) ->  | P15: =VLOOKUP($K15,SpanRange,2,FALSE) ->  | Q15: =VLOOKUP($K15,SpanRange,3,FALSE) ->  | R15: =Find_Table(Spans!$I$2,I15) -> 11 | S15: =IF(R15=0,Spans!$C$10,VLOOKUP(P15,INDIRECT("Table"&R15),Q15,TRUE)) ->  | T15: No Match | U15: No
A16: 50 | B16: W12153792N3955000 | C16: 39.55 | D16: -121.53792 | E16: 47 | F16: 29.6 | G16: 6.6 | H16: [Other, ValleyOak, BlackOak] | I16: Other | J16: 0 | K16: W12153773N3955024-W12153784N3954988 | L16: Tier 2-3 | M16: YES | N16: 2019-11-16T22:51:32 | O16: =VLOOKUP($K16,SpanRange,4,FALSE) -> 4 | P16: =VLOOKUP($K16,SpanRange,2,FALSE) -> 135.5 | Q16: =VLOOKUP($K16,SpanRange,3,FALSE) -> 2 | R16: =Find_Table(Spans!$I$2,I16) -> 11 | S16: =IF(R16=0,Spans!$C$10,VLOOKUP(P16,INDIRECT("Table"&R16),Q16,TRUE)) -> 30 | T16: No | U16: No
A17: 60 | B17: W12154072N3953341 | C17: 39.53341 | D17: -121.54072 | E17: 77.6 | F17: 59.6 | G17: 39.1 | H17: [GrayPine, DouglasFir, TanOak] | I17: GrayPine | J17: -6.2 | K17: W12154149N3953393-W12154087N3953327 | L17: Tier 2-3 | M17: YES | N17: 2019-11-20T17:46:46 | O17: =VLOOKUP($K17,SpanRange,4,FALSE) -> 188 | P17: =VLOOKUP($K17,SpanRange,2,FALSE) -> 296 | Q17: =VLOOKUP($K17,SpanRange,3,FALSE) -> 2 | R17: =Find_Table(Spans!$I$2,I17) -> 10 | S17: =IF(R17=0,Spans!$C$10,VLOOKUP(P17,INDIRECT("Table"&R17),Q17,TRUE)) -> 32 | T17: No | U17: No
A18: 61 | B18: W12153548N3952754 | C18: 39.52754 | D18: -121.53548 | E18: 48.1 | F18: 33.1 | G18: 24.2 | H18: [GrayPine, DouglasFir, Other] | I18: GrayPine | J18: -4.2 | K18: W12153536N3952706-W12153535N3952774 | L18: Tier 2-3 | M18: YES | N18: 2019-11-20T17:46:46 | O18: =VLOOKUP($K18,SpanRange,4,FALSE) -> 82 | P18: =VLOOKUP($K18,SpanRange,2,FALSE) -> 246.6 | Q18: =VLOOKUP($K18,SpanRange,3,FALSE) -> 2 | R18: =Find_Table(Spans!$I$2,I18) -> 10 | S18: =IF(R18=0,Spans!$C$10,VLOOKUP(P18,INDIRECT("Table"&R18),Q18,TRUE)) -> 32 | T18: No | U18: No
A19: 62 | B19: W12153159N3953150 | C19: 39.5315 | D19: -121.53159 | E19: 30.8 | F19: 13.8 | G19: 10.7 | H19: [Eucalyptus/BlueGum, CoastalLiveOak, GrayPine] | I19: Eucalyptus/BlueGum | J19: -0.9 | K19: W12153147N3953155-W12153206N3953153 | L19: Tier 2-3 | M19: YES | N19: 2019-11-20T17:46:46 | O19: =VLOOKUP($K19,SpanRange,4,FALSE) -> 159 | P19: =VLOOKUP($K19,SpanRange,2,FALSE) -> 167.7 | Q19: =VLOOKUP($K19,SpanRange,3,FALSE) -> 2 | R19: =Find_Table(Spans!$I$2,I19) -> 12 | S19: =IF(R19=0,Spans!$C$10,VLOOKUP(P19,INDIRECT("Table"&R19),Q19,TRUE)) -> 30 | T19: No | U19: No
A20: 67 | B20: W12153667N3953291 | C20: 39.53291 | D20: -121.53667 | E20: 50.5 | F20: 23.3 | G20: 12 | H20: [DouglasFir, LiveOak, CoastalLiveOak] | I20: DouglasFir | J20: -9.9 | K20: W12153655N3953283-W12153713N3953284 | L20: Tier 2-3 | M20: YES | N20: 2019-11-20T17:46:46 | O20: =VLOOKUP($K20,SpanRange,4,FALSE) -> 185 | P20: =VLOOKUP($K20,SpanRange,2,FALSE) -> 163.4 | Q20: =VLOOKUP($K20,SpanRange,3,FALSE) -> 2 | R20: =Find_Table(Spans!$I$2,I20) -> 9 | S20: =IF(R20=0,Spans!$C$10,VLOOKUP(P20,INDIRECT("Table"&R20),Q20,TRUE)) -> 21 | T20: No | U20: No
A21: 72 | B21: W12153120N3953228 | C21: 39.53228 | D21: -121.5312 | E21: 65.6 | F21: 38 | G21: 11.2 | H21: [MontereyPine, DouglasFir, GrayPine] | I21: MontereyPine | J21: -11.6 | K21: W12153117N3953239-W12153205N3953245 | L21: Tier 2-3 | M21: YES | N21: 2019-11-20T17:46:46 | O21: =VLOOKUP($K21,SpanRange,4,FALSE) -> 174 | P21: =VLOOKUP($K21,SpanRange,2,FALSE) -> 250.2 | Q21: =VLOOKUP($K21,SpanRange,3,FALSE) -> 2 | R21: =Find_Table(Spans!$I$2,I21) -> 10 | S21: =IF(R21=0,Spans!$C$10,VLOOKUP(P21,INDIRECT("Table"&R21),Q21,TRUE)) -> 32 | T21: No | U21: No
A22: 73 | B22: W12153019N3952959 | C22: 39.52959 | D22: -121.53019 | E22: 94.9 | F22: 44.8 | G22: 7.3 | H22: [LiveOak, GrayPine, DouglasFir] | I22: LiveOak | J22: -37.9 | K22: W12153068N3952972-W12152988N3952972 | L22: Tier 2-3 | M22: YES | N22: 2019-11-20T17:46:46 | O22: =VLOOKUP($K22,SpanRange,4,FALSE) -> 117 | P22: =VLOOKUP($K22,SpanRange,2,FALSE) -> 225.7 | Q22: =VLOOKUP($K22,SpanRange,3,FALSE) -> 2 | R22: =Find_Table(Spans!$I$2,I22) -> 11 | S22: =IF(R22=0,Spans!$C$10,VLOOKUP(P22,INDIRECT("Table"&R22),Q22,TRUE)) -> 30 | T22: Yes | U22: No
A23: 74 | B23: W12153517N3952885 | C23: 39.52885 | D23: -121.53517 | E23: 29.7 | F23: 9.3 | G23: 4.6 | H23: [CoastalLiveOak, DouglasFir, Other] | I23: CoastalLiveOak | J23: -0.2 | K23: W12153537N3952882-W12153422N3952882 | L23: Tier 2-3 | M23: YES | N23: 2019-11-20T17:46:46 | O23: =VLOOKUP($K23,SpanRange,4,FALSE) -> 102 | P23: =VLOOKUP($K23,SpanRange,2,FALSE) -> 324.4 | Q23: =VLOOKUP($K23,SpanRange,3,FALSE) -> 2 | R23: =Find_Table(Spans!$I$2,I23) -> 11 | S23: =IF(R23=0,Spans!$C$10,VLOOKUP(P23,INDIRECT("Table"&R23),Q23,TRUE)) -> 30 | T23: No | U23: No
A24: 76 | B24: W12153436N3953217 | C24: 39.53217 | D24: -121.53436 | E24: 77.6 | F24: 44.5 | G24: 38.9 | H24: [GrayPine, DouglasFir, MontereyPine] | I24: GrayPine | J24: -20.7 | K24: W12153419N3953235-W12153419N3953172 | L24: Tier 2-3 | M24: YES | N24: 2019-11-20T17:46:46 | O24: =VLOOKUP($K24,SpanRange,4,FALSE) -> 166 | P24: =VLOOKUP($K24,SpanRange,2,FALSE) -> 228.3 | Q24: =VLOOKUP($K24,SpanRange,3,FALSE) -> 2 | R24: =Find_Table(Spans!$I$2,I24) -> 10 | S24: =IF(R24=0,Spans!$C$10,VLOOKUP(P24,INDIRECT("Table"&R24),Q24,TRUE)) -> 32 | T24: No | U24: No
A25: 77 | B25: W12153218N3953101 | C25: 39.53101 | D25: -121.53218 | E25: 46 | F25: 28.4 | G25: 7.7 | H25: [DouglasFir, LiveOak, GrayPine] | I25: DouglasFir | J25: -5 | K25: W12153207N3953097-W12153206N3953153 | L25: Tier 2-3 | M25: YES | N25: 2019-11-20T17:46:46 | O25: =VLOOKUP($K25,SpanRange,4,FALSE) -> 148 | P25: =VLOOKUP($K25,SpanRange,2,FALSE) -> 205.3 | Q25: =VLOOKUP($K25,SpanRange,3,FALSE) -> 2 | R25: =Find_Table(Spans!$I$2,I25) -> 9 | S25: =IF(R25=0,Spans!$C$10,VLOOKUP(P25,INDIRECT("Table"&R25),Q25,TRUE)) -> 26 | T25: No | U25: No
A26: 78 | B26: W12152094N3952618 | C26: 39.52618 | D26: -121.52094 | E26: 36.5 | F26: 12.5 | G26: 5.2 | H26: [GrayPine, BlackOak, ValleyOak] | I26: GrayPine | J26: -0.7 | K26: W12152124N3952614-W12152064N3952615 | L26: Tier 2-3 | M26: YES | N26: 2019-11-20T17:46:46 | O26: =VLOOKUP($K26,SpanRange,4,FALSE) -> 68 | P26: =VLOOKUP($K26,SpanRange,2,FALSE) -> 171 | Q26: =VLOOKUP($K26,SpanRange,3,FALSE) -> 2 | R26: =Find_Table(Spans!$I$2,I26) -> 10 | S26: =IF(R26=0,Spans!$C$10,VLOOKUP(P26,INDIRECT("Table"&R26),Q26,TRUE)) -> 26 | T26: No | U26: No
A27: 82 | B27: W12153211N3953127 | C27: 39.53127 | D27: -121.53211 | E27: 37 | F27: 10.2 | G27: 4.7 | H27: [CoastalLiveOak, DouglasFir, Other] | I27: CoastalLiveOak | J27: -8.6 | K27: W12153207N3953097-W12153206N3953153 | L27: Tier 2-3 | M27: YES | N27: 2019-11-20T17:46:46 | O27: =VLOOKUP($K27,SpanRange,4,FALSE) -> 148 | P27: =VLOOKUP($K27,SpanRange,2,FALSE) -> 205.3 | Q27: =VLOOKUP($K27,SpanRange,3,FALSE) -> 2 | R27: =Find_Table(Spans!$I$2,I27) -> 11 | S27: =IF(R27=0,Spans!$C$10,VLOOKUP(P27,INDIRECT("Table"&R27),Q27,TRUE)) -> 30 | T27: No | U27: No
A28: 86 | B28: W12154230N3953759 | C28: 39.53759 | D28: -121.5423 | E28: 64.2 | F28: 51.8 | G28: 29.6 | H28: [GrayPine, DouglasFir, Eucalyptus/BlueGum] | I28: GrayPine | J28: -11.9 | K28: W12154250N3953758-W12154253N3953660 | L28: Tier 2-3 | M28: YES | N28: 2019-11-20T17:46:46 | O28: =VLOOKUP($K28,SpanRange,4,FALSE) -> 195 | P28: =VLOOKUP($K28,SpanRange,2,FALSE) -> 355.9 | Q28: =VLOOKUP($K28,SpanRange,3,FALSE) -> 2 | R28: =Find_Table(Spans!$I$2,I28) -> 10 | S28: =IF(R28=0,Spans!$C$10,VLOOKUP(P28,INDIRECT("Table"&R28),Q28,TRUE)) -> 36 | T28: No | U28: No
A29: 92 | B29: W12153540N3952846 | C29: 39.52846 | D29: -121.5354 | E29: 31.1 | F29: 8.1 | G29: 7.1 | H29: [DouglasFir, LiveOak, TanOak] | I29: DouglasFir | J29: -1.4 | K29: W12153534N3952830-W12153534N3952830 | L29: Tier 2-3 | M29: YES | N29: 2019-11-20T17:46:46 | O29: =VLOOKUP($K29,SpanRange,4,FALSE) -> 99 | P29: =VLOOKUP($K29,SpanRange,2,FALSE) -> 189.9 | Q29: =VLOOKUP($K29,SpanRange,3,FALSE) -> 2 | R29: =Find_Table(Spans!$I$2,I29) -> 9 | S29: =IF(R29=0,Spans!$C$10,VLOOKUP(P29,INDIRECT("Table"&R29),Q29,TRUE)) -> 21 | T29: No | U29: No
A30: 95 | B30: W12154088N3953335 | C30: 39.53335 | D30: -121.54088 | E30: 51.6 | F30: 10.6 | G30: 6 | H30: [TanOak, DouglasFir, GrayPine] | I30: TanOak | J30: -10.7 | K30: W12154149N3953393-W12154087N3953327 | L30: Tier 2-3 | M30: YES | N30: 2019-11-20T17:46:46 | O30: =VLOOKUP($K30,SpanRange,4,FALSE) -> 188 | P30: =VLOOKUP($K30,SpanRange,2,FALSE) -> 296 | Q30: =VLOOKUP($K30,SpanRange,3,FALSE) -> 2 | R30: =Find_Table(Spans!$I$2,I30) -> 11 | S30: =IF(R30=0,Spans!$C$10,VLOOKUP(P30,INDIRECT("Table"&R30),Q30,TRUE)) -> 30 | T30: No | U30: No
A31: 98 | B31: W12152115N3952500 | C31: 39.525 | D31: -121.52115 | E31: 38.8 | F31: 16.3 | G31: 9.8 | H31: [DouglasFir, GrayPine, Other] | I31: DouglasFir | J31: -3.2 | K31: W12152123N3952539-W12152121N3952468 | L31: Tier 2-3 | M31: YES | N31: 2019-11-20T17:46:46 | O31: =VLOOKUP($K31,SpanRange,4,FALSE) -> 53 | P31: =VLOOKUP($K31,SpanRange,2,FALSE) -> 258.9 | Q31: =VLOOKUP($K31,SpanRange,3,FALSE) -> 2 | R31: =Find_Table(Spans!$I$2,I31) -> 9 | S31: =IF(R31=0,Spans!$C$10,VLOOKUP(P31,INDIRECT("Table"&R31),Q31,TRUE)) -> 26 | T31: No | U31: No
A32: 99 | B32: W12152013N3952902 | C32: 39.52902 | D32: -121.52013 | E32: 84.1 | F32: 26.2 | G32: 10.1 | H32: [GrayPine, DouglasFir, CoastalLiveOak] | I32: GrayPine | J32: -42.2 | K32: W12152053N3952877-W12152014N3952914 | L32: Tier 2-3 | M32: YES | N32: 2019-11-20T17:46:46 | O32: =VLOOKUP($K32,SpanRange,4,FALSE) -> 106 | P32: =VLOOKUP($K32,SpanRange,2,FALSE) -> 171.9 | Q32: =VLOOKUP($K32,SpanRange,3,FALSE) -> 2 | R32: =Find_Table(Spans!$I$2,I32) -> 10 | S32: =IF(R32=0,Spans!$C$10,VLOOKUP(P32,INDIRECT("Table"&R32),Q32,TRUE)) -> 26 | T32: Yes | U32: No
A33: 100 | B33: W12153825N3953269 | C33: 39.53269 | D33: -121.53825 | E33: 77.5 | F33: 75 | G33: 54 | H33: [Other, DouglasFir, GrayPine] | I33: Other | J33: -0.4 | K33: W12153848N3953281-W12153906N3953282 | L33: Tier 2-3 | M33: YES | N33: 2019-11-20T17:46:46 | O33: =VLOOKUP($K33,SpanRange,4,FALSE) -> 183 | P33: =VLOOKUP($K33,SpanRange,2,FALSE) -> 163.8 | Q33: =VLOOKUP($K33,SpanRange,3,FALSE) -> 2 | R33: =Find_Table(Spans!$I$2,I33) -> 11 | S33: =IF(R33=0,Spans!$C$10,VLOOKUP(P33,INDIRECT("Table"&R33),Q33,TRUE)) -> 30 | T33: No | U33: No
A34: 105 | B34: W12154226N3953559 | C34: 39.53559 | D34: -121.54226 | E34: 59.4 | F34: 34.7 | G34: 21.8 | H34: [Other, LiveOak, DouglasFir] | I34: Other | J34: -19.1 | K34: W12154230N3953520-W12154242N3953570 | L34: Tier 2-3 | M34: YES | N34: 2019-11-20T17:46:46 | O34: =VLOOKUP($K34,SpanRange,4,FALSE) -> 192 | P34: =VLOOKUP($K34,SpanRange,2,FALSE) -> 184.9 | Q34: =VLOOKUP($K34,SpanRange,3,FALSE) -> 2 | R34: =Find_Table(Spans!$I$2,I34) -> 11 | S34: =IF(R34=0,Spans!$C$10,VLOOKUP(P34,INDIRECT("Table"&R34),Q34,TRUE)) -> 30 | T34: No | U34: No
A35: 106 | B35: W12151871N3952867 | C35: 39.52867 | D35: -121.51871 | E35: 49.3 | F35: 13.6 | G35: 5.9 | H35: [GrayPine, ValleyOak, Other] | I35: GrayPine | J35: -14.8 | K35: W12151852N3952834-W12151873N3952887 | L35: Tier 2-3 | M35: YES | N35: 2019-11-20T17:46:46 | O35: =VLOOKUP($K35,SpanRange,4,FALSE) -> 100 | P35: =VLOOKUP($K35,SpanRange,2,FALSE) -> 200.8 | Q35: =VLOOKUP($K35,SpanRange,3,FALSE) -> 2 | R35: =Find_Table(Spans!$I$2,I35) -> 10 | S35: =IF(R35=0,Spans!$C$10,VLOOKUP(P35,INDIRECT("Table"&R35),Q35,TRUE)) -> 32 | T35: No | U35: No
A36: 107 | B36: W12153197N3952910 | C36: 39.5291 | D36: -121.53197 | E36: 55.6 | F36: 21.4 | G36: 12 | H36: [DouglasFir, TanOak, GrayPine] | I36: DouglasFir | J36: -13.7 | K36: W12153206N3952972-W12153206N3952881 | L36: Tier 2-3 | M36: YES | N36: 2019-11-20T17:46:46 | O36: =VLOOKUP($K36,SpanRange,4,FALSE) -> 109 | P36: =VLOOKUP($K36,SpanRange,2,FALSE) -> 332.2 | Q36: =VLOOKUP($K36,SpanRange,3,FALSE) -> 2 | R36: =Find_Table(Spans!$I$2,I36) -> 9 | S36: =IF(R36=0,Spans!$C$10,VLOOKUP(P36,INDIRECT("Table"&R36),Q36,TRUE)) -> 31 | T36: No | U36: No
A37: 108 | B37: W12152594N3953051 | C37: 39.53051 | D37: -121.52594 | E37: 38.9 | F37: 21.8 | G37: 8.4 | H37: [DouglasFir, Other, GrayPine] | I37: DouglasFir | J37: -7.2 | K37: W12152603N3953064-W12152603N3952974 | L37: Tier 2-3 | M37: YES | N37: 2019-11-20T17:46:46 | O37: =VLOOKUP($K37,SpanRange,4,FALSE) -> 128 | P37: =VLOOKUP($K37,SpanRange,2,FALSE) -> 329.1 | Q37: =VLOOKUP($K37,SpanRange,3,FALSE) -> 2 | R37: =Find_Table(Spans!$I$2,I37) -> 9 | S37: =IF(R37=0,Spans!$C$10,VLOOKUP(P37,INDIRECT("Table"&R37),Q37,TRUE)) -> 31 | T37: No | U37: No
A38: 110 | B38: W12153412N3953182 | C38: 39.53182 | D38: -121.53412 | E38: 41 | F38: 17.5 | G38: 12 | H38: [Other, CoastalLiveOak, DouglasFir] | I38: Other | J38: -4.4 | K38: W12153419N3953235-W12153419N3953172 | L38: Tier 2-3 | M38: YES | N38: 2019-11-20T17:46:46 | O38: =VLOOKUP($K38,SpanRange,4,FALSE) -> 166 | P38: =VLOOKUP($K38,SpanRange,2,FALSE) -> 228.3 | Q38: =VLOOKUP($K38,SpanRange,3,FALSE) -> 2 | R38: =Find_Table(Spans!$I$2,I38) -> 11 | S38: =IF(R38=0,Spans!$C$10,VLOOKUP(P38,INDIRECT("Table"&R38),Q38,TRUE)) -> 30 | T38: No | U38: No
A39: 113 | B39: W12151419N3952813 | C39: 39.52813 | D39: -121.51419 | E39: 42.1 | F39: 29.6 | G39: 6.2 | H39: [Other, CoastalLiveOak, DouglasFir] | I39: Other | J39: -0.5 | K39: W12151401N3952860-W12151441N3952799 | L39: Tier 2-3 | M39: YES | N39: 2019-11-20T17:46:46 | O39: =VLOOKUP($K39,SpanRange,4,FALSE) -> 93 | P39: =VLOOKUP($K39,SpanRange,2,FALSE) -> 250.8 | Q39: =VLOOKUP($K39,SpanRange,3,FALSE) -> 2 | R39: =Find_Table(Spans!$I$2,I39) -> 11 | S39: =IF(R39=0,Spans!$C$10,VLOOKUP(P39,INDIRECT("Table"&R39),Q39,TRUE)) -> 30 | T39: No | U39: No
A40: 115 | B40: W12153219N3952983 | C40: 39.52983 | D40: -121.53219 | E40: 45.6 | F40: 32.1 | G40: 6 | H40: [MontereyPine, DouglasFir, CoastalLiveOak] | I40: MontereyPine | J40: -2.5 | K40: W12153284N3952973-W12153206N3952972 | L40: Tier 2-3 | M40: YES | N40: 2019-11-20T17:46:46 | O40: =VLOOKUP($K40,SpanRange,4,FALSE) -> 118 | P40: =VLOOKUP($K40,SpanRange,2,FALSE) -> 221.5 | Q40: =VLOOKUP($K40,SpanRange,3,FALSE) -> 2 | R40: =Find_Table(Spans!$I$2,I40) -> 10 | S40: =IF(R40=0,Spans!$C$10,VLOOKUP(P40,INDIRECT("Table"&R40),Q40,TRUE)) -> 32 | T40: No | U40: No
A41: 118 | B41: W12152595N3953029 | C41: 39.53029 | D41: -121.52595 | E41: 39.9 | F41: 18.3 | G41: 3.7 | H41: [GrayPine, MontereyPine, ValleyOak] | I41: GrayPine | J41: -12.8 | K41: W12152603N3953064-W12152603N3952974 | L41: Tier 2-3 | M41: YES | N41: 2019-11-20T17:46:46 | O41: =VLOOKUP($K41,SpanRange,4,FALSE) -> 128 | P41: =VLOOKUP($K41,SpanRange,2,FALSE) -> 329.1 | Q41: =VLOOKUP($K41,SpanRange,3,FALSE) -> 2 | R41: =Find_Table(Spans!$I$2,I41) -> 10 | S41: =IF(R41=0,Spans!$C$10,VLOOKUP(P41,INDIRECT("Table"&R41),Q41,TRUE)) -> 36 | T41: No | U41: No
A42: 119 | B42: W12151454N3952529 | C42: 39.52529 | D42: -121.51454 | E42: 39.2 | F42: 14.8 | G42: 6.7 | H42: [Other, GrayPine, CoastalLiveOak] | I42: Other | J42: -9.5 | K42: W12151461N3952559-W12151459N3952471 | L42: Tier 2-3 | M42: YES | N42: 2019-11-20T17:46:46 | O42: =VLOOKUP($K42,SpanRange,4,FALSE) -> 54 | P42: =VLOOKUP($K42,SpanRange,2,FALSE) -> 322.6 | Q42: =VLOOKUP($K42,SpanRange,3,FALSE) -> 2 | R42: =Find_Table(Spans!$I$2,I42) -> 11 | S42: =IF(R42=0,Spans!$C$10,VLOOKUP(P42,INDIRECT("Table"&R42),Q42,TRUE)) -> 30 | T42: No | U42: No
A43: 124 | B43: W12154088N3953232 | C43: 39.53232 | D43: -121.54088 | E43: 57 | F43: 12.5 | G43: 11.6 | H43: [DouglasFir, CoastalLiveOak, Other] | I43: DouglasFir | J43: -14.2 | K43: W12154086N3953214-W12154073N3953285 | L43: Tier 2-3 | M43: YES | N43: 2019-11-20T17:46:46 | O43: =VLOOKUP($K43,SpanRange,4,FALSE) -> 177 | P43: =VLOOKUP($K43,SpanRange,2,FALSE) -> 261 | Q43: =VLOOKUP($K43,SpanRange,3,FALSE) -> 2 | R43: =Find_Table(Spans!$I$2,I43) -> 9 | S43: =IF(R43=0,Spans!$C$10,VLOOKUP(P43,INDIRECT("Table"&R43),Q43,TRUE)) -> 26 | T43: No | U43: No
A44: 126 | B44: W12153898N3953100 | C44: 39.531 | D44: -121.53898 | E44: 81.2 | F44: 21.5 | G44: 12 | H44: [GrayPine, Other, DouglasFir] | I44: GrayPine | J44: -47.3 | K44: W12153908N3953063-W12153907N3953103 | L44: Tier 2-3 | M44: YES | N44: 2019-11-20T17:46:46 | O44: =VLOOKUP($K44,SpanRange,4,FALSE) -> 143 | P44: =VLOOKUP($K44,SpanRange,2,FALSE) -> 147.7 | Q44: =VLOOKUP($K44,SpanRange,3,FALSE) -> 2 | R44: =Find_Table(Spans!$I$2,I44) -> 10 | S44: =IF(R44=0,Spans!$C$10,VLOOKUP(P44,INDIRECT("Table"&R44),Q44,TRUE)) -> 21 | T44: Yes | U44: No
A45: 130 | B45: W12153695N3953058 | C45: 39.53058 | D45: -121.53695 | E45: 48.9 | F45: 15.7 | G45: 5.9 | H45: [DouglasFir, LiveOak, Other] | I45: DouglasFir | J45: -16.1 | K45: W12153655N3953063-W12153771N3953063 | L45: Tier 2-3 | M45: YES | N45: 2019-11-20T17:46:46 | O45: =VLOOKUP($K45,SpanRange,4,FALSE) -> 139 | P45: =VLOOKUP($K45,SpanRange,2,FALSE) -> 328.2 | Q45: =VLOOKUP($K45,SpanRange,3,FALSE) -> 2 | R45: =Find_Table(Spans!$I$2,I45) -> 9 | S45: =IF(R45=0,Spans!$C$10,VLOOKUP(P45,INDIRECT("Table"&R45),Q45,TRUE)) -> 31 | T45: No | U45: No
A46: 131 | B46: W12154068N3953187 | C46: 39.53187 | D46: -121.54068 | E46: 63.2 | F46: 45.9 | G46: 24.3 | H46: [GrayPine, DouglasFir, Eucalyptus/BlueGum] | I46: GrayPine | J46: -14.2 | K46: W12154084N3953131-W12154086N3953214 | L46: Tier 2-3 | M46: YES | N46: 2019-11-20T17:46:46 | O46: =VLOOKUP($K46,SpanRange,4,FALSE) -> 162 | P46: =VLOOKUP($K46,SpanRange,2,FALSE) -> 302.6 | Q46: =VLOOKUP($K46,SpanRange,3,FALSE) -> 2 | R46: =Find_Table(Spans!$I$2,I46) -> 10 | S46: =IF(R46=0,Spans!$C$10,VLOOKUP(P46,INDIRECT("Table"&R46),Q46,TRUE)) -> 36 | T46: No | U46: No
A47: 132 | B47: W12153650N3953177 | C47: 39.53177 | D47: -121.5365 | E47: 32.7 | F47: 9.7 | G47: 3.3 | H47: [DouglasFir, Other, Eucalyptus/BlueGum] | I47: DouglasFir | J47: -0.4 | K47: W12153655N3953211-W12153654N3953154 | L47: Tier 2-3 | M47: YES | N47: 2019-11-20T17:46:46 | O47: =VLOOKUP($K47,SpanRange,4,FALSE) -> 165 | P47: =VLOOKUP($K47,SpanRange,2,FALSE) -> 209.6 | Q47: =VLOOKUP($K47,SpanRange,3,FALSE) -> 2 | R47: =Find_Table(Spans!$I$2,I47) -> 9 | S47: =IF(R47=0,Spans!$C$10,VLOOKUP(P47,INDIRECT("Table"&R47),Q47,TRUE)) -> 26 | T47: No | U47: No
A48: 135 | B48: W12153564N3953055 | C48: 39.53055 | D48: -121.53564 | E48: 31 | F48: 23.4 | G48: 8.1 | H48: [DouglasFir, Other, Eucalyptus/BlueGum] | I48: DouglasFir | J48: -2.6 | K48: W12153655N3953063-W12153538N3953063 | L48: Tier 2-3 | M48: YES | N48: 2019-11-20T17:46:46 | O48: =VLOOKUP($K48,SpanRange,4,FALSE) -> 140 | P48: =VLOOKUP($K48,SpanRange,2,FALSE) -> 329.2 | Q48: =VLOOKUP($K48,SpanRange,3,FALSE) -> 2 | R48: =Find_Table(Spans!$I$2,I48) -> 9 | S48: =IF(R48=0,Spans!$C$10,VLOOKUP(P48,INDIRECT("Table"&R48),Q48,TRUE)) -> 31 | T48: No | U48: No
A49: 137 | B49: W12153160N3953296 | C49: 39.53296 | D49: -121.5316 | E49: 50.6 | F49: 43.3 | G49: 6.9 | H49: [DouglasFir, TanOak, CoastalLiveOak] | I49: DouglasFir | J49: -1.5 | K49: W12153118N3953282-W12153205N3953285 | L49: Tier 2-3 | M49: YES | N49: 2019-11-20T17:46:46 | O49: =VLOOKUP($K49,SpanRange,4,FALSE) -> 186 | P49: =VLOOKUP($K49,SpanRange,2,FALSE) -> 244.6 | Q49: =VLOOKUP($K49,SpanRange,3,FALSE) -> 2 | R49: =Find_Table(Spans!$I$2,I49) -> 9 | S49: =IF(R49=0,Spans!$C$10,VLOOKUP(P49,INDIRECT("Table"&R49),Q49,TRUE)) -> 26 | T49: No | U49: No
A50: 139 | B50: W12152788N3952779 | C50: 39.52779 | D50: -121.52788 | E50: 40.6 | F50: 12.6 | G50: 4.5 | H50: [CoastalLiveOak, Eucalyptus/BlueGum, DouglasFir] | I50: CoastalLiveOak | J50: -6.2 | K50: W12152800N3952774-W12152750N3952825 | L50: Tier 2-3 | M50: YES | N50: 2019-11-20T17:46:46 | O50: =VLOOKUP($K50,SpanRange,4,FALSE) -> 90 | P50: =VLOOKUP($K50,SpanRange,2,FALSE) -> 233.6 | Q50: =VLOOKUP($K50,SpanRange,3,FALSE) -> 2 | R50: =Find_Table(Spans!$I$2,I50) -> 11 | S50: =IF(R50=0,Spans!$C$10,VLOOKUP(P50,INDIRECT("Table"&R50),Q50,TRUE)) -> 30 | T50: No | U50: No
A51: 141 | B51: W12153928N3953247 | C51: 39.53247 | D51: -121.53928 | E51: 37.1 | F51: 13.3 | G51: 7.8 | H51: [DouglasFir, LiveOak, Other] | I51: DouglasFir | J51: -2.8 | K51: W12153963N3953242-W12153905N3953243 | L51: Tier 2-3 | M51: YES | N51: 2019-11-20T17:46:46 | O51: =VLOOKUP($K51,SpanRange,4,FALSE) -> 175 | P51: =VLOOKUP($K51,SpanRange,2,FALSE) -> 161.3 | Q51: =VLOOKUP($K51,SpanRange,3,FALSE) -> 2 | R51: =Find_Table(Spans!$I$2,I51) -> 9 | S51: =IF(R51=0,Spans!$C$10,VLOOKUP(P51,INDIRECT("Table"&R51),Q51,TRUE)) -> 21 | T51: No | U51: No
A52: 142 | B52: W12153839N3953238 | C52: 39.53238 | D52: -121.53839 | E52: 72.4 | F52: 21 | G52: 4.4 | H52: [DouglasFir, GrayPine, TanOak] | I52: DouglasFir | J52: -44.9 | K52: W12153810N3953244-W12153905N3953243 | L52: Tier 2-3 | M52: YES | N52: 2019-11-20T17:46:46 | O52: =VLOOKUP($K52,SpanRange,4,FALSE) -> 176 | P52: =VLOOKUP($K52,SpanRange,2,FALSE) -> 270.1 | Q52: =VLOOKUP($K52,SpanRange,3,FALSE) -> 2 | R52: =Find_Table(Spans!$I$2,I52) -> 9 | S52: =IF(R52=0,Spans!$C$10,VLOOKUP(P52,INDIRECT("Table"&R52),Q52,TRUE)) -> 26 | T52: Yes | U52: No
A53: 143 | B53: W12153660N3953099 | C53: 39.53099 | D53: -121.5366 | E53: 47.4 | F53: 15 | G53: 7.8 | H53: [CoastalLiveOak, Other, Eucalyptus/BlueGum] | I53: CoastalLiveOak | J53: -7.5 | K53: W12153655N3953063-W12153654N3953103 | L53: Tier 2-3 | M53: YES | N53: 2019-11-20T17:46:46 | O53: =VLOOKUP($K53,SpanRange,4,FALSE) -> 144 | P53: =VLOOKUP($K53,SpanRange,2,FALSE) -> 148 | Q53: =VLOOKUP($K53,SpanRange,3,FALSE) -> 2 | R53: =Find_Table(Spans!$I$2,I53) -> 11 | S53: =IF(R53=0,Spans!$C$10,VLOOKUP(P53,INDIRECT("Table"&R53),Q53,TRUE)) -> 30 | T53: No | U53: No
A54: 144 | B54: W12152037N3952863 | C54: 39.52863 | D54: -121.52037 | E54: 95.9 | F54: 65.7 | G54: 53.9 | H54: [CoastalLiveOak, Other, DouglasFir] | I54: CoastalLiveOak | J54: -19.1 | K54: W12152053N3952877-W12152014N3952914 | L54: Tier 2-3 | M54: YES | N54: 2019-11-20T17:46:46 | O54: =VLOOKUP($K54,SpanRange,4,FALSE) -> 106 | P54: =VLOOKUP($K54,SpanRange,2,FALSE) -> 171.9 | Q54: =VLOOKUP($K54,SpanRange,3,FALSE) -> 2 | R54: =Find_Table(Spans!$I$2,I54) -> 11 | S54: =IF(R54=0,Spans!$C$10,VLOOKUP(P54,INDIRECT("Table"&R54),Q54,TRUE)) -> 30 | T54: No | U54: No
A55: 145 | B55: W12153177N3952734 | C55: 39.52734 | D55: -121.53177 | E55: 63.1 | F55: 32.7 | G55: 12 | H55: [Eucalyptus/BlueGum, DouglasFir, TanOak] | I55: Eucalyptus/BlueGum | J55: -22 | K55: W12153200N3952739-W12153152N3952699 | L55: Tier 2-3 | M55: YES | N55: 2019-11-20T17:46:46 | O55: =VLOOKUP($K55,SpanRange,4,FALSE) -> 78 | P55: =VLOOKUP($K55,SpanRange,2,FALSE) -> 197.2 | Q55: =VLOOKUP($K55,SpanRange,3,FALSE) -> 2 | R55: =Find_Table(Spans!$I$2,I55) -> 12 | S55: =IF(R55=0,Spans!$C$10,VLOOKUP(P55,INDIRECT("Table"&R55),Q55,TRUE)) -> 30 | T55: No | U55: No
A56: 146 | B56: W12153870N3953265 | C56: 39.53265 | D56: -121.5387 | E56: 62.9 | F56: 56.7 | G56: 41.5 | H56: [GrayPine, Other, LiveOak] | I56: GrayPine | J56: -2.4 | K56: W12153848N3953281-W12153906N3953282 | L56: Tier 2-3 | M56: YES | N56: 2019-11-20T17:46:46 | O56: =VLOOKUP($K56,SpanRange,4,FALSE) -> 183 | P56: =VLOOKUP($K56,SpanRange,2,FALSE) -> 163.8 | Q56: =VLOOKUP($K56,SpanRange,3,FALSE) -> 2 | R56: =Find_Table(Spans!$I$2,I56) -> 10 | S56: =IF(R56=0,Spans!$C$10,VLOOKUP(P56,INDIRECT("Table"&R56),Q56,TRUE)) -> 26 | T56: No | U56: No
A57: 150 | B57: W12153450N3953237 | C57: 39.53237 | D57: -121.5345 | E57: 41 | F57: 10.3 | G57: 6.5 | H57: [DouglasFir, TanOak, CoastalLiveOak] | I57: DouglasFir | J57: -13.9 | K57: W12153419N3953235-W12153557N3953230 | L57: Tier 2-3 | M57: YES | N57: 2019-11-20T17:46:46 | O57: =VLOOKUP($K57,SpanRange,4,FALSE) -> 172 | P57: =VLOOKUP($K57,SpanRange,2,FALSE) -> 388.6 | Q57: =VLOOKUP($K57,SpanRange,3,FALSE) -> 2 | R57: =Find_Table(Spans!$I$2,I57) -> 9 | S57: =IF(R57=0,Spans!$C$10,VLOOKUP(P57,INDIRECT("Table"&R57),Q57,TRUE)) -> 31 | T57: No | U57: No
A58: 151 | B58: W12153164N3953052 | C58: 39.53052 | D58: -121.53164 | E58: 44 | F58: 10.6 | G58: 5.7 | H58: [LiveOak, DouglasFir, Other] | I58: LiveOak | J58: -9.4 | K58: W12153157N3953048-W12153206N3953048 | L58: Tier 2-3 | M58: YES | N58: 2019-11-20T17:46:46 | O58: =VLOOKUP($K58,SpanRange,4,FALSE) -> 134 | P58: =VLOOKUP($K58,SpanRange,2,FALSE) -> 140.1 | Q58: =VLOOKUP($K58,SpanRange,3,FALSE) -> 2 | R58: =Find_Table(Spans!$I$2,I58) -> 11 | S58: =IF(R58=0,Spans!$C$10,VLOOKUP(P58,INDIRECT("Table"&R58),Q58,TRUE)) -> 30 | T58: No | U58: No
A59: 153 | B59: W12153200N3953069 | C59: 39.53069 | D59: -121.532 | E59: 35.2 | F59: 15.8 | G59: 4.9 | H59: [LiveOak, DouglasFir, GrayPine] | I59: LiveOak | J59: -1.7 | K59: W12153207N3953097-W12153206N3953048 | L59: Tier 2-3 | M59: YES | N59: 2019-11-20T17:46:46 | O59: =VLOOKUP($K59,SpanRange,4,FALSE) -> 141 | P59: =VLOOKUP($K59,SpanRange,2,FALSE) -> 177.2 | Q59: =VLOOKUP($K59,SpanRange,3,FALSE) -> 2 | R59: =Find_Table(Spans!$I$2,I59) -> 11 | S59: =IF(R59=0,Spans!$C$10,VLOOKUP(P59,INDIRECT("Table"&R59),Q59,TRUE)) -> 30 | T59: No | U59: No
A60: 154 | B60: W12152076N3953020 | C60: 39.5302 | D60: -121.52076 | E60: 38.7 | F60: 11.7 | G60: 4.7 | H60: [CoastalLiveOak, DouglasFir, Other] | I60: CoastalLiveOak | J60: -2.1 | K60: W12152005N3953021-W12152091N3953014 | L60: Tier 2-3 | M60: YES | N60: 2019-11-20T17:46:46 | O60: =VLOOKUP($K60,SpanRange,4,FALSE) -> 127 | P60: =VLOOKUP($K60,SpanRange,2,FALSE) -> 241.7 | Q60: =VLOOKUP($K60,SpanRange,3,FALSE) -> 2 | R60: =Find_Table(Spans!$I$2,I60) -> 11 | S60: =IF(R60=0,Spans!$C$10,VLOOKUP(P60,INDIRECT("Table"&R60),Q60,TRUE)) -> 30 | T60: No | U60: No
A61: 157 | B61: W12152217N3952991 | C61: 39.52991 | D61: -121.52217 | E61: 64.1 | F61: 47.9 | G61: 31.4 | H61: [MontereyPine, GrayPine, DouglasFir] | I61: MontereyPine | J61: -10.2 | K61: W12152184N3953012-W12152284N3952992 | L61: Tier 2-3 | M61: YES | N61: 2019-11-20T17:46:46 | O61: =VLOOKUP($K61,SpanRange,4,FALSE) -> 125 | P61: =VLOOKUP($K61,SpanRange,2,FALSE) -> 290.1 | Q61: =VLOOKUP($K61,SpanRange,3,FALSE) -> 2 | R61: =Find_Table(Spans!$I$2,I61) -> 10 | S61: =IF(R61=0,Spans!$C$10,VLOOKUP(P61,INDIRECT("Table"&R61),Q61,TRUE)) -> 32 | T61: No | U61: No
A62: 159 | B62: W12152016N3953033 | C62: 39.53033 | D62: -121.52016 | E62: 62 | F62: 43 | G62: 26.9 | H62: [GrayPine, Other, DouglasFir] | I62: GrayPine | J62: -4.8 | K62: W12152005N3953021-W12152091N3953014 | L62: Tier 2-3 | M62: YES | N62: 2019-11-20T17:46:46 | O62: =VLOOKUP($K62,SpanRange,4,FALSE) -> 127 | P62: =VLOOKUP($K62,SpanRange,2,FALSE) -> 241.7 | Q62: =VLOOKUP($K62,SpanRange,3,FALSE) -> 2 | R62: =Find_Table(Spans!$I$2,I62) -> 10 | S62: =IF(R62=0,Spans!$C$10,VLOOKUP(P62,INDIRECT("Table"&R62),Q62,TRUE)) -> 32 | T62: No | U62: No
A63: 160 | B63: W12153855N3953276 | C63: 39.53276 | D63: -121.53855 | E63: 65.4 | F63: 16.7 | G63: 7.3 | H63: [DouglasFir, CoastalLiveOak, Other] | I63: DouglasFir | J63: -32.1 | K63: W12153848N3953281-W12153906N3953282 | L63: Tier 2-3 | M63: YES | N63: 2019-11-20T17:46:46 | O63: =VLOOKUP($K63,SpanRange,4,FALSE) -> 183 | P63: =VLOOKUP($K63,SpanRange,2,FALSE) -> 163.8 | Q63: =VLOOKUP($K63,SpanRange,3,FALSE) -> 2 | R63: =Find_Table(Spans!$I$2,I63) -> 9 | S63: =IF(R63=0,Spans!$C$10,VLOOKUP(P63,INDIRECT("Table"&R63),Q63,TRUE)) -> 21 | T63: Yes | U63: No
A64: 161 | B64: W12153075N3952962 | C64: 39.52962 | D64: -121.53075 | E64: 55.7 | F64: 34.9 | G64: 9 | H64: [GrayPine, Other, DouglasFir] | I64: GrayPine | J64: -5.5 | K64: W12153130N3952973-W12153068N3952972 | L64: Tier 2-3 | M64: YES | N64: 2019-11-20T17:46:46 | O64: =VLOOKUP($K64,SpanRange,4,FALSE) -> 120 | P64: =VLOOKUP($K64,SpanRange,2,FALSE) -> 175.2 | Q64: =VLOOKUP($K64,SpanRange,3,FALSE) -> 2 | R64: =Find_Table(Spans!$I$2,I64) -> 10 | S64: =IF(R64=0,Spans!$C$10,VLOOKUP(P64,INDIRECT("Table"&R64),Q64,TRUE)) -> 26 | T64: No | U64: No
A65: 164 | B65: W12154248N3953996 | C65: 39.53996 | D65: -121.54248 | E65: 60.3 | F65: 32.4 | G65: 15.6 | H65: [DouglasFir, Eucalyptus/BlueGum, GrayPine] | I65: DouglasFir | J65: -26.6 | K65: W12154261N3953987-W12154258N3954066 | L65: Tier 2-3 | M65: YES | N65: 2019-11-20T17:46:46 | O65: =VLOOKUP($K65,SpanRange,4,FALSE) -> 199 | P65: =VLOOKUP($K65,SpanRange,2,FALSE) -> 286.7 | Q65: =VLOOKUP($K65,SpanRange,3,FALSE) -> 2 | R65: =Find_Table(Spans!$I$2,I65) -> 9 | S65: =IF(R65=0,Spans!$C$10,VLOOKUP(P65,INDIRECT("Table"&R65),Q65,TRUE)) -> 26 | T65: Yes | U65: No
A66: 166 | B66: W12154236N3953770 | C66: 39.5377 | D66: -121.54236 | E66: 67.6 | F66: 36 | G66: 18.9 | H66: [Other, GrayPine, DouglasFir] | I66: Other | J66: -31.6 | K66: W12154250N3953758-W12154252N3953857 | L66: Tier 2-3 | M66: YES | N66: 2019-11-20T17:46:46 | O66: =VLOOKUP($K66,SpanRange,4,FALSE) -> 196 | P66: =VLOOKUP($K66,SpanRange,2,FALSE) -> 362 | Q66: =VLOOKUP($K66,SpanRange,3,FALSE) -> 2 | R66: =Find_Table(Spans!$I$2,I66) -> 11 | S66: =IF(R66=0,Spans!$C$10,VLOOKUP(P66,INDIRECT("Table"&R66),Q66,TRUE)) -> 30 | T66: Yes | U66: No
A67: 167 | B67: W12153462N3953228 | C67: 39.53228 | D67: -121.53462 | E67: 36 | F67: 18 | G67: 5.6 | H67: [DouglasFir, Other, LiveOak] | I67: DouglasFir | J67: -2.7 | K67: W12153419N3953235-W12153557N3953230 | L67: Tier 2-3 | M67: YES | N67: 2019-11-20T17:46:46 | O67: =VLOOKUP($K67,SpanRange,4,FALSE) -> 172 | P67: =VLOOKUP($K67,SpanRange,2,FALSE) -> 388.6 | Q67: =VLOOKUP($K67,SpanRange,3,FALSE) -> 2 | R67: =Find_Table(Spans!$I$2,I67) -> 9 | S67: =IF(R67=0,Spans!$C$10,VLOOKUP(P67,INDIRECT("Table"&R67),Q67,TRUE)) -> 31 | T67: No | U67: No
A68: 168 | B68: W12151986N3952928 | C68: 39.52928 | D68: -121.51986 | E68: 59 | F68: 31.5 | G68: 28.9 | H68: [GrayPine, DouglasFir, Other] | I68: GrayPine | J68: -12.4 | K68: W12152014N3952914-W12151936N3952926 | L68: Tier 2-3 | M68: YES | N68: 2019-11-20T17:46:46 | O68: =VLOOKUP($K68,SpanRange,4,FALSE) -> 108 | P68: =VLOOKUP($K68,SpanRange,2,FALSE) -> 225.1 | Q68: =VLOOKUP($K68,SpanRange,3,FALSE) -> 2 | R68: =Find_Table(Spans!$I$2,I68) -> 10 | S68: =IF(R68=0,Spans!$C$10,VLOOKUP(P68,INDIRECT("Table"&R68),Q68,TRUE)) -> 32 | T68: =IFERROR(IF((-1)*J68>S68,"Yes","No"),"No Match") -> No | U68: =IF(F68<=6,"Yes","No") -> No
A69: 169 | B69: W12153197N3953159 | C69: 39.53159 | D69: -121.53197 | E69: 38.2 | F69: 18.1 | G69: 10.9 | H69: [GrayPine, ValleyOak, DouglasFir] | I69: GrayPine | J69: -6.7 | K69: W12153147N3953155-W12153206N3953153 | L69: Tier 2-3 | M69: YES | N69: 2019-11-20T17:46:46 | O69: =VLOOKUP($K69,SpanRange,4,FALSE) -> 159 | P69: =VLOOKUP($K69,SpanRange,2,FALSE) -> 167.7 | Q69: =VLOOKUP($K69,SpanRange,3,FALSE) -> 2 | R69: =Find_Table(Spans!$I$2,I69) -> 10 | S69: =IF(R69=0,Spans!$C$10,VLOOKUP(P69,INDIRECT("Table"&R69),Q69,TRUE)) -> 26 | T69: No | U69: No
A70: 171 | B70: W12153829N3953261 | C70: 39.53261 | D70: -121.53829 | E70: 71.8 | F70: 60.4 | G70: 48.3 | H70: [Other, GrayPine, LiveOak] | I70: Other | J70: -0.7 | K70: W12153810N3953244-W12153905N3953243 | L70: Tier 2-3 | M70: YES | N70: 2019-11-20T17:46:46 | O70: =VLOOKUP($K70,SpanRange,4,FALSE) -> 176 | P70: =VLOOKUP($K70,SpanRange,2,FALSE) -> 270.1 | Q70: =VLOOKUP($K70,SpanRange,3,FALSE) -> 2 | R70: =Find_Table(Spans!$I$2,I70) -> 11 | S70: =IF(R70=0,Spans!$C$10,VLOOKUP(P70,INDIRECT("Table"&R70),Q70,TRUE)) -> 30 | T70: No | U70: No
A71: 176 | B71: W12152531N3952935 | C71: 39.52935 | D71: -121.52531 | E71: 47.4 | F71: 15.4 | G71: 4.6 | H71: [TanOak, MontereyPine, Other] | I71: TanOak | J71: -10 | K71: W12152596N3952916-W12152508N3952949 | L71: Tier 2-3 | M71: YES | N71: 2019-11-20T17:46:46 | O71: =VLOOKUP($K71,SpanRange,4,FALSE) -> 110 | P71: =VLOOKUP($K71,SpanRange,2,FALSE) -> 273.5 | Q71: =VLOOKUP($K71,SpanRange,3,FALSE) -> 2 | R71: =Find_Table(Spans!$I$2,I71) -> 11 | S71: =IF(R71=0,Spans!$C$10,VLOOKUP(P71,INDIRECT("Table"&R71),Q71,TRUE)) -> 30 | T71: No | U71: No
A72: 180 | B72: W12152116N3952511 | C72: 39.52511 | D72: -121.52116 | E72: 45.5 | F72: 15 | G72: 7.2 | H72: [CoastalLiveOak, Eucalyptus/BlueGum, DouglasFir] | I72: CoastalLiveOak | J72: -9.7 | K72: W12152123N3952539-W12152121N3952468 | L72: Tier 2-3 | M72: YES | N72: 2019-11-20T17:46:46 | O72: =VLOOKUP($K72,SpanRange,4,FALSE) -> 53 | P72: =VLOOKUP($K72,SpanRange,2,FALSE) -> 258.9 | Q72: =VLOOKUP($K72,SpanRange,3,FALSE) -> 2 | R72: =Find_Table(Spans!$I$2,I72) -> 11 | S72: =IF(R72=0,Spans!$C$10,VLOOKUP(P72,INDIRECT("Table"&R72),Q72,TRUE)) -> 30 | T72: No | U72: No
A73: 181 | B73: W12153608N3953057 | C73: 39.53057 | D73: -121.53608 | E73: 42.7 | F73: 18 | G73: 5.6 | H73: [DouglasFir, CoastalLiveOak, Eucalyptus/BlueGum] | I73: DouglasFir | J73: -15.7 | K73: W12153655N3953063-W12153538N3953063 | L73: Tier 2-3 | M73: YES | N73: 2019-11-20T17:46:46 | O73: =VLOOKUP($K73,SpanRange,4,FALSE) -> 140 | P73: =VLOOKUP($K73,SpanRange,2,FALSE) -> 329.2 | Q73: =VLOOKUP($K73,SpanRange,3,FALSE) -> 2 | R73: =Find_Table(Spans!$I$2,I73) -> 9 | S73: =IF(R73=0,Spans!$C$10,VLOOKUP(P73,INDIRECT("Table"&R73),Q73,TRUE)) -> 31 | T73: No | U73: No
A74: 188 | B74: W12154228N3953865 | C74: 39.53865 | D74: -121.54228 | E74: 77.4 | F74: 65.9 | G74: 49.2 | H74: [DouglasFir, GrayPine, Eucalyptus/BlueGum] | I74: DouglasFir | J74: -9.9 | K74: W12154263N3953924-W12154252N3953857 | L74: Tier 2-3 | M74: YES | N74: 2019-11-20T17:46:46 | O74: =VLOOKUP($K74,SpanRange,4,FALSE) -> 197 | P74: =VLOOKUP($K74,SpanRange,2,FALSE) -> 244.7 | Q74: =VLOOKUP($K74,SpanRange,3,FALSE) -> 2 | R74: =Find_Table(Spans!$I$2,I74) -> 9 | S74: =IF(R74=0,Spans!$C$10,VLOOKUP(P74,INDIRECT("Table"&R74),Q74,TRUE)) -> 26 | T74: No | U74: No
A75: 195 | B75: W12152466N3952941 | C75: 39.52941 | D75: -121.52466 | E75: 74.2 | F75: 41.7 | G75: 25.6 | H75: [DouglasFir, Other, MontereyPine] | I75: DouglasFir | J75: -27.4 | K75: W12152508N3952949-W12152414N3952959 | L75: Tier 2-3 | M75: YES | N75: 2019-11-20T17:46:46 | O75: =VLOOKUP($K75,SpanRange,4,FALSE) -> 114 | P75: =VLOOKUP($K75,SpanRange,2,FALSE) -> 267.5 | Q75: =VLOOKUP($K75,SpanRange,3,FALSE) -> 2 | R75: =Find_Table(Spans!$I$2,I75) -> 9 | S75: =IF(R75=0,Spans!$C$10,VLOOKUP(P75,INDIRECT("Table"&R75),Q75,TRUE)) -> 26 | T75: Yes | U75: No
A76: 196 | B76: W12153884N3953267 | C76: 39.53267 | D76: -121.53884 | E76: 64.6 | F76: 49.8 | G76: 31.9 | H76: [GrayPine, Other, DouglasFir] | I76: GrayPine | J76: -10 | K76: W12153848N3953281-W12153906N3953282 | L76: Tier 2-3 | M76: YES | N76: 2019-11-20T17:46:46 | O76: =VLOOKUP($K76,SpanRange,4,FALSE) -> 183 | P76: =VLOOKUP($K76,SpanRange,2,FALSE) -> 163.8 | Q76: =VLOOKUP($K76,SpanRange,3,FALSE) -> 2 | R76: =Find_Table(Spans!$I$2,I76) -> 10 | S76: =IF(R76=0,Spans!$C$10,VLOOKUP(P76,INDIRECT("Table"&R76),Q76,TRUE)) -> 26 | T76: No | U76: No
A77: 197 | B77: W12153897N3953177 | C77: 39.53177 | D77: -121.53897 | E77: 42.6 | F77: 25.9 | G77: 12 | H77: [CoastalLiveOak, DouglasFir, Other] | I77: CoastalLiveOak | J77: -5.4 | K77: W12153907N3953151-W12153907N3953193 | L77: Tier 2-3 | M77: YES | N77: 2019-11-20T17:46:46 | O77: =VLOOKUP($K77,SpanRange,4,FALSE) -> 163 | P77: =VLOOKUP($K77,SpanRange,2,FALSE) -> 153.2 | Q77: =VLOOKUP($K77,SpanRange,3,FALSE) -> 2 | R77: =Find_Table(Spans!$I$2,I77) -> 11 | S77: =IF(R77=0,Spans!$C$10,VLOOKUP(P77,INDIRECT("Table"&R77),Q77,TRUE)) -> 30 | T77: No | U77: No
A78: 198 | B78: W12153114N3953273 | C78: 39.53273 | D78: -121.53114 | E78: 42.1 | F78: 32.9 | G78: 13 | H78: [Other, DouglasFir, LiveOak] | I78: Other | J78: -1.2 | K78: W12153118N3953282-W12153205N3953285 | L78: Tier 2-3 | M78: YES | N78: 2019-11-20T17:46:46 | O78: =VLOOKUP($K78,SpanRange,4,FALSE) -> 186 | P78: =VLOOKUP($K78,SpanRange,2,FALSE) -> 244.6 | Q78: =VLOOKUP($K78,SpanRange,3,FALSE) -> 2 | R78: =Find_Table(Spans!$I$2,I78) -> 11 | S78: =IF(R78=0,Spans!$C$10,VLOOKUP(P78,INDIRECT("Table"&R78),Q78,TRUE)) -> 30 | T78: No | U78: No
A79: 206 | B79: W12153303N3953087 | C79: 39.53087 | D79: -121.53303 | E79: 81 | F79: 54.4 | G79: 33.2 | H79: [GrayPine, Other, DouglasFir] | I79: GrayPine | J79: -19 | K79: W12153322N3953104-W12153323N3953048 | L79: Tier 2-3 | M79: YES | N79: 2019-11-20T17:46:46 | O79: =VLOOKUP($K79,SpanRange,4,FALSE) -> 142 | P79: =VLOOKUP($K79,SpanRange,2,FALSE) -> 201.2 | Q79: =VLOOKUP($K79,SpanRange,3,FALSE) -> 2 | R79: =Find_Table(Spans!$I$2,I79) -> 10 | S79: =IF(R79=0,Spans!$C$10,VLOOKUP(P79,INDIRECT("Table"&R79),Q79,TRUE)) -> 32 | T79: No | U79: No
A80: 210 | B80: W12154243N3954096 | C80: 39.54096 | D80: -121.54243 | E80: 30.5 | F80: 15.9 | G80: 7.9 | H80: [Eucalyptus/BlueGum, DouglasFir, CoastalLiveOak] | I80: Eucalyptus/BlueGum | J80: -9.4 | K80: W12154258N3954066-W12154249N3954102 | L80: Tier 2-3 | M80: YES | N80: 2019-11-20T17:46:46 | O80: =VLOOKUP($K80,SpanRange,4,FALSE) -> 200 | P80: =VLOOKUP($K80,SpanRange,2,FALSE) -> 133.9 | Q80: =VLOOKUP($K80,SpanRange,3,FALSE) -> 2 | R80: =Find_Table(Spans!$I$2,I80) -> 12 | S80: =IF(R80=0,Spans!$C$10,VLOOKUP(P80,INDIRECT("Table"&R80),Q80,TRUE)) -> 30 | T80: No | U80: No
A81: 220 | B81: W12153952N3953256 | C81: 39.53256 | D81: -121.53952 | E81: 87.6 | F81: 46.3 | G81: 32.1 | H81: [Other, GrayPine, TanOak] | I81: Other | J81: -29.7 | K81: W12153963N3953242-W12153905N3953243 | L81: Tier 2-3 | M81: YES | N81: 2019-11-20T17:46:46 | O81: =VLOOKUP($K81,SpanRange,4,FALSE) -> 175 | P81: =VLOOKUP($K81,SpanRange,2,FALSE) -> 161.3 | Q81: =VLOOKUP($K81,SpanRange,3,FALSE) -> 2 | R81: =Find_Table(Spans!$I$2,I81) -> 11 | S81: =IF(R81=0,Spans!$C$10,VLOOKUP(P81,INDIRECT("Table"&R81),Q81,TRUE)) -> 30 | T81: No | U81: No
A82: 221 | B82: W12153878N3953266 | C82: 39.53266 | D82: -121.53878 | E82: 69.8 | F82: 53.7 | G82: 39.6 | H82: [GrayPine, DouglasFir, Other] | I82: GrayPine | J82: -12 | K82: W12153848N3953281-W12153906N3953282 | L82: Tier 2-3 | M82: YES | N82: 2019-11-20T17:46:46 | O82: =VLOOKUP($K82,SpanRange,4,FALSE) -> 183 | P82: =VLOOKUP($K82,SpanRange,2,FALSE) -> 163.8 | Q82: =VLOOKUP($K82,SpanRange,3,FALSE) -> 2 | R82: =Find_Table(Spans!$I$2,I82) -> 10 | S82: =IF(R82=0,Spans!$C$10,VLOOKUP(P82,INDIRECT("Table"&R82),Q82,TRUE)) -> 26 | T82: No | U82: No
A83: 223 | B83: W12153083N3952720 | C83: 39.5272 | D83: -121.53083 | E83: 65.6 | F83: 28.3 | G83: 12 | H83: [TanOak, MontereyPine, DouglasFir] | I83: TanOak | J83: -23.5 | K83: W12153116N3952725-W12153054N3952731 | L83: Tier 2-3 | M83: YES | N83: 2019-11-20T17:46:46 | O83: =VLOOKUP($K83,SpanRange,4,FALSE) -> 81 | P83: =VLOOKUP($K83,SpanRange,2,FALSE) -> 176.3 | Q83: =VLOOKUP($K83,SpanRange,3,FALSE) -> 2 | R83: =Find_Table(Spans!$I$2,I83) -> 11 | S83: =IF(R83=0,Spans!$C$10,VLOOKUP(P83,INDIRECT("Table"&R83),Q83,TRUE)) -> 30 | T83: No | U83: No
A84: 226 | B84: W12153210N3953218 | C84: 39.53218 | D84: -121.5321 | E84: 28.2 | F84: 9.3 | G84: 6.3 | H84: [DouglasFir, CoastalLiveOak, Other] | I84: DouglasFir | J84: -0.1 | K84: W12153206N3953192-W12153205N3953245 | L84: Tier 2-3 | M84: YES | N84: 2019-11-20T17:46:46 | O84: =VLOOKUP($K84,SpanRange,4,FALSE) -> 168 | P84: =VLOOKUP($K84,SpanRange,2,FALSE) -> 195.5 | Q84: =VLOOKUP($K84,SpanRange,3,FALSE) -> 2 | R84: =Find_Table(Spans!$I$2,I84) -> 9 | S84: =IF(R84=0,Spans!$C$10,VLOOKUP(P84,INDIRECT("Table"&R84),Q84,TRUE)) -> 21 | T84: No | U84: No
A85: 227 | B85: W12153184N3953126 | C85: 39.53126 | D85: -121.53184 | E85: 86.7 | F85: 60.8 | G85: 45.9 | H85: [GrayPine, Other, DouglasFir] | I85: GrayPine | J85: -22.7 | K85: W12153207N3953097-W12153206N3953153 | L85: Tier 2-3 | M85: YES | N85: 2019-11-20T17:46:46 | O85: =VLOOKUP($K85,SpanRange,4,FALSE) -> 148 | P85: =VLOOKUP($K85,SpanRange,2,FALSE) -> 205.3 | Q85: =VLOOKUP($K85,SpanRange,3,FALSE) -> 2 | R85: =Find_Table(Spans!$I$2,I85) -> 10 | S85: =IF(R85=0,Spans!$C$10,VLOOKUP(P85,INDIRECT("Table"&R85),Q85,TRUE)) -> 32 | T85: No | U85: No
A86: 228 | B86: W12154084N3953347 | C86: 39.53347 | D86: -121.54084 | E86: 88.6 | F86: 46.5 | G86: 26 | H86: [DouglasFir, GrayPine, CoastalLiveOak] | I86: DouglasFir | J86: -13.1 | K86: W12154149N3953393-W12154087N3953327 | L86: Tier 2-3 | M86: YES | N86: 2019-11-20T17:46:46 | O86: =VLOOKUP($K86,SpanRange,4,FALSE) -> 188 | P86: =VLOOKUP($K86,SpanRange,2,FALSE) -> 296 | Q86: =VLOOKUP($K86,SpanRange,3,FALSE) -> 2 | R86: =Find_Table(Spans!$I$2,I86) -> 9 | S86: =IF(R86=0,Spans!$C$10,VLOOKUP(P86,INDIRECT("Table"&R86),Q86,TRUE)) -> 26 | T86: No | U86: No
A87: 230 | B87: W12153737N3952427 | C87: 39.52427 | D87: -121.53737 | E87: 43.5 | F87: 15.3 | G87: 6.8 | H87: [Other, CoastalLiveOak, DouglasFir] | I87: Other | J87: -6 | K87: W12153751N3952386-W12153716N3952455 | L87: Tier 2-3 | M87: YES | N87: 2019-11-20T17:46:46 | O87: =VLOOKUP($K87,SpanRange,4,FALSE) -> 42 | P87: =VLOOKUP($K87,SpanRange,2,FALSE) -> 271.1 | Q87: =VLOOKUP($K87,SpanRange,3,FALSE) -> 2 | R87: =Find_Table(Spans!$I$2,I87) -> 11 | S87: =IF(R87=0,Spans!$C$10,VLOOKUP(P87,INDIRECT("Table"&R87),Q87,TRUE)) -> 30 | T87: No | U87: No
A88: 231 | B88: W12153553N3953058 | C88: 39.53058 | D88: -121.53553 | E88: 26.9 | F88: 12.9 | G88: 8.1 | H88: [CoastalLiveOak, DouglasFir, Eucalyptus/BlueGum] | I88: CoastalLiveOak | J88: -2.9 | K88: W12153655N3953063-W12153538N3953063 | L88: Tier 2-3 | M88: YES | N88: 2019-11-20T17:46:46 | O88: =VLOOKUP($K88,SpanRange,4,FALSE) -> 140 | P88: =VLOOKUP($K88,SpanRange,2,FALSE) -> 329.2 | Q88: =VLOOKUP($K88,SpanRange,3,FALSE) -> 2 | R88: =Find_Table(Spans!$I$2,I88) -> 11 | S88: =IF(R88=0,Spans!$C$10,VLOOKUP(P88,INDIRECT("Table"&R88),Q88,TRUE)) -> 30 | T88: No | U88: No
A89: 235 | B89: W12153769N3952591 | C89: 39.52591 | D89: -121.53769 | E89: 78.8 | F89: 35.4 | G89: 9.9 | H89: [Other, DouglasFir, CoastalLiveOak] | I89: Other | J89: -28.5 | K89: W12153767N3952612-W12153742N3952569 | L89: Tier 2-3 | M89: YES | N89: 2019-11-20T17:46:46 | O89: =VLOOKUP($K89,SpanRange,4,FALSE) -> 65 | P89: =VLOOKUP($K89,SpanRange,2,FALSE) -> 172.4 | Q89: =VLOOKUP($K89,SpanRange,3,FALSE) -> 2 | R89: =Find_Table(Spans!$I$2,I89) -> 11 | S89: =IF(R89=0,Spans!$C$10,VLOOKUP(P89,INDIRECT("Table"&R89),Q89,TRUE)) -> 30 | T89: No | U89: No
A90: 239 | B90: W12153233N3953043 | C90: 39.53043 | D90: -121.53233 | E90: 36.1 | F90: 14.9 | G90: 5.1 | H90: [CoastalLiveOak, Eucalyptus/BlueGum, DouglasFir] | I90: CoastalLiveOak | J90: -7.3 | K90: W12153269N3953048-W12153206N3953048 | L90: Tier 2-3 | M90: YES | N90: 2019-11-20T17:46:46 | O90: =VLOOKUP($K90,SpanRange,4,FALSE) -> 133 | P90: =VLOOKUP($K90,SpanRange,2,FALSE) -> 176.5 | Q90: =VLOOKUP($K90,SpanRange,3,FALSE) -> 2 | R90: =Find_Table(Spans!$I$2,I90) -> 11 | S90: =IF(R90=0,Spans!$C$10,VLOOKUP(P90,INDIRECT("Table"&R90),Q90,TRUE)) -> 30 | T90: No | U90: No
A91: 240 | B91: W12153776N3953058 | C91: 39.53058 | D91: -121.53776 | E91: 43.3 | F91: 13.6 | G91: 6.2 | H91: [LiveOak, TanOak, DouglasFir] | I91: LiveOak | J91: -6.3 | K91: W12153843N3953063-W12153771N3953063 | L91: Tier 2-3 | M91: YES | N91: 2019-11-20T17:46:46 | O91: =VLOOKUP($K91,SpanRange,4,FALSE) -> 138 | P91: =VLOOKUP($K91,SpanRange,2,FALSE) -> 203.2 | Q91: =VLOOKUP($K91,SpanRange,3,FALSE) -> 2 | R91: =Find_Table(Spans!$I$2,I91) -> 11 | S91: =IF(R91=0,Spans!$C$10,VLOOKUP(P91,INDIRECT("Table"&R91),Q91,TRUE)) -> 30 | T91: No | U91: No
A92: 248 | B92: W12152361N3952959 | C92: 39.52959 | D92: -121.52361 | E92: 38.1 | F92: 17.3 | G92: 6.3 | H92: [GrayPine, ValleyOak, TanOak] | I92: GrayPine | J92: -1.9 | K92: W12152414N3952959-W12152351N3952966 | L92: Tier 2-3 | M92: YES | N92: 2019-11-20T17:46:46 | O92: =VLOOKUP($K92,SpanRange,4,FALSE) -> 115 | P92: =VLOOKUP($K92,SpanRange,2,FALSE) -> 181.7 | Q92: =VLOOKUP($K92,SpanRange,3,FALSE) -> 2 | R92: =Find_Table(Spans!$I$2,I92) -> 10 | S92: =IF(R92=0,Spans!$C$10,VLOOKUP(P92,INDIRECT("Table"&R92),Q92,TRUE)) -> 26 | T92: No | U92: No
A93: 249 | B93: W12151904N3953102 | C93: 39.53102 | D93: -121.51904 | E93: 39.5 | F93: 15.3 | G93: 8.6 | H93: [GrayPine, ValleyOak, DouglasFir] | I93: GrayPine | J93: -3.8 | K93: W12151923N3953089-W12151868N3953111 | L93: Tier 2-3 | M93: YES | N93: 2019-11-20T17:46:46 | O93: =VLOOKUP($K93,SpanRange,4,FALSE) -> 145 | P93: =VLOOKUP($K93,SpanRange,2,FALSE) -> 177.6 | Q93: =VLOOKUP($K93,SpanRange,3,FALSE) -> 2 | R93: =Find_Table(Spans!$I$2,I93) -> 10 | S93: =IF(R93=0,Spans!$C$10,VLOOKUP(P93,INDIRECT("Table"&R93),Q93,TRUE)) -> 26 | T93: No | U93: No
A94: 251 | B94: W12154242N3953482 | C94: 39.53482 | D94: -121.54242 | E94: 96.8 | F94: 55.8 | G94: 42.8 | H94: [DouglasFir, GrayPine, Other] | I94: DouglasFir | J94: -20.2 | K94: W12154230N3953520-W12154214N3953455 | L94: Tier 2-3 | M94: YES | N94: 2019-11-20T17:46:46 | O94: =VLOOKUP($K94,SpanRange,4,FALSE) -> 191 | P94: =VLOOKUP($K94,SpanRange,2,FALSE) -> 240.6 | Q94: =VLOOKUP($K94,SpanRange,3,FALSE) -> 2 | R94: =Find_Table(Spans!$I$2,I94) -> 9 | S94: =IF(R94=0,Spans!$C$10,VLOOKUP(P94,INDIRECT("Table"&R94),Q94,TRUE)) -> 26 | T94: No | U94: No
A95: 253 | B95: W12152691N3952856 | C95: 39.52856 | D95: -121.52691 | E95: 43.6 | F95: 29.5 | G95: 12 | H95: [GrayPine, MontereyPine, Other] | I95: GrayPine | J95: -0.6 | K95: W12152750N3952825-W12152680N3952875 | L95: Tier 2-3 | M95: YES | N95: 2019-11-20T17:46:46 | O95: =VLOOKUP($K95,SpanRange,4,FALSE) -> 98 | P95: =VLOOKUP($K95,SpanRange,2,FALSE) -> 268.4 | Q95: =VLOOKUP($K95,SpanRange,3,FALSE) -> 2 | R95: =Find_Table(Spans!$I$2,I95) -> 10 | S95: =IF(R95=0,Spans!$C$10,VLOOKUP(P95,INDIRECT("Table"&R95),Q95,TRUE)) -> 32 | T95: No | U95: No
A96: 258 | B96: W12152991N3952967 | C96: 39.52967 | D96: -121.52991 | E96: 48.5 | F96: 16.4 | G96: 6.5 | H96: [DouglasFir, Other, LiveOak] | I96: DouglasFir | J96: -6.9 | K96: W12153068N3952972-W12152988N3952972 | L96: Tier 2-3 | M96: YES | N96: 2019-11-20T17:46:46 | O96: =VLOOKUP($K96,SpanRange,4,FALSE) -> 117 | P96: =VLOOKUP($K96,SpanRange,2,FALSE) -> 225.7 | Q96: =VLOOKUP($K96,SpanRange,3,FALSE) -> 2 | R96: =Find_Table(Spans!$I$2,I96) -> 9 | S96: =IF(R96=0,Spans!$C$10,VLOOKUP(P96,INDIRECT("Table"&R96),Q96,TRUE)) -> 26 | T96: No | U96: No
A97: 261 | B97: W12154167N3953405 | C97: 39.53405 | D97: -121.54167 | E97: 58.6 | F97: 11.4 | G97: 7.2 | H97: [DouglasFir, LiveOak, TanOak] | I97: DouglasFir | J97: -21.4 | K97: W12154179N3953424-W12154149N3953393 | L97: Tier 2-3 | M97: YES | N97: 2019-11-20T17:46:46 | O97: =VLOOKUP($K97,SpanRange,4,FALSE) -> 189 | P97: =VLOOKUP($K97,SpanRange,2,FALSE) -> 142.5 | Q97: =VLOOKUP($K97,SpanRange,3,FALSE) -> 2 | R97: =Find_Table(Spans!$I$2,I97) -> 9 | S97: =IF(R97=0,Spans!$C$10,VLOOKUP(P97,INDIRECT("Table"&R97),Q97,TRUE)) -> 16 | T97: Yes | U97: No
A98: 263 | B98: W12153254N3953043 | C98: 39.53043 | D98: -121.53254 | E98: 35.8 | F98: 15.5 | G98: 6.9 | H98: [CoastalLiveOak, Other, ValleyOak] | I98: CoastalLiveOak | J98: -5 | K98: W12153269N3953048-W12153206N3953048 | L98: Tier 2-3 | M98: YES | N98: 2019-11-20T17:46:46 | O98: =VLOOKUP($K98,SpanRange,4,FALSE) -> 133 | P98: =VLOOKUP($K98,SpanRange,2,FALSE) -> 176.5 | Q98: =VLOOKUP($K98,SpanRange,3,FALSE) -> 2 | R98: =Find_Table(Spans!$I$2,I98) -> 11 | S98: =IF(R98=0,Spans!$C$10,VLOOKUP(P98,INDIRECT("Table"&R98),Q98,TRUE)) -> 30 | T98: No | U98: No
A99: 264 | B99: W12153214N3952892 | C99: 39.52892 | D99: -121.53214 | E99: 51.5 | F99: 19.4 | G99: 6.1 | H99: [GrayPine, DouglasFir, Other] | I99: GrayPine | J99: -17.6 | K99: W12153206N3952972-W12153206N3952881 | L99: Tier 2-3 | M99: YES | N99: 2019-11-20T17:46:46 | O99: =VLOOKUP($K99,SpanRange,4,FALSE) -> 109 | P99: =VLOOKUP($K99,SpanRange,2,FALSE) -> 332.2 | Q99: =VLOOKUP($K99,SpanRange,3,FALSE) -> 2 | R99: =Find_Table(Spans!$I$2,I99) -> 10 | S99: =IF(R99=0,Spans!$C$10,VLOOKUP(P99,INDIRECT("Table"&R99),Q99,TRUE)) -> 36 | T99: No | U99: No
A100: 266 | B100: W12151963N3953035 | C100: 39.53035 | D100: -121.51963 | E100: 97.4 | F100: 48.8 | G100: 32.7 | H100: [GrayPine, Other, DouglasFir] | I100: GrayPine | J100: -42.6 | K100: W12152005N3953021-W12151923N3953089 | L100: Tier 2-3 | M100: YES | N100: 2019-11-20T17:46:46 | O100: =VLOOKUP($K100,SpanRange,4,FALSE) -> 136 | P100: =VLOOKUP($K100,SpanRange,2,FALSE) -> 336.9 | Q100: =VLOOKUP($K100,SpanRange,3,FALSE) -> 2 | R100: =Find_Table(Spans!$I$2,I100) -> 10 | S100: =IF(R100=0,Spans!$C$10,VLOOKUP(P100,INDIRECT("Table"&R100),Q100,TRUE)) -> 36 | T100: Yes | U100: No
A101: 268 | B101: W12152741N3952824 | C101: 39.52824 | D101: -121.52741 | E101: 47.2 | F101: 20.1 | G101: 12 | H101: [GrayPine, Eucalyptus/BlueGum, MontereyPine] | I101: GrayPine | J101: -9.1 | K101: W12152750N3952825-W12152680N3952875 | L101: Tier 2-3 | M101: YES | N101: 2019-11-20T17:46:46 | O101: =VLOOKUP($K101,SpanRange,4,FALSE) -> 98 | P101: =VLOOKUP($K101,SpanRange,2,FALSE) -> 268.4 | Q101: =VLOOKUP($K101,SpanRange,3,FALSE) -> 2 | R101: =Find_Table(Spans!$I$2,I101) -> 10 | S101: =IF(R101=0,Spans!$C$10,VLOOKUP(P101,INDIRECT("Table"&R101),Q101,TRUE)) -> 32 | T101: No | U101: No
A102: 269 | B102: W12154226N3953733 | C102: 39.53733 | D102: -121.54226 | E102: 71.1 | F102: 65.8 | G102: 45.1 | H102: [GrayPine, Eucalyptus/BlueGum, DouglasFir] | I102: GrayPine | J102: -2.3 | K102: W12154250N3953758-W12154253N3953660 | L102: Tier 2-3 | M102: YES | N102: 2019-11-20T17:46:46 | O102: =VLOOKUP($K102,SpanRange,4,FALSE) -> 195 | P102: =VLOOKUP($K102,SpanRange,2,FALSE) -> 355.9 | Q102: =VLOOKUP($K102,SpanRange,3,FALSE) -> 2 | R102: =Find_Table(Spans!$I$2,I102) -> 10 | S102: =IF(R102=0,Spans!$C$10,VLOOKUP(P102,INDIRECT("Table"&R102),Q102,TRUE)) -> 36 | T102: No | U102: No
A103: 273 | B103: W12154098N3953318 | C103: 39.53318 | D103: -121.54098 | E103: 76 | F103: 36.5 | G103: 11.8 | H103: [Other, DouglasFir, LiveOak] | I103: Other | J103: -16 | K103: W12154087N3953327-W12154073N3953285 | L103: Tier 2-3 | M103: YES | N103: 2019-11-20T17:46:46 | O103: =VLOOKUP($K103,SpanRange,4,FALSE) -> 187 | P103: =VLOOKUP($K103,SpanRange,2,FALSE) -> 159.9 | Q103: =VLOOKUP($K103,SpanRange,3,FALSE) -> 2 | R103: =Find_Table(Spans!$I$2,I103) -> 11 | S103: =IF(R103=0,Spans!$C$10,VLOOKUP(P103,INDIRECT("Table"&R103),Q103,TRUE)) -> 30 | T103: No | U103: No
A104: 274 | B104: W12153591N3953057 | C104: 39.53057 | D104: -121.53591 | E104: 37.8 | F104: 18.2 | G104: 5.8 | H104: [CoastalLiveOak, Other, DouglasFir] | I104: CoastalLiveOak | J104: -10.7 | K104: W12153655N3953063-W12153538N3953063 | L104: Tier 2-3 | M104: YES | N104: 2019-11-20T17:46:46 | O104: =VLOOKUP($K104,SpanRange,4,FALSE) -> 140 | P104: =VLOOKUP($K104,SpanRange,2,FALSE) -> 329.2 | Q104: =VLOOKUP($K104,SpanRange,3,FALSE) -> 2 | R104: =Find_Table(Spans!$I$2,I104) -> 11 | S104: =IF(R104=0,Spans!$C$10,VLOOKUP(P104,INDIRECT("Table"&R104),Q104,TRUE)) -> 30 | T104: No | U104: No
A105: 276 | B105: W12152116N3952543 | C105: 39.52543 | D105: -121.52116 | E105: 44.2 | F105: 15.7 | G105: 5.9 | H105: [DouglasFir, Other, GrayPine] | I105: DouglasFir | J105: -8.4 | K105: W12152124N3952614-W12152123N3952539 | L105: Tier 2-3 | M105: YES | N105: 2019-11-20T17:46:46 | O105: =VLOOKUP($K105,SpanRange,4,FALSE) -> 64 | P105: =VLOOKUP($K105,SpanRange,2,FALSE) -> 274.6 | Q105: =VLOOKUP($K105,SpanRange,3,FALSE) -> 2 | R105: =Find_Table(Spans!$I$2,I105) -> 9 | S105: =IF(R105=0,Spans!$C$10,VLOOKUP(P105,INDIRECT("Table"&R105),Q105,TRUE)) -> 26 | T105: No | U105: No
A106: 281 | B106: W12154069N3953138 | C106: 39.53138 | D106: -121.54069 | E106: 51.7 | F106: 36.8 | G106: 17.9 | H106: [DouglasFir, LiveOak, CoastalLiveOak] | I106: DouglasFir | J106: -7.6 | K106: W12154084N3953131-W12154086N3953214 | L106: Tier 2-3 | M106: YES | N106: 2019-11-20T17:46:46 | O106: =VLOOKUP($K106,SpanRange,4,FALSE) -> 162 | P106: =VLOOKUP($K106,SpanRange,2,FALSE) -> 302.6 | Q106: =VLOOKUP($K106,SpanRange,3,FALSE) -> 2 | R106: =Find_Table(Spans!$I$2,I106) -> 9 | S106: =IF(R106=0,Spans!$C$10,VLOOKUP(P106,INDIRECT("Table"&R106),Q106,TRUE)) -> 31 | T106: No | U106: No
A107: 286 | B107: W12151887N3953099 | C107: 39.53099 | D107: -121.51887 | E107: 37.3 | F107: 12.4 | G107: 7.5 | H107: [CoastalLiveOak, DouglasFir, Other] | I107: CoastalLiveOak | J107: -1.1 | K107: W12151923N3953089-W12151868N3953111 | L107: Tier 2-3 | M107: YES | N107: 2019-11-20T17:46:46 | O107: =VLOOKUP($K107,SpanRange,4,FALSE) -> 145 | P107: =VLOOKUP($K107,SpanRange,2,FALSE) -> 177.6 | Q107: =VLOOKUP($K107,SpanRange,3,FALSE) -> 2 | R107: =Find_Table(Spans!$I$2,I107) -> 11 | S107: =IF(R107=0,Spans!$C$10,VLOOKUP(P107,INDIRECT("Table"&R107),Q107,TRUE)) -> 30 | T107: No | U107: No
A108: 291 | B108: W12151875N3952863 | C108: 39.52863 | D108: -121.51875 | E108: 63.8 | F108: 26.9 | G108: 14.3 | H108: [Other, GrayPine, ValleyOak] | I108: Other | J108: -23.6 | K108: W12151852N3952834-W12151873N3952887 | L108: Tier 2-3 | M108: YES | N108: 2019-11-20T17:46:46 | O108: =VLOOKUP($K108,SpanRange,4,FALSE) -> 100 | P108: =VLOOKUP($K108,SpanRange,2,FALSE) -> 200.8 | Q108: =VLOOKUP($K108,SpanRange,3,FALSE) -> 2 | R108: =Find_Table(Spans!$I$2,I108) -> 11 | S108: =IF(R108=0,Spans!$C$10,VLOOKUP(P108,INDIRECT("Table"&R108),Q108,TRUE)) -> 30 | T108: No | U108: No
A109: 298 | B109: W12153846N3953242 | C109: 39.53242 | D109: -121.53846 | E109: 62.4 | F109: 4.6 | G109: 3.8 | H109: [DouglasFir, TanOak, GrayPine] | I109: DouglasFir | J109: -40.3 | K109: W12153810N3953244-W12153905N3953243 | L109: Tier 2-3 | M109: YES | N109: 2019-11-20T17:46:46 | O109: =VLOOKUP($K109,SpanRange,4,FALSE) -> 176 | P109: =VLOOKUP($K109,SpanRange,2,FALSE) -> 270.1 | Q109: =VLOOKUP($K109,SpanRange,3,FALSE) -> 2 | R109: =Find_Table(Spans!$I$2,I109) -> 9 | S109: =IF(R109=0,Spans!$C$10,VLOOKUP(P109,INDIRECT("Table"&R109),Q109,TRUE)) -> 26 | T109: Yes | U109: Yes
A110: 299 | B110: W12152389N3952966 | C110: 39.52966 | D110: -121.52389 | E110: 53.6 | F110: 14 | G110: 10.5 | H110: [Other, DouglasFir, ValleyOak] | I110: Other | J110: -12.3 | K110: W12152414N3952959-W12152351N3952966 | L110: Tier 2-3 | M110: YES | N110: 2019-11-20T17:46:46 | O110: =VLOOKUP($K110,SpanRange,4,FALSE) -> 115 | P110: =VLOOKUP($K110,SpanRange,2,FALSE) -> 181.7 | Q110: =VLOOKUP($K110,SpanRange,3,FALSE) -> 2 | R110: =Find_Table(Spans!$I$2,I110) -> 11 | S110: =IF(R110=0,Spans!$C$10,VLOOKUP(P110,INDIRECT("Table"&R110),Q110,TRUE)) -> 30 | T110: No | U110: No
A111: 300 | B111: W12152030N3952914 | C111: 39.52914 | D111: -121.5203 | E111: 60.7 | F111: 32.5 | G111: 11.1 | H111: [GrayPine, Other, MontereyPine] | I111: GrayPine | J111: -11.5 | K111: W12152053N3952877-W12152014N3952914 | L111: Tier 2-3 | M111: YES | N111: 2019-11-20T17:46:46 | O111: =VLOOKUP($K111,SpanRange,4,FALSE) -> 106 | P111: =VLOOKUP($K111,SpanRange,2,FALSE) -> 171.9 | Q111: =VLOOKUP($K111,SpanRange,3,FALSE) -> 2 | R111: =Find_Table(Spans!$I$2,I111) -> 10 | S111: =IF(R111=0,Spans!$C$10,VLOOKUP(P111,INDIRECT("Table"&R111),Q111,TRUE)) -> 26 | T111: No | U111: No
A112: 301 | B112: W12153540N3952657 | C112: 39.52657 | D112: -121.5354 | E112: 42.4 | F112: 10.6 | G112: 6.4 | H112: [DouglasFir, LiveOak, ValleyOak] | I112: DouglasFir | J112: -8.3 | K112: W12153536N3952706-W12153535N3952637 | L112: Tier 2-3 | M112: YES | N112: 2019-11-20T17:46:46 | O112: =VLOOKUP($K112,SpanRange,4,FALSE) -> 74 | P112: =VLOOKUP($K112,SpanRange,2,FALSE) -> 252.3 | Q112: =VLOOKUP($K112,SpanRange,3,FALSE) -> 2 | R112: =Find_Table(Spans!$I$2,I112) -> 9 | S112: =IF(R112=0,Spans!$C$10,VLOOKUP(P112,INDIRECT("Table"&R112),Q112,TRUE)) -> 26 | T112: No | U112: No
A113: 305 | B113: W12154198N3953433 | C113: 39.53433 | D113: -121.54198 | E113: 55.2 | F113: 16.3 | G113: 6.3 | H113: [DouglasFir, GrayPine, Eucalyptus/BlueGum] | I113: DouglasFir | J113: -18.7 | K113: W12154179N3953424-W12154214N3953455 | L113: Tier 2-3 | M113: YES | N113: 2019-11-20T17:46:46 | O113: =VLOOKUP($K113,SpanRange,4,FALSE) -> 190 | P113: =VLOOKUP($K113,SpanRange,2,FALSE) -> 149.3 | Q113: =VLOOKUP($K113,SpanRange,3,FALSE) -> 2 | R113: =Find_Table(Spans!$I$2,I113) -> 9 | S113: =IF(R113=0,Spans!$C$10,VLOOKUP(P113,INDIRECT("Table"&R113),Q113,TRUE)) -> 16 | T113: Yes | U113: No
A114: 306 | B114: W12154226N3953750 | C114: 39.5375 | D114: -121.54226 | E114: 77.2 | F114: 65.1 | G114: 45.6 | H114: [Eucalyptus/BlueGum, DouglasFir, CoastalLiveOak] | I114: Eucalyptus/BlueGum | J114: -10.6 | K114: W12154250N3953758-W12154253N3953660 | L114: Tier 2-3 | M114: YES | N114: 2019-11-20T17:46:46 | O114: =VLOOKUP($K114,SpanRange,4,FALSE) -> 195 | P114: =VLOOKUP($K114,SpanRange,2,FALSE) -> 355.9 | Q114: =VLOOKUP($K114,SpanRange,3,FALSE) -> 2 | R114: =Find_Table(Spans!$I$2,I114) -> 12 | S114: =IF(R114=0,Spans!$C$10,VLOOKUP(P114,INDIRECT("Table"&R114),Q114,TRUE)) -> 30 | T114: No | U114: No
A115: 311 | B115: W12153040N3952823 | C115: 39.52823 | D115: -121.5304 | E115: 59.2 | F115: 35.7 | G115: 9.3 | H115: [GrayPine, Other, ValleyOak] | I115: GrayPine | J115: -4.5 | K115: W12153054N3952815-W12153053N3952876 | L115: Tier 2-3 | M115: YES | N115: 2019-11-20T17:46:46 | O115: =VLOOKUP($K115,SpanRange,4,FALSE) -> 97 | P115: =VLOOKUP($K115,SpanRange,2,FALSE) -> 221.2 | Q115: =VLOOKUP($K115,SpanRange,3,FALSE) -> 2 | R115: =Find_Table(Spans!$I$2,I115) -> 10 | S115: =IF(R115=0,Spans!$C$10,VLOOKUP(P115,INDIRECT("Table"&R115),Q115,TRUE)) -> 32 | T115: No | U115: No
A116: 315 | B116: W12154247N3954019 | C116: 39.54019 | D116: -121.54247 | E116: 54.7 | F116: 32.2 | G116: 12.4 | H116: [DouglasFir, GrayPine, Other] | I116: DouglasFir | J116: -21.7 | K116: W12154261N3953987-W12154258N3954066 | L116: Tier 2-3 | M116: YES | N116: 2019-11-20T17:46:46 | O116: =VLOOKUP($K116,SpanRange,4,FALSE) -> 199 | P116: =VLOOKUP($K116,SpanRange,2,FALSE) -> 286.7 | Q116: =VLOOKUP($K116,SpanRange,3,FALSE) -> 2 | R116: =Find_Table(Spans!$I$2,I116) -> 9 | S116: =IF(R116=0,Spans!$C$10,VLOOKUP(P116,INDIRECT("Table"&R116),Q116,TRUE)) -> 26 | T116: No | U116: No
A117: 319 | B117: W12152935N3952717 | C117: 39.52717 | D117: -121.52935 | E117: 39.8 | F117: 13.7 | G117: 6.5 | H117: [DouglasFir, Other, GrayPine] | I117: DouglasFir | J117: -5.4 | K117: W12152971N3952716-W12152907N3952726 | L117: Tier 2-3 | M117: YES | N117: 2019-11-20T17:46:46 | O117: =VLOOKUP($K117,SpanRange,4,FALSE) -> 79 | P117: =VLOOKUP($K117,SpanRange,2,FALSE) -> 184.9 | Q117: =VLOOKUP($K117,SpanRange,3,FALSE) -> 2 | R117: =Find_Table(Spans!$I$2,I117) -> 9 | S117: =IF(R117=0,Spans!$C$10,VLOOKUP(P117,INDIRECT("Table"&R117),Q117,TRUE)) -> 21 | T117: No | U117: No
A118: 320 | B118: W12153417N3953166 | C118: 39.53166 | D118: -121.53417 | E118: 69.6 | F118: 22.2 | G118: 12 | H118: [DouglasFir, GrayPine, Other] | I118: DouglasFir | J118: -27.1 | K118: W12153419N3953235-W12153419N3953172 | L118: Tier 2-3 | M118: YES | N118: 2019-11-20T17:46:46 | O118: =VLOOKUP($K118,SpanRange,4,FALSE) -> 166 | P118: =VLOOKUP($K118,SpanRange,2,FALSE) -> 228.3 | Q118: =VLOOKUP($K118,SpanRange,3,FALSE) -> 2 | R118: =Find_Table(Spans!$I$2,I118) -> 9 | S118: =IF(R118=0,Spans!$C$10,VLOOKUP(P118,INDIRECT("Table"&R118),Q118,TRUE)) -> 26 | T118: Yes | U118: No
A119: 321 | B119: W12153910N3953287 | C119: 39.53287 | D119: -121.5391 | E119: 37.1 | F119: 16.7 | G119: 6.7 | H119: [CoastalLiveOak, DouglasFir, Other] | I119: CoastalLiveOak | J119: -1 | K119: W12153944N3953282-W12153906N3953282 | L119: Tier 2-3 | M119: YES | N119: 2019-11-20T17:46:46 | O119: =VLOOKUP($K119,SpanRange,4,FALSE) -> 184 | P119: =VLOOKUP($K119,SpanRange,2,FALSE) -> 108.2 | Q119: =VLOOKUP($K119,SpanRange,3,FALSE) -> 2 | R119: =Find_Table(Spans!$I$2,I119) -> 11 | S119: =IF(R119=0,Spans!$C$10,VLOOKUP(P119,INDIRECT("Table"&R119),Q119,TRUE)) -> 30 | T119: No | U119: No
A120: 322 | B120: W12154225N3953817 | C120: 39.53817 | D120: -121.54225 | E120: 93 | F120: 69.3 | G120: 52.6 | J120: -22.6 | K120: W12154250N3953758-W12154252N3953857 | L120: Tier 2-3 | M120: YES | N120: 2019-11-20T17:46:46 | O120: =VLOOKUP($K120,SpanRange,4,FALSE) -> 196 | P120: =VLOOKUP($K120,SpanRange,2,FALSE) -> 362 | Q120: =VLOOKUP($K120,SpanRange,3,FALSE) -> 2 | R120: =Find_Table(Spans!$I$2,I120) -> 11 | S120: =IF(R120=0,Spans!$C$10,VLOOKUP(P120,INDIRECT("Table"&R120),Q120,TRUE)) -> 30 | T120: No | U120: No
A121: 323 | B121: W12151769N3953156 | C121: 39.53156 | D121: -121.51769 | E121: 59.8 | F121: 15.3 | G121: 9.3 | H121: [CoastalLiveOak, Other, Eucalyptus/BlueGum] | I121: CoastalLiveOak | J121: -20.7 | K121: W12151765N3953162-W12151822N3953157 | L121: Tier 2-3 | M121: YES | N121: 2019-11-20T17:46:46 | O121: =VLOOKUP($K121,SpanRange,4,FALSE) -> 160 | P121: =VLOOKUP($K121,SpanRange,2,FALSE) -> 161.3 | Q121: =VLOOKUP($K121,SpanRange,3,FALSE) -> 2 | R121: =Find_Table(Spans!$I$2,I121) -> 11 | S121: =IF(R121=0,Spans!$C$10,VLOOKUP(P121,INDIRECT("Table"&R121),Q121,TRUE)) -> 30 | T121: No | U121: No
A122: 324 | B122: W12153200N3953059 | C122: 39.53059 | D122: -121.532 | E122: 34.7 | F122: 14.6 | G122: 7.1 | H122: [CoastalLiveOak, DouglasFir, Eucalyptus/BlueGum] | I122: CoastalLiveOak | J122: -0.1 | K122: W12153207N3953097-W12153206N3953048 | L122: Tier 2-3 | M122: YES | N122: 2019-11-20T17:46:46 | O122: =VLOOKUP($K122,SpanRange,4,FALSE) -> 141 | P122: =VLOOKUP($K122,SpanRange,2,FALSE) -> 177.2 | Q122: =VLOOKUP($K122,SpanRange,3,FALSE) -> 2 | R122: =Find_Table(Spans!$I$2,I122) -> 11 | S122: =IF(R122=0,Spans!$C$10,VLOOKUP(P122,INDIRECT("Table"&R122),Q122,TRUE)) -> 30 | T122: No | U122: No
A123: 328 | B123: W12154079N3953178 | C123: 39.53178 | D123: -121.54079 | E123: 63.2 | F123: 14.4 | G123: 8.5 | H123: [DouglasFir, GrayPine, CoastalLiveOak] | I123: DouglasFir | J123: -35.1 | K123: W12154084N3953131-W12154086N3953214 | L123: Tier 2-3 | M123: YES | N123: 2019-11-20T17:46:46 | O123: =VLOOKUP($K123,SpanRange,4,FALSE) -> 162 | P123: =VLOOKUP($K123,SpanRange,2,FALSE) -> 302.6 | Q123: =VLOOKUP($K123,SpanRange,3,FALSE) -> 2 | R123: =Find_Table(Spans!$I$2,I123) -> 9 | S123: =IF(R123=0,Spans!$C$10,VLOOKUP(P123,INDIRECT("Table"&R123),Q123,TRUE)) -> 31 | T123: Yes | U123: No
A124: 333 | B124: W12152042N3953024 | C124: 39.53024 | D124: -121.52042 | E124: 38.3 | F124: 16.8 | G124: 7.6 | H124: [DouglasFir, Eucalyptus/BlueGum, CoastalLiveOak] | I124: DouglasFir | J124: -0.6 | K124: W12152005N3953021-W12152091N3953014 | L124: Tier 2-3 | M124: YES | N124: 2019-11-20T17:46:46 | O124: =VLOOKUP($K124,SpanRange,4,FALSE) -> 127 | P124: =VLOOKUP($K124,SpanRange,2,FALSE) -> 241.7 | Q124: =VLOOKUP($K124,SpanRange,3,FALSE) -> 2 | R124: =Find_Table(Spans!$I$2,I124) -> 9 | S124: =IF(R124=0,Spans!$C$10,VLOOKUP(P124,INDIRECT("Table"&R124),Q124,TRUE)) -> 26 | T124: No | U124: No
A125: 337 | B125: W12154240N3953863 | C125: 39.53863 | D125: -121.5424 | E125: 97 | F125: 32.5 | G125: 14.1 | H125: [GrayPine, DouglasFir, Eucalyptus/BlueGum] | I125: GrayPine | J125: -64.3 | K125: W12154263N3953924-W12154252N3953857 | L125: Tier 2-3 | M125: YES | N125: 2019-11-20T17:46:46 | O125: =VLOOKUP($K125,SpanRange,4,FALSE) -> 197 | P125: =VLOOKUP($K125,SpanRange,2,FALSE) -> 244.7 | Q125: =VLOOKUP($K125,SpanRange,3,FALSE) -> 2 | R125: =Find_Table(Spans!$I$2,I125) -> 10 | S125: =IF(R125=0,Spans!$C$10,VLOOKUP(P125,INDIRECT("Table"&R125),Q125,TRUE)) -> 32 | T125: Yes | U125: No
A126: 340 | B126: W12153292N3953038 | C126: 39.53038 | D126: -121.53292 | E126: 80.8 | F126: 35.2 | G126: 6.9 | H126: [GrayPine, DouglasFir, LiveOak] | I126: GrayPine | J126: -33.7 | K126: W12153269N3953048-W12153323N3953048 | L126: Tier 2-3 | M126: YES | N126: 2019-11-20T17:46:46 | O126: =VLOOKUP($K126,SpanRange,4,FALSE) -> 132 | P126: =VLOOKUP($K126,SpanRange,2,FALSE) -> 153.8 | Q126: =VLOOKUP($K126,SpanRange,3,FALSE) -> 2 | R126: =Find_Table(Spans!$I$2,I126) -> 10 | S126: =IF(R126=0,Spans!$C$10,VLOOKUP(P126,INDIRECT("Table"&R126),Q126,TRUE)) -> 26 | T126: Yes | U126: No
A127: 342 | B127: W12154239N3953807 | C127: 39.53807 | D127: -121.54239 | E127: 94.2 | F127: 28.7 | G127: 9.8 | H127: [CoastalLiveOak, Other, DouglasFir] | I127: CoastalLiveOak | J127: -65.4 | K127: W12154250N3953758-W12154252N3953857 | L127: Tier 2-3 | M127: YES | N127: 2019-11-20T17:46:46 | O127: =VLOOKUP($K127,SpanRange,4,FALSE) -> 196 | P127: =VLOOKUP($K127,SpanRange,2,FALSE) -> 362 | Q127: =VLOOKUP($K127,SpanRange,3,FALSE) -> 2 | R127: =Find_Table(Spans!$I$2,I127) -> 11 | S127: =IF(R127=0,Spans!$C$10,VLOOKUP(P127,INDIRECT("Table"&R127),Q127,TRUE)) -> 30 | T127: Yes | U127: No
A128: 348 | B128: W12153711N3952440 | C128: 39.5244 | D128: -121.53711 | E128: 57.3 | F128: 34 | G128: 8.6 | H128: [GrayPine, DouglasFir, Other] | I128: GrayPine | J128: -15.8 | K128: W12153751N3952386-W12153716N3952455 | L128: Tier 2-3 | M128: YES | N128: 2019-11-20T17:46:46 | O128: =VLOOKUP($K128,SpanRange,4,FALSE) -> 42 | P128: =VLOOKUP($K128,SpanRange,2,FALSE) -> 271.1 | Q128: =VLOOKUP($K128,SpanRange,3,FALSE) -> 2 | R128: =Find_Table(Spans!$I$2,I128) -> 10 | S128: =IF(R128=0,Spans!$C$10,VLOOKUP(P128,INDIRECT("Table"&R128),Q128,TRUE)) -> 32 | T128: No | U128: No
A129: 354 | B129: W12151442N3952662 | C129: 39.52662 | D129: -121.51442 | E129: 38.8 | F129: 19 | G129: 6.1 | H129: [DouglasFir, Other, GrayPine] | I129: DouglasFir | J129: -2.6 | K129: W12151433N3952690-W12151463N3952642 | L129: Tier 2-3 | M129: YES | N129: 2019-11-20T17:46:46 | O129: =VLOOKUP($K129,SpanRange,4,FALSE) -> 73 | P129: =VLOOKUP($K129,SpanRange,2,FALSE) -> 191.5 | Q129: =VLOOKUP($K129,SpanRange,3,FALSE) -> 2 | R129: =Find_Table(Spans!$I$2,I129) -> 9 | S129: =IF(R129=0,Spans!$C$10,VLOOKUP(P129,INDIRECT("Table"&R129),Q129,TRUE)) -> 21 | T129: No | U129: No
A130: 356 | B130: W12150673N3965477 | C130: 39.65477 | D130: -121.50673 | E130: 74.8 | F130: 35 | G130: 28.9 | J130: -17.3 | K130: W12150660N3965474-W12150643N3965533 | L130: Tier 2-3 | M130: YES | N130: 2019-11-20T17:46:46 | O130: =VLOOKUP($K130,SpanRange,4,FALSE) -> 206 | P130: =VLOOKUP($K130,SpanRange,2,FALSE) -> 217.9 | Q130: =VLOOKUP($K130,SpanRange,3,FALSE) -> 2 | R130: =Find_Table(Spans!$I$2,I130) -> 11 | S130: =IF(R130=0,Spans!$C$10,VLOOKUP(P130,INDIRECT("Table"&R130),Q130,TRUE)) -> 30 | T130: No | U130: No
A131: 360 | B131: W12153424N3952893 | C131: 39.52893 | D131: -121.53424 | E131: 90.8 | F131: 39.3 | G131: 25 | H131: [GrayPine, Other, DouglasFir] | I131: GrayPine | J131: -34.7 | K131: W12153537N3952882-W12153422N3952882 | L131: Tier 2-3 | M131: YES | N131: 2019-11-20T17:46:46 | O131: =VLOOKUP($K131,SpanRange,4,FALSE) -> 102 | P131: =VLOOKUP($K131,SpanRange,2,FALSE) -> 324.4 | Q131: =VLOOKUP($K131,SpanRange,3,FALSE) -> 2 | R131: =Find_Table(Spans!$I$2,I131) -> 10 | S131: =IF(R131=0,Spans!$C$10,VLOOKUP(P131,INDIRECT("Table"&R131),Q131,TRUE)) -> 36 | T131: No | U131: No
A132: 364 | B132: W12153268N3952612 | C132: 39.52612 | D132: -121.53268 | E132: 72.9 | F132: 51.1 | G132: 43.2 | H132: [DouglasFir, GrayPine, Eucalyptus/BlueGum] | I132: DouglasFir | J132: -17.5 | K132: W12153295N3952615-W12153224N3952655 | L132: Tier 2-3 | M132: YES | N132: 2019-11-20T17:46:46 | O132: =VLOOKUP($K132,SpanRange,4,FALSE) -> 71 | P132: =VLOOKUP($K132,SpanRange,2,FALSE) -> 249.1 | Q132: =VLOOKUP($K132,SpanRange,3,FALSE) -> 2 | R132: =Find_Table(Spans!$I$2,I132) -> 9 | S132: =IF(R132=0,Spans!$C$10,VLOOKUP(P132,INDIRECT("Table"&R132),Q132,TRUE)) -> 26 | T132: =IFERROR(IF((-1)*J132>S132,"Yes","No"),"No Match") -> No | U132: =IF(F132<=6,"Yes","No") -> No
A133: 369 | B133: W12153289N3953053 | C133: 39.53053 | D133: -121.53289 | E133: 53.2 | F133: 13.8 | G133: 6.6 | H133: [DouglasFir, LiveOak, GrayPine] | I133: DouglasFir | J133: -16.4 | K133: W12153269N3953048-W12153323N3953048 | L133: Tier 2-3 | M133: YES | N133: 2019-11-20T17:46:46 | O133: =VLOOKUP($K133,SpanRange,4,FALSE) -> 132 | P133: =VLOOKUP($K133,SpanRange,2,FALSE) -> 153.8 | Q133: =VLOOKUP($K133,SpanRange,3,FALSE) -> 2 | R133: =Find_Table(Spans!$I$2,I133) -> 9 | S133: =IF(R133=0,Spans!$C$10,VLOOKUP(P133,INDIRECT("Table"&R133),Q133,TRUE)) -> 21 | T133: No | U133: No
A134: 371 | B134: W12154097N3953195 | C134: 39.53195 | D134: -121.54097 | E134: 55.8 | F134: 29.6 | G134: 22.8 | H134: [DouglasFir, Other, MontereyPine] | I134: DouglasFir | J134: -9.3 | K134: W12154084N3953131-W12154086N3953214 | L134: Tier 2-3 | M134: YES | N134: 2019-11-20T17:46:46 | O134: =VLOOKUP($K134,SpanRange,4,FALSE) -> 162 | P134: =VLOOKUP($K134,SpanRange,2,FALSE) -> 302.6 | Q134: =VLOOKUP($K134,SpanRange,3,FALSE) -> 2 | R134: =Find_Table(Spans!$I$2,I134) -> 9 | S134: =IF(R134=0,Spans!$C$10,VLOOKUP(P134,INDIRECT("Table"&R134),Q134,TRUE)) -> 31 | T134: No | U134: No
A135: 373 | B135: W12154072N3953235 | C135: 39.53235 | D135: -121.54072 | E135: 46 | F135: 25.1 | G135: 11.2 | H135: [DouglasFir, GrayPine, ValleyOak] | I135: DouglasFir | J135: -5.7 | K135: W12154086N3953214-W12154073N3953285 | L135: Tier 2-3 | M135: YES | N135: 2019-11-20T17:46:46 | O135: =VLOOKUP($K135,SpanRange,4,FALSE) -> 177 | P135: =VLOOKUP($K135,SpanRange,2,FALSE) -> 261 | Q135: =VLOOKUP($K135,SpanRange,3,FALSE) -> 2 | R135: =Find_Table(Spans!$I$2,I135) -> 9 | S135: =IF(R135=0,Spans!$C$10,VLOOKUP(P135,INDIRECT("Table"&R135),Q135,TRUE)) -> 26 | T135: No | U135: No
A136: 374 | B136: W12153304N3953082 | C136: 39.53082 | D136: -121.53304 | E136: 62.9 | F136: 50.5 | G136: 31.8 | H136: [GrayPine, Other, DouglasFir] | I136: GrayPine | J136: -4.7 | K136: W12153322N3953104-W12153323N3953048 | L136: Tier 2-3 | M136: YES | N136: 2019-11-20T17:46:46 | O136: =VLOOKUP($K136,SpanRange,4,FALSE) -> 142 | P136: =VLOOKUP($K136,SpanRange,2,FALSE) -> 201.2 | Q136: =VLOOKUP($K136,SpanRange,3,FALSE) -> 2 | R136: =Find_Table(Spans!$I$2,I136) -> 10 | S136: =IF(R136=0,Spans!$C$10,VLOOKUP(P136,INDIRECT("Table"&R136),Q136,TRUE)) -> 32 | T136: No | U136: No
A137: 376 | B137: W12151944N3952917 | C137: 39.52917 | D137: -121.51944 | E137: 60.7 | F137: 25.4 | G137: 8.5 | H137: [GrayPine, DouglasFir, ValleyOak] | I137: GrayPine | J137: -23.3 | K137: W12152014N3952914-W12151936N3952926 | L137: Tier 2-3 | M137: YES | N137: 2019-11-20T17:46:46 | O137: =VLOOKUP($K137,SpanRange,4,FALSE) -> 108 | P137: =VLOOKUP($K137,SpanRange,2,FALSE) -> 225.1 | Q137: =VLOOKUP($K137,SpanRange,3,FALSE) -> 2 | R137: =Find_Table(Spans!$I$2,I137) -> 10 | S137: =IF(R137=0,Spans!$C$10,VLOOKUP(P137,INDIRECT("Table"&R137),Q137,TRUE)) -> 32 | T137: No | U137: No
A138: 377 | B138: W12153133N3953043 | C138: 39.53043 | D138: -121.53133 | E138: 42.9 | F138: 15.2 | G138: 3.9 | H138: [CoastalLiveOak, Other, Eucalyptus/BlueGum] | I138: CoastalLiveOak | J138: -8.7 | K138: W12153157N3953048-W12153111N3953048 | L138: Tier 2-3 | M138: YES | N138: 2019-11-20T17:46:46 | O138: =VLOOKUP($K138,SpanRange,4,FALSE) -> 135 | P138: =VLOOKUP($K138,SpanRange,2,FALSE) -> 128.8 | Q138: =VLOOKUP($K138,SpanRange,3,FALSE) -> 2 | R138: =Find_Table(Spans!$I$2,I138) -> 11 | S138: =IF(R138=0,Spans!$C$10,VLOOKUP(P138,INDIRECT("Table"&R138),Q138,TRUE)) -> 30 | T138: No | U138: No
A139: 379 | B139: W12153833N3953258 | C139: 39.53258 | D139: -121.53833 | E139: 69.2 | F139: 49.6 | G139: 34.5 | H139: [Other, GrayPine, DouglasFir] | I139: Other | J139: -8 | K139: W12153810N3953244-W12153905N3953243 | L139: Tier 2-3 | M139: YES | N139: 2019-11-20T17:46:46 | O139: =VLOOKUP($K139,SpanRange,4,FALSE) -> 176 | P139: =VLOOKUP($K139,SpanRange,2,FALSE) -> 270.1 | Q139: =VLOOKUP($K139,SpanRange,3,FALSE) -> 2 | R139: =Find_Table(Spans!$I$2,I139) -> 11 | S139: =IF(R139=0,Spans!$C$10,VLOOKUP(P139,INDIRECT("Table"&R139),Q139,TRUE)) -> 30 | T139: No | U139: No
A140: 380 | B140: W12154249N3953966 | C140: 39.53966 | D140: -121.54249 | E140: 74.9 | F140: 30.9 | G140: 17.2 | H140: [DouglasFir, GrayPine, Other] | I140: DouglasFir | J140: -43.7 | K140: W12154263N3953924-W12154261N3953987 | L140: Tier 2-3 | M140: YES | N140: 2019-11-20T17:46:46 | O140: =VLOOKUP($K140,SpanRange,4,FALSE) -> 198 | P140: =VLOOKUP($K140,SpanRange,2,FALSE) -> 231 | Q140: =VLOOKUP($K140,SpanRange,3,FALSE) -> 2 | R140: =Find_Table(Spans!$I$2,I140) -> 9 | S140: =IF(R140=0,Spans!$C$10,VLOOKUP(P140,INDIRECT("Table"&R140),Q140,TRUE)) -> 26 | T140: Yes | U140: No
A141: 381 | B141: W12151892N3952882 | C141: 39.52882 | D141: -121.51892 | E141: 57 | F141: 27.3 | G141: 12 | H141: [GrayPine, MontereyPine, DouglasFir] | I141: GrayPine | J141: -17 | K141: W12151873N3952887-W12151911N3952893 | L141: Tier 2-3 | M141: YES | N141: 2019-11-20T17:46:46 | O141: =VLOOKUP($K141,SpanRange,4,FALSE) -> 104 | P141: =VLOOKUP($K141,SpanRange,2,FALSE) -> 108.3 | Q141: =VLOOKUP($K141,SpanRange,3,FALSE) -> 2 | R141: =Find_Table(Spans!$I$2,I141) -> 10 | S141: =IF(R141=0,Spans!$C$10,VLOOKUP(P141,INDIRECT("Table"&R141),Q141,TRUE)) -> 21 | T141: No | U141: No
A142: 382 | B142: W12152099N3952996 | C142: 39.52996 | D142: -121.52099 | E142: 47 | F142: 20.1 | G142: 12.5 | H142: [GrayPine, ValleyOak, Other] | I142: GrayPine | J142: -14.7 | K142: W12152091N3953014-W12152091N3952965 | L142: Tier 2-3 | M142: YES | N142: 2019-11-20T17:46:46 | O142: =VLOOKUP($K142,SpanRange,4,FALSE) -> 123 | P142: =VLOOKUP($K142,SpanRange,2,FALSE) -> 178.3 | Q142: =VLOOKUP($K142,SpanRange,3,FALSE) -> 2 | R142: =Find_Table(Spans!$I$2,I142) -> 10 | S142: =IF(R142=0,Spans!$C$10,VLOOKUP(P142,INDIRECT("Table"&R142),Q142,TRUE)) -> 26 | T142: No | U142: No
A143: 385 | B143: W12153848N3953247 | C143: 39.53247 | D143: -121.53848 | E143: 70.7 | F143: 11.1 | G143: 6.5 | H143: [DouglasFir, GrayPine, TanOak] | I143: DouglasFir | J143: -40.8 | K143: W12153810N3953244-W12153905N3953243 | L143: Tier 2-3 | M143: YES | N143: 2019-11-20T17:46:46 | O143: =VLOOKUP($K143,SpanRange,4,FALSE) -> 176 | P143: =VLOOKUP($K143,SpanRange,2,FALSE) -> 270.1 | Q143: =VLOOKUP($K143,SpanRange,3,FALSE) -> 2 | R143: =Find_Table(Spans!$I$2,I143) -> 9 | S143: =IF(R143=0,Spans!$C$10,VLOOKUP(P143,INDIRECT("Table"&R143),Q143,TRUE)) -> 26 | T143: Yes | U143: No
A144: 392 | B144: W12153830N3953281 | C144: 39.53281 | D144: -121.5383 | E144: 82.7 | F144: 48.2 | G144: 30 | H144: [DouglasFir, GrayPine, TanOak] | I144: DouglasFir | J144: -26.4 | K144: W12153848N3953281-W12153906N3953282 | L144: Tier 2-3 | M144: YES | N144: 2019-11-20T17:46:46 | O144: =VLOOKUP($K144,SpanRange,4,FALSE) -> 183 | P144: =VLOOKUP($K144,SpanRange,2,FALSE) -> 163.8 | Q144: =VLOOKUP($K144,SpanRange,3,FALSE) -> 2 | R144: =Find_Table(Spans!$I$2,I144) -> 9 | S144: =IF(R144=0,Spans!$C$10,VLOOKUP(P144,INDIRECT("Table"&R144),Q144,TRUE)) -> 21 | T144: Yes | U144: No
A145: 393 | B145: W12153201N3953171 | C145: 39.53171 | D145: -121.53201 | E145: 38.5 | F145: 11.6 | G145: 6.4 | H145: [GrayPine, MontereyPine, DouglasFir] | I145: GrayPine | J145: -6 | K145: W12153206N3953192-W12153206N3953153 | L145: Tier 2-3 | M145: YES | N145: 2019-11-20T17:46:46 | O145: =VLOOKUP($K145,SpanRange,4,FALSE) -> 164 | P145: =VLOOKUP($K145,SpanRange,2,FALSE) -> 140.6 | Q145: =VLOOKUP($K145,SpanRange,3,FALSE) -> 2 | R145: =Find_Table(Spans!$I$2,I145) -> 10 | S145: =IF(R145=0,Spans!$C$10,VLOOKUP(P145,INDIRECT("Table"&R145),Q145,TRUE)) -> 21 | T145: No | U145: No
A146: 396 | B146: W12154069N3953193 | C146: 39.53193 | D146: -121.54069 | E146: 68.2 | F146: 43.5 | G146: 11.3 | H146: [GrayPine, Eucalyptus/BlueGum, DouglasFir] | I146: GrayPine | J146: -19.9 | K146: W12154084N3953131-W12154086N3953214 | L146: Tier 2-3 | M146: YES | N146: 2019-11-20T17:46:46 | O146: =VLOOKUP($K146,SpanRange,4,FALSE) -> 162 | P146: =VLOOKUP($K146,SpanRange,2,FALSE) -> 302.6 | Q146: =VLOOKUP($K146,SpanRange,3,FALSE) -> 2 | R146: =Find_Table(Spans!$I$2,I146) -> 10 | S146: =IF(R146=0,Spans!$C$10,VLOOKUP(P146,INDIRECT("Table"&R146),Q146,TRUE)) -> 36 | T146: No | U146: No
A147: 397 | B147: W12153464N3953242 | C147: 39.53242 | D147: -121.53464 | E147: 44.2 | F147: 32.2 | G147: 5.3 | H147: [MontereyPine, CoastalLiveOak, DouglasFir] | I147: MontereyPine | J147: -6.8 | K147: W12153419N3953235-W12153557N3953230 | L147: Tier 2-3 | M147: YES | N147: 2019-11-20T17:46:46 | O147: =VLOOKUP($K147,SpanRange,4,FALSE) -> 172 | P147: =VLOOKUP($K147,SpanRange,2,FALSE) -> 388.6 | Q147: =VLOOKUP($K147,SpanRange,3,FALSE) -> 2 | R147: =Find_Table(Spans!$I$2,I147) -> 10 | S147: =IF(R147=0,Spans!$C$10,VLOOKUP(P147,INDIRECT("Table"&R147),Q147,TRUE)) -> 36 | T147: No | U147: No
A148: 403 | B148: W12154166N3953400 | C148: 39.534 | D148: -121.54166 | E148: 62.3 | F148: 20.7 | G148: 9.1 | H148: [DouglasFir, LiveOak, Other] | I148: DouglasFir | J148: -20.1 | K148: W12154179N3953424-W12154149N3953393 | L148: Tier 2-3 | M148: YES | N148: 2019-11-20T17:46:46 | O148: =VLOOKUP($K148,SpanRange,4,FALSE) -> 189 | P148: =VLOOKUP($K148,SpanRange,2,FALSE) -> 142.5 | Q148: =VLOOKUP($K148,SpanRange,3,FALSE) -> 2 | R148: =Find_Table(Spans!$I$2,I148) -> 9 | S148: =IF(R148=0,Spans!$C$10,VLOOKUP(P148,INDIRECT("Table"&R148),Q148,TRUE)) -> 16 | T148: Yes | U148: No
A149: 410 | B149: W12151935N3952954 | C149: 39.52954 | D149: -121.51935 | E149: 67.3 | F149: 47.4 | G149: 28.4 | H149: [GrayPine, Other, DouglasFir] | I149: GrayPine | J149: -13.6 | K149: W12152005N3953021-W12151936N3952926 | L149: Tier 2-3 | M149: YES | N149: 2019-11-20T17:46:46 | O149: =VLOOKUP($K149,SpanRange,4,FALSE) -> 121 | P149: =VLOOKUP($K149,SpanRange,2,FALSE) -> 398 | Q149: =VLOOKUP($K149,SpanRange,3,FALSE) -> 2 | R149: =Find_Table(Spans!$I$2,I149) -> 10 | S149: =IF(R149=0,Spans!$C$10,VLOOKUP(P149,INDIRECT("Table"&R149),Q149,TRUE)) -> 36 | T149: No | U149: No
A150: 411 | B150: W12152129N3952558 | C150: 39.52558 | D150: -121.52129 | E150: 34 | F150: 14.1 | G150: 4.7 | H150: [DouglasFir, Other, LiveOak] | I150: DouglasFir | J150: -4.2 | K150: W12152124N3952614-W12152123N3952539 | L150: Tier 2-3 | M150: YES | N150: 2019-11-20T17:46:46 | O150: =VLOOKUP($K150,SpanRange,4,FALSE) -> 64 | P150: =VLOOKUP($K150,SpanRange,2,FALSE) -> 274.6 | Q150: =VLOOKUP($K150,SpanRange,3,FALSE) -> 2 | R150: =Find_Table(Spans!$I$2,I150) -> 9 | S150: =IF(R150=0,Spans!$C$10,VLOOKUP(P150,INDIRECT("Table"&R150),Q150,TRUE)) -> 26 | T150: No | U150: No
A151: 414 | B151: W12154064N3953269 | C151: 39.53269 | D151: -121.54064 | E151: 43.9 | F151: 27.4 | G151: 12 | H151: [GrayPine, MontereyPine, DouglasFir] | I151: GrayPine | J151: -1.6 | K151: W12154086N3953214-W12154073N3953285 | L151: Tier 2-3 | M151: YES | N151: 2019-11-20T17:46:46 | O151: =VLOOKUP($K151,SpanRange,4,FALSE) -> 177 | P151: =VLOOKUP($K151,SpanRange,2,FALSE) -> 261 | Q151: =VLOOKUP($K151,SpanRange,3,FALSE) -> 2 | R151: =Find_Table(Spans!$I$2,I151) -> 10 | S151: =IF(R151=0,Spans!$C$10,VLOOKUP(P151,INDIRECT("Table"&R151),Q151,TRUE)) -> 32 | T151: No | U151: No
A152: 415 | B152: W12153798N3953255 | C152: 39.53255 | D152: -121.53798 | E152: 66 | F152: 47.3 | G152: 28.6 | H152: [GrayPine, DouglasFir, MontereyPine] | I152: GrayPine | J152: -7.3 | K152: W12153810N3953244-W12153905N3953243 | L152: Tier 2-3 | M152: YES | N152: 2019-11-20T17:46:46 | O152: =VLOOKUP($K152,SpanRange,4,FALSE) -> 176 | P152: =VLOOKUP($K152,SpanRange,2,FALSE) -> 270.1 | Q152: =VLOOKUP($K152,SpanRange,3,FALSE) -> 2 | R152: =Find_Table(Spans!$I$2,I152) -> 10 | S152: =IF(R152=0,Spans!$C$10,VLOOKUP(P152,INDIRECT("Table"&R152),Q152,TRUE)) -> 32 | T152: No | U152: No
A153: 420 | B153: W12153201N3953256 | C153: 39.53256 | D153: -121.53201 | E153: 36.4 | F153: 9.2 | G153: 6.8 | H153: [GrayPine, DouglasFir, Other] | I153: GrayPine | J153: -5.9 | K153: W12153205N3953245-W12153205N3953285 | L153: Tier 2-3 | M153: YES | N153: 2019-11-20T17:46:46 | O153: =VLOOKUP($K153,SpanRange,4,FALSE) -> 181 | P153: =VLOOKUP($K153,SpanRange,2,FALSE) -> 144.6 | Q153: =VLOOKUP($K153,SpanRange,3,FALSE) -> 2 | R153: =Find_Table(Spans!$I$2,I153) -> 10 | S153: =IF(R153=0,Spans!$C$10,VLOOKUP(P153,INDIRECT("Table"&R153),Q153,TRUE)) -> 21 | T153: No | U153: No
A154: 423 | B154: W12154097N3953156 | C154: 39.53156 | D154: -121.54097 | E154: 59.9 | F154: 33.3 | G154: 24.4 | H154: [GrayPine, Other, DouglasFir] | I154: GrayPine | J154: -13.2 | K154: W12154084N3953131-W12154086N3953214 | L154: Tier 2-3 | M154: YES | N154: 2019-11-20T17:46:46 | O154: =VLOOKUP($K154,SpanRange,4,FALSE) -> 162 | P154: =VLOOKUP($K154,SpanRange,2,FALSE) -> 302.6 | Q154: =VLOOKUP($K154,SpanRange,3,FALSE) -> 2 | R154: =Find_Table(Spans!$I$2,I154) -> 10 | S154: =IF(R154=0,Spans!$C$10,VLOOKUP(P154,INDIRECT("Table"&R154),Q154,TRUE)) -> 36 | T154: No | U154: No
A155: 425 | B155: W12154248N3953658 | C155: 39.53658 | D155: -121.54248 | E155: 93.7 | F155: 11.7 | G155: 12 | H155: [GrayPine, DouglasFir, Other] | I155: GrayPine | J155: -66.9 | K155: W12154256N3953592-W12154253N3953660 | L155: Tier 2-3 | M155: YES | N155: 2019-11-20T17:46:46 | O155: =VLOOKUP($K155,SpanRange,4,FALSE) -> 194 | P155: =VLOOKUP($K155,SpanRange,2,FALSE) -> 247.6 | Q155: =VLOOKUP($K155,SpanRange,3,FALSE) -> 2 | R155: =Find_Table(Spans!$I$2,I155) -> 10 | S155: =IF(R155=0,Spans!$C$10,VLOOKUP(P155,INDIRECT("Table"&R155),Q155,TRUE)) -> 32 | T155: Yes | U155: No
A156: 429 | B156: W12153639N3953136 | C156: 39.53136 | D156: -121.53639 | E156: 50.1 | F156: 39.4 | G156: 4.9 | H156: [DouglasFir, LiveOak, TanOak] | I156: DouglasFir | J156: -1.8 | K156: W12153654N3953154-W12153654N3953103 | L156: Tier 2-3 | M156: YES | N156: 2019-11-20T17:46:46 | O156: =VLOOKUP($K156,SpanRange,4,FALSE) -> 151 | P156: =VLOOKUP($K156,SpanRange,2,FALSE) -> 182.7 | Q156: =VLOOKUP($K156,SpanRange,3,FALSE) -> 2 | R156: =Find_Table(Spans!$I$2,I156) -> 9 | S156: =IF(R156=0,Spans!$C$10,VLOOKUP(P156,INDIRECT("Table"&R156),Q156,TRUE)) -> 21 | T156: No | U156: No
A157: 430 | B157: W12154077N3953159 | C157: 39.53159 | D157: -121.54077 | E157: 55.7 | F157: 16.4 | G157: 9.2 | H157: [DouglasFir, LiveOak, GrayPine] | I157: DouglasFir | J157: -29.5 | K157: W12154084N3953131-W12154086N3953214 | L157: Tier 2-3 | M157: YES | N157: 2019-11-20T17:46:46 | O157: =VLOOKUP($K157,SpanRange,4,FALSE) -> 162 | P157: =VLOOKUP($K157,SpanRange,2,FALSE) -> 302.6 | Q157: =VLOOKUP($K157,SpanRange,3,FALSE) -> 2 | R157: =Find_Table(Spans!$I$2,I157) -> 9 | S157: =IF(R157=0,Spans!$C$10,VLOOKUP(P157,INDIRECT("Table"&R157),Q157,TRUE)) -> 31 | T157: No | U157: No
A158: 433 | B158: W12152061N3952869 | C158: 39.52869 | D158: -121.52061 | E158: 60.8 | F158: 39 | G158: 23.8 | H158: [DouglasFir, GrayPine, Other] | I158: DouglasFir | J158: -9.1 | K158: W12152053N3952877-W12152014N3952914 | L158: Tier 2-3 | M158: YES | N158: 2019-11-20T17:46:46 | O158: =VLOOKUP($K158,SpanRange,4,FALSE) -> 106 | P158: =VLOOKUP($K158,SpanRange,2,FALSE) -> 171.9 | Q158: =VLOOKUP($K158,SpanRange,3,FALSE) -> 2 | R158: =Find_Table(Spans!$I$2,I158) -> 9 | S158: =IF(R158=0,Spans!$C$10,VLOOKUP(P158,INDIRECT("Table"&R158),Q158,TRUE)) -> 21 | T158: No | U158: No
A159: 442 | B159: W12151443N3952472 | C159: 39.52472 | D159: -121.51443 | E159: 64.2 | F159: 43.5 | G159: 25.5 | H159: [GrayPine, DouglasFir, Other] | I159: GrayPine | J159: -8.1 | K159: W12151461N3952559-W12151459N3952471 | L159: Tier 2-3 | M159: YES | N159: 2019-11-20T17:46:46 | O159: =VLOOKUP($K159,SpanRange,4,FALSE) -> 54 | P159: =VLOOKUP($K159,SpanRange,2,FALSE) -> 322.6 | Q159: =VLOOKUP($K159,SpanRange,3,FALSE) -> 2 | R159: =Find_Table(Spans!$I$2,I159) -> 10 | S159: =IF(R159=0,Spans!$C$10,VLOOKUP(P159,INDIRECT("Table"&R159),Q159,TRUE)) -> 36 | T159: No | U159: No
A160: 448 | B160: W12152117N3952618 | C160: 39.52618 | D160: -121.52117 | E160: 43.9 | F160: 14.1 | G160: 4.6 | H160: [GrayPine, Other, ValleyOak] | I160: GrayPine | J160: -8.1 | K160: W12152124N3952614-W12152064N3952615 | L160: Tier 2-3 | M160: YES | N160: 2019-11-20T17:46:46 | O160: =VLOOKUP($K160,SpanRange,4,FALSE) -> 68 | P160: =VLOOKUP($K160,SpanRange,2,FALSE) -> 171 | Q160: =VLOOKUP($K160,SpanRange,3,FALSE) -> 2 | R160: =Find_Table(Spans!$I$2,I160) -> 10 | S160: =IF(R160=0,Spans!$C$10,VLOOKUP(P160,INDIRECT("Table"&R160),Q160,TRUE)) -> 26 | T160: No | U160: No
A161: 450 | B161: W12153213N3953145 | C161: 39.53145 | D161: -121.53213 | E161: 53.4 | F161: 14.9 | G161: 11.1 | H161: [GrayPine, DouglasFir, Other] | I161: GrayPine | J161: -19.6 | K161: W12153207N3953097-W12153206N3953153 | L161: Tier 2-3 | M161: YES | N161: 2019-11-20T17:46:46 | O161: =VLOOKUP($K161,SpanRange,4,FALSE) -> 148 | P161: =VLOOKUP($K161,SpanRange,2,FALSE) -> 205.3 | Q161: =VLOOKUP($K161,SpanRange,3,FALSE) -> 2 | R161: =Find_Table(Spans!$I$2,I161) -> 10 | S161: =IF(R161=0,Spans!$C$10,VLOOKUP(P161,INDIRECT("Table"&R161),Q161,TRUE)) -> 32 | T161: No | U161: No
A162: 452 | B162: W12154063N3953147 | C162: 39.53147 | D162: -121.54063 | E162: 68.5 | F162: 57.7 | G162: 42.3 | H162: [GrayPine, DouglasFir, Other] | I162: GrayPine | J162: -10.2 | K162: W12154084N3953131-W12154086N3953214 | L162: Tier 2-3 | M162: YES | N162: 2019-11-20T17:46:46 | O162: =VLOOKUP($K162,SpanRange,4,FALSE) -> 162 | P162: =VLOOKUP($K162,SpanRange,2,FALSE) -> 302.6 | Q162: =VLOOKUP($K162,SpanRange,3,FALSE) -> 2 | R162: =Find_Table(Spans!$I$2,I162) -> 10 | S162: =IF(R162=0,Spans!$C$10,VLOOKUP(P162,INDIRECT("Table"&R162),Q162,TRUE)) -> 36 | T162: No | U162: No
A163: 454 | B163: W12151879N3953100 | C163: 39.531 | D163: -121.51879 | E163: 36.2 | F163: 18.9 | G163: 7.8 | H163: [CoastalLiveOak, MontereyPine, DouglasFir] | I163: CoastalLiveOak | J163: -1.6 | K163: W12151923N3953089-W12151868N3953111 | L163: Tier 2-3 | M163: YES | N163: 2019-11-20T17:46:46 | O163: =VLOOKUP($K163,SpanRange,4,FALSE) -> 145 | P163: =VLOOKUP($K163,SpanRange,2,FALSE) -> 177.6 | Q163: =VLOOKUP($K163,SpanRange,3,FALSE) -> 2 | R163: =Find_Table(Spans!$I$2,I163) -> 11 | S163: =IF(R163=0,Spans!$C$10,VLOOKUP(P163,INDIRECT("Table"&R163),Q163,TRUE)) -> 30 | T163: No | U163: No
A164: 455 | B164: W12153701N3952454 | C164: 39.52454 | D164: -121.53701 | E164: 47 | F164: 33.4 | G164: 12 | H164: [Other, DouglasFir, GrayPine] | I164: Other | J164: -2.1 | K164: W12153716N3952455-W12153682N3952487 | L164: Tier 2-3 | M164: YES | N164: 2019-11-20T17:46:46 | O164: =VLOOKUP($K164,SpanRange,4,FALSE) -> 49 | P164: =VLOOKUP($K164,SpanRange,2,FALSE) -> 150.7 | Q164: =VLOOKUP($K164,SpanRange,3,FALSE) -> 2 | R164: =Find_Table(Spans!$I$2,I164) -> 11 | S164: =IF(R164=0,Spans!$C$10,VLOOKUP(P164,INDIRECT("Table"&R164),Q164,TRUE)) -> 30 | T164: No | U164: No
A165: 460 | B165: W12153644N3953089 | C165: 39.53089 | D165: -121.53644 | E165: 53.8 | F165: 28.4 | G165: 8.2 | H165: [LiveOak, Other, DouglasFir] | I165: LiveOak | J165: -13.7 | K165: W12153655N3953063-W12153654N3953103 | L165: Tier 2-3 | M165: YES | N165: 2019-11-20T17:46:46 | O165: =VLOOKUP($K165,SpanRange,4,FALSE) -> 144 | P165: =VLOOKUP($K165,SpanRange,2,FALSE) -> 148 | Q165: =VLOOKUP($K165,SpanRange,3,FALSE) -> 2 | R165: =Find_Table(Spans!$I$2,I165) -> 11 | S165: =IF(R165=0,Spans!$C$10,VLOOKUP(P165,INDIRECT("Table"&R165),Q165,TRUE)) -> 30 | T165: No | U165: No
A166: 461 | B166: W12154249N3954038 | C166: 39.54038 | D166: -121.54249 | E166: 35 | F166: 25.2 | G166: 12 | H166: [GrayPine, Eucalyptus/BlueGum, MontereyPine] | I166: GrayPine | J166: -6.5 | K166: W12154261N3953987-W12154258N3954066 | L166: Tier 2-3 | M166: YES | N166: 2019-11-20T17:46:46 | O166: =VLOOKUP($K166,SpanRange,4,FALSE) -> 199 | P166: =VLOOKUP($K166,SpanRange,2,FALSE) -> 286.7 | Q166: =VLOOKUP($K166,SpanRange,3,FALSE) -> 2 | R166: =Find_Table(Spans!$I$2,I166) -> 10 | S166: =IF(R166=0,Spans!$C$10,VLOOKUP(P166,INDIRECT("Table"&R166),Q166,TRUE)) -> 32 | T166: No | U166: No
A167: 463 | B167: W12153172N3953040 | C167: 39.5304 | D167: -121.53172 | E167: 48.5 | F167: 24.7 | G167: 4.7 | H167: [DouglasFir, LiveOak, CoastalLiveOak] | I167: DouglasFir | J167: -8.6 | K167: W12153157N3953048-W12153206N3953048 | L167: Tier 2-3 | M167: YES | N167: 2019-11-20T17:46:46 | O167: =VLOOKUP($K167,SpanRange,4,FALSE) -> 134 | P167: =VLOOKUP($K167,SpanRange,2,FALSE) -> 140.1 | Q167: =VLOOKUP($K167,SpanRange,3,FALSE) -> 2 | R167: =Find_Table(Spans!$I$2,I167) -> 9 | S167: =IF(R167=0,Spans!$C$10,VLOOKUP(P167,INDIRECT("Table"&R167),Q167,TRUE)) -> 16 | T167: No | U167: No
A168: 464 | B168: W12151965N3952903 | C168: 39.52903 | D168: -121.51965 | E168: 79.1 | F168: 63.5 | G168: 53.4 | H168: [GrayPine, Other, DouglasFir] | I168: GrayPine | J168: -12.6 | K168: W12152014N3952914-W12151936N3952926 | L168: Tier 2-3 | M168: YES | N168: 2019-11-20T17:46:46 | O168: =VLOOKUP($K168,SpanRange,4,FALSE) -> 108 | P168: =VLOOKUP($K168,SpanRange,2,FALSE) -> 225.1 | Q168: =VLOOKUP($K168,SpanRange,3,FALSE) -> 2 | R168: =Find_Table(Spans!$I$2,I168) -> 10 | S168: =IF(R168=0,Spans!$C$10,VLOOKUP(P168,INDIRECT("Table"&R168),Q168,TRUE)) -> 32 | T168: No | U168: No
A169: 465 | B169: W12153412N3953214 | C169: 39.53214 | D169: -121.53412 | E169: 37.8 | F169: 18.2 | G169: 12 | H169: [CoastalLiveOak, DouglasFir, Eucalyptus/BlueGum] | I169: CoastalLiveOak | J169: -3.5 | K169: W12153419N3953235-W12153419N3953172 | L169: Tier 2-3 | M169: YES | N169: 2019-11-20T17:46:46 | O169: =VLOOKUP($K169,SpanRange,4,FALSE) -> 166 | P169: =VLOOKUP($K169,SpanRange,2,FALSE) -> 228.3 | Q169: =VLOOKUP($K169,SpanRange,3,FALSE) -> 2 | R169: =Find_Table(Spans!$I$2,I169) -> 11 | S169: =IF(R169=0,Spans!$C$10,VLOOKUP(P169,INDIRECT("Table"&R169),Q169,TRUE)) -> 30 | T169: No | U169: No
A170: 469 | B170: W12151764N3953167 | C170: 39.53167 | D170: -121.51764 | E170: 57.9 | F170: 16.4 | G170: 10.5 | H170: [DouglasFir, CoastalLiveOak, Eucalyptus/BlueGum] | I170: DouglasFir | J170: -14 | K170: W12151765N3953162-W12151822N3953157 | L170: Tier 2-3 | M170: YES | N170: 2019-11-20T17:46:46 | O170: =VLOOKUP($K170,SpanRange,4,FALSE) -> 160 | P170: =VLOOKUP($K170,SpanRange,2,FALSE) -> 161.3 | Q170: =VLOOKUP($K170,SpanRange,3,FALSE) -> 2 | R170: =Find_Table(Spans!$I$2,I170) -> 9 | S170: =IF(R170=0,Spans!$C$10,VLOOKUP(P170,INDIRECT("Table"&R170),Q170,TRUE)) -> 21 | T170: No | U170: No
A171: 474 | B171: W12153200N3953278 | C171: 39.53278 | D171: -121.532 | E171: 37.5 | F171: 13.1 | G171: 3.8 | H171: [CoastalLiveOak, DouglasFir, Eucalyptus/BlueGum] | I171: CoastalLiveOak | J171: -2.7 | K171: W12153205N3953245-W12153205N3953285 | L171: Tier 2-3 | M171: YES | N171: 2019-11-20T17:46:46 | O171: =VLOOKUP($K171,SpanRange,4,FALSE) -> 181 | P171: =VLOOKUP($K171,SpanRange,2,FALSE) -> 144.6 | Q171: =VLOOKUP($K171,SpanRange,3,FALSE) -> 2 | R171: =Find_Table(Spans!$I$2,I171) -> 11 | S171: =IF(R171=0,Spans!$C$10,VLOOKUP(P171,INDIRECT("Table"&R171),Q171,TRUE)) -> 30 | T171: No | U171: No
A172: 475 | B172: W12154122N3953396 | C172: 39.53396 | D172: -121.54122 | E172: 81.8 | F172: 65.7 | G172: 48.6 | H172: [CoastalLiveOak, GrayPine, MontereyPine] | I172: CoastalLiveOak | J172: -13 | K172: W12154149N3953393-W12154087N3953327 | L172: Tier 2-3 | M172: YES | N172: 2019-11-20T17:46:46 | O172: =VLOOKUP($K172,SpanRange,4,FALSE) -> 188 | P172: =VLOOKUP($K172,SpanRange,2,FALSE) -> 296 | Q172: =VLOOKUP($K172,SpanRange,3,FALSE) -> 2 | R172: =Find_Table(Spans!$I$2,I172) -> 11 | S172: =IF(R172=0,Spans!$C$10,VLOOKUP(P172,INDIRECT("Table"&R172),Q172,TRUE)) -> 30 | T172: No | U172: No
A173: 477 | B173: W12153849N3952205 | C173: 39.52205 | D173: -121.53849 | E173: 25.7 | F173: 12.8 | G173: 8.2 | J173: -4 | K173: W12153891N3952195-W12153812N3952205 | L173: Tier 2-3 | M173: YES | N173: 2019-11-20T17:46:46 | O173: =VLOOKUP($K173,SpanRange,4,FALSE) -> 21 | P173: =VLOOKUP($K173,SpanRange,2,FALSE) -> 226.3 | Q173: =VLOOKUP($K173,SpanRange,3,FALSE) -> 2 | R173: =Find_Table(Spans!$I$2,I173) -> 11 | S173: =IF(R173=0,Spans!$C$10,VLOOKUP(P173,INDIRECT("Table"&R173),Q173,TRUE)) -> 30 | T173: No | U173: No
A174: 480 | B174: W12152600N3953289 | C174: 39.53289 | D174: -121.526 | E174: 48 | F174: 19.6 | G174: 5.7 | H174: [DouglasFir, Other, GrayPine] | I174: DouglasFir | J174: -7.9 | K174: W12152605N3953235-W12152605N3953285 | L174: Tier 2-3 | M174: YES | N174: 2019-11-20T17:46:46 | O174: =VLOOKUP($K174,SpanRange,4,FALSE) -> 178 | P174: =VLOOKUP($K174,SpanRange,2,FALSE) -> 180.3 | Q174: =VLOOKUP($K174,SpanRange,3,FALSE) -> 2 | R174: =Find_Table(Spans!$I$2,I174) -> 9 | S174: =IF(R174=0,Spans!$C$10,VLOOKUP(P174,INDIRECT("Table"&R174),Q174,TRUE)) -> 21 | T174: No | U174: No
A175: 484 | B175: W12154247N3953595 | C175: 39.53595 | D175: -121.54247 | E175: 61.1 | F175: 22.7 | G175: 12 | H175: [Other, LiveOak, GrayPine] | I175: Other | J175: -30.8 | K175: W12154256N3953592-W12154253N3953660 | L175: Tier 2-3 | M175: YES | N175: 2019-11-20T17:46:46 | O175: =VLOOKUP($K175,SpanRange,4,FALSE) -> 194 | P175: =VLOOKUP($K175,SpanRange,2,FALSE) -> 247.6 | Q175: =VLOOKUP($K175,SpanRange,3,FALSE) -> 2 | R175: =Find_Table(Spans!$I$2,I175) -> 11 | S175: =IF(R175=0,Spans!$C$10,VLOOKUP(P175,INDIRECT("Table"&R175),Q175,TRUE)) -> 30 | T175: Yes | U175: No
A176: 485 | B176: W12153844N3952197 | C176: 39.52197 | D176: -121.53844 | E176: 28.3 | F176: 15.3 | G176: 9.3 | H176: [GrayPine, Other, DouglasFir] | I176: GrayPine | J176: -0.1 | K176: W12153891N3952195-W12153812N3952205 | L176: Tier 2-3 | M176: YES | N176: 2019-11-20T17:46:46 | O176: =VLOOKUP($K176,SpanRange,4,FALSE) -> 21 | P176: =VLOOKUP($K176,SpanRange,2,FALSE) -> 226.3 | Q176: =VLOOKUP($K176,SpanRange,3,FALSE) -> 2 | R176: =Find_Table(Spans!$I$2,I176) -> 10 | S176: =IF(R176=0,Spans!$C$10,VLOOKUP(P176,INDIRECT("Table"&R176),Q176,TRUE)) -> 32 | T176: No | U176: No
A177: 487 | B177: W12154229N3953616 | C177: 39.53616 | D177: -121.54229 | E177: 96.4 | F177: 70.2 | G177: 48.1 | H177: [GrayPine, Other, DouglasFir] | I177: GrayPine | J177: -26.1 | K177: W12154256N3953592-W12154253N3953660 | L177: Tier 2-3 | M177: YES | N177: 2019-11-20T17:46:46 | O177: =VLOOKUP($K177,SpanRange,4,FALSE) -> 194 | P177: =VLOOKUP($K177,SpanRange,2,FALSE) -> 247.6 | Q177: =VLOOKUP($K177,SpanRange,3,FALSE) -> 2 | R177: =Find_Table(Spans!$I$2,I177) -> 10 | S177: =IF(R177=0,Spans!$C$10,VLOOKUP(P177,INDIRECT("Table"&R177),Q177,TRUE)) -> 32 | T177: No | U177: No
A178: 489 | B178: W12153199N3953095 | C178: 39.53095 | D178: -121.53199 | E178: 72.2 | F178: 19.8 | G178: 8.3 | H178: [GrayPine, DouglasFir, LiveOak] | I178: GrayPine | J178: -37.1 | K178: W12153207N3953097-W12153206N3953048 | L178: Tier 2-3 | M178: YES | N178: 2019-11-20T17:46:46 | O178: =VLOOKUP($K178,SpanRange,4,FALSE) -> 141 | P178: =VLOOKUP($K178,SpanRange,2,FALSE) -> 177.2 | Q178: =VLOOKUP($K178,SpanRange,3,FALSE) -> 2 | R178: =Find_Table(Spans!$I$2,I178) -> 10 | S178: =IF(R178=0,Spans!$C$10,VLOOKUP(P178,INDIRECT("Table"&R178),Q178,TRUE)) -> 26 | T178: Yes | U178: No
